Workbook

Sheet Velkomst

Sheet Tabel 1 H
A1: Tabel 1. Forsikrede medlemmer
A3: Hovedstaden
C5: Mænd | E5: Kvinder | G5: I alt
A7: Civ. ing. | C7: 13053 | E7: 5277 | G7: 18330
A8: Diplom ing. | C8: 9926 | E8: 2555 | G8: 12481
A9: Cand. Scient. Tek. | C9: 5999 | E9: 5481 | G9: 11480
A10: MA. Hum. | C10: 6257 | E10: 14205 | G10: 20462
A11: MA. Nat. | C11: 3536 | E11: 3613 | G11: 7149
A12: MA. Ph.d. | C12: 719 | E12: 583 | G12: 1302
A13: MA. Samf. | C13: 1050 | E13: 2649 | G13: 3699
A14: Øvrige Mag. | C14: 596 | E14: 1170 | G14: 1766
A15: Agronom | C15: 384 | E15: 471 | G15: 855
A16: Landsk. Arkt. | C16: 134 | E16: 359 | G16: 493
A17: Hortonom | C17: 54 | E17: 94 | G17: 148
A18: Forstkand. | C18: 191 | E18: 67 | G18: 258
A19: Jordbrugsakad. | C19: 763 | E19: 991 | G19: 1754
A20: Mejeriing. | C20: 60 | E20: 89 | G20: 149
A21: Levn.m.kand. | C21: 52 | E21: 275 | G21: 327
A22: Dyrlæge | C22: 165 | E22: 802 | G22: 967
A23: Farmaceut | C23: 1086 | E23: 2828 | G23: 3914
A24: Læge | C24: 1601 | E24: 3851 | G24: 5452
A25: Tandlæge | C25: 136 | E25: 735 | G25: 871
A26: Arkitekt | C26: 1661 | E26: 2029 | G26: 3690
A27: Landinspek. | C27: 140 | E27: 52 | G27: 192
A28: Bibliotekar | C28: 441 | E28: 1212 | G28: 1653
A29: Musikudd. | C29: 126 | E29: 168 | G29: 294
A30: Teolog | C30: 207 | E30: 351 | G30: 558
A31: Psykolog | C31: 694 | E31: 3064 | G31: 3758
A32: Jurist | C32: 3295 | E32: 6622 | G32: 9917
A33: Økonom | C33: 3510 | E33: 2225 | G33: 5735
A34: Samf. Adm. | C34: 7080 | E34: 10598 | G34: 17678
A35: Cand. Merc. | C35: 10781 | E35: 10706 | G35: 21487
A36: HA | C36: 1422 | E36: 1229 | G36: 2651
A37: HD | C37: 1323 | E37: 1211 | G37: 2534
A38: Komm. og Sprog | C38: 622 | E38: 3321 | G38: 3943
A39: Bygningskonst. | C39: 2128 | E39: 497 | G39: 2625
A40: Cand. IT. | C40: 1592 | E40: 1373 | G40: 2965
A41: Bac. Samf. | C41: 387 | E41: 438 | G41: 825
A42: Bac. Hum. | C42: 776 | E42: 1273 | G42: 2049
A43: Bac. Nat. | C43: 1029 | E43: 711 | G43: 1740
A44: Andre | C44: 6524 | E44: 7675 | G44: 14199
A46: Total | C46: 88737 | E46: 99859 | G46: 188596
A48: Ingeniører i alt | C48: 22979 | E48: 7832 | G48: 30811
A49: Magistre i alt | C49: 12158 | E49: 22220 | G49: 34378
A50: DJØF'ere i alt | C50: 26088 | E50: 31380 | G50: 57468
A57: København
C59: Mænd | E59: Kvinder | G59: I alt
A61: Civ. ing. | C61: 4518 | E61: 1736 | G61: 6254
A62: Diplom ing. | C62: 2585 | E62: 678 | G62: 3263
A63: Cand. Scient. Tek. | C63: 3283 | E63: 2969 | G63: 6252
A64: MA. Hum. | C64: 4091 | E64: 8484 | G64: 12575
A65: MA. Nat. | C65: 1509 | E65: 1518 | G65: 3027
A66: MA. Ph.d. | C66: 375 | E66: 290 | G66: 665
A67: MA. Samf. | C67: 740 | E67: 1781 | G67: 2521
A68: Øvrige Mag. | C68: 352 | E68: 683 | G68: 1035
A69: Agronom | C69: 140 | E69: 178 | G69: 318
A70: Landsk. Arkt. | C70: 74 | E70: 181 | G70: 255
A71: Hortonom | C71: 20 | E71: 26 | G71: 46
A72: Forstkand. | C72: 64 | E72: 26 | G72: 90
A73: Jordbrugsakad. | C73: 298 | E73: 411 | G73: 709
A74: Mejeriing. | C74: 23 | E74: 37 | G74: 60
A75: Levn.m.kand. | C75: 33 | E75: 131 | G75: 164
A76: Dyrlæge | C76: 55 | E76: 257 | G76: 312
A77: Farmaceut | C77: 407 | E77: 894 | G77: 1301
A78: Læge | C78: 759 | E78: 1808 | G78: 2567
A79: Tandlæge | C79: 50 | E79: 268 | G79: 318
A80: Arkitekt | C80: 1059 | E80: 1256 | G80: 2315
A81: Landinspek. | C81: 39 | E81: 16 | G81: 55
A82: Bibliotekar | C82: 248 | E82: 530 | G82: 778
A83: Musikudd. | C83: 62 | E83: 79 | G83: 141
A84: Teolog | C84: 99 | E84: 157 | G84: 256
A85: Psykolog | C85: 441 | E85: 1684 | G85: 2125
A86: Jurist | C86: 1612 | E86: 2915 | G86: 4527
A87: Økonom | C87: 1674 | E87: 1033 | G87: 2707
A88: Samf. Adm. | C88: 4126 | E88: 6113 | G88: 10239
A89: Cand. Merc. | C89: 5256 | E89: 5186 | G89: 10442
A90: HA | C90: 658 | E90: 586 | G90: 1244
A91: HD | C91: 497 | E91: 595 | G91: 1092
A92: Komm. og Sprog | C92: 400 | E92: 1453 | G92: 1853
A93: Bygningskonst. | C93: 917 | E93: 248 | G93: 1165
A94: Cand. IT. | C94: 977 | E94: 890 | G94: 1867
A95: Bac. Samf. | C95: 242 | E95: 248 | G95: 490
A96: Bac. Hum. | C96: 502 | E96: 810 | G96: 1312
A97: Bac. Nat. | C97: 539 | E97: 419 | G97: 958
A98: Andre | C98: 3438 | E98: 4139 | G98: 7577
A100: Total | C100: 41864 | E100: 50302 | G100: 92166
A102: Ingeniører i alt | C102: 7103 | E102: 2414 | G102: 9517
A103: Magistre i alt | C103: 7067 | E103: 12756 | G103: 19823
A104: DJØF'ere i alt | C104: 13326 | E104: 15833 | G104: 29159
A111: Frederiksberg
C113: Mænd | E113: Kvinder | G113: I alt
A115: Civ. ing. | C115: 787 | E115: 329 | G115: 1116
A116: Diplom ing. | C116: 453 | E116: 111 | G116: 564
A117: Cand. Scient. Tek. | C117: 419 | E117: 403 | G117: 822
A118: MA. Hum. | C118: 534 | E118: 1289 | G118: 1823
A119: MA. Nat. | C119: 248 | E119: 240 | G119: 488
A120: MA. Ph.d. | C120: 65 | E120: 63 | G120: 128
A121: MA. Samf. | C121: 101 | E121: 230 | G121: 331
A122: Øvrige Mag. | C122: 46 | E122: 83 | G122: 129
A123: Agronom | C123: 40 | E123: 37 | G123: 77
A124: Landsk. Arkt. | C124: 14 | E124: 21 | G124: 35
A125: Hortonom | C125: 1 | E125: 7 | G125: 8
A126: Forstkand. | C126: 7 | E126: 6 | G126: 13
A127: Jordbrugsakad. | C127: 62 | E127: 71 | G127: 133
A128: Mejeriing. | C128: 5 | E128: 4 | G128: 9
A129: Levn.m.kand. | C129: 4 | E129: 21 | G129: 25
A130: Dyrlæge | C130: 17 | E130: 60 | G130: 77
A131: Farmaceut | C131: 67 | E131: 159 | G131: 226
A132: Læge | C132: 151 | E132: 336 | G132: 487
A133: Tandlæge | C133: 7 | E133: 54 | G133: 61
A134: Arkitekt | C134: 195 | E134: 226 | G134: 421
A135: Landinspek. | C135: 13 | E135: 4 | G135: 17
A136: Bibliotekar | C136: 30 | E136: 97 | G136: 127
A137: Musikudd. | C137: 10 | E137: 8 | G137: 18
A138: Teolog | C138: 8 | E138: 28 | G138: 36
A139: Psykolog | C139: 60 | E139: 276 | G139: 336
A140: Jurist | C140: 394 | E140: 660 | G140: 1054
A141: Økonom | C141: 355 | E141: 240 | G141: 595
A142: Samf. Adm. | C142: 684 | E142: 1036 | G142: 1720
A143: Cand. Merc. | C143: 1229 | E143: 1237 | G143: 2466
A144: HA | C144: 123 | E144: 96 | G144: 219
A145: HD | C145: 113 | E145: 87 | G145: 200
A146: Komm. og Sprog | C146: 58 | E146: 316 | G146: 374
A147: Bygningskonst. | C147: 121 | E147: 39 | G147: 160
A148: Cand. IT. | C148: 123 | E148: 101 | G148: 224
A149: Bac. Samf. | C149: 33 | E149: 47 | G149: 80
A150: Bac. Hum. | C150: 70 | E150: 113 | G150: 183
A151: Bac. Nat. | C151: 60 | E151: 59 | G151: 119
A152: Andre | C152: 555 | E152: 679 | G152: 1234
A154: Total | C154: 7200 | E154: 8802 | G154: 16002
A156: Ingeniører i alt | C156: 1240 | E156: 440 | G156: 1680
A157: Magistre i alt | C157: 994 | E157: 1905 | G157: 2899
A158: DJØF'ere i alt | C158: 2785 | E158: 3269 | G158: 6054
A165: Ballerup
C167: Mænd | E167: Kvinder | G167: I alt
A169: Civ. ing. | C169: 393 | E169: 166 | G169: 559
A170: Diplom ing. | C170: 398 | E170: 101 | G170: 499
A171: Cand. Scient. Tek. | C171: 120 | E171: 99 | G171: 219
A172: MA. Hum. | C172: 69 | E172: 156 | G172: 225
A173: MA. Nat. | C173: 81 | E173: 88 | G173: 169
A174: MA. Ph.d. | C174: 11 | E174: 10 | G174: 21
A175: MA. Samf. | C175: 16 | E175: 18 | G175: 34
A176: Øvrige Mag. | C176: 9 | E176: 19 | G176: 28
A177: Agronom | C177: 9 | E177: 9 | G177: 18
A178: Landsk. Arkt. | C178: 3 | E178: 8 | G178: 11
A179: Hortonom | C179: 1 | E179: 2 | G179: 3
A180: Forstkand. | C180: 3 | E180: 1 | G180: 4
A181: Jordbrugsakad. | C181: 16 | E181: 20 | G181: 36
A182: Mejeriing. | C182: 1 | E182: 4 | G182: 5
A183: Levn.m.kand. | C183: 0 | E183: 4 | G183: 4
A184: Dyrlæge | C184: 3 | E184: 26 | G184: 29
A185: Farmaceut | C185: 34 | E185: 97 | G185: 131
A186: Læge | C186: 28 | E186: 54 | G186: 82
A187: Tandlæge | C187: 1 | E187: 13 | G187: 14
A188: Arkitekt | C188: 11 | E188: 11 | G188: 22
A189: Landinspek. | C189: 5 | E189: 2 | G189: 7
A190: Bibliotekar | C190: 11 | E190: 30 | G190: 41
A191: Musikudd. | C191: 3 | E191: 5 | G191: 8
A192: Teolog | C192: 3 | E192: 5 | G192: 8
A193: Psykolog | C193: 8 | E193: 42 | G193: 50
A194: Jurist | C194: 29 | E194: 82 | G194: 111
A195: Økonom | C195: 56 | E195: 24 | G195: 80
A196: Samf. Adm. | C196: 87 | E196: 120 | G196: 207
A197: Cand. Merc. | C197: 137 | E197: 136 | G197: 273
A198: HA | C198: 20 | E198: 16 | G198: 36
A199: HD | C199: 17 | E199: 18 | G199: 35
A200: Komm. og Sprog | C200: 10 | E200: 58 | G200: 68
A201: Bygningskonst. | C201: 53 | E201: 12 | G201: 65
A202: Cand. IT. | C202: 18 | E202: 21 | G202: 39
A203: Bac. Samf. | C203: 3 | E203: 5 | G203: 8
A204: Bac. Hum. | C204: 6 | E204: 11 | G204: 17
A205: Bac. Nat. | C205: 35 | E205: 9 | G205: 44
A206: Andre | C206: 101 | E206: 91 | G206: 192
A208: Total | C208: 1793 | E208: 1573 | G208: 3366
A210: Ingeniører i alt | C210: 791 | E210: 267 | G210: 1058
A211: Magistre i alt | C211: 186 | E211: 291 | G211: 477
A212: DJØF'ere i alt | C212: 329 | E212: 378 | G212: 707
A219: Brøndby
C221: Mænd | E221: Kvinder | G221: I alt
A223: Civ. ing. | C223: 91 | E223: 33 | G223: 124
A224: Diplom ing. | C224: 135 | E224: 27 | G224: 162
A225: Cand. Scient. Tek. | C225: 45 | E225: 29 | G225: 74
A226: MA. Hum. | C226: 23 | E226: 64 | G226: 87
A227: MA. Nat. | C227: 28 | E227: 26 | G227: 54
A228: MA. Ph.d. | C228: 4 | E228: 2 | G228: 6
A229: MA. Samf. | C229: 11 | E229: 13 | G229: 24
A230: Øvrige Mag. | C230: 7 | E230: 7 | G230: 14
A231: Agronom | C231: 2 | E231: 4 | G231: 6
A232: Landsk. Arkt. | C232: 0 | E232: 5 | G232: 5
A233: Hortonom | C233: 0 | E233: 2 | G233: 2
A234: Forstkand. | C234: 0 | E234: 1 | G234: 1
A235: Jordbrugsakad. | C235: 2 | E235: 12 | G235: 14
A236: Mejeriing. | C236: 0 | E236: 0 | G236: 0
A237: Levn.m.kand. | C237: 0 | E237: 1 | G237: 1
A238: Dyrlæge | C238: 2 | E238: 4 | G238: 6
A239: Farmaceut | C239: 12 | E239: 30 | G239: 42
A240: Læge | C240: 10 | E240: 30 | G240: 40
A241: Tandlæge | C241: 1 | E241: 9 | G241: 10
A242: Arkitekt | C242: 1 | E242: 3 | G242: 4
A243: Landinspek. | C243: 0 | E243: 1 | G243: 1
... 1077 more rows

Sheet Tabel 2 H
A1: Tabel 2. Antal bruttoledighedsberørte og gennemsnitlig antal ledige brutto
A3: Hovedstaden
C5: Mænd | F5: Kvinder | I5: I alt
C6: Ledigheds- berørte | D6: Gns. brutto- ledighed | F6: Ledigheds- berørte | G6: Gns. brutto- ledighed | I6: Ledigheds- berørte | J6: Gns. brutto- ledighed
A9: Civ. ing. | C9: 405 | D9: 365.2753696 | F9: 194 | G9: 163.6848999 | I9: 599 | J9: 528.9602694
A10: Diplom ing. | C10: 271 | D10: 239.1030999 | F10: 86 | G10: 71.07528223 | I10: 357 | J10: 310.1783821
A11: Cand. Scient. Tek. | C11: 420 | D11: 358.9933263 | F11: 398 | G11: 333.9019522 | I11: 818 | J11: 692.8952785
A12: MA. Hum. | C12: 551 | D12: 440.4634192 | F12: 1124 | G12: 924.0310609 | I12: 1675 | J12: 1364.49448
A13: MA. Nat. | C13: 108 | D13: 92.693819 | F13: 148 | G13: 119.6369987 | I13: 256 | J13: 212.3308177
A14: MA. Ph.d. | C14: 19 | D14: 15.50739101 | F14: 24 | G14: 19.64011726 | I14: 43 | J14: 35.14750826
A15: MA. Samf. | C15: 132 | D15: 113.4634816 | F15: 277 | G15: 231.2530406 | I15: 409 | J15: 344.7165222
A16: Øvrige Mag. | C16: 51 | D16: 42.52541633 | F16: 117 | G16: 99.35570386 | I16: 168 | J16: 141.8811202
A17: Agronom | C17: 17 | D17: 14.68533649 | F17: 26 | G17: 20.8033431 | I17: 43 | J17: 35.4886796
A18: Landsk. Arkt. | C18: 10 | D18: 8.242998815 | F18: 22 | G18: 20.40479012 | I18: 32 | J18: 28.64778894
A19: Hortonom | C19: 0 | D19: 0 | F19: 5 | G19: 4.99906443 | I19: 5 | J19: 4.99906443
A20: Forstkand. | C20: 5 | D20: 3.963699869 | F20: 7 | G20: 6.673111707 | I20: 12 | J20: 10.63681158
A21: Jordbrugsakad. | C21: 32 | D21: 26.89203518 | F21: 60 | G21: 52.88030936 | I21: 92 | J21: 79.77234454
A22: Mejeriing. | C22: 2 | D22: 1.999625772 | F22: 4 | G22: 3.860787127 | I22: 6 | J22: 5.860412898
A23: Levn.m.kand. | C23: 4 | D23: 3.999251544 | F23: 3 | G23: 2.429988149 | I23: 7 | J23: 6.429239693
A24: Dyrlæge | C24: 1 | D24: 0.9998128859 | F24: 16 | G24: 13.17782074 | I24: 17 | J24: 14.17763363
A25: Farmaceut | C25: 45 | D25: 39.89958211 | F25: 90 | G25: 79.78170024 | I25: 135 | J25: 119.6812824
A26: Læge | C26: 25 | D26: 21.9322647 | F26: 75 | G26: 61.53495915 | I26: 100 | J26: 83.46722385
A27: Tandlæge | C27: 3 | D27: 2.274683465 | F27: 16 | G27: 11.08962764 | I27: 19 | J27: 13.36431111
A28: Arkitekt | C28: 107 | D28: 92.22291524 | F28: 113 | G28: 94.95228591 | I28: 220 | J28: 187.1752011
A29: Landinspek. | C29: 4 | D29: 3.999251544 | F29: 0 | G29: 0 | I29: 4 | J29: 3.999251544
A30: Bibliotekar | C30: 19 | D30: 16.31198154 | F30: 58 | G30: 49.6008233 | I30: 77 | J30: 65.91280484
A31: Musikudd. | C31: 6 | D31: 3.735420695 | F31: 5 | G31: 3.70672987 | I31: 11 | J31: 7.442150564
A32: Teolog | C32: 13 | D32: 12.16678101 | F32: 18 | G32: 13.70735358 | I32: 31 | J32: 25.8741346
A33: Psykolog | C33: 31 | D33: 25.2778644 | F33: 115 | G33: 95.85667062 | I33: 146 | J33: 121.134535
A34: Jurist | C34: 65 | D34: 56.38557974 | F34: 94 | G34: 76.00449074 | I34: 159 | J34: 132.3900705
A35: Økonom | C35: 86 | D35: 75.87912431 | F35: 42 | G35: 37.95920913 | I35: 128 | J35: 113.8383334
A36: Samf. Adm. | C36: 316 | D36: 274.0229527 | F36: 538 | G36: 441.3964947 | I36: 854 | J36: 715.4194474
A37: Cand. Merc. | C37: 385 | D37: 334.7165222 | F37: 427 | G37: 359.122435 | I37: 812 | J37: 693.8389572
A38: HA | C38: 89 | D38: 75.32526664 | F38: 76 | G38: 62.0376723 | I38: 165 | J38: 137.3629389
A39: HD | C39: 82 | D39: 68.64591779 | F39: 78 | G39: 66.75793676 | I39: 160 | J39: 135.4038545
A40: Komm. og Sprog | C40: 43 | D40: 37.01054076 | F40: 184 | G40: 156.6718643 | I40: 227 | J40: 193.682405
A41: Bygningskonst. | C41: 75 | D41: 65.31952847 | F41: 34 | G41: 31.59976299 | I41: 109 | J41: 96.91929146
A42: Cand. IT. | C42: 81 | D42: 75.38140086 | F42: 103 | G42: 83.12355766 | I42: 184 | J42: 158.5049585
A43: Bac. Samf. | C43: 20 | D43: 15.91841826 | F43: 32 | G43: 23.4878064 | I43: 52 | J43: 39.40622466
A44: Bac. Hum. | C44: 80 | D44: 66.67186428 | F44: 150 | G44: 124.2156802 | I44: 230 | J44: 190.8875444
A45: Bac. Nat. | C45: 103 | D45: 88.22990083 | F45: 91 | G45: 71.11395247 | I45: 194 | J45: 159.3438533
A46: Andre | C46: 367 | D46: 313.0954906 | F46: 621 | G46: 516.9325766 | I46: 988 | J46: 830.0280671
A48: Total | C48: 4041 | D48: 3466.3393 | F48: 5411 | G48: 4495.581551 | I48: 9452 | J48: 7961.920851
A50: Ingeniører i alt | C50: 676 | D50: 604.3784694 | F50: 280 | G50: 234.7601821 | I50: 956 | J50: 839.1386515
A51: Magistre i alt | C51: 861 | D51: 704.6535271 | F51: 1690 | G51: 1393.916921 | I51: 2551 | J51: 2098.570448
A52: DJØF'ere i alt | C52: 941 | D52: 816.3294455 | F52: 1177 | G52: 976.5203019 | I52: 2118 | J52: 1792.849747
A57: København
C59: Mænd | F59: Kvinder | I59: I alt
C60: Ledigheds- berørte | D60: Gns. brutto- ledighed | F60: Ledigheds- berørte | G60: Gns. brutto- ledighed | I60: Ledigheds- berørte | J60: Gns. brutto- ledighed
A63: Civ. ing. | C63: 198 | D63: 176.3051207 | F63: 86 | G63: 73.593214 | I63: 284 | J63: 249.8983347
A64: Diplom ing. | C64: 95 | D64: 84.66662509 | F64: 31 | G64: 26.67248799 | I64: 126 | J64: 111.3391131
A65: Cand. Scient. Tek. | C65: 307 | D65: 265.6945051 | F65: 271 | G65: 224.1252417 | I65: 578 | J65: 489.8197468
A66: MA. Hum. | C66: 435 | D66: 345.8678975 | F66: 764 | G66: 623.6181625 | I66: 1199 | J66: 969.48606
A67: MA. Nat. | C67: 65 | D67: 55.54980353 | F67: 91 | G67: 72.91211876 | I67: 156 | J67: 128.4619223
A68: MA. Ph.d. | C68: 13 | D68: 11.35221106 | F68: 14 | G68: 11.62664504 | I68: 27 | J68: 22.97885611
A69: MA. Samf. | C69: 98 | D69: 82.65577247 | F69: 200 | G69: 167.2793613 | I69: 298 | J69: 249.9351338
A70: Øvrige Mag. | C70: 35 | D70: 29.49354456 | F70: 83 | G70: 68.14195721 | I70: 118 | J70: 97.63550178
A71: Agronom | C71: 10 | D71: 8.770660513 | F71: 11 | G71: 7.979167966 | I71: 21 | J71: 16.74982848
A72: Landsk. Arkt. | C72: 7 | D72: 5.75126302 | F72: 16 | G72: 14.86746086 | I72: 23 | J72: 20.61872388
A73: Hortonom | C73: 0 | D73: 0 | F73: 1 | G73: 0.9998128859 | I73: 1 | J73: 0.9998128859
A74: Forstkand. | C74: 4 | D74: 3.194661012 | F74: 5 | G74: 4.673485935 | I74: 9 | J74: 7.868146947
A75: Jordbrugsakad. | C75: 21 | D75: 17.71658454 | F75: 33 | G75: 28.51992765 | I75: 54 | J75: 46.23651219
A76: Mejeriing. | C76: 2 | D76: 1.999625772 | F76: 2 | G76: 1.861161355 | I76: 4 | J76: 3.860787127
A77: Levn.m.kand. | C77: 2 | D77: 1.999625772 | F77: 2 | G77: 1.491922909 | I77: 4 | J77: 3.491548681
A78: Dyrlæge | C78: 0 | D78: 0 | F78: 7 | G78: 5.314039793 | I78: 7 | J78: 5.314039793
A79: Farmaceut | C79: 34 | D79: 29.5228591 | F79: 50 | G79: 43.18468159 | I79: 84 | J79: 72.7075407
A80: Læge | C80: 19 | D80: 17.13341234 | F80: 45 | G80: 38.71203144 | I80: 64 | J80: 55.84544377
A81: Tandlæge | C81: 1 | D81: 0.4135221106 | F81: 10 | G81: 6.795983284 | I81: 11 | J81: 7.209505395
A82: Arkitekt | C82: 84 | D82: 72.59589596 | F82: 85 | G82: 71.44514439 | I82: 169 | J82: 144.0410404
A83: Landinspek. | C83: 2 | D83: 1.999625772 | F83: 0 | G83: 0 | I83: 2 | J83: 1.999625772
A84: Bibliotekar | C84: 11 | D84: 9.517869394 | F84: 33 | G84: 27.34173268 | I84: 44 | J84: 36.85960207
A85: Musikudd. | C85: 4 | D85: 2.705045843 | F85: 3 | G85: 1.707104098 | I85: 7 | J85: 4.412149941
A86: Teolog | C86: 11 | D86: 10.16715524 | F86: 12 | G86: 9.385642113 | I86: 23 | J86: 19.55279736
A87: Psykolog | C87: 14 | D87: 12.66263332 | F87: 68 | G87: 56.34316722 | I87: 82 | J87: 69.00580054
A88: Jurist | C88: 35 | D88: 29.57587476 | F88: 44 | G88: 34.46953159 | I88: 79 | J88: 64.04540635
A89: Økonom | C89: 49 | D89: 43.14289278 | F89: 28 | G89: 25.43878251 | I89: 77 | J89: 68.58167529
A90: Samf. Adm. | C90: 212 | D90: 183.0942431 | F90: 371 | G90: 305.4157051 | I90: 583 | J90: 488.5099482
A91: Cand. Merc. | C91: 229 | D91: 200.5925279 | F91: 233 | G91: 195.683902 | I91: 462 | J91: 396.2764299
A92: HA | C92: 47 | D92: 41.00417888 | F92: 50 | G92: 38.36399925 | I92: 97 | J92: 79.36817813
A93: HD | C93: 43 | D93: 36.87332377 | F93: 50 | G93: 43.07054201 | I93: 93 | J93: 79.94386578
A94: Komm. og Sprog | C94: 28 | D94: 23.35308426 | F94: 99 | G94: 81.76011975 | I94: 127 | J94: 105.113204
A95: Bygningskonst. | C95: 38 | D95: 34.08887919 | F95: 22 | G95: 20.52036425 | I95: 60 | J95: 54.60924344
A96: Cand. IT. | C96: 61 | D96: 56.09181064 | F96: 80 | G96: 62.98883553 | I96: 141 | J96: 119.0806462
A97: Bac. Samf. | C97: 14 | D97: 10.75032745 | F97: 22 | G97: 15.98328448 | I97: 36 | J97: 26.73361193
A98: Bac. Hum. | C98: 56 | D98: 46.18910996 | F98: 105 | G98: 85.16559596 | I98: 161 | J98: 131.3547059
A99: Bac. Nat. | C99: 64 | D99: 54.69406848 | F99: 59 | G99: 46.66500343 | I99: 123 | J99: 101.3590719
A100: Andre | C100: 239 | D100: 201.6852741 | F100: 381 | G100: 314.5892846 | I100: 620 | J100: 516.2745587
A102: Total | C102: 2566 | D102: 2191.15493 | F102: 3434 | G102: 2830.186677 | I102: 6000 | J102: 5021.341608
A104: Ingeniører i alt | C104: 293 | D104: 260.9717458 | F104: 117 | G104: 100.265702 | I104: 410 | J104: 361.2374478
A105: Magistre i alt | C105: 646 | D105: 524.9192291 | F105: 1152 | G105: 943.5782449 | I105: 1798 | J105: 1468.497474
A106: DJØF'ere i alt | C106: 572 | D106: 497.4097175 | F106: 726 | G106: 599.3719204 | I106: 1298 | J106: 1096.781638
A111: Frederiksberg
C113: Mænd | F113: Kvinder | I113: I alt
C114: Ledigheds- berørte | D114: Gns. brutto- ledighed | F114: Ledigheds- berørte | G114: Gns. brutto- ledighed | I114: Ledigheds- berørte | J114: Gns. brutto- ledighed
A117: Civ. ing. | C117: 20 | D117: 17.93238945 | F117: 17 | G117: 14.38034055 | I117: 37 | J117: 32.31272999
A118: Diplom ing. | C118: 14 | D118: 11.62103162 | F118: 2 | G118: 1.999625772 | I118: 16 | J118: 13.62065739
A119: Cand. Scient. Tek. | C119: 20 | D119: 17.68602258 | F119: 28 | G119: 24.04665378 | I119: 48 | J119: 41.73267636
A120: MA. Hum. | C120: 36 | D120: 28.04528161 | F120: 97 | G120: 80.27879998 | I120: 133 | J120: 108.3240816
A121: MA. Nat. | C121: 12 | D121: 11.07902451 | F121: 11 | G121: 9.059439905 | I121: 23 | J121: 20.13846442
A122: MA. Ph.d. | C122: 3 | D122: 1.432670118 | F122: 2 | G122: 1.630387326 | I122: 5 | J122: 3.063057444
A123: MA. Samf. | C123: 9 | D123: 8.194972868 | F123: 29 | G123: 23.75974552 | I123: 38 | J123: 31.95471839
A124: Øvrige Mag. | C124: 3 | D124: 2.491735795 | F124: 10 | G124: 8.695191168 | I124: 13 | J124: 11.18692696
A125: Agronom | C125: 1 | D125: 0.9998128859 | F125: 3 | G125: 2.907129046 | I125: 4 | J125: 3.906941932
A126: Landsk. Arkt. | C126: 2 | D126: 1.491922909 | F126: 0 | G126: 0 | I126: 2 | J126: 1.491922909
A127: Hortonom | C127: 0 | D127: 0 | F127: 0 | G127: 0 | I127: 0 | J127: 0
A128: Forstkand. | C128: 0 | D128: 0 | F128: 0 | G128: 0 | I128: 0 | J128: 0
A129: Jordbrugsakad. | C129: 3 | D129: 2.491735795 | F129: 3 | G129: 2.907129046 | I129: 6 | J129: 5.398864841
A130: Mejeriing. | C130: 0 | D130: 0 | F130: 0 | G130: 0 | I130: 0 | J130: 0
A131: Levn.m.kand. | C131: 1 | D131: 0.9998128859 | F131: 0 | G131: 0 | I131: 1 | J131: 0.9998128859
A132: Dyrlæge | C132: 0 | D132: 0 | F132: 1 | G132: 0.8551113329 | I132: 1 | J132: 0.8551113329
A133: Farmaceut | C133: 4 | D133: 3.445393875 | F133: 3 | G133: 2.655772469 | I133: 7 | J133: 6.101166344
A134: Læge | C134: 3 | D134: 2.030187738 | F134: 8 | G134: 5.377658579 | I134: 11 | J134: 7.407846317
A135: Tandlæge | C135: 1 | D135: 0.9998128859 | F135: 0 | G135: 0 | I135: 1 | J135: 0.9998128859
A136: Arkitekt | C136: 13 | D136: 11.65595958 | F136: 11 | G136: 8.690201459 | I136: 24 | J136: 20.34616104
A137: Landinspek. | C137: 2 | D137: 1.999625772 | F137: 0 | G137: 0 | I137: 2 | J137: 1.999625772
A138: Bibliotekar | C138: 2 | D138: 1.999625772 | F138: 6 | G138: 5.579118069 | I138: 8 | J138: 7.578743841
A139: Musikudd. | C139: 0 | D139: 0 | F139: 0 | G139: 0 | I139: 0 | J139: 0
A140: Teolog | C140: 0 | D140: 0 | F140: 3 | G140: 2.40753446 | I140: 3 | J140: 2.40753446
A141: Psykolog | C141: 6 | D141: 4.419634504 | F141: 12 | G141: 10.43410466 | I141: 18 | J141: 14.85373916
A142: Jurist | C142: 11 | D142: 10.56196595 | F142: 11 | G142: 9.260275681 | I142: 22 | J142: 19.82224163
A143: Økonom | C143: 8 | D143: 7.767729059 | F143: 1 | G143: 0.9998128859 | I143: 9 | J143: 8.767541945
A144: Samf. Adm. | C144: 23 | D144: 19.93825235 | F144: 46 | G144: 36.68995197 | I144: 69 | J144: 56.62820433
A145: Cand. Merc. | C145: 33 | D145: 28.31971559 | F145: 44 | G145: 36.82093183 | I145: 77 | J145: 65.14064741
A146: HA | C146: 7 | D146: 6.757936755 | F146: 8 | G146: 7.227593089 | I146: 15 | J146: 13.98552984
A147: HD | C147: 7 | D147: 6.30013098 | F147: 7 | G147: 6.083702364 | I147: 14 | J147: 12.38383334
A148: Komm. og Sprog | C148: 5 | D148: 4.382835402 | F148: 19 | G148: 14.72026445 | I148: 24 | J148: 19.10309986
A149: Bygningskonst. | C149: 3 | D149: 2.169213497 | F149: 2 | G149: 2 | I149: 5 | J149: 4.169213497
A150: Cand. IT. | C150: 6 | D150: 5.814258093 | F150: 7 | G150: 6.222790495 | I150: 13 | J150: 12.03704859
A151: Bac. Samf. | C151: 2 | D151: 1.214994075 | F151: 4 | G151: 3.127923657 | I151: 6 | J151: 4.342917732
A152: Bac. Hum. | C152: 9 | D152: 6.89078775 | F152: 11 | G152: 9.005800536 | I152: 20 | J152: 15.89658829
A153: Bac. Nat. | C153: 6 | D153: 4.064117757 | F153: 12 | G153: 9.14364124 | I153: 18 | J153: 13.207759
A154: Andre | C154: 37 | D154: 31.09524107 | F154: 56 | G154: 46.78787501 | I154: 93 | J154: 77.88311607
A156: Total | C156: 309 | D156: 263.8020957 | F156: 471 | G156: 390.8473773 | I156: 780 | J156: 654.649473
A158: Ingeniører i alt | C158: 34 | D158: 29.55342107 | F158: 19 | G158: 16.37996632 | I158: 53 | J158: 45.93338739
A159: Magistre i alt | C159: 63 | D159: 51.2436849 | F159: 149 | G159: 123.4235639 | I159: 212 | J159: 174.6672488
A160: DJØF'ere i alt | C160: 82 | D160: 73.3455997 | F160: 110 | G160: 90.99856546 | I160: 192 | J160: 164.3441652
A165: Ballerup
C167: Mænd | F167: Kvinder | I167: I alt
C168: Ledigheds- berørte | D168: Gns. brutto- ledighed | F168: Ledigheds- berørte | G168: Gns. brutto- ledighed | I168: Ledigheds- berørte | J168: Gns. brutto- ledighed
A171: Civ. ing. | C171: 5 | D171: 4.906754818 | F171: 3 | G171: 2.999438658 | I171: 8 | J171: 7.906193476
A172: Diplom ing. | C172: 16 | D172: 12.41689016 | F172: 3 | G172: 2.249111208 | I172: 19 | J172: 14.66600137
A173: Cand. Scient. Tek. | C173: 4 | D173: 2.808582299 | F173: 5 | G173: 4.119004553 | I173: 9 | J173: 6.927586852
A174: MA. Hum. | C174: 1 | D174: 0.8151936631 | F174: 3 | G174: 2.990082954 | I174: 4 | J174: 3.805276617
A175: MA. Nat. | C175: 0 | D175: 0 | F175: 1 | G175: 0.9998128859 | I175: 1 | J175: 0.9998128859
A176: MA. Ph.d. | C176: 0 | D176: 0 | F176: 0 | G176: 0 | I176: 0 | J176: 0
A177: MA. Samf. | C177: 1 | D177: 0.9998128859 | F177: 1 | G177: 0.6767292459 | I177: 2 | J177: 1.676542132
A178: Øvrige Mag. | C178: 0 | D178: 0 | F178: 1 | G178: 0.9998128859 | I178: 1 | J178: 0.9998128859
A179: Agronom | C179: 0 | D179: 0 | F179: 0 | G179: 0 | I179: 0 | J179: 0
A180: Landsk. Arkt. | C180: 0 | D180: 0 | F180: 1 | G180: 0.7690388574 | I180: 1 | J180: 0.7690388574
A181: Hortonom | C181: 0 | D181: 0 | F181: 0 | G181: 0 | I181: 0 | J181: 0
A182: Forstkand. | C182: 0 | D182: 0 | F182: 0 | G182: 0 | I182: 0 | J182: 0
A183: Jordbrugsakad. | C183: 0 | D183: 0 | F183: 1 | G183: 0.7690388574 | I183: 1 | J183: 0.7690388574
A184: Mejeriing. | C184: 0 | D184: 0 | F184: 1 | G184: 0.9998128859 | I184: 1 | J184: 0.9998128859
A185: Levn.m.kand. | C185: 0 | D185: 0 | F185: 0 | G185: 0 | I185: 0 | J185: 0
A186: Dyrlæge | C186: 0 | D186: 0 | F186: 0 | G186: 0 | I186: 0 | J186: 0
A187: Farmaceut | C187: 0 | D187: 0 | F187: 0 | G187: 0 | I187: 0 | J187: 0
A188: Læge | C188: 0 | D188: 0 | F188: 1 | G188: 0.9998128859 | I188: 1 | J188: 0.9998128859
A189: Tandlæge | C189: 0 | D189: 0 | F189: 0 | G189: 0 | I189: 0 | J189: 0
A190: Arkitekt | C190: 0 | D190: 0 | F190: 1 | G190: 0.8875444396 | I190: 1 | J190: 0.8875444396
A191: Landinspek. | C191: 0 | D191: 0 | F191: 0 | G191: 0 | I191: 0 | J191: 0
A192: Bibliotekar | C192: 0 | D192: 0 | F192: 3 | G192: 2.862845381 | I192: 3 | J192: 2.862845381
A193: Musikudd. | C193: 0 | D193: 0 | F193: 0 | G193: 0 | I193: 0 | J193: 0
A194: Teolog | C194: 0 | D194: 0 | F194: 0 | G194: 0 | I194: 0 | J194: 0
A195: Psykolog | C195: 1 | D195: 0.5426308239 | F195: 0 | G195: 0 | I195: 1 | J195: 0.5426308239
A196: Jurist | C196: 2 | D196: 1.732676355 | F196: 3 | G196: 2.999438658 | I196: 5 | J196: 4.732115013
A197: Økonom | C197: 1 | D197: 0.9998128859 | F197: 1 | G197: 0.9075032745 | I197: 2 | J197: 1.90731616
A198: Samf. Adm. | C198: 3 | D198: 2.645793052 | F198: 3 | G198: 2.153683029 | I198: 6 | J198: 4.799476081
A199: Cand. Merc. | C199: 1 | D199: 0.9998128859 | F199: 4 | G199: 3.347470841 | I199: 5 | J199: 4.347283727
A200: HA | C200: 0 | D200: 0 | F200: 0 | G200: 0 | I200: 0 | J200: 0
A201: HD | C201: 2 | D201: 1.491922909 | F201: 0 | G201: 0 | I201: 2 | J201: 1.491922909
A202: Komm. og Sprog | C202: 0 | D202: 0 | F202: 1 | G202: 0.8151936631 | I202: 1 | J202: 0.8151936631
A203: Bygningskonst. | C203: 1 | D203: 1 | F203: 0 | G203: 0 | I203: 1 | J203: 1
A204: Cand. IT. | C204: 0 | D204: 0 | F204: 0 | G204: 0 | I204: 0 | J204: 0
A205: Bac. Samf. | C205: 0 | D205: 0 | F205: 1 | G205: 0.8151936631 | I205: 1 | J205: 0.8151936631
A206: Bac. Hum. | C206: 0 | D206: 0 | F206: 0 | G206: 0 | I206: 0 | J206: 0
A207: Bac. Nat. | C207: 4 | D207: 3.512754943 | F207: 2 | G207: 1.921037859 | I207: 6 | J207: 5.433792802
A208: Andre | C208: 3 | D208: 2.999438658 | F208: 9 | G208: 7.911183185 | I208: 12 | J208: 10.91062184
A210: Total | C210: 45 | D210: 37.87207634 | F210: 48 | G210: 42.42375101 | I210: 93 | J210: 80.29582736
A212: Ingeniører i alt | C212: 21 | D212: 17.32364498 | F212: 6 | G212: 5.248549866 | I212: 27 | J212: 22.57219485
A213: Magistre i alt | C213: 2 | D213: 1.815006549 | F213: 6 | G213: 5.666437972 | I213: 8 | J213: 7.481444521
A214: DJØF'ere i alt | C214: 7 | D214: 6.378095179 | F214: 11 | G214: 9.408095802 | I214: 18 | J214: 15.78619098
A219: Brøndby
C221: Mænd | F221: Kvinder | I221: I alt
C222: Ledigheds- berørte | D222: Gns. brutto- ledighed | F222: Ledigheds- berørte | G222: Gns. brutto- ledighed | I222: Ledigheds- berørte | J222: Gns. brutto- ledighed
A225: Civ. ing. | C225: 6 | D225: 5.958335932 | F225: 0 | G225: 0 | I225: 6 | J225: 5.958335932
A226: Diplom ing. | C226: 3 | D226: 2.953283852 | F226: 1 | G226: 0.9536580802 | I226: 4 | J226: 3.906941932
A227: Cand. Scient. Tek. | C227: 5 | D227: 3.800910622 | F227: 1 | G227: 0.9998128859 | I227: 6 | J227: 4.800723508
A228: MA. Hum. | C228: 2 | D228: 1.676542132 | F228: 7 | G228: 6.333811514 | I228: 9 | J228: 8.010353646
A229: MA. Nat. | C229: 1 | D229: 0.6879560906 | F229: 1 | G229: 0.1771346598 | I229: 2 | J229: 0.8650907503
A230: MA. Ph.d. | C230: 0 | D230: 0 | F230: 0 | G230: 0 | I230: 0 | J230: 0
A231: MA. Samf. | C231: 2 | D231: 1.999625772 | F231: 1 | G231: 0.9998128859 | I231: 3 | J231: 2.999438658
A232: Øvrige Mag. | C232: 1 | D232: 0.5382648288 | F232: 1 | G232: 0.9998128859 | I232: 2 | J232: 1.538077715
A233: Agronom | C233: 0 | D233: 0 | F233: 1 | G233: 0.9000187114 | I233: 1 | J233: 0.9000187114
A234: Landsk. Arkt. | C234: 0 | D234: 0 | F234: 0 | G234: 0 | I234: 0 | J234: 0
A235: Hortonom | C235: 0 | D235: 0 | F235: 0 | G235: 0 | I235: 0 | J235: 0
A236: Forstkand. | C236: 0 | D236: 0 | F236: 0 | G236: 0 | I236: 0 | J236: 0
A237: Jordbrugsakad. | C237: 0 | D237: 0 | F237: 1 | G237: 0.9000187114 | I237: 1 | J237: 0.9000187114
A238: Mejeriing. | C238: 0 | D238: 0 | F238: 0 | G238: 0 | I238: 0 | J238: 0
A239: Levn.m.kand. | C239: 0 | D239: 0 | F239: 0 | G239: 0 | I239: 0 | J239: 0
A240: Dyrlæge | C240: 0 | D240: 0 | F240: 0 | G240: 0 | I240: 0 | J240: 0
... 1108 more rows

Sheet Tabel 3 H
A1: Tabel 3. Ledige i procent af forsikrede
A3: Hovedstaden
C5: Mænd | F5: Kvinder | I5: I alt
C6: Ledigheds- berørte | D6: Gns. brutto- ledighed | F6: Ledigheds- berørte | G6: Gns. brutto- ledighed | I6: Ledigheds- berørte | J6: Gns. brutto- ledighed
A9: Civ. ing. | C9: =IF(OR('Tabel 1 H'!C7<5,'Tabel 2 H'!C9<0.5),"-",IFERROR('Tabel 2 H'!C9/'Tabel 1 H'!C7*100,"-")) -> 3.102735003 | D9: =IF(OR('Tabel 1 H'!C7<5,'Tabel 2 H'!D9<0.5),"-",IFERROR('Tabel 2 H'!D9/'Tabel 1 H'!C7*100,"-")) -> 2.798401667 | F9: =IF(OR('Tabel 1 H'!E7<5,'Tabel 2 H'!F9<0.5),"-",IFERROR('Tabel 2 H'!F9/'Tabel 1 H'!E7*100,"-")) -> 3.676331249 | G9: =IF(OR('Tabel 1 H'!E7<5,'Tabel 2 H'!G9<0.5),"-",IFERROR('Tabel 2 H'!G9/'Tabel 1 H'!E7*100,"-")) -> 3.101855219 | I9: =IF(OR('Tabel 1 H'!G7<5,'Tabel 2 H'!I9<0.5),"-",IFERROR('Tabel 2 H'!I9/'Tabel 1 H'!G7*100,"-")) -> 3.267866885 | J9: =IF(OR('Tabel 1 H'!G7<5,'Tabel 2 H'!J9<0.5),"-",IFERROR('Tabel 2 H'!J9/'Tabel 1 H'!G7*100,"-")) -> 2.885762517
A10: Diplom ing. | C10: =IF(OR('Tabel 1 H'!C8<5,'Tabel 2 H'!C10<0.5),"-",IFERROR('Tabel 2 H'!C10/'Tabel 1 H'!C8*100,"-")) -> 2.730203506 | D10: =IF(OR('Tabel 1 H'!C8<5,'Tabel 2 H'!D10<0.5),"-",IFERROR('Tabel 2 H'!D10/'Tabel 1 H'!C8*100,"-")) -> 2.408856537 | F10: =IF(OR('Tabel 1 H'!E8<5,'Tabel 2 H'!F10<0.5),"-",IFERROR('Tabel 2 H'!F10/'Tabel 1 H'!E8*100,"-")) -> 3.365949119 | G10: =IF(OR('Tabel 1 H'!E8<5,'Tabel 2 H'!G10<0.5),"-",IFERROR('Tabel 2 H'!G10/'Tabel 1 H'!E8*100,"-")) -> 2.781811438 | I10: =IF(OR('Tabel 1 H'!G8<5,'Tabel 2 H'!I10<0.5),"-",IFERROR('Tabel 2 H'!I10/'Tabel 1 H'!G8*100,"-")) -> 2.860347729 | J10: =IF(OR('Tabel 1 H'!G8<5,'Tabel 2 H'!J10<0.5),"-",IFERROR('Tabel 2 H'!J10/'Tabel 1 H'!G8*100,"-")) -> 2.485204568
A11: Cand. Scient. Tek. | C11: =IF(OR('Tabel 1 H'!C9<5,'Tabel 2 H'!C11<0.5),"-",IFERROR('Tabel 2 H'!C11/'Tabel 1 H'!C9*100,"-")) -> 7.001166861 | D11: =IF(OR('Tabel 1 H'!C9<5,'Tabel 2 H'!D11<0.5),"-",IFERROR('Tabel 2 H'!D11/'Tabel 1 H'!C9*100,"-")) -> 5.984219474 | F11: =IF(OR('Tabel 1 H'!E9<5,'Tabel 2 H'!F11<0.5),"-",IFERROR('Tabel 2 H'!F11/'Tabel 1 H'!E9*100,"-")) -> 7.261448641 | G11: =IF(OR('Tabel 1 H'!E9<5,'Tabel 2 H'!G11<0.5),"-",IFERROR('Tabel 2 H'!G11/'Tabel 1 H'!E9*100,"-")) -> 6.091989641 | I11: =IF(OR('Tabel 1 H'!G9<5,'Tabel 2 H'!I11<0.5),"-",IFERROR('Tabel 2 H'!I11/'Tabel 1 H'!G9*100,"-")) -> 7.12543554 | J11: =IF(OR('Tabel 1 H'!G9<5,'Tabel 2 H'!J11<0.5),"-",IFERROR('Tabel 2 H'!J11/'Tabel 1 H'!G9*100,"-")) -> 6.035673158
A12: MA. Hum. | C12: =IF(OR('Tabel 1 H'!C10<5,'Tabel 2 H'!C12<0.5),"-",IFERROR('Tabel 2 H'!C12/'Tabel 1 H'!C10*100,"-")) -> 8.806137126 | D12: =IF(OR('Tabel 1 H'!C10<5,'Tabel 2 H'!D12<0.5),"-",IFERROR('Tabel 2 H'!D12/'Tabel 1 H'!C10*100,"-")) -> 7.039530433 | F12: =IF(OR('Tabel 1 H'!E10<5,'Tabel 2 H'!F12<0.5),"-",IFERROR('Tabel 2 H'!F12/'Tabel 1 H'!E10*100,"-")) -> 7.912706793 | G12: =IF(OR('Tabel 1 H'!E10<5,'Tabel 2 H'!G12<0.5),"-",IFERROR('Tabel 2 H'!G12/'Tabel 1 H'!E10*100,"-")) -> 6.50497051 | I12: =IF(OR('Tabel 1 H'!G10<5,'Tabel 2 H'!I12<0.5),"-",IFERROR('Tabel 2 H'!I12/'Tabel 1 H'!G10*100,"-")) -> 8.185905581 | J12: =IF(OR('Tabel 1 H'!G10<5,'Tabel 2 H'!J12<0.5),"-",IFERROR('Tabel 2 H'!J12/'Tabel 1 H'!G10*100,"-")) -> 6.66843163
A13: MA. Nat. | C13: =IF(OR('Tabel 1 H'!C11<5,'Tabel 2 H'!C13<0.5),"-",IFERROR('Tabel 2 H'!C13/'Tabel 1 H'!C11*100,"-")) -> 3.054298643 | D13: =IF(OR('Tabel 1 H'!C11<5,'Tabel 2 H'!D13<0.5),"-",IFERROR('Tabel 2 H'!D13/'Tabel 1 H'!C11*100,"-")) -> 2.621431533 | F13: =IF(OR('Tabel 1 H'!E11<5,'Tabel 2 H'!F13<0.5),"-",IFERROR('Tabel 2 H'!F13/'Tabel 1 H'!E11*100,"-")) -> 4.096318849 | G13: =IF(OR('Tabel 1 H'!E11<5,'Tabel 2 H'!G13<0.5),"-",IFERROR('Tabel 2 H'!G13/'Tabel 1 H'!E11*100,"-")) -> 3.311292518 | I13: =IF(OR('Tabel 1 H'!G11<5,'Tabel 2 H'!I13<0.5),"-",IFERROR('Tabel 2 H'!I13/'Tabel 1 H'!G11*100,"-")) -> 3.580920408 | J13: =IF(OR('Tabel 1 H'!G11<5,'Tabel 2 H'!J13<0.5),"-",IFERROR('Tabel 2 H'!J13/'Tabel 1 H'!G11*100,"-")) -> 2.970077181
A14: MA. Ph.d. | C14: =IF(OR('Tabel 1 H'!C12<5,'Tabel 2 H'!C14<0.5),"-",IFERROR('Tabel 2 H'!C14/'Tabel 1 H'!C12*100,"-")) -> 2.64255911 | D14: =IF(OR('Tabel 1 H'!C12<5,'Tabel 2 H'!D14<0.5),"-",IFERROR('Tabel 2 H'!D14/'Tabel 1 H'!C12*100,"-")) -> 2.156799862 | F14: =IF(OR('Tabel 1 H'!E12<5,'Tabel 2 H'!F14<0.5),"-",IFERROR('Tabel 2 H'!F14/'Tabel 1 H'!E12*100,"-")) -> 4.116638079 | G14: =IF(OR('Tabel 1 H'!E12<5,'Tabel 2 H'!G14<0.5),"-",IFERROR('Tabel 2 H'!G14/'Tabel 1 H'!E12*100,"-")) -> 3.368802274 | I14: =IF(OR('Tabel 1 H'!G12<5,'Tabel 2 H'!I14<0.5),"-",IFERROR('Tabel 2 H'!I14/'Tabel 1 H'!G12*100,"-")) -> 3.302611367 | J14: =IF(OR('Tabel 1 H'!G12<5,'Tabel 2 H'!J14<0.5),"-",IFERROR('Tabel 2 H'!J14/'Tabel 1 H'!G12*100,"-")) -> 2.699501403
A15: MA. Samf. | C15: =IF(OR('Tabel 1 H'!C13<5,'Tabel 2 H'!C15<0.5),"-",IFERROR('Tabel 2 H'!C15/'Tabel 1 H'!C13*100,"-")) -> 12.57142857 | D15: =IF(OR('Tabel 1 H'!C13<5,'Tabel 2 H'!D15<0.5),"-",IFERROR('Tabel 2 H'!D15/'Tabel 1 H'!C13*100,"-")) -> 10.80604586 | F15: =IF(OR('Tabel 1 H'!E13<5,'Tabel 2 H'!F15<0.5),"-",IFERROR('Tabel 2 H'!F15/'Tabel 1 H'!E13*100,"-")) -> 10.45677614 | G15: =IF(OR('Tabel 1 H'!E13<5,'Tabel 2 H'!G15<0.5),"-",IFERROR('Tabel 2 H'!G15/'Tabel 1 H'!E13*100,"-")) -> 8.729824107 | I15: =IF(OR('Tabel 1 H'!G13<5,'Tabel 2 H'!I15<0.5),"-",IFERROR('Tabel 2 H'!I15/'Tabel 1 H'!G13*100,"-")) -> 11.05704244 | J15: =IF(OR('Tabel 1 H'!G13<5,'Tabel 2 H'!J15<0.5),"-",IFERROR('Tabel 2 H'!J15/'Tabel 1 H'!G13*100,"-")) -> 9.319181459
A16: Øvrige Mag. | C16: =IF(OR('Tabel 1 H'!C14<5,'Tabel 2 H'!C16<0.5),"-",IFERROR('Tabel 2 H'!C16/'Tabel 1 H'!C14*100,"-")) -> 8.55704698 | D16: =IF(OR('Tabel 1 H'!C14<5,'Tabel 2 H'!D16<0.5),"-",IFERROR('Tabel 2 H'!D16/'Tabel 1 H'!C14*100,"-")) -> 7.135136968 | F16: =IF(OR('Tabel 1 H'!E14<5,'Tabel 2 H'!F16<0.5),"-",IFERROR('Tabel 2 H'!F16/'Tabel 1 H'!E14*100,"-")) -> 10 | G16: =IF(OR('Tabel 1 H'!E14<5,'Tabel 2 H'!G16<0.5),"-",IFERROR('Tabel 2 H'!G16/'Tabel 1 H'!E14*100,"-")) -> 8.491940501 | I16: =IF(OR('Tabel 1 H'!G14<5,'Tabel 2 H'!I16<0.5),"-",IFERROR('Tabel 2 H'!I16/'Tabel 1 H'!G14*100,"-")) -> 9.513023783 | J16: =IF(OR('Tabel 1 H'!G14<5,'Tabel 2 H'!J16<0.5),"-",IFERROR('Tabel 2 H'!J16/'Tabel 1 H'!G14*100,"-")) -> 8.034038516
A17: Agronom | C17: =IF(OR('Tabel 1 H'!C15<5,'Tabel 2 H'!C17<0.5),"-",IFERROR('Tabel 2 H'!C17/'Tabel 1 H'!C15*100,"-")) -> 4.427083333 | D17: =IF(OR('Tabel 1 H'!C15<5,'Tabel 2 H'!D17<0.5),"-",IFERROR('Tabel 2 H'!D17/'Tabel 1 H'!C15*100,"-")) -> 3.824306379 | F17: =IF(OR('Tabel 1 H'!E15<5,'Tabel 2 H'!F17<0.5),"-",IFERROR('Tabel 2 H'!F17/'Tabel 1 H'!E15*100,"-")) -> 5.520169851 | G17: =IF(OR('Tabel 1 H'!E15<5,'Tabel 2 H'!G17<0.5),"-",IFERROR('Tabel 2 H'!G17/'Tabel 1 H'!E15*100,"-")) -> 4.41684567 | I17: =IF(OR('Tabel 1 H'!G15<5,'Tabel 2 H'!I17<0.5),"-",IFERROR('Tabel 2 H'!I17/'Tabel 1 H'!G15*100,"-")) -> 5.029239766 | J17: =IF(OR('Tabel 1 H'!G15<5,'Tabel 2 H'!J17<0.5),"-",IFERROR('Tabel 2 H'!J17/'Tabel 1 H'!G15*100,"-")) -> 4.15072276
A18: Landsk. Arkt. | C18: =IF(OR('Tabel 1 H'!C16<5,'Tabel 2 H'!C18<0.5),"-",IFERROR('Tabel 2 H'!C18/'Tabel 1 H'!C16*100,"-")) -> 7.462686567 | D18: =IF(OR('Tabel 1 H'!C16<5,'Tabel 2 H'!D18<0.5),"-",IFERROR('Tabel 2 H'!D18/'Tabel 1 H'!C16*100,"-")) -> 6.151491653 | F18: =IF(OR('Tabel 1 H'!E16<5,'Tabel 2 H'!F18<0.5),"-",IFERROR('Tabel 2 H'!F18/'Tabel 1 H'!E16*100,"-")) -> 6.128133705 | G18: =IF(OR('Tabel 1 H'!E16<5,'Tabel 2 H'!G18<0.5),"-",IFERROR('Tabel 2 H'!G18/'Tabel 1 H'!E16*100,"-")) -> 5.683785549 | I18: =IF(OR('Tabel 1 H'!G16<5,'Tabel 2 H'!I18<0.5),"-",IFERROR('Tabel 2 H'!I18/'Tabel 1 H'!G16*100,"-")) -> 6.490872211 | J18: =IF(OR('Tabel 1 H'!G16<5,'Tabel 2 H'!J18<0.5),"-",IFERROR('Tabel 2 H'!J18/'Tabel 1 H'!G16*100,"-")) -> 5.810910535
A19: Hortonom | C19: =IF(OR('Tabel 1 H'!C17<5,'Tabel 2 H'!C19<0.5),"-",IFERROR('Tabel 2 H'!C19/'Tabel 1 H'!C17*100,"-")) -> - | D19: =IF(OR('Tabel 1 H'!C17<5,'Tabel 2 H'!D19<0.5),"-",IFERROR('Tabel 2 H'!D19/'Tabel 1 H'!C17*100,"-")) -> - | F19: =IF(OR('Tabel 1 H'!E17<5,'Tabel 2 H'!F19<0.5),"-",IFERROR('Tabel 2 H'!F19/'Tabel 1 H'!E17*100,"-")) -> 5.319148936 | G19: =IF(OR('Tabel 1 H'!E17<5,'Tabel 2 H'!G19<0.5),"-",IFERROR('Tabel 2 H'!G19/'Tabel 1 H'!E17*100,"-")) -> 5.318153649 | I19: =IF(OR('Tabel 1 H'!G17<5,'Tabel 2 H'!I19<0.5),"-",IFERROR('Tabel 2 H'!I19/'Tabel 1 H'!G17*100,"-")) -> 3.378378378 | J19: =IF(OR('Tabel 1 H'!G17<5,'Tabel 2 H'!J19<0.5),"-",IFERROR('Tabel 2 H'!J19/'Tabel 1 H'!G17*100,"-")) -> 3.377746236
A20: Forstkand. | C20: =IF(OR('Tabel 1 H'!C18<5,'Tabel 2 H'!C20<0.5),"-",IFERROR('Tabel 2 H'!C20/'Tabel 1 H'!C18*100,"-")) -> 2.617801047 | D20: =IF(OR('Tabel 1 H'!C18<5,'Tabel 2 H'!D20<0.5),"-",IFERROR('Tabel 2 H'!D20/'Tabel 1 H'!C18*100,"-")) -> 2.075235534 | F20: =IF(OR('Tabel 1 H'!E18<5,'Tabel 2 H'!F20<0.5),"-",IFERROR('Tabel 2 H'!F20/'Tabel 1 H'!E18*100,"-")) -> 10.44776119 | G20: =IF(OR('Tabel 1 H'!E18<5,'Tabel 2 H'!G20<0.5),"-",IFERROR('Tabel 2 H'!G20/'Tabel 1 H'!E18*100,"-")) -> 9.95986822 | I20: =IF(OR('Tabel 1 H'!G18<5,'Tabel 2 H'!I20<0.5),"-",IFERROR('Tabel 2 H'!I20/'Tabel 1 H'!G18*100,"-")) -> 4.651162791 | J20: =IF(OR('Tabel 1 H'!G18<5,'Tabel 2 H'!J20<0.5),"-",IFERROR('Tabel 2 H'!J20/'Tabel 1 H'!G18*100,"-")) -> 4.122795185
A21: Jordbrugsakad. | C21: =IF(OR('Tabel 1 H'!C19<5,'Tabel 2 H'!C21<0.5),"-",IFERROR('Tabel 2 H'!C21/'Tabel 1 H'!C19*100,"-")) -> 4.193971166 | D21: =IF(OR('Tabel 1 H'!C19<5,'Tabel 2 H'!D21<0.5),"-",IFERROR('Tabel 2 H'!D21/'Tabel 1 H'!C19*100,"-")) -> 3.524513129 | F21: =IF(OR('Tabel 1 H'!E19<5,'Tabel 2 H'!F21<0.5),"-",IFERROR('Tabel 2 H'!F21/'Tabel 1 H'!E19*100,"-")) -> 6.054490414 | G21: =IF(OR('Tabel 1 H'!E19<5,'Tabel 2 H'!G21<0.5),"-",IFERROR('Tabel 2 H'!G21/'Tabel 1 H'!E19*100,"-")) -> 5.336055435 | I21: =IF(OR('Tabel 1 H'!G19<5,'Tabel 2 H'!I21<0.5),"-",IFERROR('Tabel 2 H'!I21/'Tabel 1 H'!G19*100,"-")) -> 5.245153934 | J21: =IF(OR('Tabel 1 H'!G19<5,'Tabel 2 H'!J21<0.5),"-",IFERROR('Tabel 2 H'!J21/'Tabel 1 H'!G19*100,"-")) -> 4.548024204
A22: Mejeriing. | C22: =IF(OR('Tabel 1 H'!C20<5,'Tabel 2 H'!C22<0.5),"-",IFERROR('Tabel 2 H'!C22/'Tabel 1 H'!C20*100,"-")) -> 3.333333333 | D22: =IF(OR('Tabel 1 H'!C20<5,'Tabel 2 H'!D22<0.5),"-",IFERROR('Tabel 2 H'!D22/'Tabel 1 H'!C20*100,"-")) -> 3.33270962 | F22: =IF(OR('Tabel 1 H'!E20<5,'Tabel 2 H'!F22<0.5),"-",IFERROR('Tabel 2 H'!F22/'Tabel 1 H'!E20*100,"-")) -> 4.494382022 | G22: =IF(OR('Tabel 1 H'!E20<5,'Tabel 2 H'!G22<0.5),"-",IFERROR('Tabel 2 H'!G22/'Tabel 1 H'!E20*100,"-")) -> 4.337963064 | I22: =IF(OR('Tabel 1 H'!G20<5,'Tabel 2 H'!I22<0.5),"-",IFERROR('Tabel 2 H'!I22/'Tabel 1 H'!G20*100,"-")) -> 4.026845638 | J22: =IF(OR('Tabel 1 H'!G20<5,'Tabel 2 H'!J22<0.5),"-",IFERROR('Tabel 2 H'!J22/'Tabel 1 H'!G20*100,"-")) -> 3.933163019
A23: Levn.m.kand. | C23: =IF(OR('Tabel 1 H'!C21<5,'Tabel 2 H'!C23<0.5),"-",IFERROR('Tabel 2 H'!C23/'Tabel 1 H'!C21*100,"-")) -> 7.692307692 | D23: =IF(OR('Tabel 1 H'!C21<5,'Tabel 2 H'!D23<0.5),"-",IFERROR('Tabel 2 H'!D23/'Tabel 1 H'!C21*100,"-")) -> 7.690868353 | F23: =IF(OR('Tabel 1 H'!E21<5,'Tabel 2 H'!F23<0.5),"-",IFERROR('Tabel 2 H'!F23/'Tabel 1 H'!E21*100,"-")) -> 1.090909091 | G23: =IF(OR('Tabel 1 H'!E21<5,'Tabel 2 H'!G23<0.5),"-",IFERROR('Tabel 2 H'!G23/'Tabel 1 H'!E21*100,"-")) -> 0.8836320543 | I23: =IF(OR('Tabel 1 H'!G21<5,'Tabel 2 H'!I23<0.5),"-",IFERROR('Tabel 2 H'!I23/'Tabel 1 H'!G21*100,"-")) -> 2.140672783 | J23: =IF(OR('Tabel 1 H'!G21<5,'Tabel 2 H'!J23<0.5),"-",IFERROR('Tabel 2 H'!J23/'Tabel 1 H'!G21*100,"-")) -> 1.966128347
A24: Dyrlæge | C24: =IF(OR('Tabel 1 H'!C22<5,'Tabel 2 H'!C24<0.5),"-",IFERROR('Tabel 2 H'!C24/'Tabel 1 H'!C22*100,"-")) -> 0.6060606061 | D24: =IF(OR('Tabel 1 H'!C22<5,'Tabel 2 H'!D24<0.5),"-",IFERROR('Tabel 2 H'!D24/'Tabel 1 H'!C22*100,"-")) -> 0.6059472036 | F24: =IF(OR('Tabel 1 H'!E22<5,'Tabel 2 H'!F24<0.5),"-",IFERROR('Tabel 2 H'!F24/'Tabel 1 H'!E22*100,"-")) -> 1.995012469 | G24: =IF(OR('Tabel 1 H'!E22<5,'Tabel 2 H'!G24<0.5),"-",IFERROR('Tabel 2 H'!G24/'Tabel 1 H'!E22*100,"-")) -> 1.643119794 | I24: =IF(OR('Tabel 1 H'!G22<5,'Tabel 2 H'!I24<0.5),"-",IFERROR('Tabel 2 H'!I24/'Tabel 1 H'!G22*100,"-")) -> 1.758014478 | J24: =IF(OR('Tabel 1 H'!G22<5,'Tabel 2 H'!J24<0.5),"-",IFERROR('Tabel 2 H'!J24/'Tabel 1 H'!G22*100,"-")) -> 1.466146187
A25: Farmaceut | C25: =IF(OR('Tabel 1 H'!C23<5,'Tabel 2 H'!C25<0.5),"-",IFERROR('Tabel 2 H'!C25/'Tabel 1 H'!C23*100,"-")) -> 4.143646409 | D25: =IF(OR('Tabel 1 H'!C23<5,'Tabel 2 H'!D25<0.5),"-",IFERROR('Tabel 2 H'!D25/'Tabel 1 H'!C23*100,"-")) -> 3.67399467 | F25: =IF(OR('Tabel 1 H'!E23<5,'Tabel 2 H'!F25<0.5),"-",IFERROR('Tabel 2 H'!F25/'Tabel 1 H'!E23*100,"-")) -> 3.182461103 | G25: =IF(OR('Tabel 1 H'!E23<5,'Tabel 2 H'!G25<0.5),"-",IFERROR('Tabel 2 H'!G25/'Tabel 1 H'!E23*100,"-")) -> 2.821135086 | I25: =IF(OR('Tabel 1 H'!G23<5,'Tabel 2 H'!I25<0.5),"-",IFERROR('Tabel 2 H'!I25/'Tabel 1 H'!G23*100,"-")) -> 3.449156873 | J25: =IF(OR('Tabel 1 H'!G23<5,'Tabel 2 H'!J25<0.5),"-",IFERROR('Tabel 2 H'!J25/'Tabel 1 H'!G23*100,"-")) -> 3.057774204
A26: Læge | C26: =IF(OR('Tabel 1 H'!C24<5,'Tabel 2 H'!C26<0.5),"-",IFERROR('Tabel 2 H'!C26/'Tabel 1 H'!C24*100,"-")) -> 1.561524047 | D26: =IF(OR('Tabel 1 H'!C24<5,'Tabel 2 H'!D26<0.5),"-",IFERROR('Tabel 2 H'!D26/'Tabel 1 H'!C24*100,"-")) -> 1.36991035 | F26: =IF(OR('Tabel 1 H'!E24<5,'Tabel 2 H'!F26<0.5),"-",IFERROR('Tabel 2 H'!F26/'Tabel 1 H'!E24*100,"-")) -> 1.947546092 | G26: =IF(OR('Tabel 1 H'!E24<5,'Tabel 2 H'!G26<0.5),"-",IFERROR('Tabel 2 H'!G26/'Tabel 1 H'!E24*100,"-")) -> 1.597895589 | I26: =IF(OR('Tabel 1 H'!G24<5,'Tabel 2 H'!I26<0.5),"-",IFERROR('Tabel 2 H'!I26/'Tabel 1 H'!G24*100,"-")) -> 1.834189288 | J26: =IF(OR('Tabel 1 H'!G24<5,'Tabel 2 H'!J26<0.5),"-",IFERROR('Tabel 2 H'!J26/'Tabel 1 H'!G24*100,"-")) -> 1.530946879
A27: Tandlæge | C27: =IF(OR('Tabel 1 H'!C25<5,'Tabel 2 H'!C27<0.5),"-",IFERROR('Tabel 2 H'!C27/'Tabel 1 H'!C25*100,"-")) -> 2.205882353 | D27: =IF(OR('Tabel 1 H'!C25<5,'Tabel 2 H'!D27<0.5),"-",IFERROR('Tabel 2 H'!D27/'Tabel 1 H'!C25*100,"-")) -> 1.672561372 | F27: =IF(OR('Tabel 1 H'!E25<5,'Tabel 2 H'!F27<0.5),"-",IFERROR('Tabel 2 H'!F27/'Tabel 1 H'!E25*100,"-")) -> 2.176870748 | G27: =IF(OR('Tabel 1 H'!E25<5,'Tabel 2 H'!G27<0.5),"-",IFERROR('Tabel 2 H'!G27/'Tabel 1 H'!E25*100,"-")) -> 1.508792877 | I27: =IF(OR('Tabel 1 H'!G25<5,'Tabel 2 H'!I27<0.5),"-",IFERROR('Tabel 2 H'!I27/'Tabel 1 H'!G25*100,"-")) -> 2.181400689 | J27: =IF(OR('Tabel 1 H'!G25<5,'Tabel 2 H'!J27<0.5),"-",IFERROR('Tabel 2 H'!J27/'Tabel 1 H'!G25*100,"-")) -> 1.534364077
A28: Arkitekt | C28: =IF(OR('Tabel 1 H'!C26<5,'Tabel 2 H'!C28<0.5),"-",IFERROR('Tabel 2 H'!C28/'Tabel 1 H'!C26*100,"-")) -> 6.441902468 | D28: =IF(OR('Tabel 1 H'!C26<5,'Tabel 2 H'!D28<0.5),"-",IFERROR('Tabel 2 H'!D28/'Tabel 1 H'!C26*100,"-")) -> 5.552252573 | F28: =IF(OR('Tabel 1 H'!E26<5,'Tabel 2 H'!F28<0.5),"-",IFERROR('Tabel 2 H'!F28/'Tabel 1 H'!E26*100,"-")) -> 5.569245934 | G28: =IF(OR('Tabel 1 H'!E26<5,'Tabel 2 H'!G28<0.5),"-",IFERROR('Tabel 2 H'!G28/'Tabel 1 H'!E26*100,"-")) -> 4.679757807 | I28: =IF(OR('Tabel 1 H'!G26<5,'Tabel 2 H'!I28<0.5),"-",IFERROR('Tabel 2 H'!I28/'Tabel 1 H'!G26*100,"-")) -> 5.962059621 | J28: =IF(OR('Tabel 1 H'!G26<5,'Tabel 2 H'!J28<0.5),"-",IFERROR('Tabel 2 H'!J28/'Tabel 1 H'!G26*100,"-")) -> 5.072498676
A29: Landinspek. | C29: =IF(OR('Tabel 1 H'!C27<5,'Tabel 2 H'!C29<0.5),"-",IFERROR('Tabel 2 H'!C29/'Tabel 1 H'!C27*100,"-")) -> 2.857142857 | D29: =IF(OR('Tabel 1 H'!C27<5,'Tabel 2 H'!D29<0.5),"-",IFERROR('Tabel 2 H'!D29/'Tabel 1 H'!C27*100,"-")) -> 2.856608245 | F29: =IF(OR('Tabel 1 H'!E27<5,'Tabel 2 H'!F29<0.5),"-",IFERROR('Tabel 2 H'!F29/'Tabel 1 H'!E27*100,"-")) -> - | G29: =IF(OR('Tabel 1 H'!E27<5,'Tabel 2 H'!G29<0.5),"-",IFERROR('Tabel 2 H'!G29/'Tabel 1 H'!E27*100,"-")) -> - | I29: =IF(OR('Tabel 1 H'!G27<5,'Tabel 2 H'!I29<0.5),"-",IFERROR('Tabel 2 H'!I29/'Tabel 1 H'!G27*100,"-")) -> 2.083333333 | J29: =IF(OR('Tabel 1 H'!G27<5,'Tabel 2 H'!J29<0.5),"-",IFERROR('Tabel 2 H'!J29/'Tabel 1 H'!G27*100,"-")) -> 2.082943512
A30: Bibliotekar | C30: =IF(OR('Tabel 1 H'!C28<5,'Tabel 2 H'!C30<0.5),"-",IFERROR('Tabel 2 H'!C30/'Tabel 1 H'!C28*100,"-")) -> 4.308390023 | D30: =IF(OR('Tabel 1 H'!C28<5,'Tabel 2 H'!D30<0.5),"-",IFERROR('Tabel 2 H'!D30/'Tabel 1 H'!C28*100,"-")) -> 3.698862027 | F30: =IF(OR('Tabel 1 H'!E28<5,'Tabel 2 H'!F30<0.5),"-",IFERROR('Tabel 2 H'!F30/'Tabel 1 H'!E28*100,"-")) -> 4.785478548 | G30: =IF(OR('Tabel 1 H'!E28<5,'Tabel 2 H'!G30<0.5),"-",IFERROR('Tabel 2 H'!G30/'Tabel 1 H'!E28*100,"-")) -> 4.09247717 | I30: =IF(OR('Tabel 1 H'!G28<5,'Tabel 2 H'!I30<0.5),"-",IFERROR('Tabel 2 H'!I30/'Tabel 1 H'!G28*100,"-")) -> 4.658197217 | J30: =IF(OR('Tabel 1 H'!G28<5,'Tabel 2 H'!J30<0.5),"-",IFERROR('Tabel 2 H'!J30/'Tabel 1 H'!G28*100,"-")) -> 3.987465508
A31: Musikudd. | C31: =IF(OR('Tabel 1 H'!C29<5,'Tabel 2 H'!C31<0.5),"-",IFERROR('Tabel 2 H'!C31/'Tabel 1 H'!C29*100,"-")) -> 4.761904762 | D31: =IF(OR('Tabel 1 H'!C29<5,'Tabel 2 H'!D31<0.5),"-",IFERROR('Tabel 2 H'!D31/'Tabel 1 H'!C29*100,"-")) -> 2.964619599 | F31: =IF(OR('Tabel 1 H'!E29<5,'Tabel 2 H'!F31<0.5),"-",IFERROR('Tabel 2 H'!F31/'Tabel 1 H'!E29*100,"-")) -> 2.976190476 | G31: =IF(OR('Tabel 1 H'!E29<5,'Tabel 2 H'!G31<0.5),"-",IFERROR('Tabel 2 H'!G31/'Tabel 1 H'!E29*100,"-")) -> 2.206386827 | I31: =IF(OR('Tabel 1 H'!G29<5,'Tabel 2 H'!I31<0.5),"-",IFERROR('Tabel 2 H'!I31/'Tabel 1 H'!G29*100,"-")) -> 3.741496599 | J31: =IF(OR('Tabel 1 H'!G29<5,'Tabel 2 H'!J31<0.5),"-",IFERROR('Tabel 2 H'!J31/'Tabel 1 H'!G29*100,"-")) -> 2.531343729
A32: Teolog | C32: =IF(OR('Tabel 1 H'!C30<5,'Tabel 2 H'!C32<0.5),"-",IFERROR('Tabel 2 H'!C32/'Tabel 1 H'!C30*100,"-")) -> 6.280193237 | D32: =IF(OR('Tabel 1 H'!C30<5,'Tabel 2 H'!D32<0.5),"-",IFERROR('Tabel 2 H'!D32/'Tabel 1 H'!C30*100,"-")) -> 5.877671988 | F32: =IF(OR('Tabel 1 H'!E30<5,'Tabel 2 H'!F32<0.5),"-",IFERROR('Tabel 2 H'!F32/'Tabel 1 H'!E30*100,"-")) -> 5.128205128 | G32: =IF(OR('Tabel 1 H'!E30<5,'Tabel 2 H'!G32<0.5),"-",IFERROR('Tabel 2 H'!G32/'Tabel 1 H'!E30*100,"-")) -> 3.905228941 | I32: =IF(OR('Tabel 1 H'!G30<5,'Tabel 2 H'!I32<0.5),"-",IFERROR('Tabel 2 H'!I32/'Tabel 1 H'!G30*100,"-")) -> 5.555555556 | J32: =IF(OR('Tabel 1 H'!G30<5,'Tabel 2 H'!J32<0.5),"-",IFERROR('Tabel 2 H'!J32/'Tabel 1 H'!G30*100,"-")) -> 4.636941684
A33: Psykolog | C33: =IF(OR('Tabel 1 H'!C31<5,'Tabel 2 H'!C33<0.5),"-",IFERROR('Tabel 2 H'!C33/'Tabel 1 H'!C31*100,"-")) -> 4.46685879 | D33: =IF(OR('Tabel 1 H'!C31<5,'Tabel 2 H'!D33<0.5),"-",IFERROR('Tabel 2 H'!D33/'Tabel 1 H'!C31*100,"-")) -> 3.642343574 | F33: =IF(OR('Tabel 1 H'!E31<5,'Tabel 2 H'!F33<0.5),"-",IFERROR('Tabel 2 H'!F33/'Tabel 1 H'!E31*100,"-")) -> 3.753263708 | G33: =IF(OR('Tabel 1 H'!E31<5,'Tabel 2 H'!G33<0.5),"-",IFERROR('Tabel 2 H'!G33/'Tabel 1 H'!E31*100,"-")) -> 3.128481417 | I33: =IF(OR('Tabel 1 H'!G31<5,'Tabel 2 H'!I33<0.5),"-",IFERROR('Tabel 2 H'!I33/'Tabel 1 H'!G31*100,"-")) -> 3.885045237 | J33: =IF(OR('Tabel 1 H'!G31<5,'Tabel 2 H'!J33<0.5),"-",IFERROR('Tabel 2 H'!J33/'Tabel 1 H'!G31*100,"-")) -> 3.223377728
A34: Jurist | C34: =IF(OR('Tabel 1 H'!C32<5,'Tabel 2 H'!C34<0.5),"-",IFERROR('Tabel 2 H'!C34/'Tabel 1 H'!C32*100,"-")) -> 1.972685888 | D34: =IF(OR('Tabel 1 H'!C32<5,'Tabel 2 H'!D34<0.5),"-",IFERROR('Tabel 2 H'!D34/'Tabel 1 H'!C32*100,"-")) -> 1.71124673 | F34: =IF(OR('Tabel 1 H'!E32<5,'Tabel 2 H'!F34<0.5),"-",IFERROR('Tabel 2 H'!F34/'Tabel 1 H'!E32*100,"-")) -> 1.419510722 | G34: =IF(OR('Tabel 1 H'!E32<5,'Tabel 2 H'!G34<0.5),"-",IFERROR('Tabel 2 H'!G34/'Tabel 1 H'!E32*100,"-")) -> 1.147757335 | I34: =IF(OR('Tabel 1 H'!G32<5,'Tabel 2 H'!I34<0.5),"-",IFERROR('Tabel 2 H'!I34/'Tabel 1 H'!G32*100,"-")) -> 1.603307452 | J34: =IF(OR('Tabel 1 H'!G32<5,'Tabel 2 H'!J34<0.5),"-",IFERROR('Tabel 2 H'!J34/'Tabel 1 H'!G32*100,"-")) -> 1.334981047
A35: Økonom | C35: =IF(OR('Tabel 1 H'!C33<5,'Tabel 2 H'!C35<0.5),"-",IFERROR('Tabel 2 H'!C35/'Tabel 1 H'!C33*100,"-")) -> 2.45014245 | D35: =IF(OR('Tabel 1 H'!C33<5,'Tabel 2 H'!D35<0.5),"-",IFERROR('Tabel 2 H'!D35/'Tabel 1 H'!C33*100,"-")) -> 2.161798413 | F35: =IF(OR('Tabel 1 H'!E33<5,'Tabel 2 H'!F35<0.5),"-",IFERROR('Tabel 2 H'!F35/'Tabel 1 H'!E33*100,"-")) -> 1.887640449 | G35: =IF(OR('Tabel 1 H'!E33<5,'Tabel 2 H'!G35<0.5),"-",IFERROR('Tabel 2 H'!G35/'Tabel 1 H'!E33*100,"-")) -> 1.706031871 | I35: =IF(OR('Tabel 1 H'!G33<5,'Tabel 2 H'!I35<0.5),"-",IFERROR('Tabel 2 H'!I35/'Tabel 1 H'!G33*100,"-")) -> 2.231909329 | J35: =IF(OR('Tabel 1 H'!G33<5,'Tabel 2 H'!J35<0.5),"-",IFERROR('Tabel 2 H'!J35/'Tabel 1 H'!G33*100,"-")) -> 1.9849753
A36: Samf. Adm. | C36: =IF(OR('Tabel 1 H'!C34<5,'Tabel 2 H'!C36<0.5),"-",IFERROR('Tabel 2 H'!C36/'Tabel 1 H'!C34*100,"-")) -> 4.463276836 | D36: =IF(OR('Tabel 1 H'!C34<5,'Tabel 2 H'!D36<0.5),"-",IFERROR('Tabel 2 H'!D36/'Tabel 1 H'!C34*100,"-")) -> 3.870380687 | F36: =IF(OR('Tabel 1 H'!E34<5,'Tabel 2 H'!F36<0.5),"-",IFERROR('Tabel 2 H'!F36/'Tabel 1 H'!E34*100,"-")) -> 5.076429515 | G36: =IF(OR('Tabel 1 H'!E34<5,'Tabel 2 H'!G36<0.5),"-",IFERROR('Tabel 2 H'!G36/'Tabel 1 H'!E34*100,"-")) -> 4.164903706 | I36: =IF(OR('Tabel 1 H'!G34<5,'Tabel 2 H'!I36<0.5),"-",IFERROR('Tabel 2 H'!I36/'Tabel 1 H'!G34*100,"-")) -> 4.83086322 | J36: =IF(OR('Tabel 1 H'!G34<5,'Tabel 2 H'!J36<0.5),"-",IFERROR('Tabel 2 H'!J36/'Tabel 1 H'!G34*100,"-")) -> 4.046947887
A37: Cand. Merc. | C37: =IF(OR('Tabel 1 H'!C35<5,'Tabel 2 H'!C37<0.5),"-",IFERROR('Tabel 2 H'!C37/'Tabel 1 H'!C35*100,"-")) -> 3.571097301 | D37: =IF(OR('Tabel 1 H'!C35<5,'Tabel 2 H'!D37<0.5),"-",IFERROR('Tabel 2 H'!D37/'Tabel 1 H'!C35*100,"-")) -> 3.10468901 | F37: =IF(OR('Tabel 1 H'!E35<5,'Tabel 2 H'!F37<0.5),"-",IFERROR('Tabel 2 H'!F37/'Tabel 1 H'!E35*100,"-")) -> 3.98841771 | G37: =IF(OR('Tabel 1 H'!E35<5,'Tabel 2 H'!G37<0.5),"-",IFERROR('Tabel 2 H'!G37/'Tabel 1 H'!E35*100,"-")) -> 3.354403465 | I37: =IF(OR('Tabel 1 H'!G35<5,'Tabel 2 H'!I37<0.5),"-",IFERROR('Tabel 2 H'!I37/'Tabel 1 H'!G35*100,"-")) -> 3.77902918 | J37: =IF(OR('Tabel 1 H'!G35<5,'Tabel 2 H'!J37<0.5),"-",IFERROR('Tabel 2 H'!J37/'Tabel 1 H'!G35*100,"-")) -> 3.229110426
A38: HA | C38: =IF(OR('Tabel 1 H'!C36<5,'Tabel 2 H'!C38<0.5),"-",IFERROR('Tabel 2 H'!C38/'Tabel 1 H'!C36*100,"-")) -> 6.258790436 | D38: =IF(OR('Tabel 1 H'!C36<5,'Tabel 2 H'!D38<0.5),"-",IFERROR('Tabel 2 H'!D38/'Tabel 1 H'!C36*100,"-")) -> 5.297135488 | F38: =IF(OR('Tabel 1 H'!E36<5,'Tabel 2 H'!F38<0.5),"-",IFERROR('Tabel 2 H'!F38/'Tabel 1 H'!E36*100,"-")) -> 6.183889341 | G38: =IF(OR('Tabel 1 H'!E36<5,'Tabel 2 H'!G38<0.5),"-",IFERROR('Tabel 2 H'!G38/'Tabel 1 H'!E36*100,"-")) -> 5.047817112 | I38: =IF(OR('Tabel 1 H'!G36<5,'Tabel 2 H'!I38<0.5),"-",IFERROR('Tabel 2 H'!I38/'Tabel 1 H'!G36*100,"-")) -> 6.22406639 | J38: =IF(OR('Tabel 1 H'!G36<5,'Tabel 2 H'!J38<0.5),"-",IFERROR('Tabel 2 H'!J38/'Tabel 1 H'!G36*100,"-")) -> 5.181551827
A39: HD | C39: =IF(OR('Tabel 1 H'!C37<5,'Tabel 2 H'!C39<0.5),"-",IFERROR('Tabel 2 H'!C39/'Tabel 1 H'!C37*100,"-")) -> 6.198034769 | D39: =IF(OR('Tabel 1 H'!C37<5,'Tabel 2 H'!D39<0.5),"-",IFERROR('Tabel 2 H'!D39/'Tabel 1 H'!C37*100,"-")) -> 5.188655918 | F39: =IF(OR('Tabel 1 H'!E37<5,'Tabel 2 H'!F39<0.5),"-",IFERROR('Tabel 2 H'!F39/'Tabel 1 H'!E37*100,"-")) -> 6.440957886 | G39: =IF(OR('Tabel 1 H'!E37<5,'Tabel 2 H'!G39<0.5),"-",IFERROR('Tabel 2 H'!G39/'Tabel 1 H'!E37*100,"-")) -> 5.512628964 | I39: =IF(OR('Tabel 1 H'!G37<5,'Tabel 2 H'!I39<0.5),"-",IFERROR('Tabel 2 H'!I39/'Tabel 1 H'!G37*100,"-")) -> 6.314127861 | J39: =IF(OR('Tabel 1 H'!G37<5,'Tabel 2 H'!J39<0.5),"-",IFERROR('Tabel 2 H'!J39/'Tabel 1 H'!G37*100,"-")) -> 5.343482816
A40: Komm. og Sprog | C40: =IF(OR('Tabel 1 H'!C38<5,'Tabel 2 H'!C40<0.5),"-",IFERROR('Tabel 2 H'!C40/'Tabel 1 H'!C38*100,"-")) -> 6.91318328 | D40: =IF(OR('Tabel 1 H'!C38<5,'Tabel 2 H'!D40<0.5),"-",IFERROR('Tabel 2 H'!D40/'Tabel 1 H'!C38*100,"-")) -> 5.950247711 | F40: =IF(OR('Tabel 1 H'!E38<5,'Tabel 2 H'!F40<0.5),"-",IFERROR('Tabel 2 H'!F40/'Tabel 1 H'!E38*100,"-")) -> 5.540499849 | G40: =IF(OR('Tabel 1 H'!E38<5,'Tabel 2 H'!G40<0.5),"-",IFERROR('Tabel 2 H'!G40/'Tabel 1 H'!E38*100,"-")) -> 4.717611089 | I40: =IF(OR('Tabel 1 H'!G38<5,'Tabel 2 H'!I40<0.5),"-",IFERROR('Tabel 2 H'!I40/'Tabel 1 H'!G38*100,"-")) -> 5.757037788 | J40: =IF(OR('Tabel 1 H'!G38<5,'Tabel 2 H'!J40<0.5),"-",IFERROR('Tabel 2 H'!J40/'Tabel 1 H'!G38*100,"-")) -> 4.912056937
A41: Komm. og Sprog | C41: =IF(OR('Tabel 1 H'!C39<5,'Tabel 2 H'!C41<0.5),"-",IFERROR('Tabel 2 H'!C41/'Tabel 1 H'!C39*100,"-")) -> 3.52443609 | D41: =IF(OR('Tabel 1 H'!C39<5,'Tabel 2 H'!D41<0.5),"-",IFERROR('Tabel 2 H'!D41/'Tabel 1 H'!C39*100,"-")) -> 3.069526714 | F41: =IF(OR('Tabel 1 H'!E39<5,'Tabel 2 H'!F41<0.5),"-",IFERROR('Tabel 2 H'!F41/'Tabel 1 H'!E39*100,"-")) -> 6.841046278 | G41: =IF(OR('Tabel 1 H'!E39<5,'Tabel 2 H'!G41<0.5),"-",IFERROR('Tabel 2 H'!G41/'Tabel 1 H'!E39*100,"-")) -> 6.358101205 | I41: =IF(OR('Tabel 1 H'!G39<5,'Tabel 2 H'!I41<0.5),"-",IFERROR('Tabel 2 H'!I41/'Tabel 1 H'!G39*100,"-")) -> 4.152380952 | J41: =IF(OR('Tabel 1 H'!G39<5,'Tabel 2 H'!J41<0.5),"-",IFERROR('Tabel 2 H'!J41/'Tabel 1 H'!G39*100,"-")) -> 3.692163484
A42: Cand. IT. | C42: =IF(OR('Tabel 1 H'!C40<5,'Tabel 2 H'!C42<0.5),"-",IFERROR('Tabel 2 H'!C42/'Tabel 1 H'!C40*100,"-")) -> 5.087939698 | D42: =IF(OR('Tabel 1 H'!C40<5,'Tabel 2 H'!D42<0.5),"-",IFERROR('Tabel 2 H'!D42/'Tabel 1 H'!C40*100,"-")) -> 4.735012617 | F42: =IF(OR('Tabel 1 H'!E40<5,'Tabel 2 H'!F42<0.5),"-",IFERROR('Tabel 2 H'!F42/'Tabel 1 H'!E40*100,"-")) -> 7.50182083 | G42: =IF(OR('Tabel 1 H'!E40<5,'Tabel 2 H'!G42<0.5),"-",IFERROR('Tabel 2 H'!G42/'Tabel 1 H'!E40*100,"-")) -> 6.054155693 | I42: =IF(OR('Tabel 1 H'!G40<5,'Tabel 2 H'!I42<0.5),"-",IFERROR('Tabel 2 H'!I42/'Tabel 1 H'!G40*100,"-")) -> 6.205733558 | J42: =IF(OR('Tabel 1 H'!G40<5,'Tabel 2 H'!J42<0.5),"-",IFERROR('Tabel 2 H'!J42/'Tabel 1 H'!G40*100,"-")) -> 5.345867067
A43: Bac. Samf. | C43: =IF(OR('Tabel 1 H'!C41<5,'Tabel 2 H'!C43<0.5),"-",IFERROR('Tabel 2 H'!C43/'Tabel 1 H'!C41*100,"-")) -> 5.167958656 | D43: =IF(OR('Tabel 1 H'!C41<5,'Tabel 2 H'!D43<0.5),"-",IFERROR('Tabel 2 H'!D43/'Tabel 1 H'!C41*100,"-")) -> 4.113286373 | F43: =IF(OR('Tabel 1 H'!E41<5,'Tabel 2 H'!F43<0.5),"-",IFERROR('Tabel 2 H'!F43/'Tabel 1 H'!E41*100,"-")) -> 7.305936073 | G43: =IF(OR('Tabel 1 H'!E41<5,'Tabel 2 H'!G43<0.5),"-",IFERROR('Tabel 2 H'!G43/'Tabel 1 H'!E41*100,"-")) -> 5.362512877 | I43: =IF(OR('Tabel 1 H'!G41<5,'Tabel 2 H'!I43<0.5),"-",IFERROR('Tabel 2 H'!I43/'Tabel 1 H'!G41*100,"-")) -> 6.303030303 | J43: =IF(OR('Tabel 1 H'!G41<5,'Tabel 2 H'!J43<0.5),"-",IFERROR('Tabel 2 H'!J43/'Tabel 1 H'!G41*100,"-")) -> 4.77651208
A44: Bac. Hum. | C44: =IF(OR('Tabel 1 H'!C42<5,'Tabel 2 H'!C44<0.5),"-",IFERROR('Tabel 2 H'!C44/'Tabel 1 H'!C42*100,"-")) -> 10.30927835 | D44: =IF(OR('Tabel 1 H'!C42<5,'Tabel 2 H'!D44<0.5),"-",IFERROR('Tabel 2 H'!D44/'Tabel 1 H'!C42*100,"-")) -> 8.591735088 | F44: =IF(OR('Tabel 1 H'!E42<5,'Tabel 2 H'!F44<0.5),"-",IFERROR('Tabel 2 H'!F44/'Tabel 1 H'!E42*100,"-")) -> 11.78318932 | G44: =IF(OR('Tabel 1 H'!E42<5,'Tabel 2 H'!G44<0.5),"-",IFERROR('Tabel 2 H'!G44/'Tabel 1 H'!E42*100,"-")) -> 9.757712503 | I44: =IF(OR('Tabel 1 H'!G42<5,'Tabel 2 H'!I44<0.5),"-",IFERROR('Tabel 2 H'!I44/'Tabel 1 H'!G42*100,"-")) -> 11.2249878 | J44: =IF(OR('Tabel 1 H'!G42<5,'Tabel 2 H'!J44<0.5),"-",IFERROR('Tabel 2 H'!J44/'Tabel 1 H'!G42*100,"-")) -> 9.316131988
A45: Bac. Nat. | C45: =IF(OR('Tabel 1 H'!C43<5,'Tabel 2 H'!C45<0.5),"-",IFERROR('Tabel 2 H'!C45/'Tabel 1 H'!C43*100,"-")) -> 10.00971817 | D45: =IF(OR('Tabel 1 H'!C43<5,'Tabel 2 H'!D45<0.5),"-",IFERROR('Tabel 2 H'!D45/'Tabel 1 H'!C43*100,"-")) -> 8.574334386 | F45: =IF(OR('Tabel 1 H'!E43<5,'Tabel 2 H'!F45<0.5),"-",IFERROR('Tabel 2 H'!F45/'Tabel 1 H'!E43*100,"-")) -> 12.79887482 | G45: =IF(OR('Tabel 1 H'!E43<5,'Tabel 2 H'!G45<0.5),"-",IFERROR('Tabel 2 H'!G45/'Tabel 1 H'!E43*100,"-")) -> 10.00196237 | I45: =IF(OR('Tabel 1 H'!G43<5,'Tabel 2 H'!I45<0.5),"-",IFERROR('Tabel 2 H'!I45/'Tabel 1 H'!G43*100,"-")) -> 11.14942529 | J45: =IF(OR('Tabel 1 H'!G43<5,'Tabel 2 H'!J45<0.5),"-",IFERROR('Tabel 2 H'!J45/'Tabel 1 H'!G43*100,"-")) -> 9.157692719
A46: Andre | C46: =IF(OR('Tabel 1 H'!C44<5,'Tabel 2 H'!C46<0.5),"-",IFERROR('Tabel 2 H'!C46/'Tabel 1 H'!C44*100,"-")) -> 5.6253832 | D46: =IF(OR('Tabel 1 H'!C44<5,'Tabel 2 H'!D46<0.5),"-",IFERROR('Tabel 2 H'!D46/'Tabel 1 H'!C44*100,"-")) -> 4.799133822 | F46: =IF(OR('Tabel 1 H'!E44<5,'Tabel 2 H'!F46<0.5),"-",IFERROR('Tabel 2 H'!F46/'Tabel 1 H'!E44*100,"-")) -> 8.091205212 | G46: =IF(OR('Tabel 1 H'!E44<5,'Tabel 2 H'!G46<0.5),"-",IFERROR('Tabel 2 H'!G46/'Tabel 1 H'!E44*100,"-")) -> 6.73527787 | I46: =IF(OR('Tabel 1 H'!G44<5,'Tabel 2 H'!I46<0.5),"-",IFERROR('Tabel 2 H'!I46/'Tabel 1 H'!G44*100,"-")) -> 6.958236496 | J46: =IF(OR('Tabel 1 H'!G44<5,'Tabel 2 H'!J46<0.5),"-",IFERROR('Tabel 2 H'!J46/'Tabel 1 H'!G44*100,"-")) -> 5.845679746
A48: Total | C48: =IF(OR('Tabel 1 H'!C46<5,'Tabel 2 H'!C48<0.5),"-",IFERROR('Tabel 2 H'!C48/'Tabel 1 H'!C46*100,"-")) -> 4.553906488 | D48: =IF(OR('Tabel 1 H'!C46<5,'Tabel 2 H'!D48<0.5),"-",IFERROR('Tabel 2 H'!D48/'Tabel 1 H'!C46*100,"-")) -> 3.906306614 | F48: =IF(OR('Tabel 1 H'!E46<5,'Tabel 2 H'!F48<0.5),"-",IFERROR('Tabel 2 H'!F48/'Tabel 1 H'!E46*100,"-")) -> 5.418640283 | G48: =IF(OR('Tabel 1 H'!E46<5,'Tabel 2 H'!G48<0.5),"-",IFERROR('Tabel 2 H'!G48/'Tabel 1 H'!E46*100,"-")) -> 4.501929271 | I48: =IF(OR('Tabel 1 H'!G46<5,'Tabel 2 H'!I48<0.5),"-",IFERROR('Tabel 2 H'!I48/'Tabel 1 H'!G46*100,"-")) -> 5.011771193 | J48: =IF(OR('Tabel 1 H'!G46<5,'Tabel 2 H'!J48<0.5),"-",IFERROR('Tabel 2 H'!J48/'Tabel 1 H'!G46*100,"-")) -> 4.221680656
A50: Ingeniører i alt | C50: =IF(OR('Tabel 1 H'!C48<5,'Tabel 2 H'!C50<0.5),"-",IFERROR('Tabel 2 H'!C50/'Tabel 1 H'!C48*100,"-")) -> 2.941816441 | D50: =IF(OR('Tabel 1 H'!C48<5,'Tabel 2 H'!D50<0.5),"-",IFERROR('Tabel 2 H'!D50/'Tabel 1 H'!C48*100,"-")) -> 2.630133902 | F50: =IF(OR('Tabel 1 H'!E48<5,'Tabel 2 H'!F50<0.5),"-",IFERROR('Tabel 2 H'!F50/'Tabel 1 H'!E48*100,"-")) -> 3.575076609 | G50: =IF(OR('Tabel 1 H'!E48<5,'Tabel 2 H'!G50<0.5),"-",IFERROR('Tabel 2 H'!G50/'Tabel 1 H'!E48*100,"-")) -> 2.997448699 | I50: =IF(OR('Tabel 1 H'!G48<5,'Tabel 2 H'!I50<0.5),"-",IFERROR('Tabel 2 H'!I50/'Tabel 1 H'!G48*100,"-")) -> 3.102787965 | J50: =IF(OR('Tabel 1 H'!G48<5,'Tabel 2 H'!J50<0.5),"-",IFERROR('Tabel 2 H'!J50/'Tabel 1 H'!G48*100,"-")) -> 2.723503462
A51: Magistre i alt | C51: =IF(OR('Tabel 1 H'!C49<5,'Tabel 2 H'!C51<0.5),"-",IFERROR('Tabel 2 H'!C51/'Tabel 1 H'!C49*100,"-")) -> 7.081756868 | D51: =IF(OR('Tabel 1 H'!C49<5,'Tabel 2 H'!D51<0.5),"-",IFERROR('Tabel 2 H'!D51/'Tabel 1 H'!C49*100,"-")) -> 5.795801342 | F51: =IF(OR('Tabel 1 H'!E49<5,'Tabel 2 H'!F51<0.5),"-",IFERROR('Tabel 2 H'!F51/'Tabel 1 H'!E49*100,"-")) -> 7.605760576 | G51: =IF(OR('Tabel 1 H'!E49<5,'Tabel 2 H'!G51<0.5),"-",IFERROR('Tabel 2 H'!G51/'Tabel 1 H'!E49*100,"-")) -> 6.273253471 | I51: =IF(OR('Tabel 1 H'!G49<5,'Tabel 2 H'!I51<0.5),"-",IFERROR('Tabel 2 H'!I51/'Tabel 1 H'!G49*100,"-")) -> 7.420443307 | J51: =IF(OR('Tabel 1 H'!G49<5,'Tabel 2 H'!J51<0.5),"-",IFERROR('Tabel 2 H'!J51/'Tabel 1 H'!G49*100,"-")) -> 6.104399466
A52: DJØF'ere i alt | C52: =IF(OR('Tabel 1 H'!C50<5,'Tabel 2 H'!C52<0.5),"-",IFERROR('Tabel 2 H'!C52/'Tabel 1 H'!C50*100,"-")) -> 3.607022386 | D52: =IF(OR('Tabel 1 H'!C50<5,'Tabel 2 H'!D52<0.5),"-",IFERROR('Tabel 2 H'!D52/'Tabel 1 H'!C50*100,"-")) -> 3.129137709 | F52: =IF(OR('Tabel 1 H'!E50<5,'Tabel 2 H'!F52<0.5),"-",IFERROR('Tabel 2 H'!F52/'Tabel 1 H'!E50*100,"-")) -> 3.750796686 | G52: =IF(OR('Tabel 1 H'!E50<5,'Tabel 2 H'!G52<0.5),"-",IFERROR('Tabel 2 H'!G52/'Tabel 1 H'!E50*100,"-")) -> 3.111919381 | I52: =IF(OR('Tabel 1 H'!G50<5,'Tabel 2 H'!I52<0.5),"-",IFERROR('Tabel 2 H'!I52/'Tabel 1 H'!G50*100,"-")) -> 3.685529338 | J52: =IF(OR('Tabel 1 H'!G50<5,'Tabel 2 H'!J52<0.5),"-",IFERROR('Tabel 2 H'!J52/'Tabel 1 H'!G50*100,"-")) -> 3.119735761
A57: København
C59: Mænd | F59: Kvinder | I59: I alt
C60: Ledigheds- berørte | D60: Gns. brutto- ledighed | F60: Ledigheds- berørte | G60: Gns. brutto- ledighed | I60: Ledigheds- berørte | J60: Gns. brutto- ledighed
A63: Civ. ing. | C63: =IF(OR('Tabel 1 H'!C61<5,'Tabel 2 H'!C63<0.5),"-",IFERROR('Tabel 2 H'!C63/'Tabel 1 H'!C61*100,"-")) -> 4.38247012 | D63: =IF(OR('Tabel 1 H'!C61<5,'Tabel 2 H'!D63<0.5),"-",IFERROR('Tabel 2 H'!D63/'Tabel 1 H'!C61*100,"-")) -> 3.902282441 | F63: =IF(OR('Tabel 1 H'!E61<5,'Tabel 2 H'!F63<0.5),"-",IFERROR('Tabel 2 H'!F63/'Tabel 1 H'!E61*100,"-")) -> 4.953917051 | G63: =IF(OR('Tabel 1 H'!E61<5,'Tabel 2 H'!G63<0.5),"-",IFERROR('Tabel 2 H'!G63/'Tabel 1 H'!E61*100,"-")) -> 4.239240438 | I63: =IF(OR('Tabel 1 H'!G61<5,'Tabel 2 H'!I63<0.5),"-",IFERROR('Tabel 2 H'!I63/'Tabel 1 H'!G61*100,"-")) -> 4.5410937 | J63: =IF(OR('Tabel 1 H'!G61<5,'Tabel 2 H'!J63<0.5),"-",IFERROR('Tabel 2 H'!J63/'Tabel 1 H'!G61*100,"-")) -> 3.995816033
A64: Diplom ing. | C64: =IF(OR('Tabel 1 H'!C62<5,'Tabel 2 H'!C64<0.5),"-",IFERROR('Tabel 2 H'!C64/'Tabel 1 H'!C62*100,"-")) -> 3.675048356 | D64: =IF(OR('Tabel 1 H'!C62<5,'Tabel 2 H'!D64<0.5),"-",IFERROR('Tabel 2 H'!D64/'Tabel 1 H'!C62*100,"-")) -> 3.275304645 | F64: =IF(OR('Tabel 1 H'!E62<5,'Tabel 2 H'!F64<0.5),"-",IFERROR('Tabel 2 H'!F64/'Tabel 1 H'!E62*100,"-")) -> 4.572271386 | G64: =IF(OR('Tabel 1 H'!E62<5,'Tabel 2 H'!G64<0.5),"-",IFERROR('Tabel 2 H'!G64/'Tabel 1 H'!E62*100,"-")) -> 3.933995279 | I64: =IF(OR('Tabel 1 H'!G62<5,'Tabel 2 H'!I64<0.5),"-",IFERROR('Tabel 2 H'!I64/'Tabel 1 H'!G62*100,"-")) -> 3.861477168 | J64: =IF(OR('Tabel 1 H'!G62<5,'Tabel 2 H'!J64<0.5),"-",IFERROR('Tabel 2 H'!J64/'Tabel 1 H'!G62*100,"-")) -> 3.412170183
A65: Cand. Scient. Tek. | C65: =IF(OR('Tabel 1 H'!C63<5,'Tabel 2 H'!C65<0.5),"-",IFERROR('Tabel 2 H'!C65/'Tabel 1 H'!C63*100,"-")) -> 9.351203168 | D65: =IF(OR('Tabel 1 H'!C63<5,'Tabel 2 H'!D65<0.5),"-",IFERROR('Tabel 2 H'!D65/'Tabel 1 H'!C63*100,"-")) -> 8.093040057 | F65: =IF(OR('Tabel 1 H'!E63<5,'Tabel 2 H'!F65<0.5),"-",IFERROR('Tabel 2 H'!F65/'Tabel 1 H'!E63*100,"-")) -> 9.127652408 | G65: =IF(OR('Tabel 1 H'!E63<5,'Tabel 2 H'!G65<0.5),"-",IFERROR('Tabel 2 H'!G65/'Tabel 1 H'!E63*100,"-")) -> 7.548846133 | I65: =IF(OR('Tabel 1 H'!G63<5,'Tabel 2 H'!I65<0.5),"-",IFERROR('Tabel 2 H'!I65/'Tabel 1 H'!G63*100,"-")) -> 9.245041587 | J65: =IF(OR('Tabel 1 H'!G63<5,'Tabel 2 H'!J65<0.5),"-",IFERROR('Tabel 2 H'!J65/'Tabel 1 H'!G63*100,"-")) -> 7.834608874
A66: MA. Hum. | C66: =IF(OR('Tabel 1 H'!C64<5,'Tabel 2 H'!C66<0.5),"-",IFERROR('Tabel 2 H'!C66/'Tabel 1 H'!C64*100,"-")) -> 10.63309704 | D66: =IF(OR('Tabel 1 H'!C64<5,'Tabel 2 H'!D66<0.5),"-",IFERROR('Tabel 2 H'!D66/'Tabel 1 H'!C64*100,"-")) -> 8.45436073 | F66: =IF(OR('Tabel 1 H'!E64<5,'Tabel 2 H'!F66<0.5),"-",IFERROR('Tabel 2 H'!F66/'Tabel 1 H'!E64*100,"-")) -> 9.005186233 | G66: =IF(OR('Tabel 1 H'!E64<5,'Tabel 2 H'!G66<0.5),"-",IFERROR('Tabel 2 H'!G66/'Tabel 1 H'!E64*100,"-")) -> 7.350520539 | I66: =IF(OR('Tabel 1 H'!G64<5,'Tabel 2 H'!I66<0.5),"-",IFERROR('Tabel 2 H'!I66/'Tabel 1 H'!G64*100,"-")) -> 9.534791252 | J66: =IF(OR('Tabel 1 H'!G64<5,'Tabel 2 H'!J66<0.5),"-",IFERROR('Tabel 2 H'!J66/'Tabel 1 H'!G64*100,"-")) -> 7.709630696
A67: MA. Nat. | C67: =IF(OR('Tabel 1 H'!C65<5,'Tabel 2 H'!C67<0.5),"-",IFERROR('Tabel 2 H'!C67/'Tabel 1 H'!C65*100,"-")) -> 4.307488403 | D67: =IF(OR('Tabel 1 H'!C65<5,'Tabel 2 H'!D67<0.5),"-",IFERROR('Tabel 2 H'!D67/'Tabel 1 H'!C65*100,"-")) -> 3.681232838 | F67: =IF(OR('Tabel 1 H'!E65<5,'Tabel 2 H'!F67<0.5),"-",IFERROR('Tabel 2 H'!F67/'Tabel 1 H'!E65*100,"-")) -> 5.994729908 | G67: =IF(OR('Tabel 1 H'!E65<5,'Tabel 2 H'!G67<0.5),"-",IFERROR('Tabel 2 H'!G67/'Tabel 1 H'!E65*100,"-")) -> 4.803169878 | I67: =IF(OR('Tabel 1 H'!G65<5,'Tabel 2 H'!I67<0.5),"-",IFERROR('Tabel 2 H'!I67/'Tabel 1 H'!G65*100,"-")) -> 5.153617443 | J67: =IF(OR('Tabel 1 H'!G65<5,'Tabel 2 H'!J67<0.5),"-",IFERROR('Tabel 2 H'!J67/'Tabel 1 H'!G65*100,"-")) -> 4.243869253
A68: MA. Ph.d. | C68: =IF(OR('Tabel 1 H'!C66<5,'Tabel 2 H'!C68<0.5),"-",IFERROR('Tabel 2 H'!C68/'Tabel 1 H'!C66*100,"-")) -> 3.466666667 | D68: =IF(OR('Tabel 1 H'!C66<5,'Tabel 2 H'!D68<0.5),"-",IFERROR('Tabel 2 H'!D68/'Tabel 1 H'!C66*100,"-")) -> 3.027256284 | F68: =IF(OR('Tabel 1 H'!E66<5,'Tabel 2 H'!F68<0.5),"-",IFERROR('Tabel 2 H'!F68/'Tabel 1 H'!E66*100,"-")) -> 4.827586207 | G68: =IF(OR('Tabel 1 H'!E66<5,'Tabel 2 H'!G68<0.5),"-",IFERROR('Tabel 2 H'!G68/'Tabel 1 H'!E66*100,"-")) -> 4.009187946 | I68: =IF(OR('Tabel 1 H'!G66<5,'Tabel 2 H'!I68<0.5),"-",IFERROR('Tabel 2 H'!I68/'Tabel 1 H'!G66*100,"-")) -> 4.060150376 | J68: =IF(OR('Tabel 1 H'!G66<5,'Tabel 2 H'!J68<0.5),"-",IFERROR('Tabel 2 H'!J68/'Tabel 1 H'!G66*100,"-")) -> 3.455467084
A69: MA. Samf. | C69: =IF(OR('Tabel 1 H'!C67<5,'Tabel 2 H'!C69<0.5),"-",IFERROR('Tabel 2 H'!C69/'Tabel 1 H'!C67*100,"-")) -> 13.24324324 | D69: =IF(OR('Tabel 1 H'!C67<5,'Tabel 2 H'!D69<0.5),"-",IFERROR('Tabel 2 H'!D69/'Tabel 1 H'!C67*100,"-")) -> 11.16969898 | F69: =IF(OR('Tabel 1 H'!E67<5,'Tabel 2 H'!F69<0.5),"-",IFERROR('Tabel 2 H'!F69/'Tabel 1 H'!E67*100,"-")) -> 11.22964627 | G69: =IF(OR('Tabel 1 H'!E67<5,'Tabel 2 H'!G69<0.5),"-",IFERROR('Tabel 2 H'!G69/'Tabel 1 H'!E67*100,"-")) -> 9.392440276 | I69: =IF(OR('Tabel 1 H'!G67<5,'Tabel 2 H'!I69<0.5),"-",IFERROR('Tabel 2 H'!I69/'Tabel 1 H'!G67*100,"-")) -> 11.82070607 | J69: =IF(OR('Tabel 1 H'!G67<5,'Tabel 2 H'!J69<0.5),"-",IFERROR('Tabel 2 H'!J69/'Tabel 1 H'!G67*100,"-")) -> 9.914126687
A70: Øvrige Mag. | C70: =IF(OR('Tabel 1 H'!C68<5,'Tabel 2 H'!C70<0.5),"-",IFERROR('Tabel 2 H'!C70/'Tabel 1 H'!C68*100,"-")) -> 9.943181818 | D70: =IF(OR('Tabel 1 H'!C68<5,'Tabel 2 H'!D70<0.5),"-",IFERROR('Tabel 2 H'!D70/'Tabel 1 H'!C68*100,"-")) -> 8.378847888 | F70: =IF(OR('Tabel 1 H'!E68<5,'Tabel 2 H'!F70<0.5),"-",IFERROR('Tabel 2 H'!F70/'Tabel 1 H'!E68*100,"-")) -> 12.1522694 | G70: =IF(OR('Tabel 1 H'!E68<5,'Tabel 2 H'!G70<0.5),"-",IFERROR('Tabel 2 H'!G70/'Tabel 1 H'!E68*100,"-")) -> 9.9768605 | I70: =IF(OR('Tabel 1 H'!G68<5,'Tabel 2 H'!I70<0.5),"-",IFERROR('Tabel 2 H'!I70/'Tabel 1 H'!G68*100,"-")) -> 11.40096618 | J70: =IF(OR('Tabel 1 H'!G68<5,'Tabel 2 H'!J70<0.5),"-",IFERROR('Tabel 2 H'!J70/'Tabel 1 H'!G68*100,"-")) -> 9.433381814
A71: Agronom | C71: =IF(OR('Tabel 1 H'!C69<5,'Tabel 2 H'!C71<0.5),"-",IFERROR('Tabel 2 H'!C71/'Tabel 1 H'!C69*100,"-")) -> 7.142857143 | D71: =IF(OR('Tabel 1 H'!C69<5,'Tabel 2 H'!D71<0.5),"-",IFERROR('Tabel 2 H'!D71/'Tabel 1 H'!C69*100,"-")) -> 6.264757509 | F71: =IF(OR('Tabel 1 H'!E69<5,'Tabel 2 H'!F71<0.5),"-",IFERROR('Tabel 2 H'!F71/'Tabel 1 H'!E69*100,"-")) -> 6.179775281 | G71: =IF(OR('Tabel 1 H'!E69<5,'Tabel 2 H'!G71<0.5),"-",IFERROR('Tabel 2 H'!G71/'Tabel 1 H'!E69*100,"-")) -> 4.482678633 | I71: =IF(OR('Tabel 1 H'!G69<5,'Tabel 2 H'!I71<0.5),"-",IFERROR('Tabel 2 H'!I71/'Tabel 1 H'!G69*100,"-")) -> 6.603773585 | J71: =IF(OR('Tabel 1 H'!G69<5,'Tabel 2 H'!J71<0.5),"-",IFERROR('Tabel 2 H'!J71/'Tabel 1 H'!G69*100,"-")) -> 5.26724166
A72: Landsk. Arkt. | C72: =IF(OR('Tabel 1 H'!C70<5,'Tabel 2 H'!C72<0.5),"-",IFERROR('Tabel 2 H'!C72/'Tabel 1 H'!C70*100,"-")) -> 9.459459459 | D72: =IF(OR('Tabel 1 H'!C70<5,'Tabel 2 H'!D72<0.5),"-",IFERROR('Tabel 2 H'!D72/'Tabel 1 H'!C70*100,"-")) -> 7.771977054 | F72: =IF(OR('Tabel 1 H'!E70<5,'Tabel 2 H'!F72<0.5),"-",IFERROR('Tabel 2 H'!F72/'Tabel 1 H'!E70*100,"-")) -> 8.839779006 | G72: =IF(OR('Tabel 1 H'!E70<5,'Tabel 2 H'!G72<0.5),"-",IFERROR('Tabel 2 H'!G72/'Tabel 1 H'!E70*100,"-")) -> 8.214066775 | I72: =IF(OR('Tabel 1 H'!G70<5,'Tabel 2 H'!I72<0.5),"-",IFERROR('Tabel 2 H'!I72/'Tabel 1 H'!G70*100,"-")) -> 9.019607843 | J72: =IF(OR('Tabel 1 H'!G70<5,'Tabel 2 H'!J72<0.5),"-",IFERROR('Tabel 2 H'!J72/'Tabel 1 H'!G70*100,"-")) -> 8.085774071
A73: Hortonom | C73: =IF(OR('Tabel 1 H'!C71<5,'Tabel 2 H'!C73<0.5),"-",IFERROR('Tabel 2 H'!C73/'Tabel 1 H'!C71*100,"-")) -> - | D73: =IF(OR('Tabel 1 H'!C71<5,'Tabel 2 H'!D73<0.5),"-",IFERROR('Tabel 2 H'!D73/'Tabel 1 H'!C71*100,"-")) -> - | F73: =IF(OR('Tabel 1 H'!E71<5,'Tabel 2 H'!F73<0.5),"-",IFERROR('Tabel 2 H'!F73/'Tabel 1 H'!E71*100,"-")) -> 3.846153846 | G73: =IF(OR('Tabel 1 H'!E71<5,'Tabel 2 H'!G73<0.5),"-",IFERROR('Tabel 2 H'!G73/'Tabel 1 H'!E71*100,"-")) -> 3.845434177 | I73: =IF(OR('Tabel 1 H'!G71<5,'Tabel 2 H'!I73<0.5),"-",IFERROR('Tabel 2 H'!I73/'Tabel 1 H'!G71*100,"-")) -> 2.173913043 | J73: =IF(OR('Tabel 1 H'!G71<5,'Tabel 2 H'!J73<0.5),"-",IFERROR('Tabel 2 H'!J73/'Tabel 1 H'!G71*100,"-")) -> 2.173506274
A74: Forstkand. | C74: =IF(OR('Tabel 1 H'!C72<5,'Tabel 2 H'!C74<0.5),"-",IFERROR('Tabel 2 H'!C74/'Tabel 1 H'!C72*100,"-")) -> 6.25 | D74: =IF(OR('Tabel 1 H'!C72<5,'Tabel 2 H'!D74<0.5),"-",IFERROR('Tabel 2 H'!D74/'Tabel 1 H'!C72*100,"-")) -> 4.991657831 | F74: =IF(OR('Tabel 1 H'!E72<5,'Tabel 2 H'!F74<0.5),"-",IFERROR('Tabel 2 H'!F74/'Tabel 1 H'!E72*100,"-")) -> 19.23076923 | G74: =IF(OR('Tabel 1 H'!E72<5,'Tabel 2 H'!G74<0.5),"-",IFERROR('Tabel 2 H'!G74/'Tabel 1 H'!E72*100,"-")) -> 17.9749459 | I74: =IF(OR('Tabel 1 H'!G72<5,'Tabel 2 H'!I74<0.5),"-",IFERROR('Tabel 2 H'!I74/'Tabel 1 H'!G72*100,"-")) -> 10 | J74: =IF(OR('Tabel 1 H'!G72<5,'Tabel 2 H'!J74<0.5),"-",IFERROR('Tabel 2 H'!J74/'Tabel 1 H'!G72*100,"-")) -> 8.742385497
A75: Jordbrugsakad. | C75: =IF(OR('Tabel 1 H'!C73<5,'Tabel 2 H'!C75<0.5),"-",IFERROR('Tabel 2 H'!C75/'Tabel 1 H'!C73*100,"-")) -> 7.046979866 | D75: =IF(OR('Tabel 1 H'!C73<5,'Tabel 2 H'!D75<0.5),"-",IFERROR('Tabel 2 H'!D75/'Tabel 1 H'!C73*100,"-")) -> 5.945162599 | F75: =IF(OR('Tabel 1 H'!E73<5,'Tabel 2 H'!F75<0.5),"-",IFERROR('Tabel 2 H'!F75/'Tabel 1 H'!E73*100,"-")) -> 8.02919708 | G75: =IF(OR('Tabel 1 H'!E73<5,'Tabel 2 H'!G75<0.5),"-",IFERROR('Tabel 2 H'!G75/'Tabel 1 H'!E73*100,"-")) -> 6.939155146 | I75: =IF(OR('Tabel 1 H'!G73<5,'Tabel 2 H'!I75<0.5),"-",IFERROR('Tabel 2 H'!I75/'Tabel 1 H'!G73*100,"-")) -> 7.616361072 | J75: =IF(OR('Tabel 1 H'!G73<5,'Tabel 2 H'!J75<0.5),"-",IFERROR('Tabel 2 H'!J75/'Tabel 1 H'!G73*100,"-")) -> 6.521369844
A76: Mejeriing. | C76: =IF(OR('Tabel 1 H'!C74<5,'Tabel 2 H'!C76<0.5),"-",IFERROR('Tabel 2 H'!C76/'Tabel 1 H'!C74*100,"-")) -> 8.695652174 | D76: =IF(OR('Tabel 1 H'!C74<5,'Tabel 2 H'!D76<0.5),"-",IFERROR('Tabel 2 H'!D76/'Tabel 1 H'!C74*100,"-")) -> 8.694025095 | F76: =IF(OR('Tabel 1 H'!E74<5,'Tabel 2 H'!F76<0.5),"-",IFERROR('Tabel 2 H'!F76/'Tabel 1 H'!E74*100,"-")) -> 5.405405405 | G76: =IF(OR('Tabel 1 H'!E74<5,'Tabel 2 H'!G76<0.5),"-",IFERROR('Tabel 2 H'!G76/'Tabel 1 H'!E74*100,"-")) -> 5.030165824 | I76: =IF(OR('Tabel 1 H'!G74<5,'Tabel 2 H'!I76<0.5),"-",IFERROR('Tabel 2 H'!I76/'Tabel 1 H'!G74*100,"-")) -> 6.666666667 | J76: =IF(OR('Tabel 1 H'!G74<5,'Tabel 2 H'!J76<0.5),"-",IFERROR('Tabel 2 H'!J76/'Tabel 1 H'!G74*100,"-")) -> 6.434645211
A77: Levn.m.kand. | C77: =IF(OR('Tabel 1 H'!C75<5,'Tabel 2 H'!C77<0.5),"-",IFERROR('Tabel 2 H'!C77/'Tabel 1 H'!C75*100,"-")) -> 6.060606061 | D77: =IF(OR('Tabel 1 H'!C75<5,'Tabel 2 H'!D77<0.5),"-",IFERROR('Tabel 2 H'!D77/'Tabel 1 H'!C75*100,"-")) -> 6.059472036 | F77: =IF(OR('Tabel 1 H'!E75<5,'Tabel 2 H'!F77<0.5),"-",IFERROR('Tabel 2 H'!F77/'Tabel 1 H'!E75*100,"-")) -> 1.526717557 | G77: =IF(OR('Tabel 1 H'!E75<5,'Tabel 2 H'!G77<0.5),"-",IFERROR('Tabel 2 H'!G77/'Tabel 1 H'!E75*100,"-")) -> 1.13887245 | I77: =IF(OR('Tabel 1 H'!G75<5,'Tabel 2 H'!I77<0.5),"-",IFERROR('Tabel 2 H'!I77/'Tabel 1 H'!G75*100,"-")) -> 2.43902439 | J77: =IF(OR('Tabel 1 H'!G75<5,'Tabel 2 H'!J77<0.5),"-",IFERROR('Tabel 2 H'!J77/'Tabel 1 H'!G75*100,"-")) -> 2.128993098
A78: Dyrlæge | C78: =IF(OR('Tabel 1 H'!C76<5,'Tabel 2 H'!C78<0.5),"-",IFERROR('Tabel 2 H'!C78/'Tabel 1 H'!C76*100,"-")) -> - | D78: =IF(OR('Tabel 1 H'!C76<5,'Tabel 2 H'!D78<0.5),"-",IFERROR('Tabel 2 H'!D78/'Tabel 1 H'!C76*100,"-")) -> - | F78: =IF(OR('Tabel 1 H'!E76<5,'Tabel 2 H'!F78<0.5),"-",IFERROR('Tabel 2 H'!F78/'Tabel 1 H'!E76*100,"-")) -> 2.723735409 | G78: =IF(OR('Tabel 1 H'!E76<5,'Tabel 2 H'!G78<0.5),"-",IFERROR('Tabel 2 H'!G78/'Tabel 1 H'!E76*100,"-")) -> 2.067719764 | I78: =IF(OR('Tabel 1 H'!G76<5,'Tabel 2 H'!I78<0.5),"-",IFERROR('Tabel 2 H'!I78/'Tabel 1 H'!G76*100,"-")) -> 2.243589744 | J78: =IF(OR('Tabel 1 H'!G76<5,'Tabel 2 H'!J78<0.5),"-",IFERROR('Tabel 2 H'!J78/'Tabel 1 H'!G76*100,"-")) -> 1.703217882
A79: Farmaceut | C79: =IF(OR('Tabel 1 H'!C77<5,'Tabel 2 H'!C79<0.5),"-",IFERROR('Tabel 2 H'!C79/'Tabel 1 H'!C77*100,"-")) -> 8.353808354 | D79: =IF(OR('Tabel 1 H'!C77<5,'Tabel 2 H'!D79<0.5),"-",IFERROR('Tabel 2 H'!D79/'Tabel 1 H'!C77*100,"-")) -> 7.253773735 | F79: =IF(OR('Tabel 1 H'!E77<5,'Tabel 2 H'!F79<0.5),"-",IFERROR('Tabel 2 H'!F79/'Tabel 1 H'!E77*100,"-")) -> 5.592841163 | G79: =IF(OR('Tabel 1 H'!E77<5,'Tabel 2 H'!G79<0.5),"-",IFERROR('Tabel 2 H'!G79/'Tabel 1 H'!E77*100,"-")) -> 4.830501297 | I79: =IF(OR('Tabel 1 H'!G77<5,'Tabel 2 H'!I79<0.5),"-",IFERROR('Tabel 2 H'!I79/'Tabel 1 H'!G77*100,"-")) -> 6.456571868 | J79: =IF(OR('Tabel 1 H'!G77<5,'Tabel 2 H'!J79<0.5),"-",IFERROR('Tabel 2 H'!J79/'Tabel 1 H'!G77*100,"-")) -> 5.588588831
A80: Læge | C80: =IF(OR('Tabel 1 H'!C78<5,'Tabel 2 H'!C80<0.5),"-",IFERROR('Tabel 2 H'!C80/'Tabel 1 H'!C78*100,"-")) -> 2.503293808 | D80: =IF(OR('Tabel 1 H'!C78<5,'Tabel 2 H'!D80<0.5),"-",IFERROR('Tabel 2 H'!D80/'Tabel 1 H'!C78*100,"-")) -> 2.257366579 | F80: =IF(OR('Tabel 1 H'!E78<5,'Tabel 2 H'!F80<0.5),"-",IFERROR('Tabel 2 H'!F80/'Tabel 1 H'!E78*100,"-")) -> 2.488938053 | G80: =IF(OR('Tabel 1 H'!E78<5,'Tabel 2 H'!G80<0.5),"-",IFERROR('Tabel 2 H'!G80/'Tabel 1 H'!E78*100,"-")) -> 2.141152181 | I80: =IF(OR('Tabel 1 H'!G78<5,'Tabel 2 H'!I80<0.5),"-",IFERROR('Tabel 2 H'!I80/'Tabel 1 H'!G78*100,"-")) -> 2.493182704 | J80: =IF(OR('Tabel 1 H'!G78<5,'Tabel 2 H'!J80<0.5),"-",IFERROR('Tabel 2 H'!J80/'Tabel 1 H'!G78*100,"-")) -> 2.175513976
A81: Tandlæge | C81: =IF(OR('Tabel 1 H'!C79<5,'Tabel 2 H'!C81<0.5),"-",IFERROR('Tabel 2 H'!C81/'Tabel 1 H'!C79*100,"-")) -> 2 | D81: =IF(OR('Tabel 1 H'!C79<5,'Tabel 2 H'!D81<0.5),"-",IFERROR('Tabel 2 H'!D81/'Tabel 1 H'!C79*100,"-")) -> - | F81: =IF(OR('Tabel 1 H'!E79<5,'Tabel 2 H'!F81<0.5),"-",IFERROR('Tabel 2 H'!F81/'Tabel 1 H'!E79*100,"-")) -> 3.731343284 | G81: =IF(OR('Tabel 1 H'!E79<5,'Tabel 2 H'!G81<0.5),"-",IFERROR('Tabel 2 H'!G81/'Tabel 1 H'!E79*100,"-")) -> 2.535814658 | I81: =IF(OR('Tabel 1 H'!G79<5,'Tabel 2 H'!I81<0.5),"-",IFERROR('Tabel 2 H'!I81/'Tabel 1 H'!G79*100,"-")) -> 3.459119497 | J81: =IF(OR('Tabel 1 H'!G79<5,'Tabel 2 H'!J81<0.5),"-",IFERROR('Tabel 2 H'!J81/'Tabel 1 H'!G79*100,"-")) -> 2.267140061
A82: Arkitekt | C82: =IF(OR('Tabel 1 H'!C80<5,'Tabel 2 H'!C82<0.5),"-",IFERROR('Tabel 2 H'!C82/'Tabel 1 H'!C80*100,"-")) -> 7.932011331 | D82: =IF(OR('Tabel 1 H'!C80<5,'Tabel 2 H'!D82<0.5),"-",IFERROR('Tabel 2 H'!D82/'Tabel 1 H'!C80*100,"-")) -> 6.855136541 | F82: =IF(OR('Tabel 1 H'!E80<5,'Tabel 2 H'!F82<0.5),"-",IFERROR('Tabel 2 H'!F82/'Tabel 1 H'!E80*100,"-")) -> 6.767515924 | G82: =IF(OR('Tabel 1 H'!E80<5,'Tabel 2 H'!G82<0.5),"-",IFERROR('Tabel 2 H'!G82/'Tabel 1 H'!E80*100,"-")) -> 5.688307674 | I82: =IF(OR('Tabel 1 H'!G80<5,'Tabel 2 H'!I82<0.5),"-",IFERROR('Tabel 2 H'!I82/'Tabel 1 H'!G80*100,"-")) -> 7.300215983 | J82: =IF(OR('Tabel 1 H'!G80<5,'Tabel 2 H'!J82<0.5),"-",IFERROR('Tabel 2 H'!J82/'Tabel 1 H'!G80*100,"-")) -> 6.222075177
A83: Landinspek. | C83: =IF(OR('Tabel 1 H'!C81<5,'Tabel 2 H'!C83<0.5),"-",IFERROR('Tabel 2 H'!C83/'Tabel 1 H'!C81*100,"-")) -> 5.128205128 | D83: =IF(OR('Tabel 1 H'!C81<5,'Tabel 2 H'!D83<0.5),"-",IFERROR('Tabel 2 H'!D83/'Tabel 1 H'!C81*100,"-")) -> 5.127245569 | F83: =IF(OR('Tabel 1 H'!E81<5,'Tabel 2 H'!F83<0.5),"-",IFERROR('Tabel 2 H'!F83/'Tabel 1 H'!E81*100,"-")) -> - | G83: =IF(OR('Tabel 1 H'!E81<5,'Tabel 2 H'!G83<0.5),"-",IFERROR('Tabel 2 H'!G83/'Tabel 1 H'!E81*100,"-")) -> - | I83: =IF(OR('Tabel 1 H'!G81<5,'Tabel 2 H'!I83<0.5),"-",IFERROR('Tabel 2 H'!I83/'Tabel 1 H'!G81*100,"-")) -> 3.636363636 | J83: =IF(OR('Tabel 1 H'!G81<5,'Tabel 2 H'!J83<0.5),"-",IFERROR('Tabel 2 H'!J83/'Tabel 1 H'!G81*100,"-")) -> 3.635683222
A84: Bibliotekar | C84: =IF(OR('Tabel 1 H'!C82<5,'Tabel 2 H'!C84<0.5),"-",IFERROR('Tabel 2 H'!C84/'Tabel 1 H'!C82*100,"-")) -> 4.435483871 | D84: =IF(OR('Tabel 1 H'!C82<5,'Tabel 2 H'!D84<0.5),"-",IFERROR('Tabel 2 H'!D84/'Tabel 1 H'!C82*100,"-")) -> 3.837850562 | F84: =IF(OR('Tabel 1 H'!E82<5,'Tabel 2 H'!F84<0.5),"-",IFERROR('Tabel 2 H'!F84/'Tabel 1 H'!E82*100,"-")) -> 6.226415094 | G84: =IF(OR('Tabel 1 H'!E82<5,'Tabel 2 H'!G84<0.5),"-",IFERROR('Tabel 2 H'!G84/'Tabel 1 H'!E82*100,"-")) -> 5.158817486 | I84: =IF(OR('Tabel 1 H'!G82<5,'Tabel 2 H'!I84<0.5),"-",IFERROR('Tabel 2 H'!I84/'Tabel 1 H'!G82*100,"-")) -> 5.655526992 | J84: =IF(OR('Tabel 1 H'!G82<5,'Tabel 2 H'!J84<0.5),"-",IFERROR('Tabel 2 H'!J84/'Tabel 1 H'!G82*100,"-")) -> 4.737738055
A85: Musikudd. | C85: =IF(OR('Tabel 1 H'!C83<5,'Tabel 2 H'!C85<0.5),"-",IFERROR('Tabel 2 H'!C85/'Tabel 1 H'!C83*100,"-")) -> 6.451612903 | D85: =IF(OR('Tabel 1 H'!C83<5,'Tabel 2 H'!D85<0.5),"-",IFERROR('Tabel 2 H'!D85/'Tabel 1 H'!C83*100,"-")) -> 4.362977166 | F85: =IF(OR('Tabel 1 H'!E83<5,'Tabel 2 H'!F85<0.5),"-",IFERROR('Tabel 2 H'!F85/'Tabel 1 H'!E83*100,"-")) -> 3.797468354 | G85: =IF(OR('Tabel 1 H'!E83<5,'Tabel 2 H'!G85<0.5),"-",IFERROR('Tabel 2 H'!G85/'Tabel 1 H'!E83*100,"-")) -> 2.160891263 | I85: =IF(OR('Tabel 1 H'!G83<5,'Tabel 2 H'!I85<0.5),"-",IFERROR('Tabel 2 H'!I85/'Tabel 1 H'!G83*100,"-")) -> 4.964539007 | J85: =IF(OR('Tabel 1 H'!G83<5,'Tabel 2 H'!J85<0.5),"-",IFERROR('Tabel 2 H'!J85/'Tabel 1 H'!G83*100,"-")) -> 3.129184355
A86: Teolog | C86: =IF(OR('Tabel 1 H'!C84<5,'Tabel 2 H'!C86<0.5),"-",IFERROR('Tabel 2 H'!C86/'Tabel 1 H'!C84*100,"-")) -> 11.11111111 | D86: =IF(OR('Tabel 1 H'!C84<5,'Tabel 2 H'!D86<0.5),"-",IFERROR('Tabel 2 H'!D86/'Tabel 1 H'!C84*100,"-")) -> 10.26985378 | F86: =IF(OR('Tabel 1 H'!E84<5,'Tabel 2 H'!F86<0.5),"-",IFERROR('Tabel 2 H'!F86/'Tabel 1 H'!E84*100,"-")) -> 7.643312102 | G86: =IF(OR('Tabel 1 H'!E84<5,'Tabel 2 H'!G86<0.5),"-",IFERROR('Tabel 2 H'!G86/'Tabel 1 H'!E84*100,"-")) -> 5.978115996 | I86: =IF(OR('Tabel 1 H'!G84<5,'Tabel 2 H'!I86<0.5),"-",IFERROR('Tabel 2 H'!I86/'Tabel 1 H'!G84*100,"-")) -> 8.984375 | J86: =IF(OR('Tabel 1 H'!G84<5,'Tabel 2 H'!J86<0.5),"-",IFERROR('Tabel 2 H'!J86/'Tabel 1 H'!G84*100,"-")) -> 7.637811467
A87: Psykolog | C87: =IF(OR('Tabel 1 H'!C85<5,'Tabel 2 H'!C87<0.5),"-",IFERROR('Tabel 2 H'!C87/'Tabel 1 H'!C85*100,"-")) -> 3.174603175 | D87: =IF(OR('Tabel 1 H'!C85<5,'Tabel 2 H'!D87<0.5),"-",IFERROR('Tabel 2 H'!D87/'Tabel 1 H'!C85*100,"-")) -> 2.871345424 | F87: =IF(OR('Tabel 1 H'!E85<5,'Tabel 2 H'!F87<0.5),"-",IFERROR('Tabel 2 H'!F87/'Tabel 1 H'!E85*100,"-")) -> 4.038004751 | G87: =IF(OR('Tabel 1 H'!E85<5,'Tabel 2 H'!G87<0.5),"-",IFERROR('Tabel 2 H'!G87/'Tabel 1 H'!E85*100,"-")) -> 3.345793778 | I87: =IF(OR('Tabel 1 H'!G85<5,'Tabel 2 H'!I87<0.5),"-",IFERROR('Tabel 2 H'!I87/'Tabel 1 H'!G85*100,"-")) -> 3.858823529 | J87: =IF(OR('Tabel 1 H'!G85<5,'Tabel 2 H'!J87<0.5),"-",IFERROR('Tabel 2 H'!J87/'Tabel 1 H'!G85*100,"-")) -> 3.24733179
A88: Jurist | C88: =IF(OR('Tabel 1 H'!C86<5,'Tabel 2 H'!C88<0.5),"-",IFERROR('Tabel 2 H'!C88/'Tabel 1 H'!C86*100,"-")) -> 2.171215881 | D88: =IF(OR('Tabel 1 H'!C86<5,'Tabel 2 H'!D88<0.5),"-",IFERROR('Tabel 2 H'!D88/'Tabel 1 H'!C86*100,"-")) -> 1.834731685 | F88: =IF(OR('Tabel 1 H'!E86<5,'Tabel 2 H'!F88<0.5),"-",IFERROR('Tabel 2 H'!F88/'Tabel 1 H'!E86*100,"-")) -> 1.509433962 | G88: =IF(OR('Tabel 1 H'!E86<5,'Tabel 2 H'!G88<0.5),"-",IFERROR('Tabel 2 H'!G88/'Tabel 1 H'!E86*100,"-")) -> 1.182488219 | I88: =IF(OR('Tabel 1 H'!G86<5,'Tabel 2 H'!I88<0.5),"-",IFERROR('Tabel 2 H'!I88/'Tabel 1 H'!G86*100,"-")) -> 1.745085045 | J88: =IF(OR('Tabel 1 H'!G86<5,'Tabel 2 H'!J88<0.5),"-",IFERROR('Tabel 2 H'!J88/'Tabel 1 H'!G86*100,"-")) -> 1.414742795
A89: Økonom | C89: =IF(OR('Tabel 1 H'!C87<5,'Tabel 2 H'!C89<0.5),"-",IFERROR('Tabel 2 H'!C89/'Tabel 1 H'!C87*100,"-")) -> 2.927120669 | D89: =IF(OR('Tabel 1 H'!C87<5,'Tabel 2 H'!D89<0.5),"-",IFERROR('Tabel 2 H'!D89/'Tabel 1 H'!C87*100,"-")) -> 2.577233739 | F89: =IF(OR('Tabel 1 H'!E87<5,'Tabel 2 H'!F89<0.5),"-",IFERROR('Tabel 2 H'!F89/'Tabel 1 H'!E87*100,"-")) -> 2.710551791 | G89: =IF(OR('Tabel 1 H'!E87<5,'Tabel 2 H'!G89<0.5),"-",IFERROR('Tabel 2 H'!G89/'Tabel 1 H'!E87*100,"-")) -> 2.462612053 | I89: =IF(OR('Tabel 1 H'!G87<5,'Tabel 2 H'!I89<0.5),"-",IFERROR('Tabel 2 H'!I89/'Tabel 1 H'!G87*100,"-")) -> 2.844477281 | J89: =IF(OR('Tabel 1 H'!G87<5,'Tabel 2 H'!J89<0.5),"-",IFERROR('Tabel 2 H'!J89/'Tabel 1 H'!G87*100,"-")) -> 2.533493731
A90: Samf. Adm. | C90: =IF(OR('Tabel 1 H'!C88<5,'Tabel 2 H'!C90<0.5),"-",IFERROR('Tabel 2 H'!C90/'Tabel 1 H'!C88*100,"-")) -> 5.138148328 | D90: =IF(OR('Tabel 1 H'!C88<5,'Tabel 2 H'!D90<0.5),"-",IFERROR('Tabel 2 H'!D90/'Tabel 1 H'!C88*100,"-")) -> 4.437572543 | F90: =IF(OR('Tabel 1 H'!E88<5,'Tabel 2 H'!F90<0.5),"-",IFERROR('Tabel 2 H'!F90/'Tabel 1 H'!E88*100,"-")) -> 6.069033208 | G90: =IF(OR('Tabel 1 H'!E88<5,'Tabel 2 H'!G90<0.5),"-",IFERROR('Tabel 2 H'!G90/'Tabel 1 H'!E88*100,"-")) -> 4.996167268 | I90: =IF(OR('Tabel 1 H'!G88<5,'Tabel 2 H'!I90<0.5),"-",IFERROR('Tabel 2 H'!I90/'Tabel 1 H'!G88*100,"-")) -> 5.693915421 | J90: =IF(OR('Tabel 1 H'!G88<5,'Tabel 2 H'!J90<0.5),"-",IFERROR('Tabel 2 H'!J90/'Tabel 1 H'!G88*100,"-")) -> 4.771070888
A91: Cand. Merc. | C91: =IF(OR('Tabel 1 H'!C89<5,'Tabel 2 H'!C91<0.5),"-",IFERROR('Tabel 2 H'!C91/'Tabel 1 H'!C89*100,"-")) -> 4.356925419 | D91: =IF(OR('Tabel 1 H'!C89<5,'Tabel 2 H'!D91<0.5),"-",IFERROR('Tabel 2 H'!D91/'Tabel 1 H'!C89*100,"-")) -> 3.8164484 | F91: =IF(OR('Tabel 1 H'!E89<5,'Tabel 2 H'!F91<0.5),"-",IFERROR('Tabel 2 H'!F91/'Tabel 1 H'!E89*100,"-")) -> 4.492865407 | G91: =IF(OR('Tabel 1 H'!E89<5,'Tabel 2 H'!G91<0.5),"-",IFERROR('Tabel 2 H'!G91/'Tabel 1 H'!E89*100,"-")) -> 3.773310875 | I91: =IF(OR('Tabel 1 H'!G89<5,'Tabel 2 H'!I91<0.5),"-",IFERROR('Tabel 2 H'!I91/'Tabel 1 H'!G89*100,"-")) -> 4.424439762 | J91: =IF(OR('Tabel 1 H'!G89<5,'Tabel 2 H'!J91<0.5),"-",IFERROR('Tabel 2 H'!J91/'Tabel 1 H'!G89*100,"-")) -> 3.795024228
A92: HA | C92: =IF(OR('Tabel 1 H'!C90<5,'Tabel 2 H'!C92<0.5),"-",IFERROR('Tabel 2 H'!C92/'Tabel 1 H'!C90*100,"-")) -> 7.142857143 | D92: =IF(OR('Tabel 1 H'!C90<5,'Tabel 2 H'!D92<0.5),"-",IFERROR('Tabel 2 H'!D92/'Tabel 1 H'!C90*100,"-")) -> 6.231638128 | F92: =IF(OR('Tabel 1 H'!E90<5,'Tabel 2 H'!F92<0.5),"-",IFERROR('Tabel 2 H'!F92/'Tabel 1 H'!E90*100,"-")) -> 8.532423208 | G92: =IF(OR('Tabel 1 H'!E90<5,'Tabel 2 H'!G92<0.5),"-",IFERROR('Tabel 2 H'!G92/'Tabel 1 H'!E90*100,"-")) -> 6.546757551 | I92: =IF(OR('Tabel 1 H'!G90<5,'Tabel 2 H'!I92<0.5),"-",IFERROR('Tabel 2 H'!I92/'Tabel 1 H'!G90*100,"-")) -> 7.797427653 | J92: =IF(OR('Tabel 1 H'!G90<5,'Tabel 2 H'!J92<0.5),"-",IFERROR('Tabel 2 H'!J92/'Tabel 1 H'!G90*100,"-")) -> 6.380078628
A93: HD | C93: =IF(OR('Tabel 1 H'!C91<5,'Tabel 2 H'!C93<0.5),"-",IFERROR('Tabel 2 H'!C93/'Tabel 1 H'!C91*100,"-")) -> 8.651911469 | D93: =IF(OR('Tabel 1 H'!C91<5,'Tabel 2 H'!D93<0.5),"-",IFERROR('Tabel 2 H'!D93/'Tabel 1 H'!C91*100,"-")) -> 7.419179833 | F93: =IF(OR('Tabel 1 H'!E91<5,'Tabel 2 H'!F93<0.5),"-",IFERROR('Tabel 2 H'!F93/'Tabel 1 H'!E91*100,"-")) -> 8.403361345 | G93: =IF(OR('Tabel 1 H'!E91<5,'Tabel 2 H'!G93<0.5),"-",IFERROR('Tabel 2 H'!G93/'Tabel 1 H'!E91*100,"-")) -> 7.238746556 | I93: =IF(OR('Tabel 1 H'!G91<5,'Tabel 2 H'!I93<0.5),"-",IFERROR('Tabel 2 H'!I93/'Tabel 1 H'!G91*100,"-")) -> 8.516483516 | J93: =IF(OR('Tabel 1 H'!G91<5,'Tabel 2 H'!J93<0.5),"-",IFERROR('Tabel 2 H'!J93/'Tabel 1 H'!G91*100,"-")) -> 7.320866829
A94: Komm. og Sprog | C94: =IF(OR('Tabel 1 H'!C92<5,'Tabel 2 H'!C94<0.5),"-",IFERROR('Tabel 2 H'!C94/'Tabel 1 H'!C92*100,"-")) -> 7 | D94: =IF(OR('Tabel 1 H'!C92<5,'Tabel 2 H'!D94<0.5),"-",IFERROR('Tabel 2 H'!D94/'Tabel 1 H'!C92*100,"-")) -> 5.838271066 | F94: =IF(OR('Tabel 1 H'!E92<5,'Tabel 2 H'!F94<0.5),"-",IFERROR('Tabel 2 H'!F94/'Tabel 1 H'!E92*100,"-")) -> 6.813489332 | G94: =IF(OR('Tabel 1 H'!E92<5,'Tabel 2 H'!G94<0.5),"-",IFERROR('Tabel 2 H'!G94/'Tabel 1 H'!E92*100,"-")) -> 5.626986907 | I94: =IF(OR('Tabel 1 H'!G92<5,'Tabel 2 H'!I94<0.5),"-",IFERROR('Tabel 2 H'!I94/'Tabel 1 H'!G92*100,"-")) -> 6.853750675 | J94: =IF(OR('Tabel 1 H'!G92<5,'Tabel 2 H'!J94<0.5),"-",IFERROR('Tabel 2 H'!J94/'Tabel 1 H'!G92*100,"-")) -> 5.672596007
A95: Bygningskonst. | C95: =IF(OR('Tabel 1 H'!C93<5,'Tabel 2 H'!C95<0.5),"-",IFERROR('Tabel 2 H'!C95/'Tabel 1 H'!C93*100,"-")) -> 4.143947655 | D95: =IF(OR('Tabel 1 H'!C93<5,'Tabel 2 H'!D95<0.5),"-",IFERROR('Tabel 2 H'!D95/'Tabel 1 H'!C93*100,"-")) -> 3.717435026 | F95: =IF(OR('Tabel 1 H'!E93<5,'Tabel 2 H'!F95<0.5),"-",IFERROR('Tabel 2 H'!F95/'Tabel 1 H'!E93*100,"-")) -> 8.870967742 | G95: =IF(OR('Tabel 1 H'!E93<5,'Tabel 2 H'!G95<0.5),"-",IFERROR('Tabel 2 H'!G95/'Tabel 1 H'!E93*100,"-")) -> 8.274340423 | I95: =IF(OR('Tabel 1 H'!G93<5,'Tabel 2 H'!I95<0.5),"-",IFERROR('Tabel 2 H'!I95/'Tabel 1 H'!G93*100,"-")) -> 5.150214592 | J95: =IF(OR('Tabel 1 H'!G93<5,'Tabel 2 H'!J95<0.5),"-",IFERROR('Tabel 2 H'!J95/'Tabel 1 H'!G93*100,"-")) -> 4.687488707
A96: Cand. IT. | C96: =IF(OR('Tabel 1 H'!C94<5,'Tabel 2 H'!C96<0.5),"-",IFERROR('Tabel 2 H'!C96/'Tabel 1 H'!C94*100,"-")) -> 6.243602866 | D96: =IF(OR('Tabel 1 H'!C94<5,'Tabel 2 H'!D96<0.5),"-",IFERROR('Tabel 2 H'!D96/'Tabel 1 H'!C94*100,"-")) -> 5.741229339 | F96: =IF(OR('Tabel 1 H'!E94<5,'Tabel 2 H'!F96<0.5),"-",IFERROR('Tabel 2 H'!F96/'Tabel 1 H'!E94*100,"-")) -> 8.988764045 | G96: =IF(OR('Tabel 1 H'!E94<5,'Tabel 2 H'!G96<0.5),"-",IFERROR('Tabel 2 H'!G96/'Tabel 1 H'!E94*100,"-")) -> 7.07739725 | I96: =IF(OR('Tabel 1 H'!G94<5,'Tabel 2 H'!I96<0.5),"-",IFERROR('Tabel 2 H'!I96/'Tabel 1 H'!G94*100,"-")) -> 7.552222817 | J96: =IF(OR('Tabel 1 H'!G94<5,'Tabel 2 H'!J96<0.5),"-",IFERROR('Tabel 2 H'!J96/'Tabel 1 H'!G94*100,"-")) -> 6.378181369
A97: Bac. Samf. | C97: =IF(OR('Tabel 1 H'!C95<5,'Tabel 2 H'!C97<0.5),"-",IFERROR('Tabel 2 H'!C97/'Tabel 1 H'!C95*100,"-")) -> 5.785123967 | D97: =IF(OR('Tabel 1 H'!C95<5,'Tabel 2 H'!D97<0.5),"-",IFERROR('Tabel 2 H'!D97/'Tabel 1 H'!C95*100,"-")) -> 4.44228407 | F97: =IF(OR('Tabel 1 H'!E95<5,'Tabel 2 H'!F97<0.5),"-",IFERROR('Tabel 2 H'!F97/'Tabel 1 H'!E95*100,"-")) -> 8.870967742 | G97: =IF(OR('Tabel 1 H'!E95<5,'Tabel 2 H'!G97<0.5),"-",IFERROR('Tabel 2 H'!G97/'Tabel 1 H'!E95*100,"-")) -> 6.444872772 | I97: =IF(OR('Tabel 1 H'!G95<5,'Tabel 2 H'!I97<0.5),"-",IFERROR('Tabel 2 H'!I97/'Tabel 1 H'!G95*100,"-")) -> 7.346938776 | J97: =IF(OR('Tabel 1 H'!G95<5,'Tabel 2 H'!J97<0.5),"-",IFERROR('Tabel 2 H'!J97/'Tabel 1 H'!G95*100,"-")) -> 5.455839168
A98: Bac. Hum. | C98: =IF(OR('Tabel 1 H'!C96<5,'Tabel 2 H'!C98<0.5),"-",IFERROR('Tabel 2 H'!C98/'Tabel 1 H'!C96*100,"-")) -> 11.15537849 | D98: =IF(OR('Tabel 1 H'!C96<5,'Tabel 2 H'!D98<0.5),"-",IFERROR('Tabel 2 H'!D98/'Tabel 1 H'!C96*100,"-")) -> 9.20101792 | F98: =IF(OR('Tabel 1 H'!E96<5,'Tabel 2 H'!F98<0.5),"-",IFERROR('Tabel 2 H'!F98/'Tabel 1 H'!E96*100,"-")) -> 12.96296296 | G98: =IF(OR('Tabel 1 H'!E96<5,'Tabel 2 H'!G98<0.5),"-",IFERROR('Tabel 2 H'!G98/'Tabel 1 H'!E96*100,"-")) -> 10.51427111 | I98: =IF(OR('Tabel 1 H'!G96<5,'Tabel 2 H'!I98<0.5),"-",IFERROR('Tabel 2 H'!I98/'Tabel 1 H'!G96*100,"-")) -> 12.27134146 | J98: =IF(OR('Tabel 1 H'!G96<5,'Tabel 2 H'!J98<0.5),"-",IFERROR('Tabel 2 H'!J98/'Tabel 1 H'!G96*100,"-")) -> 10.01179161
A99: Bac. Nat. | C99: =IF(OR('Tabel 1 H'!C97<5,'Tabel 2 H'!C99<0.5),"-",IFERROR('Tabel 2 H'!C99/'Tabel 1 H'!C97*100,"-")) -> 11.87384045 | D99: =IF(OR('Tabel 1 H'!C97<5,'Tabel 2 H'!D99<0.5),"-",IFERROR('Tabel 2 H'!D99/'Tabel 1 H'!C97*100,"-")) -> 10.14732254 | F99: =IF(OR('Tabel 1 H'!E97<5,'Tabel 2 H'!F99<0.5),"-",IFERROR('Tabel 2 H'!F99/'Tabel 1 H'!E97*100,"-")) -> 14.08114558 | G99: =IF(OR('Tabel 1 H'!E97<5,'Tabel 2 H'!G99<0.5),"-",IFERROR('Tabel 2 H'!G99/'Tabel 1 H'!E97*100,"-")) -> 11.13723232 | I99: =IF(OR('Tabel 1 H'!G97<5,'Tabel 2 H'!I99<0.5),"-",IFERROR('Tabel 2 H'!I99/'Tabel 1 H'!G97*100,"-")) -> 12.83924843 | J99: =IF(OR('Tabel 1 H'!G97<5,'Tabel 2 H'!J99<0.5),"-",IFERROR('Tabel 2 H'!J99/'Tabel 1 H'!G97*100,"-")) -> 10.58027891
A100: Andre | C100: =IF(OR('Tabel 1 H'!C98<5,'Tabel 2 H'!C100<0.5),"-",IFERROR('Tabel 2 H'!C100/'Tabel 1 H'!C98*100,"-")) -> 6.951716114 | D100: =IF(OR('Tabel 1 H'!C98<5,'Tabel 2 H'!D100<0.5),"-",IFERROR('Tabel 2 H'!D100/'Tabel 1 H'!C98*100,"-")) -> 5.866354687 | F100: =IF(OR('Tabel 1 H'!E98<5,'Tabel 2 H'!F100<0.5),"-",IFERROR('Tabel 2 H'!F100/'Tabel 1 H'!E98*100,"-")) -> 9.20512201 | G100: =IF(OR('Tabel 1 H'!E98<5,'Tabel 2 H'!G100<0.5),"-",IFERROR('Tabel 2 H'!G100/'Tabel 1 H'!E98*100,"-")) -> 7.600610887 | I100: =IF(OR('Tabel 1 H'!G98<5,'Tabel 2 H'!I100<0.5),"-",IFERROR('Tabel 2 H'!I100/'Tabel 1 H'!G98*100,"-")) -> 8.182658044 | J100: =IF(OR('Tabel 1 H'!G98<5,'Tabel 2 H'!J100<0.5),"-",IFERROR('Tabel 2 H'!J100/'Tabel 1 H'!G98*100,"-")) -> 6.813706727
A102: Total | C102: =IF(OR('Tabel 1 H'!C100<5,'Tabel 2 H'!C102<0.5),"-",IFERROR('Tabel 2 H'!C102/'Tabel 1 H'!C100*100,"-")) -> 6.129371298 | D102: =IF(OR('Tabel 1 H'!C100<5,'Tabel 2 H'!D102<0.5),"-",IFERROR('Tabel 2 H'!D102/'Tabel 1 H'!C100*100,"-")) -> 5.233983686 | F102: =IF(OR('Tabel 1 H'!E100<5,'Tabel 2 H'!F102<0.5),"-",IFERROR('Tabel 2 H'!F102/'Tabel 1 H'!E100*100,"-")) -> 6.826766331 | G102: =IF(OR('Tabel 1 H'!E100<5,'Tabel 2 H'!G102<0.5),"-",IFERROR('Tabel 2 H'!G102/'Tabel 1 H'!E100*100,"-")) -> 5.62638996 | I102: =IF(OR('Tabel 1 H'!G100<5,'Tabel 2 H'!I102<0.5),"-",IFERROR('Tabel 2 H'!I102/'Tabel 1 H'!G100*100,"-")) -> 6.509992839 | J102: =IF(OR('Tabel 1 H'!G100<5,'Tabel 2 H'!J102<0.5),"-",IFERROR('Tabel 2 H'!J102/'Tabel 1 H'!G100*100,"-")) -> 5.448149652
A104: Ingeniører i alt | C104: =IF(OR('Tabel 1 H'!C102<5,'Tabel 2 H'!C104<0.5),"-",IFERROR('Tabel 2 H'!C104/'Tabel 1 H'!C102*100,"-")) -> 4.125017598 | D104: =IF(OR('Tabel 1 H'!C102<5,'Tabel 2 H'!D104<0.5),"-",IFERROR('Tabel 2 H'!D104/'Tabel 1 H'!C102*100,"-")) -> 3.674105952 | F104: =IF(OR('Tabel 1 H'!E102<5,'Tabel 2 H'!F104<0.5),"-",IFERROR('Tabel 2 H'!F104/'Tabel 1 H'!E102*100,"-")) -> 4.846727423 | G104: =IF(OR('Tabel 1 H'!E102<5,'Tabel 2 H'!G104<0.5),"-",IFERROR('Tabel 2 H'!G104/'Tabel 1 H'!E102*100,"-")) -> 4.153508782 | I104: =IF(OR('Tabel 1 H'!G102<5,'Tabel 2 H'!I104<0.5),"-",IFERROR('Tabel 2 H'!I104/'Tabel 1 H'!G102*100,"-")) -> 4.308080277 | J104: =IF(OR('Tabel 1 H'!G102<5,'Tabel 2 H'!J104<0.5),"-",IFERROR('Tabel 2 H'!J104/'Tabel 1 H'!G102*100,"-")) -> 3.795707132
A105: Magistre i alt | C105: =IF(OR('Tabel 1 H'!C103<5,'Tabel 2 H'!C105<0.5),"-",IFERROR('Tabel 2 H'!C105/'Tabel 1 H'!C103*100,"-")) -> 9.141078251 | D105: =IF(OR('Tabel 1 H'!C103<5,'Tabel 2 H'!D105<0.5),"-",IFERROR('Tabel 2 H'!D105/'Tabel 1 H'!C103*100,"-")) -> 7.427751933 | F105: =IF(OR('Tabel 1 H'!E103<5,'Tabel 2 H'!F105<0.5),"-",IFERROR('Tabel 2 H'!F105/'Tabel 1 H'!E103*100,"-")) -> 9.031044214 | G105: =IF(OR('Tabel 1 H'!E103<5,'Tabel 2 H'!G105<0.5),"-",IFERROR('Tabel 2 H'!G105/'Tabel 1 H'!E103*100,"-")) -> 7.397132682 | I105: =IF(OR('Tabel 1 H'!G103<5,'Tabel 2 H'!I105<0.5),"-",IFERROR('Tabel 2 H'!I105/'Tabel 1 H'!G103*100,"-")) -> 9.070271906 | J105: =IF(OR('Tabel 1 H'!G103<5,'Tabel 2 H'!J105<0.5),"-",IFERROR('Tabel 2 H'!J105/'Tabel 1 H'!G103*100,"-")) -> 7.4080486
A106: DJØF'ere i alt | C106: =IF(OR('Tabel 1 H'!C104<5,'Tabel 2 H'!C106<0.5),"-",IFERROR('Tabel 2 H'!C106/'Tabel 1 H'!C104*100,"-")) -> 4.292360798 | D106: =IF(OR('Tabel 1 H'!C104<5,'Tabel 2 H'!D106<0.5),"-",IFERROR('Tabel 2 H'!D106/'Tabel 1 H'!C104*100,"-")) -> 3.732625825 | F106: =IF(OR('Tabel 1 H'!E104<5,'Tabel 2 H'!F106<0.5),"-",IFERROR('Tabel 2 H'!F106/'Tabel 1 H'!E104*100,"-")) -> 4.585359692 | G106: =IF(OR('Tabel 1 H'!E104<5,'Tabel 2 H'!G106<0.5),"-",IFERROR('Tabel 2 H'!G106/'Tabel 1 H'!E104*100,"-")) -> 3.785586562 | I106: =IF(OR('Tabel 1 H'!G104<5,'Tabel 2 H'!I106<0.5),"-",IFERROR('Tabel 2 H'!I106/'Tabel 1 H'!G104*100,"-")) -> 4.451455811 | J106: =IF(OR('Tabel 1 H'!G104<5,'Tabel 2 H'!J106<0.5),"-",IFERROR('Tabel 2 H'!J106/'Tabel 1 H'!G104*100,"-")) -> 3.761382893
A111: Frederiksberg
C113: Mænd | F113: Kvinder | I113: I alt
C114: Ledigheds- berørte | D114: Gns. brutto- ledighed | F114: Ledigheds- berørte | G114: Gns. brutto- ledighed | I114: Ledigheds- berørte | J114: Gns. brutto- ledighed
A117: Civ. ing. | C117: =IF(OR('Tabel 1 H'!C115<5,'Tabel 2 H'!C117<0.5),"-",IFERROR('Tabel 2 H'!C117/'Tabel 1 H'!C115*100,"-")) -> 2.541296061 | D117: =IF(OR('Tabel 1 H'!C115<5,'Tabel 2 H'!D117<0.5),"-",IFERROR('Tabel 2 H'!D117/'Tabel 1 H'!C115*100,"-")) -> 2.278575533 | F117: =IF(OR('Tabel 1 H'!E115<5,'Tabel 2 H'!F117<0.5),"-",IFERROR('Tabel 2 H'!F117/'Tabel 1 H'!E115*100,"-")) -> 5.167173252 | G117: =IF(OR('Tabel 1 H'!E115<5,'Tabel 2 H'!G117<0.5),"-",IFERROR('Tabel 2 H'!G117/'Tabel 1 H'!E115*100,"-")) -> 4.370924179 | I117: =IF(OR('Tabel 1 H'!G115<5,'Tabel 2 H'!I117<0.5),"-",IFERROR('Tabel 2 H'!I117/'Tabel 1 H'!G115*100,"-")) -> 3.315412186 | J117: =IF(OR('Tabel 1 H'!G115<5,'Tabel 2 H'!J117<0.5),"-",IFERROR('Tabel 2 H'!J117/'Tabel 1 H'!G115*100,"-")) -> 2.895405913
A118: Diplom ing. | C118: =IF(OR('Tabel 1 H'!C116<5,'Tabel 2 H'!C118<0.5),"-",IFERROR('Tabel 2 H'!C118/'Tabel 1 H'!C116*100,"-")) -> 3.090507726 | D118: =IF(OR('Tabel 1 H'!C116<5,'Tabel 2 H'!D118<0.5),"-",IFERROR('Tabel 2 H'!D118/'Tabel 1 H'!C116*100,"-")) -> 2.565349144 | F118: =IF(OR('Tabel 1 H'!E116<5,'Tabel 2 H'!F118<0.5),"-",IFERROR('Tabel 2 H'!F118/'Tabel 1 H'!E116*100,"-")) -> 1.801801802 | G118: =IF(OR('Tabel 1 H'!E116<5,'Tabel 2 H'!G118<0.5),"-",IFERROR('Tabel 2 H'!G118/'Tabel 1 H'!E116*100,"-")) -> 1.801464659 | I118: =IF(OR('Tabel 1 H'!G116<5,'Tabel 2 H'!I118<0.5),"-",IFERROR('Tabel 2 H'!I118/'Tabel 1 H'!G116*100,"-")) -> 2.836879433 | J118: =IF(OR('Tabel 1 H'!G116<5,'Tabel 2 H'!J118<0.5),"-",IFERROR('Tabel 2 H'!J118/'Tabel 1 H'!G116*100,"-")) -> 2.415010176
A119: Cand. Scient. Tek. | C119: =IF(OR('Tabel 1 H'!C117<5,'Tabel 2 H'!C119<0.5),"-",IFERROR('Tabel 2 H'!C119/'Tabel 1 H'!C117*100,"-")) -> 4.77326969 | D119: =IF(OR('Tabel 1 H'!C117<5,'Tabel 2 H'!D119<0.5),"-",IFERROR('Tabel 2 H'!D119/'Tabel 1 H'!C117*100,"-")) -> 4.221007775 | F119: =IF(OR('Tabel 1 H'!E117<5,'Tabel 2 H'!F119<0.5),"-",IFERROR('Tabel 2 H'!F119/'Tabel 1 H'!E117*100,"-")) -> 6.947890819 | G119: =IF(OR('Tabel 1 H'!E117<5,'Tabel 2 H'!G119<0.5),"-",IFERROR('Tabel 2 H'!G119/'Tabel 1 H'!E117*100,"-")) -> 5.966911607 | I119: =IF(OR('Tabel 1 H'!G117<5,'Tabel 2 H'!I119<0.5),"-",IFERROR('Tabel 2 H'!I119/'Tabel 1 H'!G117*100,"-")) -> 5.839416058 | J119: =IF(OR('Tabel 1 H'!G117<5,'Tabel 2 H'!J119<0.5),"-",IFERROR('Tabel 2 H'!J119/'Tabel 1 H'!G117*100,"-")) -> 5.076967926
A120: MA. Hum. | C120: =IF(OR('Tabel 1 H'!C118<5,'Tabel 2 H'!C120<0.5),"-",IFERROR('Tabel 2 H'!C120/'Tabel 1 H'!C118*100,"-")) -> 6.741573034 | D120: =IF(OR('Tabel 1 H'!C118<5,'Tabel 2 H'!D120<0.5),"-",IFERROR('Tabel 2 H'!D120/'Tabel 1 H'!C118*100,"-")) -> 5.251925395 | F120: =IF(OR('Tabel 1 H'!E118<5,'Tabel 2 H'!F120<0.5),"-",IFERROR('Tabel 2 H'!F120/'Tabel 1 H'!E118*100,"-")) -> 7.525213344 | G120: =IF(OR('Tabel 1 H'!E118<5,'Tabel 2 H'!G120<0.5),"-",IFERROR('Tabel 2 H'!G120/'Tabel 1 H'!E118*100,"-")) -> 6.227990689 | I120: =IF(OR('Tabel 1 H'!G118<5,'Tabel 2 H'!I120<0.5),"-",IFERROR('Tabel 2 H'!I120/'Tabel 1 H'!G118*100,"-")) -> 7.295666484 | J120: =IF(OR('Tabel 1 H'!G118<5,'Tabel 2 H'!J120<0.5),"-",IFERROR('Tabel 2 H'!J120/'Tabel 1 H'!G118*100,"-")) -> 5.94207798
A121: MA. Nat. | C121: =IF(OR('Tabel 1 H'!C119<5,'Tabel 2 H'!C121<0.5),"-",IFERROR('Tabel 2 H'!C121/'Tabel 1 H'!C119*100,"-")) -> 4.838709677 | D121: =IF(OR('Tabel 1 H'!C119<5,'Tabel 2 H'!D121<0.5),"-",IFERROR('Tabel 2 H'!D121/'Tabel 1 H'!C119*100,"-")) -> 4.467348594 | F121: =IF(OR('Tabel 1 H'!E119<5,'Tabel 2 H'!F121<0.5),"-",IFERROR('Tabel 2 H'!F121/'Tabel 1 H'!E119*100,"-")) -> 4.583333333 | G121: =IF(OR('Tabel 1 H'!E119<5,'Tabel 2 H'!G121<0.5),"-",IFERROR('Tabel 2 H'!G121/'Tabel 1 H'!E119*100,"-")) -> 3.774766627 | I121: =IF(OR('Tabel 1 H'!G119<5,'Tabel 2 H'!I121<0.5),"-",IFERROR('Tabel 2 H'!I121/'Tabel 1 H'!G119*100,"-")) -> 4.713114754 | J121: =IF(OR('Tabel 1 H'!G119<5,'Tabel 2 H'!J121<0.5),"-",IFERROR('Tabel 2 H'!J121/'Tabel 1 H'!G119*100,"-")) -> 4.126734512
A122: MA. Ph.d. | C122: =IF(OR('Tabel 1 H'!C120<5,'Tabel 2 H'!C122<0.5),"-",IFERROR('Tabel 2 H'!C122/'Tabel 1 H'!C120*100,"-")) -> 4.615384615 | D122: =IF(OR('Tabel 1 H'!C120<5,'Tabel 2 H'!D122<0.5),"-",IFERROR('Tabel 2 H'!D122/'Tabel 1 H'!C120*100,"-")) -> 2.204107874 | F122: =IF(OR('Tabel 1 H'!E120<5,'Tabel 2 H'!F122<0.5),"-",IFERROR('Tabel 2 H'!F122/'Tabel 1 H'!E120*100,"-")) -> 3.174603175 | G122: =IF(OR('Tabel 1 H'!E120<5,'Tabel 2 H'!G122<0.5),"-",IFERROR('Tabel 2 H'!G122/'Tabel 1 H'!E120*100,"-")) -> 2.587916391 | I122: =IF(OR('Tabel 1 H'!G120<5,'Tabel 2 H'!I122<0.5),"-",IFERROR('Tabel 2 H'!I122/'Tabel 1 H'!G120*100,"-")) -> 3.90625 | J122: =IF(OR('Tabel 1 H'!G120<5,'Tabel 2 H'!J122<0.5),"-",IFERROR('Tabel 2 H'!J122/'Tabel 1 H'!G120*100,"-")) -> 2.393013628
A123: MA. Samf. | C123: =IF(OR('Tabel 1 H'!C121<5,'Tabel 2 H'!C123<0.5),"-",IFERROR('Tabel 2 H'!C123/'Tabel 1 H'!C121*100,"-")) -> 8.910891089 | D123: =IF(OR('Tabel 1 H'!C121<5,'Tabel 2 H'!D123<0.5),"-",IFERROR('Tabel 2 H'!D123/'Tabel 1 H'!C121*100,"-")) -> 8.113834523 | F123: =IF(OR('Tabel 1 H'!E121<5,'Tabel 2 H'!F123<0.5),"-",IFERROR('Tabel 2 H'!F123/'Tabel 1 H'!E121*100,"-")) -> 12.60869565 | G123: =IF(OR('Tabel 1 H'!E121<5,'Tabel 2 H'!G123<0.5),"-",IFERROR('Tabel 2 H'!G123/'Tabel 1 H'!E121*100,"-")) -> 10.33032414 | I123: =IF(OR('Tabel 1 H'!G121<5,'Tabel 2 H'!I123<0.5),"-",IFERROR('Tabel 2 H'!I123/'Tabel 1 H'!G121*100,"-")) -> 11.48036254 | J123: =IF(OR('Tabel 1 H'!G121<5,'Tabel 2 H'!J123<0.5),"-",IFERROR('Tabel 2 H'!J123/'Tabel 1 H'!G121*100,"-")) -> 9.653993472
A124: Øvrige Mag. | C124: =IF(OR('Tabel 1 H'!C122<5,'Tabel 2 H'!C124<0.5),"-",IFERROR('Tabel 2 H'!C124/'Tabel 1 H'!C122*100,"-")) -> 6.52173913 | D124: =IF(OR('Tabel 1 H'!C122<5,'Tabel 2 H'!D124<0.5),"-",IFERROR('Tabel 2 H'!D124/'Tabel 1 H'!C122*100,"-")) -> 5.416816945 | F124: =IF(OR('Tabel 1 H'!E122<5,'Tabel 2 H'!F124<0.5),"-",IFERROR('Tabel 2 H'!F124/'Tabel 1 H'!E122*100,"-")) -> 12.04819277 | G124: =IF(OR('Tabel 1 H'!E122<5,'Tabel 2 H'!G124<0.5),"-",IFERROR('Tabel 2 H'!G124/'Tabel 1 H'!E122*100,"-")) -> 10.47613394 | I124: =IF(OR('Tabel 1 H'!G122<5,'Tabel 2 H'!I124<0.5),"-",IFERROR('Tabel 2 H'!I124/'Tabel 1 H'!G122*100,"-")) -> 10.07751938 | J124: =IF(OR('Tabel 1 H'!G122<5,'Tabel 2 H'!J124<0.5),"-",IFERROR('Tabel 2 H'!J124/'Tabel 1 H'!G122*100,"-")) -> 8.672036406
A125: Agronom | C125: =IF(OR('Tabel 1 H'!C123<5,'Tabel 2 H'!C125<0.5),"-",IFERROR('Tabel 2 H'!C125/'Tabel 1 H'!C123*100,"-")) -> 2.5 | D125: =IF(OR('Tabel 1 H'!C123<5,'Tabel 2 H'!D125<0.5),"-",IFERROR('Tabel 2 H'!D125/'Tabel 1 H'!C123*100,"-")) -> 2.499532215 | F125: =IF(OR('Tabel 1 H'!E123<5,'Tabel 2 H'!F125<0.5),"-",IFERROR('Tabel 2 H'!F125/'Tabel 1 H'!E123*100,"-")) -> 8.108108108 | G125: =IF(OR('Tabel 1 H'!E123<5,'Tabel 2 H'!G125<0.5),"-",IFERROR('Tabel 2 H'!G125/'Tabel 1 H'!E123*100,"-")) -> 7.857105531 | I125: =IF(OR('Tabel 1 H'!G123<5,'Tabel 2 H'!I125<0.5),"-",IFERROR('Tabel 2 H'!I125/'Tabel 1 H'!G123*100,"-")) -> 5.194805195 | J125: =IF(OR('Tabel 1 H'!G123<5,'Tabel 2 H'!J125<0.5),"-",IFERROR('Tabel 2 H'!J125/'Tabel 1 H'!G123*100,"-")) -> 5.073950561
A126: Landsk. Arkt. | C126: =IF(OR('Tabel 1 H'!C124<5,'Tabel 2 H'!C126<0.5),"-",IFERROR('Tabel 2 H'!C126/'Tabel 1 H'!C124*100,"-")) -> 14.28571429 | D126: =IF(OR('Tabel 1 H'!C124<5,'Tabel 2 H'!D126<0.5),"-",IFERROR('Tabel 2 H'!D126/'Tabel 1 H'!C124*100,"-")) -> 10.65659221 | F126: =IF(OR('Tabel 1 H'!E124<5,'Tabel 2 H'!F126<0.5),"-",IFERROR('Tabel 2 H'!F126/'Tabel 1 H'!E124*100,"-")) -> - | G126: =IF(OR('Tabel 1 H'!E124<5,'Tabel 2 H'!G126<0.5),"-",IFERROR('Tabel 2 H'!G126/'Tabel 1 H'!E124*100,"-")) -> - | I126: =IF(OR('Tabel 1 H'!G124<5,'Tabel 2 H'!I126<0.5),"-",IFERROR('Tabel 2 H'!I126/'Tabel 1 H'!G124*100,"-")) -> 5.714285714 | J126: =IF(OR('Tabel 1 H'!G124<5,'Tabel 2 H'!J126<0.5),"-",IFERROR('Tabel 2 H'!J126/'Tabel 1 H'!G124*100,"-")) -> 4.262636883
A127: Hortonom | C127: =IF(OR('Tabel 1 H'!C125<5,'Tabel 2 H'!C127<0.5),"-",IFERROR('Tabel 2 H'!C127/'Tabel 1 H'!C125*100,"-")) -> - | D127: =IF(OR('Tabel 1 H'!C125<5,'Tabel 2 H'!D127<0.5),"-",IFERROR('Tabel 2 H'!D127/'Tabel 1 H'!C125*100,"-")) -> - | F127: =IF(OR('Tabel 1 H'!E125<5,'Tabel 2 H'!F127<0.5),"-",IFERROR('Tabel 2 H'!F127/'Tabel 1 H'!E125*100,"-")) -> - | G127: =IF(OR('Tabel 1 H'!E125<5,'Tabel 2 H'!G127<0.5),"-",IFERROR('Tabel 2 H'!G127/'Tabel 1 H'!E125*100,"-")) -> - | I127: =IF(OR('Tabel 1 H'!G125<5,'Tabel 2 H'!I127<0.5),"-",IFERROR('Tabel 2 H'!I127/'Tabel 1 H'!G125*100,"-")) -> - | J127: =IF(OR('Tabel 1 H'!G125<5,'Tabel 2 H'!J127<0.5),"-",IFERROR('Tabel 2 H'!J127/'Tabel 1 H'!G125*100,"-")) -> -
A128: Forstkand. | C128: =IF(OR('Tabel 1 H'!C126<5,'Tabel 2 H'!C128<0.5),"-",IFERROR('Tabel 2 H'!C128/'Tabel 1 H'!C126*100,"-")) -> - | D128: =IF(OR('Tabel 1 H'!C126<5,'Tabel 2 H'!D128<0.5),"-",IFERROR('Tabel 2 H'!D128/'Tabel 1 H'!C126*100,"-")) -> - | F128: =IF(OR('Tabel 1 H'!E126<5,'Tabel 2 H'!F128<0.5),"-",IFERROR('Tabel 2 H'!F128/'Tabel 1 H'!E126*100,"-")) -> - | G128: =IF(OR('Tabel 1 H'!E126<5,'Tabel 2 H'!G128<0.5),"-",IFERROR('Tabel 2 H'!G128/'Tabel 1 H'!E126*100,"-")) -> - | I128: =IF(OR('Tabel 1 H'!G126<5,'Tabel 2 H'!I128<0.5),"-",IFERROR('Tabel 2 H'!I128/'Tabel 1 H'!G126*100,"-")) -> - | J128: =IF(OR('Tabel 1 H'!G126<5,'Tabel 2 H'!J128<0.5),"-",IFERROR('Tabel 2 H'!J128/'Tabel 1 H'!G126*100,"-")) -> -
A129: Jordbrugsakad. | C129: =IF(OR('Tabel 1 H'!C127<5,'Tabel 2 H'!C129<0.5),"-",IFERROR('Tabel 2 H'!C129/'Tabel 1 H'!C127*100,"-")) -> 4.838709677 | D129: =IF(OR('Tabel 1 H'!C127<5,'Tabel 2 H'!D129<0.5),"-",IFERROR('Tabel 2 H'!D129/'Tabel 1 H'!C127*100,"-")) -> 4.018928701 | F129: =IF(OR('Tabel 1 H'!E127<5,'Tabel 2 H'!F129<0.5),"-",IFERROR('Tabel 2 H'!F129/'Tabel 1 H'!E127*100,"-")) -> 4.225352113 | G129: =IF(OR('Tabel 1 H'!E127<5,'Tabel 2 H'!G129<0.5),"-",IFERROR('Tabel 2 H'!G129/'Tabel 1 H'!E127*100,"-")) -> 4.094547953 | I129: =IF(OR('Tabel 1 H'!G127<5,'Tabel 2 H'!I129<0.5),"-",IFERROR('Tabel 2 H'!I129/'Tabel 1 H'!G127*100,"-")) -> 4.511278195 | J129: =IF(OR('Tabel 1 H'!G127<5,'Tabel 2 H'!J129<0.5),"-",IFERROR('Tabel 2 H'!J129/'Tabel 1 H'!G127*100,"-")) -> 4.059296873
A130: Mejeriing. | C130: =IF(OR('Tabel 1 H'!C128<5,'Tabel 2 H'!C130<0.5),"-",IFERROR('Tabel 2 H'!C130/'Tabel 1 H'!C128*100,"-")) -> - | D130: =IF(OR('Tabel 1 H'!C128<5,'Tabel 2 H'!D130<0.5),"-",IFERROR('Tabel 2 H'!D130/'Tabel 1 H'!C128*100,"-")) -> - | F130: =IF(OR('Tabel 1 H'!E128<5,'Tabel 2 H'!F130<0.5),"-",IFERROR('Tabel 2 H'!F130/'Tabel 1 H'!E128*100,"-")) -> - | G130: =IF(OR('Tabel 1 H'!E128<5,'Tabel 2 H'!G130<0.5),"-",IFERROR('Tabel 2 H'!G130/'Tabel 1 H'!E128*100,"-")) -> - | I130: =IF(OR('Tabel 1 H'!G128<5,'Tabel 2 H'!I130<0.5),"-",IFERROR('Tabel 2 H'!I130/'Tabel 1 H'!G128*100,"-")) -> - | J130: =IF(OR('Tabel 1 H'!G128<5,'Tabel 2 H'!J130<0.5),"-",IFERROR('Tabel 2 H'!J130/'Tabel 1 H'!G128*100,"-")) -> -
A131: Levn.m.kand. | C131: =IF(OR('Tabel 1 H'!C129<5,'Tabel 2 H'!C131<0.5),"-",IFERROR('Tabel 2 H'!C131/'Tabel 1 H'!C129*100,"-")) -> - | D131: =IF(OR('Tabel 1 H'!C129<5,'Tabel 2 H'!D131<0.5),"-",IFERROR('Tabel 2 H'!D131/'Tabel 1 H'!C129*100,"-")) -> - | F131: =IF(OR('Tabel 1 H'!E129<5,'Tabel 2 H'!F131<0.5),"-",IFERROR('Tabel 2 H'!F131/'Tabel 1 H'!E129*100,"-")) -> - | G131: =IF(OR('Tabel 1 H'!E129<5,'Tabel 2 H'!G131<0.5),"-",IFERROR('Tabel 2 H'!G131/'Tabel 1 H'!E129*100,"-")) -> - | I131: =IF(OR('Tabel 1 H'!G129<5,'Tabel 2 H'!I131<0.5),"-",IFERROR('Tabel 2 H'!I131/'Tabel 1 H'!G129*100,"-")) -> 4 | J131: =IF(OR('Tabel 1 H'!G129<5,'Tabel 2 H'!J131<0.5),"-",IFERROR('Tabel 2 H'!J131/'Tabel 1 H'!G129*100,"-")) -> 3.999251544
A132: Dyrlæge | C132: =IF(OR('Tabel 1 H'!C130<5,'Tabel 2 H'!C132<0.5),"-",IFERROR('Tabel 2 H'!C132/'Tabel 1 H'!C130*100,"-")) -> - | D132: =IF(OR('Tabel 1 H'!C130<5,'Tabel 2 H'!D132<0.5),"-",IFERROR('Tabel 2 H'!D132/'Tabel 1 H'!C130*100,"-")) -> - | F132: =IF(OR('Tabel 1 H'!E130<5,'Tabel 2 H'!F132<0.5),"-",IFERROR('Tabel 2 H'!F132/'Tabel 1 H'!E130*100,"-")) -> 1.666666667 | G132: =IF(OR('Tabel 1 H'!E130<5,'Tabel 2 H'!G132<0.5),"-",IFERROR('Tabel 2 H'!G132/'Tabel 1 H'!E130*100,"-")) -> 1.425185555 | I132: =IF(OR('Tabel 1 H'!G130<5,'Tabel 2 H'!I132<0.5),"-",IFERROR('Tabel 2 H'!I132/'Tabel 1 H'!G130*100,"-")) -> 1.298701299 | J132: =IF(OR('Tabel 1 H'!G130<5,'Tabel 2 H'!J132<0.5),"-",IFERROR('Tabel 2 H'!J132/'Tabel 1 H'!G130*100,"-")) -> 1.110534199
A133: Farmaceut | C133: =IF(OR('Tabel 1 H'!C131<5,'Tabel 2 H'!C133<0.5),"-",IFERROR('Tabel 2 H'!C133/'Tabel 1 H'!C131*100,"-")) -> 5.970149254 | D133: =IF(OR('Tabel 1 H'!C131<5,'Tabel 2 H'!D133<0.5),"-",IFERROR('Tabel 2 H'!D133/'Tabel 1 H'!C131*100,"-")) -> 5.142378918 | F133: =IF(OR('Tabel 1 H'!E131<5,'Tabel 2 H'!F133<0.5),"-",IFERROR('Tabel 2 H'!F133/'Tabel 1 H'!E131*100,"-")) -> 1.886792453 | G133: =IF(OR('Tabel 1 H'!E131<5,'Tabel 2 H'!G133<0.5),"-",IFERROR('Tabel 2 H'!G133/'Tabel 1 H'!E131*100,"-")) -> 1.67029715 | I133: =IF(OR('Tabel 1 H'!G131<5,'Tabel 2 H'!I133<0.5),"-",IFERROR('Tabel 2 H'!I133/'Tabel 1 H'!G131*100,"-")) -> 3.097345133 | J133: =IF(OR('Tabel 1 H'!G131<5,'Tabel 2 H'!J133<0.5),"-",IFERROR('Tabel 2 H'!J133/'Tabel 1 H'!G131*100,"-")) -> 2.699631126
A134: Læge | C134: =IF(OR('Tabel 1 H'!C132<5,'Tabel 2 H'!C134<0.5),"-",IFERROR('Tabel 2 H'!C134/'Tabel 1 H'!C132*100,"-")) -> 1.986754967 | D134: =IF(OR('Tabel 1 H'!C132<5,'Tabel 2 H'!D134<0.5),"-",IFERROR('Tabel 2 H'!D134/'Tabel 1 H'!C132*100,"-")) -> 1.344495191 | F134: =IF(OR('Tabel 1 H'!E132<5,'Tabel 2 H'!F134<0.5),"-",IFERROR('Tabel 2 H'!F134/'Tabel 1 H'!E132*100,"-")) -> 2.380952381 | G134: =IF(OR('Tabel 1 H'!E132<5,'Tabel 2 H'!G134<0.5),"-",IFERROR('Tabel 2 H'!G134/'Tabel 1 H'!E132*100,"-")) -> 1.600493625 | I134: =IF(OR('Tabel 1 H'!G132<5,'Tabel 2 H'!I134<0.5),"-",IFERROR('Tabel 2 H'!I134/'Tabel 1 H'!G132*100,"-")) -> 2.258726899 | J134: =IF(OR('Tabel 1 H'!G132<5,'Tabel 2 H'!J134<0.5),"-",IFERROR('Tabel 2 H'!J134/'Tabel 1 H'!G132*100,"-")) -> 1.52111834
A135: Tandlæge | C135: =IF(OR('Tabel 1 H'!C133<5,'Tabel 2 H'!C135<0.5),"-",IFERROR('Tabel 2 H'!C135/'Tabel 1 H'!C133*100,"-")) -> 14.28571429 | D135: =IF(OR('Tabel 1 H'!C133<5,'Tabel 2 H'!D135<0.5),"-",IFERROR('Tabel 2 H'!D135/'Tabel 1 H'!C133*100,"-")) -> 14.28304123 | F135: =IF(OR('Tabel 1 H'!E133<5,'Tabel 2 H'!F135<0.5),"-",IFERROR('Tabel 2 H'!F135/'Tabel 1 H'!E133*100,"-")) -> - | G135: =IF(OR('Tabel 1 H'!E133<5,'Tabel 2 H'!G135<0.5),"-",IFERROR('Tabel 2 H'!G135/'Tabel 1 H'!E133*100,"-")) -> - | I135: =IF(OR('Tabel 1 H'!G133<5,'Tabel 2 H'!I135<0.5),"-",IFERROR('Tabel 2 H'!I135/'Tabel 1 H'!G133*100,"-")) -> 1.639344262 | J135: =IF(OR('Tabel 1 H'!G133<5,'Tabel 2 H'!J135<0.5),"-",IFERROR('Tabel 2 H'!J135/'Tabel 1 H'!G133*100,"-")) -> 1.639037518
A136: Arkitekt | C136: =IF(OR('Tabel 1 H'!C134<5,'Tabel 2 H'!C136<0.5),"-",IFERROR('Tabel 2 H'!C136/'Tabel 1 H'!C134*100,"-")) -> 6.666666667 | D136: =IF(OR('Tabel 1 H'!C134<5,'Tabel 2 H'!D136<0.5),"-",IFERROR('Tabel 2 H'!D136/'Tabel 1 H'!C134*100,"-")) -> 5.977415171 | F136: =IF(OR('Tabel 1 H'!E134<5,'Tabel 2 H'!F136<0.5),"-",IFERROR('Tabel 2 H'!F136/'Tabel 1 H'!E134*100,"-")) -> 4.867256637 | G136: =IF(OR('Tabel 1 H'!E134<5,'Tabel 2 H'!G136<0.5),"-",IFERROR('Tabel 2 H'!G136/'Tabel 1 H'!E134*100,"-")) -> 3.845221885 | I136: =IF(OR('Tabel 1 H'!G134<5,'Tabel 2 H'!I136<0.5),"-",IFERROR('Tabel 2 H'!I136/'Tabel 1 H'!G134*100,"-")) -> 5.700712589 | J136: =IF(OR('Tabel 1 H'!G134<5,'Tabel 2 H'!J136<0.5),"-",IFERROR('Tabel 2 H'!J136/'Tabel 1 H'!G134*100,"-")) -> 4.83281735
A137: Landinspek. | C137: =IF(OR('Tabel 1 H'!C135<5,'Tabel 2 H'!C137<0.5),"-",IFERROR('Tabel 2 H'!C137/'Tabel 1 H'!C135*100,"-")) -> 15.38461538 | D137: =IF(OR('Tabel 1 H'!C135<5,'Tabel 2 H'!D137<0.5),"-",IFERROR('Tabel 2 H'!D137/'Tabel 1 H'!C135*100,"-")) -> 15.38173671 | F137: =IF(OR('Tabel 1 H'!E135<5,'Tabel 2 H'!F137<0.5),"-",IFERROR('Tabel 2 H'!F137/'Tabel 1 H'!E135*100,"-")) -> - | G137: =IF(OR('Tabel 1 H'!E135<5,'Tabel 2 H'!G137<0.5),"-",IFERROR('Tabel 2 H'!G137/'Tabel 1 H'!E135*100,"-")) -> - | I137: =IF(OR('Tabel 1 H'!G135<5,'Tabel 2 H'!I137<0.5),"-",IFERROR('Tabel 2 H'!I137/'Tabel 1 H'!G135*100,"-")) -> 11.76470588 | J137: =IF(OR('Tabel 1 H'!G135<5,'Tabel 2 H'!J137<0.5),"-",IFERROR('Tabel 2 H'!J137/'Tabel 1 H'!G135*100,"-")) -> 11.76250454
A138: Bibliotekar | C138: =IF(OR('Tabel 1 H'!C136<5,'Tabel 2 H'!C138<0.5),"-",IFERROR('Tabel 2 H'!C138/'Tabel 1 H'!C136*100,"-")) -> 6.666666667 | D138: =IF(OR('Tabel 1 H'!C136<5,'Tabel 2 H'!D138<0.5),"-",IFERROR('Tabel 2 H'!D138/'Tabel 1 H'!C136*100,"-")) -> 6.665419239 | F138: =IF(OR('Tabel 1 H'!E136<5,'Tabel 2 H'!F138<0.5),"-",IFERROR('Tabel 2 H'!F138/'Tabel 1 H'!E136*100,"-")) -> 6.18556701 | G138: =IF(OR('Tabel 1 H'!E136<5,'Tabel 2 H'!G138<0.5),"-",IFERROR('Tabel 2 H'!G138/'Tabel 1 H'!E136*100,"-")) -> 5.751668112 | I138: =IF(OR('Tabel 1 H'!G136<5,'Tabel 2 H'!I138<0.5),"-",IFERROR('Tabel 2 H'!I138/'Tabel 1 H'!G136*100,"-")) -> 6.299212598 | J138: =IF(OR('Tabel 1 H'!G136<5,'Tabel 2 H'!J138<0.5),"-",IFERROR('Tabel 2 H'!J138/'Tabel 1 H'!G136*100,"-")) -> 5.967514835
A139: Musikudd. | C139: =IF(OR('Tabel 1 H'!C137<5,'Tabel 2 H'!C139<0.5),"-",IFERROR('Tabel 2 H'!C139/'Tabel 1 H'!C137*100,"-")) -> - | D139: =IF(OR('Tabel 1 H'!C137<5,'Tabel 2 H'!D139<0.5),"-",IFERROR('Tabel 2 H'!D139/'Tabel 1 H'!C137*100,"-")) -> - | F139: =IF(OR('Tabel 1 H'!E137<5,'Tabel 2 H'!F139<0.5),"-",IFERROR('Tabel 2 H'!F139/'Tabel 1 H'!E137*100,"-")) -> - | G139: =IF(OR('Tabel 1 H'!E137<5,'Tabel 2 H'!G139<0.5),"-",IFERROR('Tabel 2 H'!G139/'Tabel 1 H'!E137*100,"-")) -> - | I139: =IF(OR('Tabel 1 H'!G137<5,'Tabel 2 H'!I139<0.5),"-",IFERROR('Tabel 2 H'!I139/'Tabel 1 H'!G137*100,"-")) -> - | J139: =IF(OR('Tabel 1 H'!G137<5,'Tabel 2 H'!J139<0.5),"-",IFERROR('Tabel 2 H'!J139/'Tabel 1 H'!G137*100,"-")) -> -
A140: Teolog | C140: =IF(OR('Tabel 1 H'!C138<5,'Tabel 2 H'!C140<0.5),"-",IFERROR('Tabel 2 H'!C140/'Tabel 1 H'!C138*100,"-")) -> - | D140: =IF(OR('Tabel 1 H'!C138<5,'Tabel 2 H'!D140<0.5),"-",IFERROR('Tabel 2 H'!D140/'Tabel 1 H'!C138*100,"-")) -> - | F140: =IF(OR('Tabel 1 H'!E138<5,'Tabel 2 H'!F140<0.5),"-",IFERROR('Tabel 2 H'!F140/'Tabel 1 H'!E138*100,"-")) -> 10.71428571 | G140: =IF(OR('Tabel 1 H'!E138<5,'Tabel 2 H'!G140<0.5),"-",IFERROR('Tabel 2 H'!G140/'Tabel 1 H'!E138*100,"-")) -> 8.598337358 | I140: =IF(OR('Tabel 1 H'!G138<5,'Tabel 2 H'!I140<0.5),"-",IFERROR('Tabel 2 H'!I140/'Tabel 1 H'!G138*100,"-")) -> 8.333333333 | J140: =IF(OR('Tabel 1 H'!G138<5,'Tabel 2 H'!J140<0.5),"-",IFERROR('Tabel 2 H'!J140/'Tabel 1 H'!G138*100,"-")) -> 6.687595723
A141: Psykolog | C141: =IF(OR('Tabel 1 H'!C139<5,'Tabel 2 H'!C141<0.5),"-",IFERROR('Tabel 2 H'!C141/'Tabel 1 H'!C139*100,"-")) -> 10 | D141: =IF(OR('Tabel 1 H'!C139<5,'Tabel 2 H'!D141<0.5),"-",IFERROR('Tabel 2 H'!D141/'Tabel 1 H'!C139*100,"-")) -> 7.366057506 | F141: =IF(OR('Tabel 1 H'!E139<5,'Tabel 2 H'!F141<0.5),"-",IFERROR('Tabel 2 H'!F141/'Tabel 1 H'!E139*100,"-")) -> 4.347826087 | G141: =IF(OR('Tabel 1 H'!E139<5,'Tabel 2 H'!G141<0.5),"-",IFERROR('Tabel 2 H'!G141/'Tabel 1 H'!E139*100,"-")) -> 3.780472703 | I141: =IF(OR('Tabel 1 H'!G139<5,'Tabel 2 H'!I141<0.5),"-",IFERROR('Tabel 2 H'!I141/'Tabel 1 H'!G139*100,"-")) -> 5.357142857 | J141: =IF(OR('Tabel 1 H'!G139<5,'Tabel 2 H'!J141<0.5),"-",IFERROR('Tabel 2 H'!J141/'Tabel 1 H'!G139*100,"-")) -> 4.420755703
A142: Jurist | C142: =IF(OR('Tabel 1 H'!C140<5,'Tabel 2 H'!C142<0.5),"-",IFERROR('Tabel 2 H'!C142/'Tabel 1 H'!C140*100,"-")) -> 2.791878173 | D142: =IF(OR('Tabel 1 H'!C140<5,'Tabel 2 H'!D142<0.5),"-",IFERROR('Tabel 2 H'!D142/'Tabel 1 H'!C140*100,"-")) -> 2.680702017 | F142: =IF(OR('Tabel 1 H'!E140<5,'Tabel 2 H'!F142<0.5),"-",IFERROR('Tabel 2 H'!F142/'Tabel 1 H'!E140*100,"-")) -> 1.666666667 | G142: =IF(OR('Tabel 1 H'!E140<5,'Tabel 2 H'!G142<0.5),"-",IFERROR('Tabel 2 H'!G142/'Tabel 1 H'!E140*100,"-")) -> 1.403072073 | I142: =IF(OR('Tabel 1 H'!G140<5,'Tabel 2 H'!I142<0.5),"-",IFERROR('Tabel 2 H'!I142/'Tabel 1 H'!G140*100,"-")) -> 2.087286528 | J142: =IF(OR('Tabel 1 H'!G140<5,'Tabel 2 H'!J142<0.5),"-",IFERROR('Tabel 2 H'!J142/'Tabel 1 H'!G140*100,"-")) -> 1.880668086
A143: Økonom | C143: =IF(OR('Tabel 1 H'!C141<5,'Tabel 2 H'!C143<0.5),"-",IFERROR('Tabel 2 H'!C143/'Tabel 1 H'!C141*100,"-")) -> 2.253521127 | D143: =IF(OR('Tabel 1 H'!C141<5,'Tabel 2 H'!D143<0.5),"-",IFERROR('Tabel 2 H'!D143/'Tabel 1 H'!C141*100,"-")) -> 2.188092693 | F143: =IF(OR('Tabel 1 H'!E141<5,'Tabel 2 H'!F143<0.5),"-",IFERROR('Tabel 2 H'!F143/'Tabel 1 H'!E141*100,"-")) -> 0.4166666667 | G143: =IF(OR('Tabel 1 H'!E141<5,'Tabel 2 H'!G143<0.5),"-",IFERROR('Tabel 2 H'!G143/'Tabel 1 H'!E141*100,"-")) -> 0.4165887025 | I143: =IF(OR('Tabel 1 H'!G141<5,'Tabel 2 H'!I143<0.5),"-",IFERROR('Tabel 2 H'!I143/'Tabel 1 H'!G141*100,"-")) -> 1.512605042 | J143: =IF(OR('Tabel 1 H'!G141<5,'Tabel 2 H'!J143<0.5),"-",IFERROR('Tabel 2 H'!J143/'Tabel 1 H'!G141*100,"-")) -> 1.473536461
A144: Samf. Adm. | C144: =IF(OR('Tabel 1 H'!C142<5,'Tabel 2 H'!C144<0.5),"-",IFERROR('Tabel 2 H'!C144/'Tabel 1 H'!C142*100,"-")) -> 3.362573099 | D144: =IF(OR('Tabel 1 H'!C142<5,'Tabel 2 H'!D144<0.5),"-",IFERROR('Tabel 2 H'!D144/'Tabel 1 H'!C142*100,"-")) -> 2.914949175 | F144: =IF(OR('Tabel 1 H'!E142<5,'Tabel 2 H'!F144<0.5),"-",IFERROR('Tabel 2 H'!F144/'Tabel 1 H'!E142*100,"-")) -> 4.44015444 | G144: =IF(OR('Tabel 1 H'!E142<5,'Tabel 2 H'!G144<0.5),"-",IFERROR('Tabel 2 H'!G144/'Tabel 1 H'!E142*100,"-")) -> 3.541501156 | I144: =IF(OR('Tabel 1 H'!G142<5,'Tabel 2 H'!I144<0.5),"-",IFERROR('Tabel 2 H'!I144/'Tabel 1 H'!G142*100,"-")) -> 4.011627907 | J144: =IF(OR('Tabel 1 H'!G142<5,'Tabel 2 H'!J144<0.5),"-",IFERROR('Tabel 2 H'!J144/'Tabel 1 H'!G142*100,"-")) -> 3.292337461
A145: Cand. Merc. | C145: =IF(OR('Tabel 1 H'!C143<5,'Tabel 2 H'!C145<0.5),"-",IFERROR('Tabel 2 H'!C145/'Tabel 1 H'!C143*100,"-")) -> 2.685109845 | D145: =IF(OR('Tabel 1 H'!C143<5,'Tabel 2 H'!D145<0.5),"-",IFERROR('Tabel 2 H'!D145/'Tabel 1 H'!C143*100,"-")) -> 2.304289307 | F145: =IF(OR('Tabel 1 H'!E143<5,'Tabel 2 H'!F145<0.5),"-",IFERROR('Tabel 2 H'!F145/'Tabel 1 H'!E143*100,"-")) -> 3.556992724 | G145: =IF(OR('Tabel 1 H'!E143<5,'Tabel 2 H'!G145<0.5),"-",IFERROR('Tabel 2 H'!G145/'Tabel 1 H'!E143*100,"-")) -> 2.976631514 | I145: =IF(OR('Tabel 1 H'!G143<5,'Tabel 2 H'!I145<0.5),"-",IFERROR('Tabel 2 H'!I145/'Tabel 1 H'!G143*100,"-")) -> 3.122465531 | J145: =IF(OR('Tabel 1 H'!G143<5,'Tabel 2 H'!J145<0.5),"-",IFERROR('Tabel 2 H'!J145/'Tabel 1 H'!G143*100,"-")) -> 2.64155099
A146: HA | C146: =IF(OR('Tabel 1 H'!C144<5,'Tabel 2 H'!C146<0.5),"-",IFERROR('Tabel 2 H'!C146/'Tabel 1 H'!C144*100,"-")) -> 5.691056911 | D146: =IF(OR('Tabel 1 H'!C144<5,'Tabel 2 H'!D146<0.5),"-",IFERROR('Tabel 2 H'!D146/'Tabel 1 H'!C144*100,"-")) -> 5.494257525 | F146: =IF(OR('Tabel 1 H'!E144<5,'Tabel 2 H'!F146<0.5),"-",IFERROR('Tabel 2 H'!F146/'Tabel 1 H'!E144*100,"-")) -> 8.333333333 | G146: =IF(OR('Tabel 1 H'!E144<5,'Tabel 2 H'!G146<0.5),"-",IFERROR('Tabel 2 H'!G146/'Tabel 1 H'!E144*100,"-")) -> 7.528742801 | I146: =IF(OR('Tabel 1 H'!G144<5,'Tabel 2 H'!I146<0.5),"-",IFERROR('Tabel 2 H'!I146/'Tabel 1 H'!G144*100,"-")) -> 6.849315068 | J146: =IF(OR('Tabel 1 H'!G144<5,'Tabel 2 H'!J146<0.5),"-",IFERROR('Tabel 2 H'!J146/'Tabel 1 H'!G144*100,"-")) -> 6.386086687
A147: HD | C147: =IF(OR('Tabel 1 H'!C145<5,'Tabel 2 H'!C147<0.5),"-",IFERROR('Tabel 2 H'!C147/'Tabel 1 H'!C145*100,"-")) -> 6.194690265 | D147: =IF(OR('Tabel 1 H'!C145<5,'Tabel 2 H'!D147<0.5),"-",IFERROR('Tabel 2 H'!D147/'Tabel 1 H'!C145*100,"-")) -> 5.57533715 | F147: =IF(OR('Tabel 1 H'!E145<5,'Tabel 2 H'!F147<0.5),"-",IFERROR('Tabel 2 H'!F147/'Tabel 1 H'!E145*100,"-")) -> 8.045977011 | G147: =IF(OR('Tabel 1 H'!E145<5,'Tabel 2 H'!G147<0.5),"-",IFERROR('Tabel 2 H'!G147/'Tabel 1 H'!E145*100,"-")) -> 6.992761338 | I147: =IF(OR('Tabel 1 H'!G145<5,'Tabel 2 H'!I147<0.5),"-",IFERROR('Tabel 2 H'!I147/'Tabel 1 H'!G145*100,"-")) -> 7 | J147: =IF(OR('Tabel 1 H'!G145<5,'Tabel 2 H'!J147<0.5),"-",IFERROR('Tabel 2 H'!J147/'Tabel 1 H'!G145*100,"-")) -> 6.191916672
A148: Komm. og Sprog | C148: =IF(OR('Tabel 1 H'!C146<5,'Tabel 2 H'!C148<0.5),"-",IFERROR('Tabel 2 H'!C148/'Tabel 1 H'!C146*100,"-")) -> 8.620689655 | D148: =IF(OR('Tabel 1 H'!C146<5,'Tabel 2 H'!D148<0.5),"-",IFERROR('Tabel 2 H'!D148/'Tabel 1 H'!C146*100,"-")) -> 7.556612762 | F148: =IF(OR('Tabel 1 H'!E146<5,'Tabel 2 H'!F148<0.5),"-",IFERROR('Tabel 2 H'!F148/'Tabel 1 H'!E146*100,"-")) -> 6.012658228 | G148: =IF(OR('Tabel 1 H'!E146<5,'Tabel 2 H'!G148<0.5),"-",IFERROR('Tabel 2 H'!G148/'Tabel 1 H'!E146*100,"-")) -> 4.658311536 | I148: =IF(OR('Tabel 1 H'!G146<5,'Tabel 2 H'!I148<0.5),"-",IFERROR('Tabel 2 H'!I148/'Tabel 1 H'!G146*100,"-")) -> 6.417112299 | J148: =IF(OR('Tabel 1 H'!G146<5,'Tabel 2 H'!J148<0.5),"-",IFERROR('Tabel 2 H'!J148/'Tabel 1 H'!G146*100,"-")) -> 5.10778071
A149: Bygningskonst. | C149: =IF(OR('Tabel 1 H'!C147<5,'Tabel 2 H'!C149<0.5),"-",IFERROR('Tabel 2 H'!C149/'Tabel 1 H'!C147*100,"-")) -> 2.479338843 | D149: =IF(OR('Tabel 1 H'!C147<5,'Tabel 2 H'!D149<0.5),"-",IFERROR('Tabel 2 H'!D149/'Tabel 1 H'!C147*100,"-")) -> 1.792738427 | F149: =IF(OR('Tabel 1 H'!E147<5,'Tabel 2 H'!F149<0.5),"-",IFERROR('Tabel 2 H'!F149/'Tabel 1 H'!E147*100,"-")) -> 5.128205128 | G149: =IF(OR('Tabel 1 H'!E147<5,'Tabel 2 H'!G149<0.5),"-",IFERROR('Tabel 2 H'!G149/'Tabel 1 H'!E147*100,"-")) -> 5.128205128 | I149: =IF(OR('Tabel 1 H'!G147<5,'Tabel 2 H'!I149<0.5),"-",IFERROR('Tabel 2 H'!I149/'Tabel 1 H'!G147*100,"-")) -> 3.125 | J149: =IF(OR('Tabel 1 H'!G147<5,'Tabel 2 H'!J149<0.5),"-",IFERROR('Tabel 2 H'!J149/'Tabel 1 H'!G147*100,"-")) -> 2.605758436
A150: Cand. IT. | C150: =IF(OR('Tabel 1 H'!C148<5,'Tabel 2 H'!C150<0.5),"-",IFERROR('Tabel 2 H'!C150/'Tabel 1 H'!C148*100,"-")) -> 4.87804878 | D150: =IF(OR('Tabel 1 H'!C148<5,'Tabel 2 H'!D150<0.5),"-",IFERROR('Tabel 2 H'!D150/'Tabel 1 H'!C148*100,"-")) -> 4.7270391 | F150: =IF(OR('Tabel 1 H'!E148<5,'Tabel 2 H'!F150<0.5),"-",IFERROR('Tabel 2 H'!F150/'Tabel 1 H'!E148*100,"-")) -> 6.930693069 | G150: =IF(OR('Tabel 1 H'!E148<5,'Tabel 2 H'!G150<0.5),"-",IFERROR('Tabel 2 H'!G150/'Tabel 1 H'!E148*100,"-")) -> 6.161178708 | I150: =IF(OR('Tabel 1 H'!G148<5,'Tabel 2 H'!I150<0.5),"-",IFERROR('Tabel 2 H'!I150/'Tabel 1 H'!G148*100,"-")) -> 5.803571429 | J150: =IF(OR('Tabel 1 H'!G148<5,'Tabel 2 H'!J150<0.5),"-",IFERROR('Tabel 2 H'!J150/'Tabel 1 H'!G148*100,"-")) -> 5.373682405
A151: Bac. Samf. | C151: =IF(OR('Tabel 1 H'!C149<5,'Tabel 2 H'!C151<0.5),"-",IFERROR('Tabel 2 H'!C151/'Tabel 1 H'!C149*100,"-")) -> 6.060606061 | D151: =IF(OR('Tabel 1 H'!C149<5,'Tabel 2 H'!D151<0.5),"-",IFERROR('Tabel 2 H'!D151/'Tabel 1 H'!C149*100,"-")) -> 3.681800226 | F151: =IF(OR('Tabel 1 H'!E149<5,'Tabel 2 H'!F151<0.5),"-",IFERROR('Tabel 2 H'!F151/'Tabel 1 H'!E149*100,"-")) -> 8.510638298 | G151: =IF(OR('Tabel 1 H'!E149<5,'Tabel 2 H'!G151<0.5),"-",IFERROR('Tabel 2 H'!G151/'Tabel 1 H'!E149*100,"-")) -> 6.655156718 | I151: =IF(OR('Tabel 1 H'!G149<5,'Tabel 2 H'!I151<0.5),"-",IFERROR('Tabel 2 H'!I151/'Tabel 1 H'!G149*100,"-")) -> 7.5 | J151: =IF(OR('Tabel 1 H'!G149<5,'Tabel 2 H'!J151<0.5),"-",IFERROR('Tabel 2 H'!J151/'Tabel 1 H'!G149*100,"-")) -> 5.428647165
A152: Bac. Hum. | C152: =IF(OR('Tabel 1 H'!C150<5,'Tabel 2 H'!C152<0.5),"-",IFERROR('Tabel 2 H'!C152/'Tabel 1 H'!C150*100,"-")) -> 12.85714286 | D152: =IF(OR('Tabel 1 H'!C150<5,'Tabel 2 H'!D152<0.5),"-",IFERROR('Tabel 2 H'!D152/'Tabel 1 H'!C150*100,"-")) -> 9.8439825 | F152: =IF(OR('Tabel 1 H'!E150<5,'Tabel 2 H'!F152<0.5),"-",IFERROR('Tabel 2 H'!F152/'Tabel 1 H'!E150*100,"-")) -> 9.734513274 | G152: =IF(OR('Tabel 1 H'!E150<5,'Tabel 2 H'!G152<0.5),"-",IFERROR('Tabel 2 H'!G152/'Tabel 1 H'!E150*100,"-")) -> 7.969734988 | I152: =IF(OR('Tabel 1 H'!G150<5,'Tabel 2 H'!I152<0.5),"-",IFERROR('Tabel 2 H'!I152/'Tabel 1 H'!G150*100,"-")) -> 10.92896175 | J152: =IF(OR('Tabel 1 H'!G150<5,'Tabel 2 H'!J152<0.5),"-",IFERROR('Tabel 2 H'!J152/'Tabel 1 H'!G150*100,"-")) -> 8.686660266
A153: Bac. Nat. | C153: =IF(OR('Tabel 1 H'!C151<5,'Tabel 2 H'!C153<0.5),"-",IFERROR('Tabel 2 H'!C153/'Tabel 1 H'!C151*100,"-")) -> 10 | D153: =IF(OR('Tabel 1 H'!C151<5,'Tabel 2 H'!D153<0.5),"-",IFERROR('Tabel 2 H'!D153/'Tabel 1 H'!C151*100,"-")) -> 6.773529595 | F153: =IF(OR('Tabel 1 H'!E151<5,'Tabel 2 H'!F153<0.5),"-",IFERROR('Tabel 2 H'!F153/'Tabel 1 H'!E151*100,"-")) -> 20.33898305 | G153: =IF(OR('Tabel 1 H'!E151<5,'Tabel 2 H'!G153<0.5),"-",IFERROR('Tabel 2 H'!G153/'Tabel 1 H'!E151*100,"-")) -> 15.49769702 | I153: =IF(OR('Tabel 1 H'!G151<5,'Tabel 2 H'!I153<0.5),"-",IFERROR('Tabel 2 H'!I153/'Tabel 1 H'!G151*100,"-")) -> 15.12605042 | J153: =IF(OR('Tabel 1 H'!G151<5,'Tabel 2 H'!J153<0.5),"-",IFERROR('Tabel 2 H'!J153/'Tabel 1 H'!G151*100,"-")) -> 11.09895714
A154: Andre | C154: =IF(OR('Tabel 1 H'!C152<5,'Tabel 2 H'!C154<0.5),"-",IFERROR('Tabel 2 H'!C154/'Tabel 1 H'!C152*100,"-")) -> 6.666666667 | D154: =IF(OR('Tabel 1 H'!C152<5,'Tabel 2 H'!D154<0.5),"-",IFERROR('Tabel 2 H'!D154/'Tabel 1 H'!C152*100,"-")) -> 5.602746138 | F154: =IF(OR('Tabel 1 H'!E152<5,'Tabel 2 H'!F154<0.5),"-",IFERROR('Tabel 2 H'!F154/'Tabel 1 H'!E152*100,"-")) -> 8.24742268 | G154: =IF(OR('Tabel 1 H'!E152<5,'Tabel 2 H'!G154<0.5),"-",IFERROR('Tabel 2 H'!G154/'Tabel 1 H'!E152*100,"-")) -> 6.890703241 | I154: =IF(OR('Tabel 1 H'!G152<5,'Tabel 2 H'!I154<0.5),"-",IFERROR('Tabel 2 H'!I154/'Tabel 1 H'!G152*100,"-")) -> 7.536466775 | J154: =IF(OR('Tabel 1 H'!G152<5,'Tabel 2 H'!J154<0.5),"-",IFERROR('Tabel 2 H'!J154/'Tabel 1 H'!G152*100,"-")) -> 6.311435662
A156: Total | C156: =IF(OR('Tabel 1 H'!C154<5,'Tabel 2 H'!C156<0.5),"-",IFERROR('Tabel 2 H'!C156/'Tabel 1 H'!C154*100,"-")) -> 4.291666667 | D156: =IF(OR('Tabel 1 H'!C154<5,'Tabel 2 H'!D156<0.5),"-",IFERROR('Tabel 2 H'!D156/'Tabel 1 H'!C154*100,"-")) -> 3.663917996 | F156: =IF(OR('Tabel 1 H'!E154<5,'Tabel 2 H'!F156<0.5),"-",IFERROR('Tabel 2 H'!F156/'Tabel 1 H'!E154*100,"-")) -> 5.351056578 | G156: =IF(OR('Tabel 1 H'!E154<5,'Tabel 2 H'!G156<0.5),"-",IFERROR('Tabel 2 H'!G156/'Tabel 1 H'!E154*100,"-")) -> 4.440438279 | I156: =IF(OR('Tabel 1 H'!G154<5,'Tabel 2 H'!I156<0.5),"-",IFERROR('Tabel 2 H'!I156/'Tabel 1 H'!G154*100,"-")) -> 4.874390701 | J156: =IF(OR('Tabel 1 H'!G154<5,'Tabel 2 H'!J156<0.5),"-",IFERROR('Tabel 2 H'!J156/'Tabel 1 H'!G154*100,"-")) -> 4.091047825
A158: Ingeniører i alt | C158: =IF(OR('Tabel 1 H'!C156<5,'Tabel 2 H'!C158<0.5),"-",IFERROR('Tabel 2 H'!C158/'Tabel 1 H'!C156*100,"-")) -> 2.741935484 | D158: =IF(OR('Tabel 1 H'!C156<5,'Tabel 2 H'!D158<0.5),"-",IFERROR('Tabel 2 H'!D158/'Tabel 1 H'!C156*100,"-")) -> 2.383340409 | F158: =IF(OR('Tabel 1 H'!E156<5,'Tabel 2 H'!F158<0.5),"-",IFERROR('Tabel 2 H'!F158/'Tabel 1 H'!E156*100,"-")) -> 4.318181818 | G158: =IF(OR('Tabel 1 H'!E156<5,'Tabel 2 H'!G158<0.5),"-",IFERROR('Tabel 2 H'!G158/'Tabel 1 H'!E156*100,"-")) -> 3.722719618 | I158: =IF(OR('Tabel 1 H'!G156<5,'Tabel 2 H'!I158<0.5),"-",IFERROR('Tabel 2 H'!I158/'Tabel 1 H'!G156*100,"-")) -> 3.154761905 | J158: =IF(OR('Tabel 1 H'!G156<5,'Tabel 2 H'!J158<0.5),"-",IFERROR('Tabel 2 H'!J158/'Tabel 1 H'!G156*100,"-")) -> 2.734130202
A159: Magistre i alt | C159: =IF(OR('Tabel 1 H'!C157<5,'Tabel 2 H'!C159<0.5),"-",IFERROR('Tabel 2 H'!C159/'Tabel 1 H'!C157*100,"-")) -> 6.338028169 | D159: =IF(OR('Tabel 1 H'!C157<5,'Tabel 2 H'!D159<0.5),"-",IFERROR('Tabel 2 H'!D159/'Tabel 1 H'!C157*100,"-")) -> 5.155300292 | F159: =IF(OR('Tabel 1 H'!E157<5,'Tabel 2 H'!F159<0.5),"-",IFERROR('Tabel 2 H'!F159/'Tabel 1 H'!E157*100,"-")) -> 7.82152231 | G159: =IF(OR('Tabel 1 H'!E157<5,'Tabel 2 H'!G159<0.5),"-",IFERROR('Tabel 2 H'!G159/'Tabel 1 H'!E157*100,"-")) -> 6.478927239 | I159: =IF(OR('Tabel 1 H'!G157<5,'Tabel 2 H'!I159<0.5),"-",IFERROR('Tabel 2 H'!I159/'Tabel 1 H'!G157*100,"-")) -> 7.312866506 | J159: =IF(OR('Tabel 1 H'!G157<5,'Tabel 2 H'!J159<0.5),"-",IFERROR('Tabel 2 H'!J159/'Tabel 1 H'!G157*100,"-")) -> 6.025086195
A160: DJØF'ere i alt | C160: =IF(OR('Tabel 1 H'!C158<5,'Tabel 2 H'!C160<0.5),"-",IFERROR('Tabel 2 H'!C160/'Tabel 1 H'!C158*100,"-")) -> 2.944344704 | D160: =IF(OR('Tabel 1 H'!C158<5,'Tabel 2 H'!D160<0.5),"-",IFERROR('Tabel 2 H'!D160/'Tabel 1 H'!C158*100,"-")) -> 2.633594244 | F160: =IF(OR('Tabel 1 H'!E158<5,'Tabel 2 H'!F160<0.5),"-",IFERROR('Tabel 2 H'!F160/'Tabel 1 H'!E158*100,"-")) -> 3.364943408 | G160: =IF(OR('Tabel 1 H'!E158<5,'Tabel 2 H'!G160<0.5),"-",IFERROR('Tabel 2 H'!G160/'Tabel 1 H'!E158*100,"-")) -> 2.783682027 | I160: =IF(OR('Tabel 1 H'!G158<5,'Tabel 2 H'!I160<0.5),"-",IFERROR('Tabel 2 H'!I160/'Tabel 1 H'!G158*100,"-")) -> 3.171456888 | J160: =IF(OR('Tabel 1 H'!G158<5,'Tabel 2 H'!J160<0.5),"-",IFERROR('Tabel 2 H'!J160/'Tabel 1 H'!G158*100,"-")) -> 2.71463768
A165: Ballerup
C167: Mænd | F167: Kvinder | I167: I alt
C168: Ledigheds- berørte | D168: Gns. brutto- ledighed | F168: Ledigheds- berørte | G168: Gns. brutto- ledighed | I168: Ledigheds- berørte | J168: Gns. brutto- ledighed
A171: Civ. ing. | C171: =IF(OR('Tabel 1 H'!C169<5,'Tabel 2 H'!C171<0.5),"-",IFERROR('Tabel 2 H'!C171/'Tabel 1 H'!C169*100,"-")) -> 1.272264631 | D171: =IF(OR('Tabel 1 H'!C169<5,'Tabel 2 H'!D171<0.5),"-",IFERROR('Tabel 2 H'!D171/'Tabel 1 H'!C169*100,"-")) -> 1.248538122 | F171: =IF(OR('Tabel 1 H'!E169<5,'Tabel 2 H'!F171<0.5),"-",IFERROR('Tabel 2 H'!F171/'Tabel 1 H'!E169*100,"-")) -> 1.807228916 | G171: =IF(OR('Tabel 1 H'!E169<5,'Tabel 2 H'!G171<0.5),"-",IFERROR('Tabel 2 H'!G171/'Tabel 1 H'!E169*100,"-")) -> 1.806890758 | I171: =IF(OR('Tabel 1 H'!G169<5,'Tabel 2 H'!I171<0.5),"-",IFERROR('Tabel 2 H'!I171/'Tabel 1 H'!G169*100,"-")) -> 1.431127013 | J171: =IF(OR('Tabel 1 H'!G169<5,'Tabel 2 H'!J171<0.5),"-",IFERROR('Tabel 2 H'!J171/'Tabel 1 H'!G169*100,"-")) -> 1.414345881
A172: Diplom ing. | C172: =IF(OR('Tabel 1 H'!C170<5,'Tabel 2 H'!C172<0.5),"-",IFERROR('Tabel 2 H'!C172/'Tabel 1 H'!C170*100,"-")) -> 4.020100503 | D172: =IF(OR('Tabel 1 H'!C170<5,'Tabel 2 H'!D172<0.5),"-",IFERROR('Tabel 2 H'!D172/'Tabel 1 H'!C170*100,"-")) -> 3.119821649 | F172: =IF(OR('Tabel 1 H'!E170<5,'Tabel 2 H'!F172<0.5),"-",IFERROR('Tabel 2 H'!F172/'Tabel 1 H'!E170*100,"-")) -> 2.97029703 | G172: =IF(OR('Tabel 1 H'!E170<5,'Tabel 2 H'!G172<0.5),"-",IFERROR('Tabel 2 H'!G172/'Tabel 1 H'!E170*100,"-")) -> 2.22684278 | I172: =IF(OR('Tabel 1 H'!G170<5,'Tabel 2 H'!I172<0.5),"-",IFERROR('Tabel 2 H'!I172/'Tabel 1 H'!G170*100,"-")) -> 3.80761523 | J172: =IF(OR('Tabel 1 H'!G170<5,'Tabel 2 H'!J172<0.5),"-",IFERROR('Tabel 2 H'!J172/'Tabel 1 H'!G170*100,"-")) -> 2.939078431
A173: Cand. Scient. Tek. | C173: =IF(OR('Tabel 1 H'!C171<5,'Tabel 2 H'!C173<0.5),"-",IFERROR('Tabel 2 H'!C173/'Tabel 1 H'!C171*100,"-")) -> 3.333333333 | D173: =IF(OR('Tabel 1 H'!C171<5,'Tabel 2 H'!D173<0.5),"-",IFERROR('Tabel 2 H'!D173/'Tabel 1 H'!C171*100,"-")) -> 2.340485249 | F173: =IF(OR('Tabel 1 H'!E171<5,'Tabel 2 H'!F173<0.5),"-",IFERROR('Tabel 2 H'!F173/'Tabel 1 H'!E171*100,"-")) -> 5.050505051 | G173: =IF(OR('Tabel 1 H'!E171<5,'Tabel 2 H'!G173<0.5),"-",IFERROR('Tabel 2 H'!G173/'Tabel 1 H'!E171*100,"-")) -> 4.16061066 | I173: =IF(OR('Tabel 1 H'!G171<5,'Tabel 2 H'!I173<0.5),"-",IFERROR('Tabel 2 H'!I173/'Tabel 1 H'!G171*100,"-")) -> 4.109589041 | J173: =IF(OR('Tabel 1 H'!G171<5,'Tabel 2 H'!J173<0.5),"-",IFERROR('Tabel 2 H'!J173/'Tabel 1 H'!G171*100,"-")) -> 3.163281668
A174: MA. Hum. | C174: =IF(OR('Tabel 1 H'!C172<5,'Tabel 2 H'!C174<0.5),"-",IFERROR('Tabel 2 H'!C174/'Tabel 1 H'!C172*100,"-")) -> 1.449275362 | D174: =IF(OR('Tabel 1 H'!C172<5,'Tabel 2 H'!D174<0.5),"-",IFERROR('Tabel 2 H'!D174/'Tabel 1 H'!C172*100,"-")) -> 1.181440091 | F174: =IF(OR('Tabel 1 H'!E172<5,'Tabel 2 H'!F174<0.5),"-",IFERROR('Tabel 2 H'!F174/'Tabel 1 H'!E172*100,"-")) -> 1.923076923 | G174: =IF(OR('Tabel 1 H'!E172<5,'Tabel 2 H'!G174<0.5),"-",IFERROR('Tabel 2 H'!G174/'Tabel 1 H'!E172*100,"-")) -> 1.916719842 | I174: =IF(OR('Tabel 1 H'!G172<5,'Tabel 2 H'!I174<0.5),"-",IFERROR('Tabel 2 H'!I174/'Tabel 1 H'!G172*100,"-")) -> 1.777777778 | J174: =IF(OR('Tabel 1 H'!G172<5,'Tabel 2 H'!J174<0.5),"-",IFERROR('Tabel 2 H'!J174/'Tabel 1 H'!G172*100,"-")) -> 1.691234052
A175: MA. Nat. | C175: =IF(OR('Tabel 1 H'!C173<5,'Tabel 2 H'!C175<0.5),"-",IFERROR('Tabel 2 H'!C175/'Tabel 1 H'!C173*100,"-")) -> - | D175: =IF(OR('Tabel 1 H'!C173<5,'Tabel 2 H'!D175<0.5),"-",IFERROR('Tabel 2 H'!D175/'Tabel 1 H'!C173*100,"-")) -> - | F175: =IF(OR('Tabel 1 H'!E173<5,'Tabel 2 H'!F175<0.5),"-",IFERROR('Tabel 2 H'!F175/'Tabel 1 H'!E173*100,"-")) -> 1.136363636 | G175: =IF(OR('Tabel 1 H'!E173<5,'Tabel 2 H'!G175<0.5),"-",IFERROR('Tabel 2 H'!G175/'Tabel 1 H'!E173*100,"-")) -> 1.136151007 | I175: =IF(OR('Tabel 1 H'!G173<5,'Tabel 2 H'!I175<0.5),"-",IFERROR('Tabel 2 H'!I175/'Tabel 1 H'!G173*100,"-")) -> 0.5917159763 | J175: =IF(OR('Tabel 1 H'!G173<5,'Tabel 2 H'!J175<0.5),"-",IFERROR('Tabel 2 H'!J175/'Tabel 1 H'!G173*100,"-")) -> 0.5916052579
A176: MA. Ph.d. | C176: =IF(OR('Tabel 1 H'!C174<5,'Tabel 2 H'!C176<0.5),"-",IFERROR('Tabel 2 H'!C176/'Tabel 1 H'!C174*100,"-")) -> - | D176: =IF(OR('Tabel 1 H'!C174<5,'Tabel 2 H'!D176<0.5),"-",IFERROR('Tabel 2 H'!D176/'Tabel 1 H'!C174*100,"-")) -> - | F176: =IF(OR('Tabel 1 H'!E174<5,'Tabel 2 H'!F176<0.5),"-",IFERROR('Tabel 2 H'!F176/'Tabel 1 H'!E174*100,"-")) -> - | G176: =IF(OR('Tabel 1 H'!E174<5,'Tabel 2 H'!G176<0.5),"-",IFERROR('Tabel 2 H'!G176/'Tabel 1 H'!E174*100,"-")) -> - | I176: =IF(OR('Tabel 1 H'!G174<5,'Tabel 2 H'!I176<0.5),"-",IFERROR('Tabel 2 H'!I176/'Tabel 1 H'!G174*100,"-")) -> - | J176: =IF(OR('Tabel 1 H'!G174<5,'Tabel 2 H'!J176<0.5),"-",IFERROR('Tabel 2 H'!J176/'Tabel 1 H'!G174*100,"-")) -> -
A177: MA. Samf. | C177: =IF(OR('Tabel 1 H'!C175<5,'Tabel 2 H'!C177<0.5),"-",IFERROR('Tabel 2 H'!C177/'Tabel 1 H'!C175*100,"-")) -> 6.25 | D177: =IF(OR('Tabel 1 H'!C175<5,'Tabel 2 H'!D177<0.5),"-",IFERROR('Tabel 2 H'!D177/'Tabel 1 H'!C175*100,"-")) -> 6.248830537 | F177: =IF(OR('Tabel 1 H'!E175<5,'Tabel 2 H'!F177<0.5),"-",IFERROR('Tabel 2 H'!F177/'Tabel 1 H'!E175*100,"-")) -> 5.555555556 | G177: =IF(OR('Tabel 1 H'!E175<5,'Tabel 2 H'!G177<0.5),"-",IFERROR('Tabel 2 H'!G177/'Tabel 1 H'!E175*100,"-")) -> 3.759606922 | I177: =IF(OR('Tabel 1 H'!G175<5,'Tabel 2 H'!I177<0.5),"-",IFERROR('Tabel 2 H'!I177/'Tabel 1 H'!G175*100,"-")) -> 5.882352941 | J177: =IF(OR('Tabel 1 H'!G175<5,'Tabel 2 H'!J177<0.5),"-",IFERROR('Tabel 2 H'!J177/'Tabel 1 H'!G175*100,"-")) -> 4.93100627
A178: Øvrige Mag. | C178: =IF(OR('Tabel 1 H'!C176<5,'Tabel 2 H'!C178<0.5),"-",IFERROR('Tabel 2 H'!C178/'Tabel 1 H'!C176*100,"-")) -> - | D178: =IF(OR('Tabel 1 H'!C176<5,'Tabel 2 H'!D178<0.5),"-",IFERROR('Tabel 2 H'!D178/'Tabel 1 H'!C176*100,"-")) -> - | F178: =IF(OR('Tabel 1 H'!E176<5,'Tabel 2 H'!F178<0.5),"-",IFERROR('Tabel 2 H'!F178/'Tabel 1 H'!E176*100,"-")) -> 5.263157895 | G178: =IF(OR('Tabel 1 H'!E176<5,'Tabel 2 H'!G178<0.5),"-",IFERROR('Tabel 2 H'!G178/'Tabel 1 H'!E176*100,"-")) -> 5.262173084 | I178: =IF(OR('Tabel 1 H'!G176<5,'Tabel 2 H'!I178<0.5),"-",IFERROR('Tabel 2 H'!I178/'Tabel 1 H'!G176*100,"-")) -> 3.571428571 | J178: =IF(OR('Tabel 1 H'!G176<5,'Tabel 2 H'!J178<0.5),"-",IFERROR('Tabel 2 H'!J178/'Tabel 1 H'!G176*100,"-")) -> 3.570760307
A179: Agronom | C179: =IF(OR('Tabel 1 H'!C177<5,'Tabel 2 H'!C179<0.5),"-",IFERROR('Tabel 2 H'!C179/'Tabel 1 H'!C177*100,"-")) -> - | D179: =IF(OR('Tabel 1 H'!C177<5,'Tabel 2 H'!D179<0.5),"-",IFERROR('Tabel 2 H'!D179/'Tabel 1 H'!C177*100,"-")) -> - | F179: =IF(OR('Tabel 1 H'!E177<5,'Tabel 2 H'!F179<0.5),"-",IFERROR('Tabel 2 H'!F179/'Tabel 1 H'!E177*100,"-")) -> - | G179: =IF(OR('Tabel 1 H'!E177<5,'Tabel 2 H'!G179<0.5),"-",IFERROR('Tabel 2 H'!G179/'Tabel 1 H'!E177*100,"-")) -> - | I179: =IF(OR('Tabel 1 H'!G177<5,'Tabel 2 H'!I179<0.5),"-",IFERROR('Tabel 2 H'!I179/'Tabel 1 H'!G177*100,"-")) -> - | J179: =IF(OR('Tabel 1 H'!G177<5,'Tabel 2 H'!J179<0.5),"-",IFERROR('Tabel 2 H'!J179/'Tabel 1 H'!G177*100,"-")) -> -
A180: Landsk. Arkt. | C180: =IF(OR('Tabel 1 H'!C178<5,'Tabel 2 H'!C180<0.5),"-",IFERROR('Tabel 2 H'!C180/'Tabel 1 H'!C178*100,"-")) -> - | D180: =IF(OR('Tabel 1 H'!C178<5,'Tabel 2 H'!D180<0.5),"-",IFERROR('Tabel 2 H'!D180/'Tabel 1 H'!C178*100,"-")) -> - | F180: =IF(OR('Tabel 1 H'!E178<5,'Tabel 2 H'!F180<0.5),"-",IFERROR('Tabel 2 H'!F180/'Tabel 1 H'!E178*100,"-")) -> 12.5 | G180: =IF(OR('Tabel 1 H'!E178<5,'Tabel 2 H'!G180<0.5),"-",IFERROR('Tabel 2 H'!G180/'Tabel 1 H'!E178*100,"-")) -> 9.612985717 | I180: =IF(OR('Tabel 1 H'!G178<5,'Tabel 2 H'!I180<0.5),"-",IFERROR('Tabel 2 H'!I180/'Tabel 1 H'!G178*100,"-")) -> 9.090909091 | J180: =IF(OR('Tabel 1 H'!G178<5,'Tabel 2 H'!J180<0.5),"-",IFERROR('Tabel 2 H'!J180/'Tabel 1 H'!G178*100,"-")) -> 6.99126234
A181: Hortonom | C181: =IF(OR('Tabel 1 H'!C179<5,'Tabel 2 H'!C181<0.5),"-",IFERROR('Tabel 2 H'!C181/'Tabel 1 H'!C179*100,"-")) -> - | D181: =IF(OR('Tabel 1 H'!C179<5,'Tabel 2 H'!D181<0.5),"-",IFERROR('Tabel 2 H'!D181/'Tabel 1 H'!C179*100,"-")) -> - | F181: =IF(OR('Tabel 1 H'!E179<5,'Tabel 2 H'!F181<0.5),"-",IFERROR('Tabel 2 H'!F181/'Tabel 1 H'!E179*100,"-")) -> - | G181: =IF(OR('Tabel 1 H'!E179<5,'Tabel 2 H'!G181<0.5),"-",IFERROR('Tabel 2 H'!G181/'Tabel 1 H'!E179*100,"-")) -> - | I181: =IF(OR('Tabel 1 H'!G179<5,'Tabel 2 H'!I181<0.5),"-",IFERROR('Tabel 2 H'!I181/'Tabel 1 H'!G179*100,"-")) -> - | J181: =IF(OR('Tabel 1 H'!G179<5,'Tabel 2 H'!J181<0.5),"-",IFERROR('Tabel 2 H'!J181/'Tabel 1 H'!G179*100,"-")) -> -
A182: Forstkand. | C182: =IF(OR('Tabel 1 H'!C180<5,'Tabel 2 H'!C182<0.5),"-",IFERROR('Tabel 2 H'!C182/'Tabel 1 H'!C180*100,"-")) -> - | D182: =IF(OR('Tabel 1 H'!C180<5,'Tabel 2 H'!D182<0.5),"-",IFERROR('Tabel 2 H'!D182/'Tabel 1 H'!C180*100,"-")) -> - | F182: =IF(OR('Tabel 1 H'!E180<5,'Tabel 2 H'!F182<0.5),"-",IFERROR('Tabel 2 H'!F182/'Tabel 1 H'!E180*100,"-")) -> - | G182: =IF(OR('Tabel 1 H'!E180<5,'Tabel 2 H'!G182<0.5),"-",IFERROR('Tabel 2 H'!G182/'Tabel 1 H'!E180*100,"-")) -> - | I182: =IF(OR('Tabel 1 H'!G180<5,'Tabel 2 H'!I182<0.5),"-",IFERROR('Tabel 2 H'!I182/'Tabel 1 H'!G180*100,"-")) -> - | J182: =IF(OR('Tabel 1 H'!G180<5,'Tabel 2 H'!J182<0.5),"-",IFERROR('Tabel 2 H'!J182/'Tabel 1 H'!G180*100,"-")) -> -
A183: Jordbrugsakad. | C183: =IF(OR('Tabel 1 H'!C181<5,'Tabel 2 H'!C183<0.5),"-",IFERROR('Tabel 2 H'!C183/'Tabel 1 H'!C181*100,"-")) -> - | D183: =IF(OR('Tabel 1 H'!C181<5,'Tabel 2 H'!D183<0.5),"-",IFERROR('Tabel 2 H'!D183/'Tabel 1 H'!C181*100,"-")) -> - | F183: =IF(OR('Tabel 1 H'!E181<5,'Tabel 2 H'!F183<0.5),"-",IFERROR('Tabel 2 H'!F183/'Tabel 1 H'!E181*100,"-")) -> 5 | G183: =IF(OR('Tabel 1 H'!E181<5,'Tabel 2 H'!G183<0.5),"-",IFERROR('Tabel 2 H'!G183/'Tabel 1 H'!E181*100,"-")) -> 3.845194287 | I183: =IF(OR('Tabel 1 H'!G181<5,'Tabel 2 H'!I183<0.5),"-",IFERROR('Tabel 2 H'!I183/'Tabel 1 H'!G181*100,"-")) -> 2.777777778 | J183: =IF(OR('Tabel 1 H'!G181<5,'Tabel 2 H'!J183<0.5),"-",IFERROR('Tabel 2 H'!J183/'Tabel 1 H'!G181*100,"-")) -> 2.136219048
A184: Mejeriing. | C184: =IF(OR('Tabel 1 H'!C182<5,'Tabel 2 H'!C184<0.5),"-",IFERROR('Tabel 2 H'!C184/'Tabel 1 H'!C182*100,"-")) -> - | D184: =IF(OR('Tabel 1 H'!C182<5,'Tabel 2 H'!D184<0.5),"-",IFERROR('Tabel 2 H'!D184/'Tabel 1 H'!C182*100,"-")) -> - | F184: =IF(OR('Tabel 1 H'!E182<5,'Tabel 2 H'!F184<0.5),"-",IFERROR('Tabel 2 H'!F184/'Tabel 1 H'!E182*100,"-")) -> - | G184: =IF(OR('Tabel 1 H'!E182<5,'Tabel 2 H'!G184<0.5),"-",IFERROR('Tabel 2 H'!G184/'Tabel 1 H'!E182*100,"-")) -> - | I184: =IF(OR('Tabel 1 H'!G182<5,'Tabel 2 H'!I184<0.5),"-",IFERROR('Tabel 2 H'!I184/'Tabel 1 H'!G182*100,"-")) -> 20 | J184: =IF(OR('Tabel 1 H'!G182<5,'Tabel 2 H'!J184<0.5),"-",IFERROR('Tabel 2 H'!J184/'Tabel 1 H'!G182*100,"-")) -> 19.99625772
A185: Levn.m.kand. | C185: =IF(OR('Tabel 1 H'!C183<5,'Tabel 2 H'!C185<0.5),"-",IFERROR('Tabel 2 H'!C185/'Tabel 1 H'!C183*100,"-")) -> - | D185: =IF(OR('Tabel 1 H'!C183<5,'Tabel 2 H'!D185<0.5),"-",IFERROR('Tabel 2 H'!D185/'Tabel 1 H'!C183*100,"-")) -> - | F185: =IF(OR('Tabel 1 H'!E183<5,'Tabel 2 H'!F185<0.5),"-",IFERROR('Tabel 2 H'!F185/'Tabel 1 H'!E183*100,"-")) -> - | G185: =IF(OR('Tabel 1 H'!E183<5,'Tabel 2 H'!G185<0.5),"-",IFERROR('Tabel 2 H'!G185/'Tabel 1 H'!E183*100,"-")) -> - | I185: =IF(OR('Tabel 1 H'!G183<5,'Tabel 2 H'!I185<0.5),"-",IFERROR('Tabel 2 H'!I185/'Tabel 1 H'!G183*100,"-")) -> - | J185: =IF(OR('Tabel 1 H'!G183<5,'Tabel 2 H'!J185<0.5),"-",IFERROR('Tabel 2 H'!J185/'Tabel 1 H'!G183*100,"-")) -> -
A186: Dyrlæge | C186: =IF(OR('Tabel 1 H'!C184<5,'Tabel 2 H'!C186<0.5),"-",IFERROR('Tabel 2 H'!C186/'Tabel 1 H'!C184*100,"-")) -> - | D186: =IF(OR('Tabel 1 H'!C184<5,'Tabel 2 H'!D186<0.5),"-",IFERROR('Tabel 2 H'!D186/'Tabel 1 H'!C184*100,"-")) -> - | F186: =IF(OR('Tabel 1 H'!E184<5,'Tabel 2 H'!F186<0.5),"-",IFERROR('Tabel 2 H'!F186/'Tabel 1 H'!E184*100,"-")) -> - | G186: =IF(OR('Tabel 1 H'!E184<5,'Tabel 2 H'!G186<0.5),"-",IFERROR('Tabel 2 H'!G186/'Tabel 1 H'!E184*100,"-")) -> - | I186: =IF(OR('Tabel 1 H'!G184<5,'Tabel 2 H'!I186<0.5),"-",IFERROR('Tabel 2 H'!I186/'Tabel 1 H'!G184*100,"-")) -> - | J186: =IF(OR('Tabel 1 H'!G184<5,'Tabel 2 H'!J186<0.5),"-",IFERROR('Tabel 2 H'!J186/'Tabel 1 H'!G184*100,"-")) -> -
A187: Farmaceut | C187: =IF(OR('Tabel 1 H'!C185<5,'Tabel 2 H'!C187<0.5),"-",IFERROR('Tabel 2 H'!C187/'Tabel 1 H'!C185*100,"-")) -> - | D187: =IF(OR('Tabel 1 H'!C185<5,'Tabel 2 H'!D187<0.5),"-",IFERROR('Tabel 2 H'!D187/'Tabel 1 H'!C185*100,"-")) -> - | F187: =IF(OR('Tabel 1 H'!E185<5,'Tabel 2 H'!F187<0.5),"-",IFERROR('Tabel 2 H'!F187/'Tabel 1 H'!E185*100,"-")) -> - | G187: =IF(OR('Tabel 1 H'!E185<5,'Tabel 2 H'!G187<0.5),"-",IFERROR('Tabel 2 H'!G187/'Tabel 1 H'!E185*100,"-")) -> - | I187: =IF(OR('Tabel 1 H'!G185<5,'Tabel 2 H'!I187<0.5),"-",IFERROR('Tabel 2 H'!I187/'Tabel 1 H'!G185*100,"-")) -> - | J187: =IF(OR('Tabel 1 H'!G185<5,'Tabel 2 H'!J187<0.5),"-",IFERROR('Tabel 2 H'!J187/'Tabel 1 H'!G185*100,"-")) -> -
A188: Læge | C188: =IF(OR('Tabel 1 H'!C186<5,'Tabel 2 H'!C188<0.5),"-",IFERROR('Tabel 2 H'!C188/'Tabel 1 H'!C186*100,"-")) -> - | D188: =IF(OR('Tabel 1 H'!C186<5,'Tabel 2 H'!D188<0.5),"-",IFERROR('Tabel 2 H'!D188/'Tabel 1 H'!C186*100,"-")) -> - | F188: =IF(OR('Tabel 1 H'!E186<5,'Tabel 2 H'!F188<0.5),"-",IFERROR('Tabel 2 H'!F188/'Tabel 1 H'!E186*100,"-")) -> 1.851851852 | G188: =IF(OR('Tabel 1 H'!E186<5,'Tabel 2 H'!G188<0.5),"-",IFERROR('Tabel 2 H'!G188/'Tabel 1 H'!E186*100,"-")) -> 1.851505344 | I188: =IF(OR('Tabel 1 H'!G186<5,'Tabel 2 H'!I188<0.5),"-",IFERROR('Tabel 2 H'!I188/'Tabel 1 H'!G186*100,"-")) -> 1.219512195 | J188: =IF(OR('Tabel 1 H'!G186<5,'Tabel 2 H'!J188<0.5),"-",IFERROR('Tabel 2 H'!J188/'Tabel 1 H'!G186*100,"-")) -> 1.219284007
A189: Tandlæge | C189: =IF(OR('Tabel 1 H'!C187<5,'Tabel 2 H'!C189<0.5),"-",IFERROR('Tabel 2 H'!C189/'Tabel 1 H'!C187*100,"-")) -> - | D189: =IF(OR('Tabel 1 H'!C187<5,'Tabel 2 H'!D189<0.5),"-",IFERROR('Tabel 2 H'!D189/'Tabel 1 H'!C187*100,"-")) -> - | F189: =IF(OR('Tabel 1 H'!E187<5,'Tabel 2 H'!F189<0.5),"-",IFERROR('Tabel 2 H'!F189/'Tabel 1 H'!E187*100,"-")) -> - | G189: =IF(OR('Tabel 1 H'!E187<5,'Tabel 2 H'!G189<0.5),"-",IFERROR('Tabel 2 H'!G189/'Tabel 1 H'!E187*100,"-")) -> - | I189: =IF(OR('Tabel 1 H'!G187<5,'Tabel 2 H'!I189<0.5),"-",IFERROR('Tabel 2 H'!I189/'Tabel 1 H'!G187*100,"-")) -> - | J189: =IF(OR('Tabel 1 H'!G187<5,'Tabel 2 H'!J189<0.5),"-",IFERROR('Tabel 2 H'!J189/'Tabel 1 H'!G187*100,"-")) -> -
A190: Arkitekt | C190: =IF(OR('Tabel 1 H'!C188<5,'Tabel 2 H'!C190<0.5),"-",IFERROR('Tabel 2 H'!C190/'Tabel 1 H'!C188*100,"-")) -> - | D190: =IF(OR('Tabel 1 H'!C188<5,'Tabel 2 H'!D190<0.5),"-",IFERROR('Tabel 2 H'!D190/'Tabel 1 H'!C188*100,"-")) -> - | F190: =IF(OR('Tabel 1 H'!E188<5,'Tabel 2 H'!F190<0.5),"-",IFERROR('Tabel 2 H'!F190/'Tabel 1 H'!E188*100,"-")) -> 9.090909091 | G190: =IF(OR('Tabel 1 H'!E188<5,'Tabel 2 H'!G190<0.5),"-",IFERROR('Tabel 2 H'!G190/'Tabel 1 H'!E188*100,"-")) -> 8.068585814 | I190: =IF(OR('Tabel 1 H'!G188<5,'Tabel 2 H'!I190<0.5),"-",IFERROR('Tabel 2 H'!I190/'Tabel 1 H'!G188*100,"-")) -> 4.545454545 | J190: =IF(OR('Tabel 1 H'!G188<5,'Tabel 2 H'!J190<0.5),"-",IFERROR('Tabel 2 H'!J190/'Tabel 1 H'!G188*100,"-")) -> 4.034292907
A191: Landinspek. | C191: =IF(OR('Tabel 1 H'!C189<5,'Tabel 2 H'!C191<0.5),"-",IFERROR('Tabel 2 H'!C191/'Tabel 1 H'!C189*100,"-")) -> - | D191: =IF(OR('Tabel 1 H'!C189<5,'Tabel 2 H'!D191<0.5),"-",IFERROR('Tabel 2 H'!D191/'Tabel 1 H'!C189*100,"-")) -> - | F191: =IF(OR('Tabel 1 H'!E189<5,'Tabel 2 H'!F191<0.5),"-",IFERROR('Tabel 2 H'!F191/'Tabel 1 H'!E189*100,"-")) -> - | G191: =IF(OR('Tabel 1 H'!E189<5,'Tabel 2 H'!G191<0.5),"-",IFERROR('Tabel 2 H'!G191/'Tabel 1 H'!E189*100,"-")) -> - | I191: =IF(OR('Tabel 1 H'!G189<5,'Tabel 2 H'!I191<0.5),"-",IFERROR('Tabel 2 H'!I191/'Tabel 1 H'!G189*100,"-")) -> - | J191: =IF(OR('Tabel 1 H'!G189<5,'Tabel 2 H'!J191<0.5),"-",IFERROR('Tabel 2 H'!J191/'Tabel 1 H'!G189*100,"-")) -> -
A192: Bibliotekar | C192: =IF(OR('Tabel 1 H'!C190<5,'Tabel 2 H'!C192<0.5),"-",IFERROR('Tabel 2 H'!C192/'Tabel 1 H'!C190*100,"-")) -> - | D192: =IF(OR('Tabel 1 H'!C190<5,'Tabel 2 H'!D192<0.5),"-",IFERROR('Tabel 2 H'!D192/'Tabel 1 H'!C190*100,"-")) -> - | F192: =IF(OR('Tabel 1 H'!E190<5,'Tabel 2 H'!F192<0.5),"-",IFERROR('Tabel 2 H'!F192/'Tabel 1 H'!E190*100,"-")) -> 10 | G192: =IF(OR('Tabel 1 H'!E190<5,'Tabel 2 H'!G192<0.5),"-",IFERROR('Tabel 2 H'!G192/'Tabel 1 H'!E190*100,"-")) -> 9.542817938 | I192: =IF(OR('Tabel 1 H'!G190<5,'Tabel 2 H'!I192<0.5),"-",IFERROR('Tabel 2 H'!I192/'Tabel 1 H'!G190*100,"-")) -> 7.317073171 | J192: =IF(OR('Tabel 1 H'!G190<5,'Tabel 2 H'!J192<0.5),"-",IFERROR('Tabel 2 H'!J192/'Tabel 1 H'!G190*100,"-")) -> 6.982549711
A193: Musikudd. | C193: =IF(OR('Tabel 1 H'!C191<5,'Tabel 2 H'!C193<0.5),"-",IFERROR('Tabel 2 H'!C193/'Tabel 1 H'!C191*100,"-")) -> - | D193: =IF(OR('Tabel 1 H'!C191<5,'Tabel 2 H'!D193<0.5),"-",IFERROR('Tabel 2 H'!D193/'Tabel 1 H'!C191*100,"-")) -> - | F193: =IF(OR('Tabel 1 H'!E191<5,'Tabel 2 H'!F193<0.5),"-",IFERROR('Tabel 2 H'!F193/'Tabel 1 H'!E191*100,"-")) -> - | G193: =IF(OR('Tabel 1 H'!E191<5,'Tabel 2 H'!G193<0.5),"-",IFERROR('Tabel 2 H'!G193/'Tabel 1 H'!E191*100,"-")) -> - | I193: =IF(OR('Tabel 1 H'!G191<5,'Tabel 2 H'!I193<0.5),"-",IFERROR('Tabel 2 H'!I193/'Tabel 1 H'!G191*100,"-")) -> - | J193: =IF(OR('Tabel 1 H'!G191<5,'Tabel 2 H'!J193<0.5),"-",IFERROR('Tabel 2 H'!J193/'Tabel 1 H'!G191*100,"-")) -> -
A194: Teolog | C194: =IF(OR('Tabel 1 H'!C192<5,'Tabel 2 H'!C194<0.5),"-",IFERROR('Tabel 2 H'!C194/'Tabel 1 H'!C192*100,"-")) -> - | D194: =IF(OR('Tabel 1 H'!C192<5,'Tabel 2 H'!D194<0.5),"-",IFERROR('Tabel 2 H'!D194/'Tabel 1 H'!C192*100,"-")) -> - | F194: =IF(OR('Tabel 1 H'!E192<5,'Tabel 2 H'!F194<0.5),"-",IFERROR('Tabel 2 H'!F194/'Tabel 1 H'!E192*100,"-")) -> - | G194: =IF(OR('Tabel 1 H'!E192<5,'Tabel 2 H'!G194<0.5),"-",IFERROR('Tabel 2 H'!G194/'Tabel 1 H'!E192*100,"-")) -> - | I194: =IF(OR('Tabel 1 H'!G192<5,'Tabel 2 H'!I194<0.5),"-",IFERROR('Tabel 2 H'!I194/'Tabel 1 H'!G192*100,"-")) -> - | J194: =IF(OR('Tabel 1 H'!G192<5,'Tabel 2 H'!J194<0.5),"-",IFERROR('Tabel 2 H'!J194/'Tabel 1 H'!G192*100,"-")) -> -
A195: Psykolog | C195: =IF(OR('Tabel 1 H'!C193<5,'Tabel 2 H'!C195<0.5),"-",IFERROR('Tabel 2 H'!C195/'Tabel 1 H'!C193*100,"-")) -> 12.5 | D195: =IF(OR('Tabel 1 H'!C193<5,'Tabel 2 H'!D195<0.5),"-",IFERROR('Tabel 2 H'!D195/'Tabel 1 H'!C193*100,"-")) -> 6.782885299 | F195: =IF(OR('Tabel 1 H'!E193<5,'Tabel 2 H'!F195<0.5),"-",IFERROR('Tabel 2 H'!F195/'Tabel 1 H'!E193*100,"-")) -> - | G195: =IF(OR('Tabel 1 H'!E193<5,'Tabel 2 H'!G195<0.5),"-",IFERROR('Tabel 2 H'!G195/'Tabel 1 H'!E193*100,"-")) -> - | I195: =IF(OR('Tabel 1 H'!G193<5,'Tabel 2 H'!I195<0.5),"-",IFERROR('Tabel 2 H'!I195/'Tabel 1 H'!G193*100,"-")) -> 2 | J195: =IF(OR('Tabel 1 H'!G193<5,'Tabel 2 H'!J195<0.5),"-",IFERROR('Tabel 2 H'!J195/'Tabel 1 H'!G193*100,"-")) -> 1.085261648
A196: Jurist | C196: =IF(OR('Tabel 1 H'!C194<5,'Tabel 2 H'!C196<0.5),"-",IFERROR('Tabel 2 H'!C196/'Tabel 1 H'!C194*100,"-")) -> 6.896551724 | D196: =IF(OR('Tabel 1 H'!C194<5,'Tabel 2 H'!D196<0.5),"-",IFERROR('Tabel 2 H'!D196/'Tabel 1 H'!C194*100,"-")) -> 5.974746052 | F196: =IF(OR('Tabel 1 H'!E194<5,'Tabel 2 H'!F196<0.5),"-",IFERROR('Tabel 2 H'!F196/'Tabel 1 H'!E194*100,"-")) -> 3.658536585 | G196: =IF(OR('Tabel 1 H'!E194<5,'Tabel 2 H'!G196<0.5),"-",IFERROR('Tabel 2 H'!G196/'Tabel 1 H'!E194*100,"-")) -> 3.657852022 | I196: =IF(OR('Tabel 1 H'!G194<5,'Tabel 2 H'!I196<0.5),"-",IFERROR('Tabel 2 H'!I196/'Tabel 1 H'!G194*100,"-")) -> 4.504504505 | J196: =IF(OR('Tabel 1 H'!G194<5,'Tabel 2 H'!J196<0.5),"-",IFERROR('Tabel 2 H'!J196/'Tabel 1 H'!G194*100,"-")) -> 4.263166678
A197: Økonom | C197: =IF(OR('Tabel 1 H'!C195<5,'Tabel 2 H'!C197<0.5),"-",IFERROR('Tabel 2 H'!C197/'Tabel 1 H'!C195*100,"-")) -> 1.785714286 | D197: =IF(OR('Tabel 1 H'!C195<5,'Tabel 2 H'!D197<0.5),"-",IFERROR('Tabel 2 H'!D197/'Tabel 1 H'!C195*100,"-")) -> 1.785380153 | F197: =IF(OR('Tabel 1 H'!E195<5,'Tabel 2 H'!F197<0.5),"-",IFERROR('Tabel 2 H'!F197/'Tabel 1 H'!E195*100,"-")) -> 4.166666667 | G197: =IF(OR('Tabel 1 H'!E195<5,'Tabel 2 H'!G197<0.5),"-",IFERROR('Tabel 2 H'!G197/'Tabel 1 H'!E195*100,"-")) -> 3.781263644 | I197: =IF(OR('Tabel 1 H'!G195<5,'Tabel 2 H'!I197<0.5),"-",IFERROR('Tabel 2 H'!I197/'Tabel 1 H'!G195*100,"-")) -> 2.5 | J197: =IF(OR('Tabel 1 H'!G195<5,'Tabel 2 H'!J197<0.5),"-",IFERROR('Tabel 2 H'!J197/'Tabel 1 H'!G195*100,"-")) -> 2.384145201
A198: Samf. Adm. | C198: =IF(OR('Tabel 1 H'!C196<5,'Tabel 2 H'!C198<0.5),"-",IFERROR('Tabel 2 H'!C198/'Tabel 1 H'!C196*100,"-")) -> 3.448275862 | D198: =IF(OR('Tabel 1 H'!C196<5,'Tabel 2 H'!D198<0.5),"-",IFERROR('Tabel 2 H'!D198/'Tabel 1 H'!C196*100,"-")) -> 3.041141439 | F198: =IF(OR('Tabel 1 H'!E196<5,'Tabel 2 H'!F198<0.5),"-",IFERROR('Tabel 2 H'!F198/'Tabel 1 H'!E196*100,"-")) -> 2.5 | G198: =IF(OR('Tabel 1 H'!E196<5,'Tabel 2 H'!G198<0.5),"-",IFERROR('Tabel 2 H'!G198/'Tabel 1 H'!E196*100,"-")) -> 1.794735857 | I198: =IF(OR('Tabel 1 H'!G196<5,'Tabel 2 H'!I198<0.5),"-",IFERROR('Tabel 2 H'!I198/'Tabel 1 H'!G196*100,"-")) -> 2.898550725 | J198: =IF(OR('Tabel 1 H'!G196<5,'Tabel 2 H'!J198<0.5),"-",IFERROR('Tabel 2 H'!J198/'Tabel 1 H'!G196*100,"-")) -> 2.318587479
A199: Cand. Merc. | C199: =IF(OR('Tabel 1 H'!C197<5,'Tabel 2 H'!C199<0.5),"-",IFERROR('Tabel 2 H'!C199/'Tabel 1 H'!C197*100,"-")) -> 0.7299270073 | D199: =IF(OR('Tabel 1 H'!C197<5,'Tabel 2 H'!D199<0.5),"-",IFERROR('Tabel 2 H'!D199/'Tabel 1 H'!C197*100,"-")) -> 0.7297904277 | F199: =IF(OR('Tabel 1 H'!E197<5,'Tabel 2 H'!F199<0.5),"-",IFERROR('Tabel 2 H'!F199/'Tabel 1 H'!E197*100,"-")) -> 2.941176471 | G199: =IF(OR('Tabel 1 H'!E197<5,'Tabel 2 H'!G199<0.5),"-",IFERROR('Tabel 2 H'!G199/'Tabel 1 H'!E197*100,"-")) -> 2.461375619 | I199: =IF(OR('Tabel 1 H'!G197<5,'Tabel 2 H'!I199<0.5),"-",IFERROR('Tabel 2 H'!I199/'Tabel 1 H'!G197*100,"-")) -> 1.831501832 | J199: =IF(OR('Tabel 1 H'!G197<5,'Tabel 2 H'!J199<0.5),"-",IFERROR('Tabel 2 H'!J199/'Tabel 1 H'!G197*100,"-")) -> 1.592411622
A200: HA | C200: =IF(OR('Tabel 1 H'!C198<5,'Tabel 2 H'!C200<0.5),"-",IFERROR('Tabel 2 H'!C200/'Tabel 1 H'!C198*100,"-")) -> - | D200: =IF(OR('Tabel 1 H'!C198<5,'Tabel 2 H'!D200<0.5),"-",IFERROR('Tabel 2 H'!D200/'Tabel 1 H'!C198*100,"-")) -> - | F200: =IF(OR('Tabel 1 H'!E198<5,'Tabel 2 H'!F200<0.5),"-",IFERROR('Tabel 2 H'!F200/'Tabel 1 H'!E198*100,"-")) -> - | G200: =IF(OR('Tabel 1 H'!E198<5,'Tabel 2 H'!G200<0.5),"-",IFERROR('Tabel 2 H'!G200/'Tabel 1 H'!E198*100,"-")) -> - | I200: =IF(OR('Tabel 1 H'!G198<5,'Tabel 2 H'!I200<0.5),"-",IFERROR('Tabel 2 H'!I200/'Tabel 1 H'!G198*100,"-")) -> - | J200: =IF(OR('Tabel 1 H'!G198<5,'Tabel 2 H'!J200<0.5),"-",IFERROR('Tabel 2 H'!J200/'Tabel 1 H'!G198*100,"-")) -> -
A201: HD | C201: =IF(OR('Tabel 1 H'!C199<5,'Tabel 2 H'!C201<0.5),"-",IFERROR('Tabel 2 H'!C201/'Tabel 1 H'!C199*100,"-")) -> 11.76470588 | D201: =IF(OR('Tabel 1 H'!C199<5,'Tabel 2 H'!D201<0.5),"-",IFERROR('Tabel 2 H'!D201/'Tabel 1 H'!C199*100,"-")) -> 8.776017112 | F201: =IF(OR('Tabel 1 H'!E199<5,'Tabel 2 H'!F201<0.5),"-",IFERROR('Tabel 2 H'!F201/'Tabel 1 H'!E199*100,"-")) -> - | G201: =IF(OR('Tabel 1 H'!E199<5,'Tabel 2 H'!G201<0.5),"-",IFERROR('Tabel 2 H'!G201/'Tabel 1 H'!E199*100,"-")) -> - | I201: =IF(OR('Tabel 1 H'!G199<5,'Tabel 2 H'!I201<0.5),"-",IFERROR('Tabel 2 H'!I201/'Tabel 1 H'!G199*100,"-")) -> 5.714285714 | J201: =IF(OR('Tabel 1 H'!G199<5,'Tabel 2 H'!J201<0.5),"-",IFERROR('Tabel 2 H'!J201/'Tabel 1 H'!G199*100,"-")) -> 4.262636883
A202: Komm. og Sprog | C202: =IF(OR('Tabel 1 H'!C200<5,'Tabel 2 H'!C202<0.5),"-",IFERROR('Tabel 2 H'!C202/'Tabel 1 H'!C200*100,"-")) -> - | D202: =IF(OR('Tabel 1 H'!C200<5,'Tabel 2 H'!D202<0.5),"-",IFERROR('Tabel 2 H'!D202/'Tabel 1 H'!C200*100,"-")) -> - | F202: =IF(OR('Tabel 1 H'!E200<5,'Tabel 2 H'!F202<0.5),"-",IFERROR('Tabel 2 H'!F202/'Tabel 1 H'!E200*100,"-")) -> 1.724137931 | G202: =IF(OR('Tabel 1 H'!E200<5,'Tabel 2 H'!G202<0.5),"-",IFERROR('Tabel 2 H'!G202/'Tabel 1 H'!E200*100,"-")) -> 1.405506316 | I202: =IF(OR('Tabel 1 H'!G200<5,'Tabel 2 H'!I202<0.5),"-",IFERROR('Tabel 2 H'!I202/'Tabel 1 H'!G200*100,"-")) -> 1.470588235 | J202: =IF(OR('Tabel 1 H'!G200<5,'Tabel 2 H'!J202<0.5),"-",IFERROR('Tabel 2 H'!J202/'Tabel 1 H'!G200*100,"-")) -> 1.19881421
A203: Bygningskonst. | C203: =IF(OR('Tabel 1 H'!C201<5,'Tabel 2 H'!C203<0.5),"-",IFERROR('Tabel 2 H'!C203/'Tabel 1 H'!C201*100,"-")) -> 1.886792453 | D203: =IF(OR('Tabel 1 H'!C201<5,'Tabel 2 H'!D203<0.5),"-",IFERROR('Tabel 2 H'!D203/'Tabel 1 H'!C201*100,"-")) -> 1.886792453 | F203: =IF(OR('Tabel 1 H'!E201<5,'Tabel 2 H'!F203<0.5),"-",IFERROR('Tabel 2 H'!F203/'Tabel 1 H'!E201*100,"-")) -> - | G203: =IF(OR('Tabel 1 H'!E201<5,'Tabel 2 H'!G203<0.5),"-",IFERROR('Tabel 2 H'!G203/'Tabel 1 H'!E201*100,"-")) -> - | I203: =IF(OR('Tabel 1 H'!G201<5,'Tabel 2 H'!I203<0.5),"-",IFERROR('Tabel 2 H'!I203/'Tabel 1 H'!G201*100,"-")) -> 1.538461538 | J203: =IF(OR('Tabel 1 H'!G201<5,'Tabel 2 H'!J203<0.5),"-",IFERROR('Tabel 2 H'!J203/'Tabel 1 H'!G201*100,"-")) -> 1.538461538
A204: Cand. IT. | C204: =IF(OR('Tabel 1 H'!C202<5,'Tabel 2 H'!C204<0.5),"-",IFERROR('Tabel 2 H'!C204/'Tabel 1 H'!C202*100,"-")) -> - | D204: =IF(OR('Tabel 1 H'!C202<5,'Tabel 2 H'!D204<0.5),"-",IFERROR('Tabel 2 H'!D204/'Tabel 1 H'!C202*100,"-")) -> - | F204: =IF(OR('Tabel 1 H'!E202<5,'Tabel 2 H'!F204<0.5),"-",IFERROR('Tabel 2 H'!F204/'Tabel 1 H'!E202*100,"-")) -> - | G204: =IF(OR('Tabel 1 H'!E202<5,'Tabel 2 H'!G204<0.5),"-",IFERROR('Tabel 2 H'!G204/'Tabel 1 H'!E202*100,"-")) -> - | I204: =IF(OR('Tabel 1 H'!G202<5,'Tabel 2 H'!I204<0.5),"-",IFERROR('Tabel 2 H'!I204/'Tabel 1 H'!G202*100,"-")) -> - | J204: =IF(OR('Tabel 1 H'!G202<5,'Tabel 2 H'!J204<0.5),"-",IFERROR('Tabel 2 H'!J204/'Tabel 1 H'!G202*100,"-")) -> -
A205: Bac. Samf. | C205: =IF(OR('Tabel 1 H'!C203<5,'Tabel 2 H'!C205<0.5),"-",IFERROR('Tabel 2 H'!C205/'Tabel 1 H'!C203*100,"-")) -> - | D205: =IF(OR('Tabel 1 H'!C203<5,'Tabel 2 H'!D205<0.5),"-",IFERROR('Tabel 2 H'!D205/'Tabel 1 H'!C203*100,"-")) -> - | F205: =IF(OR('Tabel 1 H'!E203<5,'Tabel 2 H'!F205<0.5),"-",IFERROR('Tabel 2 H'!F205/'Tabel 1 H'!E203*100,"-")) -> 20 | G205: =IF(OR('Tabel 1 H'!E203<5,'Tabel 2 H'!G205<0.5),"-",IFERROR('Tabel 2 H'!G205/'Tabel 1 H'!E203*100,"-")) -> 16.30387326 | I205: =IF(OR('Tabel 1 H'!G203<5,'Tabel 2 H'!I205<0.5),"-",IFERROR('Tabel 2 H'!I205/'Tabel 1 H'!G203*100,"-")) -> 12.5 | J205: =IF(OR('Tabel 1 H'!G203<5,'Tabel 2 H'!J205<0.5),"-",IFERROR('Tabel 2 H'!J205/'Tabel 1 H'!G203*100,"-")) -> 10.18992079
A206: Bac. Hum. | C206: =IF(OR('Tabel 1 H'!C204<5,'Tabel 2 H'!C206<0.5),"-",IFERROR('Tabel 2 H'!C206/'Tabel 1 H'!C204*100,"-")) -> - | D206: =IF(OR('Tabel 1 H'!C204<5,'Tabel 2 H'!D206<0.5),"-",IFERROR('Tabel 2 H'!D206/'Tabel 1 H'!C204*100,"-")) -> - | F206: =IF(OR('Tabel 1 H'!E204<5,'Tabel 2 H'!F206<0.5),"-",IFERROR('Tabel 2 H'!F206/'Tabel 1 H'!E204*100,"-")) -> - | G206: =IF(OR('Tabel 1 H'!E204<5,'Tabel 2 H'!G206<0.5),"-",IFERROR('Tabel 2 H'!G206/'Tabel 1 H'!E204*100,"-")) -> - | I206: =IF(OR('Tabel 1 H'!G204<5,'Tabel 2 H'!I206<0.5),"-",IFERROR('Tabel 2 H'!I206/'Tabel 1 H'!G204*100,"-")) -> - | J206: =IF(OR('Tabel 1 H'!G204<5,'Tabel 2 H'!J206<0.5),"-",IFERROR('Tabel 2 H'!J206/'Tabel 1 H'!G204*100,"-")) -> -
A207: Bac. Nat. | C207: =IF(OR('Tabel 1 H'!C205<5,'Tabel 2 H'!C207<0.5),"-",IFERROR('Tabel 2 H'!C207/'Tabel 1 H'!C205*100,"-")) -> 11.42857143 | D207: =IF(OR('Tabel 1 H'!C205<5,'Tabel 2 H'!D207<0.5),"-",IFERROR('Tabel 2 H'!D207/'Tabel 1 H'!C205*100,"-")) -> 10.03644269 | F207: =IF(OR('Tabel 1 H'!E205<5,'Tabel 2 H'!F207<0.5),"-",IFERROR('Tabel 2 H'!F207/'Tabel 1 H'!E205*100,"-")) -> 22.22222222 | G207: =IF(OR('Tabel 1 H'!E205<5,'Tabel 2 H'!G207<0.5),"-",IFERROR('Tabel 2 H'!G207/'Tabel 1 H'!E205*100,"-")) -> 21.3448651 | I207: =IF(OR('Tabel 1 H'!G205<5,'Tabel 2 H'!I207<0.5),"-",IFERROR('Tabel 2 H'!I207/'Tabel 1 H'!G205*100,"-")) -> 13.63636364 | J207: =IF(OR('Tabel 1 H'!G205<5,'Tabel 2 H'!J207<0.5),"-",IFERROR('Tabel 2 H'!J207/'Tabel 1 H'!G205*100,"-")) -> 12.3495291
A208: Andre | C208: =IF(OR('Tabel 1 H'!C206<5,'Tabel 2 H'!C208<0.5),"-",IFERROR('Tabel 2 H'!C208/'Tabel 1 H'!C206*100,"-")) -> 2.97029703 | D208: =IF(OR('Tabel 1 H'!C206<5,'Tabel 2 H'!D208<0.5),"-",IFERROR('Tabel 2 H'!D208/'Tabel 1 H'!C206*100,"-")) -> 2.969741245 | F208: =IF(OR('Tabel 1 H'!E206<5,'Tabel 2 H'!F208<0.5),"-",IFERROR('Tabel 2 H'!F208/'Tabel 1 H'!E206*100,"-")) -> 9.89010989 | G208: =IF(OR('Tabel 1 H'!E206<5,'Tabel 2 H'!G208<0.5),"-",IFERROR('Tabel 2 H'!G208/'Tabel 1 H'!E206*100,"-")) -> 8.693607895 | I208: =IF(OR('Tabel 1 H'!G206<5,'Tabel 2 H'!I208<0.5),"-",IFERROR('Tabel 2 H'!I208/'Tabel 1 H'!G206*100,"-")) -> 6.25 | J208: =IF(OR('Tabel 1 H'!G206<5,'Tabel 2 H'!J208<0.5),"-",IFERROR('Tabel 2 H'!J208/'Tabel 1 H'!G206*100,"-")) -> 5.682615543
A210: Total | C210: =IF(OR('Tabel 1 H'!C208<5,'Tabel 2 H'!C210<0.5),"-",IFERROR('Tabel 2 H'!C210/'Tabel 1 H'!C208*100,"-")) -> 2.509760178 | D210: =IF(OR('Tabel 1 H'!C208<5,'Tabel 2 H'!D210<0.5),"-",IFERROR('Tabel 2 H'!D210/'Tabel 1 H'!C208*100,"-")) -> 2.112218424 | F210: =IF(OR('Tabel 1 H'!E208<5,'Tabel 2 H'!F210<0.5),"-",IFERROR('Tabel 2 H'!F210/'Tabel 1 H'!E208*100,"-")) -> 3.051493961 | G210: =IF(OR('Tabel 1 H'!E208<5,'Tabel 2 H'!G210<0.5),"-",IFERROR('Tabel 2 H'!G210/'Tabel 1 H'!E208*100,"-")) -> 2.69699625 | I210: =IF(OR('Tabel 1 H'!G208<5,'Tabel 2 H'!I210<0.5),"-",IFERROR('Tabel 2 H'!I210/'Tabel 1 H'!G208*100,"-")) -> 2.762923351 | J210: =IF(OR('Tabel 1 H'!G208<5,'Tabel 2 H'!J210<0.5),"-",IFERROR('Tabel 2 H'!J210/'Tabel 1 H'!G208*100,"-")) -> 2.385496951
A212: Ingeniører i alt | C212: =IF(OR('Tabel 1 H'!C210<5,'Tabel 2 H'!C212<0.5),"-",IFERROR('Tabel 2 H'!C212/'Tabel 1 H'!C210*100,"-")) -> 2.654867257 | D212: =IF(OR('Tabel 1 H'!C210<5,'Tabel 2 H'!D212<0.5),"-",IFERROR('Tabel 2 H'!D212/'Tabel 1 H'!C210*100,"-")) -> 2.190094182 | F212: =IF(OR('Tabel 1 H'!E210<5,'Tabel 2 H'!F212<0.5),"-",IFERROR('Tabel 2 H'!F212/'Tabel 1 H'!E210*100,"-")) -> 2.247191011 | G212: =IF(OR('Tabel 1 H'!E210<5,'Tabel 2 H'!G212<0.5),"-",IFERROR('Tabel 2 H'!G212/'Tabel 1 H'!E210*100,"-")) -> 1.965749013 | I212: =IF(OR('Tabel 1 H'!G210<5,'Tabel 2 H'!I212<0.5),"-",IFERROR('Tabel 2 H'!I212/'Tabel 1 H'!G210*100,"-")) -> 2.551984877 | J212: =IF(OR('Tabel 1 H'!G210<5,'Tabel 2 H'!J212<0.5),"-",IFERROR('Tabel 2 H'!J212/'Tabel 1 H'!G210*100,"-")) -> 2.133477774
A213: Magistre i alt | C213: =IF(OR('Tabel 1 H'!C211<5,'Tabel 2 H'!C213<0.5),"-",IFERROR('Tabel 2 H'!C213/'Tabel 1 H'!C211*100,"-")) -> 1.075268817 | D213: =IF(OR('Tabel 1 H'!C211<5,'Tabel 2 H'!D213<0.5),"-",IFERROR('Tabel 2 H'!D213/'Tabel 1 H'!C211*100,"-")) -> 0.9758099726 | F213: =IF(OR('Tabel 1 H'!E211<5,'Tabel 2 H'!F213<0.5),"-",IFERROR('Tabel 2 H'!F213/'Tabel 1 H'!E211*100,"-")) -> 2.06185567 | G213: =IF(OR('Tabel 1 H'!E211<5,'Tabel 2 H'!G213<0.5),"-",IFERROR('Tabel 2 H'!G213/'Tabel 1 H'!E211*100,"-")) -> 1.947229544 | I213: =IF(OR('Tabel 1 H'!G211<5,'Tabel 2 H'!I213<0.5),"-",IFERROR('Tabel 2 H'!I213/'Tabel 1 H'!G211*100,"-")) -> 1.677148847 | J213: =IF(OR('Tabel 1 H'!G211<5,'Tabel 2 H'!J213<0.5),"-",IFERROR('Tabel 2 H'!J213/'Tabel 1 H'!G211*100,"-")) -> 1.568437006
A214: DJØF'ere i alt | C214: =IF(OR('Tabel 1 H'!C212<5,'Tabel 2 H'!C214<0.5),"-",IFERROR('Tabel 2 H'!C214/'Tabel 1 H'!C212*100,"-")) -> 2.127659574 | D214: =IF(OR('Tabel 1 H'!C212<5,'Tabel 2 H'!D214<0.5),"-",IFERROR('Tabel 2 H'!D214/'Tabel 1 H'!C212*100,"-")) -> 1.938630753 | F214: =IF(OR('Tabel 1 H'!E212<5,'Tabel 2 H'!F214<0.5),"-",IFERROR('Tabel 2 H'!F214/'Tabel 1 H'!E212*100,"-")) -> 2.91005291 | G214: =IF(OR('Tabel 1 H'!E212<5,'Tabel 2 H'!G214<0.5),"-",IFERROR('Tabel 2 H'!G214/'Tabel 1 H'!E212*100,"-")) -> 2.488914233 | I214: =IF(OR('Tabel 1 H'!G212<5,'Tabel 2 H'!I214<0.5),"-",IFERROR('Tabel 2 H'!I214/'Tabel 1 H'!G212*100,"-")) -> 2.545968883 | J214: =IF(OR('Tabel 1 H'!G212<5,'Tabel 2 H'!J214<0.5),"-",IFERROR('Tabel 2 H'!J214/'Tabel 1 H'!G212*100,"-")) -> 2.232841723
A219: Brøndby
C221: Mænd | F221: Kvinder | I221: I alt
C222: Ledigheds- berørte | D222: Gns. brutto- ledighed | F222: Ledigheds- berørte | G222: Gns. brutto- ledighed | I222: Ledigheds- berørte | J222: Gns. brutto- ledighed
A225: Civ. ing. | C225: =IF(OR('Tabel 1 H'!C223<5,'Tabel 2 H'!C225<0.5),"-",IFERROR('Tabel 2 H'!C225/'Tabel 1 H'!C223*100,"-")) -> 6.593406593 | D225: =IF(OR('Tabel 1 H'!C223<5,'Tabel 2 H'!D225<0.5),"-",IFERROR('Tabel 2 H'!D225/'Tabel 1 H'!C223*100,"-")) -> 6.547621903 | F225: =IF(OR('Tabel 1 H'!E223<5,'Tabel 2 H'!F225<0.5),"-",IFERROR('Tabel 2 H'!F225/'Tabel 1 H'!E223*100,"-")) -> - | G225: =IF(OR('Tabel 1 H'!E223<5,'Tabel 2 H'!G225<0.5),"-",IFERROR('Tabel 2 H'!G225/'Tabel 1 H'!E223*100,"-")) -> - | I225: =IF(OR('Tabel 1 H'!G223<5,'Tabel 2 H'!I225<0.5),"-",IFERROR('Tabel 2 H'!I225/'Tabel 1 H'!G223*100,"-")) -> 4.838709677 | J225: =IF(OR('Tabel 1 H'!G223<5,'Tabel 2 H'!J225<0.5),"-",IFERROR('Tabel 2 H'!J225/'Tabel 1 H'!G223*100,"-")) -> 4.805109623
A226: Diplom ing. | C226: =IF(OR('Tabel 1 H'!C224<5,'Tabel 2 H'!C226<0.5),"-",IFERROR('Tabel 2 H'!C226/'Tabel 1 H'!C224*100,"-")) -> 2.222222222 | D226: =IF(OR('Tabel 1 H'!C224<5,'Tabel 2 H'!D226<0.5),"-",IFERROR('Tabel 2 H'!D226/'Tabel 1 H'!C224*100,"-")) -> 2.187617668 | F226: =IF(OR('Tabel 1 H'!E224<5,'Tabel 2 H'!F226<0.5),"-",IFERROR('Tabel 2 H'!F226/'Tabel 1 H'!E224*100,"-")) -> 3.703703704 | G226: =IF(OR('Tabel 1 H'!E224<5,'Tabel 2 H'!G226<0.5),"-",IFERROR('Tabel 2 H'!G226/'Tabel 1 H'!E224*100,"-")) -> 3.532066964 | I226: =IF(OR('Tabel 1 H'!G224<5,'Tabel 2 H'!I226<0.5),"-",IFERROR('Tabel 2 H'!I226/'Tabel 1 H'!G224*100,"-")) -> 2.469135802 | J226: =IF(OR('Tabel 1 H'!G224<5,'Tabel 2 H'!J226<0.5),"-",IFERROR('Tabel 2 H'!J226/'Tabel 1 H'!G224*100,"-")) -> 2.411692551
A227: Cand. Scient. Tek. | C227: =IF(OR('Tabel 1 H'!C225<5,'Tabel 2 H'!C227<0.5),"-",IFERROR('Tabel 2 H'!C227/'Tabel 1 H'!C225*100,"-")) -> 11.11111111 | D227: =IF(OR('Tabel 1 H'!C225<5,'Tabel 2 H'!D227<0.5),"-",IFERROR('Tabel 2 H'!D227/'Tabel 1 H'!C225*100,"-")) -> 8.446468049 | F227: =IF(OR('Tabel 1 H'!E225<5,'Tabel 2 H'!F227<0.5),"-",IFERROR('Tabel 2 H'!F227/'Tabel 1 H'!E225*100,"-")) -> 3.448275862 | G227: =IF(OR('Tabel 1 H'!E225<5,'Tabel 2 H'!G227<0.5),"-",IFERROR('Tabel 2 H'!G227/'Tabel 1 H'!E225*100,"-")) -> 3.447630641 | I227: =IF(OR('Tabel 1 H'!G225<5,'Tabel 2 H'!I227<0.5),"-",IFERROR('Tabel 2 H'!I227/'Tabel 1 H'!G225*100,"-")) -> 8.108108108 | J227: =IF(OR('Tabel 1 H'!G225<5,'Tabel 2 H'!J227<0.5),"-",IFERROR('Tabel 2 H'!J227/'Tabel 1 H'!G225*100,"-")) -> 6.4874642
A228: MA. Hum. | C228: =IF(OR('Tabel 1 H'!C226<5,'Tabel 2 H'!C228<0.5),"-",IFERROR('Tabel 2 H'!C228/'Tabel 1 H'!C226*100,"-")) -> 8.695652174 | D228: =IF(OR('Tabel 1 H'!C226<5,'Tabel 2 H'!D228<0.5),"-",IFERROR('Tabel 2 H'!D228/'Tabel 1 H'!C226*100,"-")) -> 7.289313617 | F228: =IF(OR('Tabel 1 H'!E226<5,'Tabel 2 H'!F228<0.5),"-",IFERROR('Tabel 2 H'!F228/'Tabel 1 H'!E226*100,"-")) -> 10.9375 | G228: =IF(OR('Tabel 1 H'!E226<5,'Tabel 2 H'!G228<0.5),"-",IFERROR('Tabel 2 H'!G228/'Tabel 1 H'!E226*100,"-")) -> 9.89658049 | I228: =IF(OR('Tabel 1 H'!G226<5,'Tabel 2 H'!I228<0.5),"-",IFERROR('Tabel 2 H'!I228/'Tabel 1 H'!G226*100,"-")) -> 10.34482759 | J228: =IF(OR('Tabel 1 H'!G226<5,'Tabel 2 H'!J228<0.5),"-",IFERROR('Tabel 2 H'!J228/'Tabel 1 H'!G226*100,"-")) -> 9.207303041
A229: MA. Nat. | C229: =IF(OR('Tabel 1 H'!C227<5,'Tabel 2 H'!C229<0.5),"-",IFERROR('Tabel 2 H'!C229/'Tabel 1 H'!C227*100,"-")) -> 3.571428571 | D229: =IF(OR('Tabel 1 H'!C227<5,'Tabel 2 H'!D229<0.5),"-",IFERROR('Tabel 2 H'!D229/'Tabel 1 H'!C227*100,"-")) -> 2.456986038 | F229: =IF(OR('Tabel 1 H'!E227<5,'Tabel 2 H'!F229<0.5),"-",IFERROR('Tabel 2 H'!F229/'Tabel 1 H'!E227*100,"-")) -> 3.846153846 | G229: =IF(OR('Tabel 1 H'!E227<5,'Tabel 2 H'!G229<0.5),"-",IFERROR('Tabel 2 H'!G229/'Tabel 1 H'!E227*100,"-")) -> - | I229: =IF(OR('Tabel 1 H'!G227<5,'Tabel 2 H'!I229<0.5),"-",IFERROR('Tabel 2 H'!I229/'Tabel 1 H'!G227*100,"-")) -> 3.703703704 | J229: =IF(OR('Tabel 1 H'!G227<5,'Tabel 2 H'!J229<0.5),"-",IFERROR('Tabel 2 H'!J229/'Tabel 1 H'!G227*100,"-")) -> 1.602019908
A230: MA. Ph.d. | C230: =IF(OR('Tabel 1 H'!C228<5,'Tabel 2 H'!C230<0.5),"-",IFERROR('Tabel 2 H'!C230/'Tabel 1 H'!C228*100,"-")) -> - | D230: =IF(OR('Tabel 1 H'!C228<5,'Tabel 2 H'!D230<0.5),"-",IFERROR('Tabel 2 H'!D230/'Tabel 1 H'!C228*100,"-")) -> - | F230: =IF(OR('Tabel 1 H'!E228<5,'Tabel 2 H'!F230<0.5),"-",IFERROR('Tabel 2 H'!F230/'Tabel 1 H'!E228*100,"-")) -> - | G230: =IF(OR('Tabel 1 H'!E228<5,'Tabel 2 H'!G230<0.5),"-",IFERROR('Tabel 2 H'!G230/'Tabel 1 H'!E228*100,"-")) -> - | I230: =IF(OR('Tabel 1 H'!G228<5,'Tabel 2 H'!I230<0.5),"-",IFERROR('Tabel 2 H'!I230/'Tabel 1 H'!G228*100,"-")) -> - | J230: =IF(OR('Tabel 1 H'!G228<5,'Tabel 2 H'!J230<0.5),"-",IFERROR('Tabel 2 H'!J230/'Tabel 1 H'!G228*100,"-")) -> -
A231: MA. Samf. | C231: =IF(OR('Tabel 1 H'!C229<5,'Tabel 2 H'!C231<0.5),"-",IFERROR('Tabel 2 H'!C231/'Tabel 1 H'!C229*100,"-")) -> 18.18181818 | D231: =IF(OR('Tabel 1 H'!C229<5,'Tabel 2 H'!D231<0.5),"-",IFERROR('Tabel 2 H'!D231/'Tabel 1 H'!C229*100,"-")) -> 18.17841611 | F231: =IF(OR('Tabel 1 H'!E229<5,'Tabel 2 H'!F231<0.5),"-",IFERROR('Tabel 2 H'!F231/'Tabel 1 H'!E229*100,"-")) -> 7.692307692 | G231: =IF(OR('Tabel 1 H'!E229<5,'Tabel 2 H'!G231<0.5),"-",IFERROR('Tabel 2 H'!G231/'Tabel 1 H'!E229*100,"-")) -> 7.690868353 | I231: =IF(OR('Tabel 1 H'!G229<5,'Tabel 2 H'!I231<0.5),"-",IFERROR('Tabel 2 H'!I231/'Tabel 1 H'!G229*100,"-")) -> 12.5 | J231: =IF(OR('Tabel 1 H'!G229<5,'Tabel 2 H'!J231<0.5),"-",IFERROR('Tabel 2 H'!J231/'Tabel 1 H'!G229*100,"-")) -> 12.49766107
A232: Øvrige Mag. | C232: =IF(OR('Tabel 1 H'!C230<5,'Tabel 2 H'!C232<0.5),"-",IFERROR('Tabel 2 H'!C232/'Tabel 1 H'!C230*100,"-")) -> 14.28571429 | D232: =IF(OR('Tabel 1 H'!C230<5,'Tabel 2 H'!D232<0.5),"-",IFERROR('Tabel 2 H'!D232/'Tabel 1 H'!C230*100,"-")) -> 7.689497554 | F232: =IF(OR('Tabel 1 H'!E230<5,'Tabel 2 H'!F232<0.5),"-",IFERROR('Tabel 2 H'!F232/'Tabel 1 H'!E230*100,"-")) -> 14.28571429 | G232: =IF(OR('Tabel 1 H'!E230<5,'Tabel 2 H'!G232<0.5),"-",IFERROR('Tabel 2 H'!G232/'Tabel 1 H'!E230*100,"-")) -> 14.28304123 | I232: =IF(OR('Tabel 1 H'!G230<5,'Tabel 2 H'!I232<0.5),"-",IFERROR('Tabel 2 H'!I232/'Tabel 1 H'!G230*100,"-")) -> 14.28571429 | J232: =IF(OR('Tabel 1 H'!G230<5,'Tabel 2 H'!J232<0.5),"-",IFERROR('Tabel 2 H'!J232/'Tabel 1 H'!G230*100,"-")) -> 10.98626939
A233: Agronom | C233: =IF(OR('Tabel 1 H'!C231<5,'Tabel 2 H'!C233<0.5),"-",IFERROR('Tabel 2 H'!C233/'Tabel 1 H'!C231*100,"-")) -> - | D233: =IF(OR('Tabel 1 H'!C231<5,'Tabel 2 H'!D233<0.5),"-",IFERROR('Tabel 2 H'!D233/'Tabel 1 H'!C231*100,"-")) -> - | F233: =IF(OR('Tabel 1 H'!E231<5,'Tabel 2 H'!F233<0.5),"-",IFERROR('Tabel 2 H'!F233/'Tabel 1 H'!E231*100,"-")) -> - | G233: =IF(OR('Tabel 1 H'!E231<5,'Tabel 2 H'!G233<0.5),"-",IFERROR('Tabel 2 H'!G233/'Tabel 1 H'!E231*100,"-")) -> - | I233: =IF(OR('Tabel 1 H'!G231<5,'Tabel 2 H'!I233<0.5),"-",IFERROR('Tabel 2 H'!I233/'Tabel 1 H'!G231*100,"-")) -> 16.66666667 | J233: =IF(OR('Tabel 1 H'!G231<5,'Tabel 2 H'!J233<0.5),"-",IFERROR('Tabel 2 H'!J233/'Tabel 1 H'!G231*100,"-")) -> 15.00031186
A234: Landsk. Arkt. | C234: =IF(OR('Tabel 1 H'!C232<5,'Tabel 2 H'!C234<0.5),"-",IFERROR('Tabel 2 H'!C234/'Tabel 1 H'!C232*100,"-")) -> - | D234: =IF(OR('Tabel 1 H'!C232<5,'Tabel 2 H'!D234<0.5),"-",IFERROR('Tabel 2 H'!D234/'Tabel 1 H'!C232*100,"-")) -> - | F234: =IF(OR('Tabel 1 H'!E232<5,'Tabel 2 H'!F234<0.5),"-",IFERROR('Tabel 2 H'!F234/'Tabel 1 H'!E232*100,"-")) -> - | G234: =IF(OR('Tabel 1 H'!E232<5,'Tabel 2 H'!G234<0.5),"-",IFERROR('Tabel 2 H'!G234/'Tabel 1 H'!E232*100,"-")) -> - | I234: =IF(OR('Tabel 1 H'!G232<5,'Tabel 2 H'!I234<0.5),"-",IFERROR('Tabel 2 H'!I234/'Tabel 1 H'!G232*100,"-")) -> - | J234: =IF(OR('Tabel 1 H'!G232<5,'Tabel 2 H'!J234<0.5),"-",IFERROR('Tabel 2 H'!J234/'Tabel 1 H'!G232*100,"-")) -> -
A235: Hortonom | C235: =IF(OR('Tabel 1 H'!C233<5,'Tabel 2 H'!C235<0.5),"-",IFERROR('Tabel 2 H'!C235/'Tabel 1 H'!C233*100,"-")) -> - | D235: =IF(OR('Tabel 1 H'!C233<5,'Tabel 2 H'!D235<0.5),"-",IFERROR('Tabel 2 H'!D235/'Tabel 1 H'!C233*100,"-")) -> - | F235: =IF(OR('Tabel 1 H'!E233<5,'Tabel 2 H'!F235<0.5),"-",IFERROR('Tabel 2 H'!F235/'Tabel 1 H'!E233*100,"-")) -> - | G235: =IF(OR('Tabel 1 H'!E233<5,'Tabel 2 H'!G235<0.5),"-",IFERROR('Tabel 2 H'!G235/'Tabel 1 H'!E233*100,"-")) -> - | I235: =IF(OR('Tabel 1 H'!G233<5,'Tabel 2 H'!I235<0.5),"-",IFERROR('Tabel 2 H'!I235/'Tabel 1 H'!G233*100,"-")) -> - | J235: =IF(OR('Tabel 1 H'!G233<5,'Tabel 2 H'!J235<0.5),"-",IFERROR('Tabel 2 H'!J235/'Tabel 1 H'!G233*100,"-")) -> -
A236: Forstkand. | C236: =IF(OR('Tabel 1 H'!C234<5,'Tabel 2 H'!C236<0.5),"-",IFERROR('Tabel 2 H'!C236/'Tabel 1 H'!C234*100,"-")) -> - | D236: =IF(OR('Tabel 1 H'!C234<5,'Tabel 2 H'!D236<0.5),"-",IFERROR('Tabel 2 H'!D236/'Tabel 1 H'!C234*100,"-")) -> - | F236: =IF(OR('Tabel 1 H'!E234<5,'Tabel 2 H'!F236<0.5),"-",IFERROR('Tabel 2 H'!F236/'Tabel 1 H'!E234*100,"-")) -> - | G236: =IF(OR('Tabel 1 H'!E234<5,'Tabel 2 H'!G236<0.5),"-",IFERROR('Tabel 2 H'!G236/'Tabel 1 H'!E234*100,"-")) -> - | I236: =IF(OR('Tabel 1 H'!G234<5,'Tabel 2 H'!I236<0.5),"-",IFERROR('Tabel 2 H'!I236/'Tabel 1 H'!G234*100,"-")) -> - | J236: =IF(OR('Tabel 1 H'!G234<5,'Tabel 2 H'!J236<0.5),"-",IFERROR('Tabel 2 H'!J236/'Tabel 1 H'!G234*100,"-")) -> -
A237: Jordbrugsakad. | C237: =IF(OR('Tabel 1 H'!C235<5,'Tabel 2 H'!C237<0.5),"-",IFERROR('Tabel 2 H'!C237/'Tabel 1 H'!C235*100,"-")) -> - | D237: =IF(OR('Tabel 1 H'!C235<5,'Tabel 2 H'!D237<0.5),"-",IFERROR('Tabel 2 H'!D237/'Tabel 1 H'!C235*100,"-")) -> - | F237: =IF(OR('Tabel 1 H'!E235<5,'Tabel 2 H'!F237<0.5),"-",IFERROR('Tabel 2 H'!F237/'Tabel 1 H'!E235*100,"-")) -> 8.333333333 | G237: =IF(OR('Tabel 1 H'!E235<5,'Tabel 2 H'!G237<0.5),"-",IFERROR('Tabel 2 H'!G237/'Tabel 1 H'!E235*100,"-")) -> 7.500155928 | I237: =IF(OR('Tabel 1 H'!G235<5,'Tabel 2 H'!I237<0.5),"-",IFERROR('Tabel 2 H'!I237/'Tabel 1 H'!G235*100,"-")) -> 7.142857143 | J237: =IF(OR('Tabel 1 H'!G235<5,'Tabel 2 H'!J237<0.5),"-",IFERROR('Tabel 2 H'!J237/'Tabel 1 H'!G235*100,"-")) -> 6.428705081
A238: Mejeriing. | C238: =IF(OR('Tabel 1 H'!C236<5,'Tabel 2 H'!C238<0.5),"-",IFERROR('Tabel 2 H'!C238/'Tabel 1 H'!C236*100,"-")) -> - | D238: =IF(OR('Tabel 1 H'!C236<5,'Tabel 2 H'!D238<0.5),"-",IFERROR('Tabel 2 H'!D238/'Tabel 1 H'!C236*100,"-")) -> - | F238: =IF(OR('Tabel 1 H'!E236<5,'Tabel 2 H'!F238<0.5),"-",IFERROR('Tabel 2 H'!F238/'Tabel 1 H'!E236*100,"-")) -> - | G238: =IF(OR('Tabel 1 H'!E236<5,'Tabel 2 H'!G238<0.5),"-",IFERROR('Tabel 2 H'!G238/'Tabel 1 H'!E236*100,"-")) -> - | I238: =IF(OR('Tabel 1 H'!G236<5,'Tabel 2 H'!I238<0.5),"-",IFERROR('Tabel 2 H'!I238/'Tabel 1 H'!G236*100,"-")) -> - | J238: =IF(OR('Tabel 1 H'!G236<5,'Tabel 2 H'!J238<0.5),"-",IFERROR('Tabel 2 H'!J238/'Tabel 1 H'!G236*100,"-")) -> -
A239: Levn.m.kand. | C239: =IF(OR('Tabel 1 H'!C237<5,'Tabel 2 H'!C239<0.5),"-",IFERROR('Tabel 2 H'!C239/'Tabel 1 H'!C237*100,"-")) -> - | D239: =IF(OR('Tabel 1 H'!C237<5,'Tabel 2 H'!D239<0.5),"-",IFERROR('Tabel 2 H'!D239/'Tabel 1 H'!C237*100,"-")) -> - | F239: =IF(OR('Tabel 1 H'!E237<5,'Tabel 2 H'!F239<0.5),"-",IFERROR('Tabel 2 H'!F239/'Tabel 1 H'!E237*100,"-")) -> - | G239: =IF(OR('Tabel 1 H'!E237<5,'Tabel 2 H'!G239<0.5),"-",IFERROR('Tabel 2 H'!G239/'Tabel 1 H'!E237*100,"-")) -> - | I239: =IF(OR('Tabel 1 H'!G237<5,'Tabel 2 H'!I239<0.5),"-",IFERROR('Tabel 2 H'!I239/'Tabel 1 H'!G237*100,"-")) -> - | J239: =IF(OR('Tabel 1 H'!G237<5,'Tabel 2 H'!J239<0.5),"-",IFERROR('Tabel 2 H'!J239/'Tabel 1 H'!G237*100,"-")) -> -
A240: Dyrlæge | C240: =IF(OR('Tabel 1 H'!C238<5,'Tabel 2 H'!C240<0.5),"-",IFERROR('Tabel 2 H'!C240/'Tabel 1 H'!C238*100,"-")) -> - | D240: =IF(OR('Tabel 1 H'!C238<5,'Tabel 2 H'!D240<0.5),"-",IFERROR('Tabel 2 H'!D240/'Tabel 1 H'!C238*100,"-")) -> - | F240: =IF(OR('Tabel 1 H'!E238<5,'Tabel 2 H'!F240<0.5),"-",IFERROR('Tabel 2 H'!F240/'Tabel 1 H'!E238*100,"-")) -> - | G240: =IF(OR('Tabel 1 H'!E238<5,'Tabel 2 H'!G240<0.5),"-",IFERROR('Tabel 2 H'!G240/'Tabel 1 H'!E238*100,"-")) -> - | I240: =IF(OR('Tabel 1 H'!G238<5,'Tabel 2 H'!I240<0.5),"-",IFERROR('Tabel 2 H'!I240/'Tabel 1 H'!G238*100,"-")) -> - | J240: =IF(OR('Tabel 1 H'!G238<5,'Tabel 2 H'!J240<0.5),"-",IFERROR('Tabel 2 H'!J240/'Tabel 1 H'!G238*100,"-")) -> -
... 1106 more rows

Sheet Tabel 4F H
A1: Tabel 4. Antal forsikrede - aldersfordelt
A3: Hovedstaden
C5: Under 30 år | D5: 30 - 39 år | E5: 40 - 49 år | F5: 50 - 59 år | G5: Over 60 år | I5: I alt
A7: Civ. ing. | C7: 3086 | D7: 5913 | E7: 4197 | F7: 3786 | G7: 1348 | I7: 18330
A8: Diplom ing. | C8: 1115 | D8: 2171 | E8: 2853 | F8: 4590 | G8: 1752 | I8: 12481
A9: Cand. Scient. Tek. | C9: 3061 | D9: 5848 | E9: 1795 | F9: 642 | G9: 134 | I9: 11480
A10: MA. Hum. | C10: 2580 | D10: 7332 | E10: 6555 | F10: 2950 | G10: 1045 | I10: 20462
A11: MA. Nat. | C11: 534 | D11: 1562 | E11: 2331 | F11: 1967 | G11: 755 | I11: 7149
A12: MA. Ph.d. | C12: 13 | D12: 349 | E12: 472 | F12: 375 | G12: 93 | I12: 1302
A13: MA. Samf. | C13: 932 | D13: 1808 | E13: 624 | F13: 283 | G13: 52 | I13: 3699
A14: Øvrige Mag. | C14: 299 | D14: 412 | E14: 515 | F14: 411 | G14: 129 | I14: 1766
A15: Agronom | C15: 125 | D15: 174 | E15: 191 | F15: 260 | G15: 105 | I15: 855
A16: Landsk. Arkt. | C16: 57 | D16: 182 | E16: 143 | F16: 87 | G16: 24 | I16: 493
A17: Hortonom | C17: 0 | D17: 13 | E17: 36 | F17: 71 | G17: 28 | I17: 148
A18: Forstkand. | C18: 20 | D18: 45 | E18: 95 | F18: 69 | G18: 29 | I18: 258
A19: Jordbrugsakad. | C19: 202 | D19: 414 | E19: 465 | F19: 487 | G19: 186 | I19: 1754
A20: Mejeriing. | C20: 29 | D20: 48 | E20: 25 | F20: 32 | G20: 15 | I20: 149
A21: Levn.m.kand. | C21: 62 | D21: 171 | E21: 82 | F21: 9 | G21: 3 | I21: 327
A22: Dyrlæge | C22: 149 | D22: 368 | E22: 224 | F22: 151 | G22: 75 | I22: 967
A23: Farmaceut | C23: 649 | D23: 1329 | E23: 1042 | F23: 656 | G23: 238 | I23: 3914
A24: Læge | C24: 832 | D24: 2344 | E24: 1099 | F24: 693 | G24: 484 | I24: 5452
A25: Tandlæge | C25: 151 | D25: 302 | E25: 198 | F25: 135 | G25: 85 | I25: 871
A26: Arkitekt | C26: 290 | D26: 1091 | E26: 1171 | F26: 770 | G26: 368 | I26: 3690
A27: Landinspek. | C27: 20 | D27: 52 | E27: 50 | F27: 46 | G27: 24 | I27: 192
A28: Bibliotekar | C28: 54 | D28: 326 | E28: 567 | F28: 429 | G28: 277 | I28: 1653
A29: Musikudd. | C29: 8 | D29: 33 | E29: 61 | F29: 119 | G29: 73 | I29: 294
A30: Teolog | C30: 17 | D30: 99 | E30: 177 | F30: 176 | G30: 89 | I30: 558
A31: Psykolog | C31: 630 | D31: 1389 | E31: 932 | F31: 546 | G31: 261 | I31: 3758
A32: Jurist | C32: 1718 | D32: 3066 | E32: 2596 | F32: 1963 | G32: 574 | I32: 9917
A33: Økonom | C33: 978 | D33: 1732 | E33: 1331 | F33: 1349 | G33: 345 | I33: 5735
A34: Samf. Adm. | C34: 2711 | D34: 7140 | E34: 4897 | F34: 2378 | G34: 552 | I34: 17678
A35: Cand. Merc. | C35: 5151 | D35: 8422 | E35: 4449 | F35: 3001 | G35: 464 | I35: 21487
A36: HA | C36: 734 | D36: 597 | E36: 419 | F36: 684 | G36: 217 | I36: 2651
A37: HD | C37: 513 | D37: 672 | E37: 310 | F37: 712 | G37: 327 | I37: 2534
A38: Komm. og Sprog | C38: 534 | D38: 1105 | E38: 1122 | F38: 876 | G38: 306 | I38: 3943
A39: Bygningskonst. | C39: 430 | D39: 1101 | E39: 649 | F39: 366 | G39: 79 | I39: 2625
A40: Cand. IT. | C40: 731 | D40: 1387 | E40: 735 | F40: 102 | G40: 10 | I40: 2965
A41: Bac. Samf. | C41: 186 | D41: 234 | E41: 227 | F41: 154 | G41: 24 | I41: 825
A42: Bac. Hum. | C42: 709 | D42: 479 | E42: 372 | F42: 369 | G42: 120 | I42: 2049
A43: Bac. Nat. | C43: 697 | D43: 651 | E43: 249 | F43: 111 | G43: 32 | I43: 1740
A44: Andre | C44: 1719 | D44: 5397 | E44: 3933 | F44: 2217 | G44: 933 | I44: 14199
A46: Total | C46: 31524 | D46: 65344 | E46: 46724 | F46: 33535 | G46: 11469 | I46: 188596
A48: Ingeniører i alt | C48: 4201 | D48: 8084 | E48: 7050 | F48: 8376 | G48: 3100 | I48: 30811
A49: Magistre i alt | C49: 4358 | D49: 11463 | E49: 10497 | F49: 5986 | G49: 2074 | I49: 34378
A50: DJØF'ere i alt | C50: 11292 | D50: 20957 | E50: 13692 | F50: 9375 | G50: 2152 | I50: 57468
A57: København
C59: Under 30 år | D59: 30 - 39 år | E59: 40 - 49 år | F59: 50 - 59 år | G59: Over 60 år | I59: I alt
A61: Civ. ing. | C61: 1705 | D61: 2565 | E61: 1044 | F61: 725 | G61: 215 | I61: 6254
A62: Diplom ing. | C62: 547 | D62: 839 | E62: 708 | F62: 868 | G62: 301 | I62: 3263
A63: Cand. Scient. Tek. | C63: 2137 | D63: 3235 | E63: 665 | F63: 177 | G63: 38 | I63: 6252
A64: MA. Hum. | C64: 1944 | D64: 5056 | E64: 3608 | F64: 1514 | G64: 453 | I64: 12575
A65: MA. Nat. | C65: 369 | D65: 908 | E65: 873 | F65: 648 | G65: 229 | I65: 3027
A66: MA. Ph.d. | C66: 11 | D66: 204 | E66: 253 | F66: 150 | G66: 47 | I66: 665
A67: MA. Samf. | C67: 717 | D67: 1280 | E67: 353 | F67: 142 | G67: 29 | I67: 2521
A68: Øvrige Mag. | C68: 226 | D68: 278 | E68: 281 | F68: 186 | G68: 64 | I68: 1035
A69: Agronom | C69: 81 | D69: 92 | E69: 52 | F69: 62 | G69: 31 | I69: 318
A70: Landsk. Arkt. | C70: 38 | D70: 120 | E70: 56 | F70: 34 | G70: 7 | I70: 255
A71: Hortonom | C71: 0 | D71: 9 | E71: 13 | F71: 15 | G71: 9 | I71: 46
A72: Forstkand. | C72: 15 | D72: 28 | E72: 22 | F72: 22 | G72: 3 | I72: 90
A73: Jordbrugsakad. | C73: 134 | D73: 249 | E73: 143 | F73: 133 | G73: 50 | I73: 709
A74: Mejeriing. | C74: 18 | D74: 25 | E74: 9 | F74: 7 | G74: 1 | I74: 60
A75: Levn.m.kand. | C75: 45 | D75: 86 | E75: 30 | F75: 2 | G75: 1 | I75: 164
A76: Dyrlæge | C76: 78 | D76: 126 | E76: 51 | F76: 38 | G76: 19 | I76: 312
A77: Farmaceut | C77: 386 | D77: 535 | E77: 223 | F77: 119 | G77: 38 | I77: 1301
A78: Læge | C78: 610 | D78: 1262 | E78: 399 | F78: 176 | G78: 120 | I78: 2567
A79: Tandlæge | C79: 84 | D79: 125 | E79: 53 | F79: 36 | G79: 20 | I79: 318
A80: Arkitekt | C80: 247 | D80: 802 | E80: 724 | F80: 380 | G80: 162 | I80: 2315
A81: Landinspek. | C81: 8 | D81: 23 | E81: 13 | F81: 5 | G81: 6 | I81: 55
A82: Bibliotekar | C82: 41 | D82: 201 | E82: 250 | F82: 176 | G82: 110 | I82: 778
A83: Musikudd. | C83: 6 | D83: 18 | E83: 39 | F83: 54 | G83: 24 | I83: 141
A84: Teolog | C84: 13 | D84: 58 | E84: 84 | F84: 65 | G84: 36 | I84: 256
A85: Psykolog | C85: 456 | D85: 872 | E85: 441 | F85: 245 | G85: 111 | I85: 2125
A86: Jurist | C86: 1255 | D86: 1602 | E86: 907 | F86: 596 | G86: 167 | I86: 4527
A87: Økonom | C87: 735 | D87: 1010 | E87: 462 | F87: 404 | G87: 96 | I87: 2707
A88: Samf. Adm. | C88: 2054 | D88: 4526 | E88: 2390 | F88: 1052 | G88: 217 | I88: 10239
A89: Cand. Merc. | C89: 3625 | D89: 4523 | E89: 1441 | F89: 750 | G89: 103 | I89: 10442
A90: HA | C90: 553 | D90: 345 | E90: 130 | F90: 173 | G90: 43 | I90: 1244
A91: HD | C91: 399 | D91: 406 | E91: 89 | F91: 148 | G91: 50 | I91: 1092
A92: Komm. og Sprog | C92: 392 | D92: 675 | E92: 462 | F92: 248 | G92: 76 | I92: 1853
A93: Bygningskonst. | C93: 270 | D93: 526 | E93: 231 | F93: 111 | G93: 27 | I93: 1165
A94: Cand. IT. | C94: 564 | D94: 885 | E94: 359 | F94: 53 | G94: 6 | I94: 1867
A95: Bac. Samf. | C95: 143 | D95: 135 | E95: 116 | F95: 86 | G95: 10 | I95: 490
A96: Bac. Hum. | C96: 529 | D96: 324 | E96: 208 | F96: 189 | G96: 62 | I96: 1312
A97: Bac. Nat. | C97: 469 | D97: 345 | E97: 94 | F97: 44 | G97: 6 | I97: 958
A98: Andre | C98: 1196 | D98: 3232 | E98: 1875 | F98: 927 | G98: 347 | I98: 7577
A100: Total | C100: 21966 | D100: 37281 | E100: 19008 | F100: 10627 | G100: 3284 | I100: 92166
A102: Ingeniører i alt | C102: 2252 | D102: 3404 | E102: 1752 | F102: 1593 | G102: 516 | I102: 9517
A103: Magistre i alt | C103: 3267 | D103: 7726 | E103: 5368 | F103: 2640 | G103: 822 | I103: 19823
A104: DJØF'ere i alt | C104: 8222 | D104: 12006 | E104: 5330 | F104: 2975 | G104: 626 | I104: 29159
A111: Frederiksberg
C113: Under 30 år | D113: 30 - 39 år | E113: 40 - 49 år | F113: 50 - 59 år | G113: Over 60 år | I113: I alt
A115: Civ. ing. | C115: 227 | D115: 415 | E115: 216 | F115: 186 | G115: 72 | I115: 1116
A116: Diplom ing. | C116: 70 | D116: 110 | E116: 111 | F116: 204 | G116: 69 | I116: 564
A117: Cand. Scient. Tek. | C117: 221 | D117: 436 | E117: 130 | F117: 30 | G117: 5 | I117: 822
A118: MA. Hum. | C118: 229 | D118: 540 | E118: 651 | F118: 298 | G118: 105 | I118: 1823
A119: MA. Nat. | C119: 50 | D119: 97 | E119: 151 | F119: 141 | G119: 49 | I119: 488
A120: MA. Ph.d. | C120: 1 | D120: 34 | E120: 46 | F120: 39 | G120: 8 | I120: 128
A121: MA. Samf. | C121: 91 | D121: 145 | E121: 54 | F121: 37 | G121: 4 | I121: 331
A122: Øvrige Mag. | C122: 24 | D122: 26 | E122: 39 | F122: 30 | G122: 10 | I122: 129
A123: Agronom | C123: 13 | D123: 14 | E123: 16 | F123: 24 | G123: 10 | I123: 77
A124: Landsk. Arkt. | C124: 5 | D124: 14 | E124: 8 | F124: 6 | G124: 2 | I124: 35
A125: Hortonom | C125: 0 | D125: 0 | E125: 4 | F125: 2 | G125: 2 | I125: 8
A126: Forstkand. | C126: 1 | D126: 3 | E126: 6 | F126: 2 | G126: 1 | I126: 13
A127: Jordbrugsakad. | C127: 19 | D127: 31 | E127: 34 | F127: 34 | G127: 15 | I127: 133
A128: Mejeriing. | C128: 3 | D128: 2 | E128: 2 | F128: 1 | G128: 1 | I128: 9
A129: Levn.m.kand. | C129: 7 | D129: 13 | E129: 5 | F129: 0 | G129: 0 | I129: 25
A130: Dyrlæge | C130: 20 | D130: 28 | E130: 9 | F130: 12 | G130: 8 | I130: 77
A131: Farmaceut | C131: 55 | D131: 70 | E131: 42 | F131: 38 | G131: 21 | I131: 226
A132: Læge | C132: 89 | D132: 197 | E132: 84 | F132: 72 | G132: 45 | I132: 487
A133: Tandlæge | C133: 15 | D133: 24 | E133: 8 | F133: 6 | G133: 8 | I133: 61
A134: Arkitekt | C134: 31 | D134: 119 | E134: 134 | F134: 96 | G134: 41 | I134: 421
A135: Landinspek. | C135: 4 | D135: 9 | E135: 3 | F135: 1 | G135: 0 | I135: 17
A136: Bibliotekar | C136: 5 | D136: 17 | E136: 57 | F136: 27 | G136: 21 | I136: 127
A137: Musikudd. | C137: 0 | D137: 2 | E137: 1 | F137: 10 | G137: 5 | I137: 18
A138: Teolog | C138: 1 | D138: 3 | E138: 16 | F138: 12 | G138: 4 | I138: 36
A139: Psykolog | C139: 63 | D139: 125 | E139: 76 | F139: 39 | G139: 33 | I139: 336
A140: Jurist | C140: 203 | D140: 350 | E140: 224 | F140: 209 | G140: 68 | I140: 1054
A141: Økonom | C141: 116 | D141: 212 | E141: 102 | F141: 126 | G141: 39 | I141: 595
A142: Samf. Adm. | C142: 298 | D142: 665 | E142: 459 | F142: 247 | G142: 51 | I142: 1720
A143: Cand. Merc. | C143: 806 | D143: 1002 | E143: 374 | F143: 242 | G143: 42 | I143: 2466
A144: HA | C144: 75 | D144: 57 | E144: 24 | F144: 42 | G144: 21 | I144: 219
A145: HD | C145: 47 | D145: 64 | E145: 22 | F145: 44 | G145: 23 | I145: 200
A146: Komm. og Sprog | C146: 67 | D146: 128 | E146: 94 | F146: 65 | G146: 20 | I146: 374
A147: Bygningskonst. | C147: 20 | D147: 64 | E147: 51 | F147: 22 | G147: 3 | I147: 160
A148: Cand. IT. | C148: 56 | D148: 97 | E148: 60 | F148: 11 | G148: 0 | I148: 224
A149: Bac. Samf. | C149: 20 | D149: 22 | E149: 24 | F149: 11 | G149: 3 | I149: 80
A150: Bac. Hum. | C150: 63 | D150: 31 | E150: 33 | F150: 48 | G150: 8 | I150: 183
A151: Bac. Nat. | C151: 60 | D151: 37 | E151: 15 | F151: 6 | G151: 1 | I151: 119
A152: Andre | C152: 171 | D152: 439 | E152: 322 | F152: 205 | G152: 97 | I152: 1234
A154: Total | C154: 3227 | D154: 5611 | E154: 3673 | F154: 2591 | G154: 900 | I154: 16002
A156: Ingeniører i alt | C156: 297 | D156: 525 | E156: 327 | F156: 390 | G156: 141 | I156: 1680
A157: Magistre i alt | C157: 395 | D157: 842 | E157: 941 | F157: 545 | G157: 176 | I157: 2899
A158: DJØF'ere i alt | C158: 1498 | D158: 2286 | E158: 1183 | F158: 866 | G158: 221 | I158: 6054
A165: Ballerup
C167: Under 30 år | D167: 30 - 39 år | E167: 40 - 49 år | F167: 50 - 59 år | G167: Over 60 år | I167: I alt
A169: Civ. ing. | C169: 45 | D169: 163 | E169: 172 | F169: 145 | G169: 34 | I169: 559
A170: Diplom ing. | C170: 25 | D170: 89 | E170: 110 | F170: 204 | G170: 71 | I170: 499
A171: Cand. Scient. Tek. | C171: 41 | D171: 121 | E171: 38 | F171: 16 | G171: 3 | I171: 219
A172: MA. Hum. | C172: 12 | D172: 70 | E172: 86 | F172: 41 | G172: 16 | I172: 225
A173: MA. Nat. | C173: 5 | D173: 24 | E173: 66 | F173: 53 | G173: 21 | I173: 169
A174: MA. Ph.d. | C174: 0 | D174: 3 | E174: 6 | F174: 11 | G174: 1 | I174: 21
A175: MA. Samf. | C175: 3 | D175: 20 | E175: 7 | F175: 4 | G175: 0 | I175: 34
A176: Øvrige Mag. | C176: 2 | D176: 3 | E176: 14 | F176: 8 | G176: 1 | I176: 28
A177: Agronom | C177: 1 | D177: 4 | E177: 1 | F177: 7 | G177: 5 | I177: 18
A178: Landsk. Arkt. | C178: 1 | D178: 4 | E178: 5 | F178: 1 | G178: 0 | I178: 11
A179: Hortonom | C179: 0 | D179: 0 | E179: 1 | F179: 2 | G179: 0 | I179: 3
A180: Forstkand. | C180: 0 | D180: 0 | E180: 3 | F180: 1 | G180: 0 | I180: 4
A181: Jordbrugsakad. | C181: 2 | D181: 8 | E181: 10 | F181: 11 | G181: 5 | I181: 36
A182: Mejeriing. | C182: 2 | D182: 0 | E182: 2 | F182: 1 | G182: 0 | I182: 5
A183: Levn.m.kand. | C183: 0 | D183: 2 | E183: 2 | F183: 0 | G183: 0 | I183: 4
A184: Dyrlæge | C184: 1 | D184: 14 | E184: 8 | F184: 4 | G184: 2 | I184: 29
A185: Farmaceut | C185: 10 | D185: 42 | E185: 53 | F185: 24 | G185: 2 | I185: 131
A186: Læge | C186: 3 | D186: 35 | E186: 22 | F186: 14 | G186: 8 | I186: 82
A187: Tandlæge | C187: 2 | D187: 3 | E187: 2 | F187: 6 | G187: 1 | I187: 14
A188: Arkitekt | C188: 1 | D188: 5 | E188: 7 | F188: 9 | G188: 0 | I188: 22
A189: Landinspek. | C189: 1 | D189: 2 | E189: 3 | F189: 0 | G189: 1 | I189: 7
A190: Bibliotekar | C190: 0 | D190: 6 | E190: 14 | F190: 12 | G190: 9 | I190: 41
A191: Musikudd. | C191: 0 | D191: 0 | E191: 4 | F191: 2 | G191: 2 | I191: 8
A192: Teolog | C192: 0 | D192: 1 | E192: 2 | F192: 3 | G192: 2 | I192: 8
A193: Psykolog | C193: 9 | D193: 15 | E193: 12 | F193: 13 | G193: 1 | I193: 50
A194: Jurist | C194: 11 | D194: 37 | E194: 40 | F194: 21 | G194: 2 | I194: 111
A195: Økonom | C195: 3 | D195: 20 | E195: 30 | F195: 24 | G195: 3 | I195: 80
A196: Samf. Adm. | C196: 26 | D196: 75 | E196: 59 | F196: 41 | G196: 6 | I196: 207
A197: Cand. Merc. | C197: 34 | D197: 95 | E197: 85 | F197: 51 | G197: 8 | I197: 273
A198: HA | C198: 3 | D198: 4 | E198: 11 | F198: 13 | G198: 5 | I198: 36
A199: HD | C199: 0 | D199: 8 | E199: 8 | F199: 12 | G199: 7 | I199: 35
A200: Komm. og Sprog | C200: 2 | D200: 14 | E200: 21 | F200: 22 | G200: 9 | I200: 68
A201: Bygningskonst. | C201: 12 | D201: 22 | E201: 18 | F201: 12 | G201: 1 | I201: 65
A202: Cand. IT. | C202: 4 | D202: 21 | E202: 13 | F202: 1 | G202: 0 | I202: 39
A203: Bac. Samf. | C203: 0 | D203: 0 | E203: 4 | F203: 4 | G203: 0 | I203: 8
A204: Bac. Hum. | C204: 7 | D204: 2 | E204: 4 | F204: 4 | G204: 0 | I204: 17
A205: Bac. Nat. | C205: 14 | D205: 19 | E205: 7 | F205: 3 | G205: 1 | I205: 44
A206: Andre | C206: 18 | D206: 57 | E206: 60 | F206: 43 | G206: 14 | I206: 192
A208: Total | C208: 298 | D208: 1000 | E208: 1000 | F208: 832 | G208: 236 | I208: 3366
A210: Ingeniører i alt | C210: 70 | D210: 252 | E210: 282 | F210: 349 | G210: 105 | I210: 1058
A211: Magistre i alt | C211: 22 | D211: 120 | E211: 179 | F211: 117 | G211: 39 | I211: 477
A212: DJØF'ere i alt | C212: 77 | D212: 231 | E212: 225 | F212: 150 | G212: 24 | I212: 707
A219: Brøndby
C221: Under 30 år | D221: 30 - 39 år | E221: 40 - 49 år | F221: 50 - 59 år | G221: Over 60 år | I221: I alt
A223: Civ. ing. | C223: 18 | D223: 28 | E223: 27 | F223: 37 | G223: 14 | I223: 124
A224: Diplom ing. | C224: 23 | D224: 27 | E224: 49 | F224: 46 | G224: 17 | I224: 162
A225: Cand. Scient. Tek. | C225: 19 | D225: 39 | E225: 12 | F225: 4 | G225: 0 | I225: 74
A226: MA. Hum. | C226: 11 | D226: 41 | E226: 19 | F226: 14 | G226: 2 | I226: 87
A227: MA. Nat. | C227: 1 | D227: 15 | E227: 17 | F227: 15 | G227: 6 | I227: 54
A228: MA. Ph.d. | C228: 0 | D228: 4 | E228: 2 | F228: 0 | G228: 0 | I228: 6
A229: MA. Samf. | C229: 9 | D229: 12 | E229: 3 | F229: 0 | G229: 0 | I229: 24
A230: Øvrige Mag. | C230: 3 | D230: 6 | E230: 4 | F230: 0 | G230: 1 | I230: 14
A231: Agronom | C231: 2 | D231: 1 | E231: 1 | F231: 1 | G231: 1 | I231: 6
A232: Landsk. Arkt. | C232: 0 | D232: 0 | E232: 4 | F232: 1 | G232: 0 | I232: 5
A233: Hortonom | C233: 0 | D233: 0 | E233: 0 | F233: 1 | G233: 1 | I233: 2
A234: Forstkand. | C234: 0 | D234: 0 | E234: 1 | F234: 0 | G234: 0 | I234: 1
A235: Jordbrugsakad. | C235: 2 | D235: 1 | E235: 6 | F235: 3 | G235: 2 | I235: 14
A236: Mejeriing. | C236: 0 | D236: 0 | E236: 0 | F236: 0 | G236: 0 | I236: 0
A237: Levn.m.kand. | C237: 0 | D237: 1 | E237: 0 | F237: 0 | G237: 0 | I237: 1
A238: Dyrlæge | C238: 1 | D238: 2 | E238: 2 | F238: 0 | G238: 1 | I238: 6
A239: Farmaceut | C239: 10 | D239: 16 | E239: 11 | F239: 3 | G239: 2 | I239: 42
A240: Læge | C240: 7 | D240: 16 | E240: 4 | F240: 7 | G240: 6 | I240: 40
A241: Tandlæge | C241: 4 | D241: 4 | E241: 0 | F241: 0 | G241: 2 | I241: 10
A242: Arkitekt | C242: 0 | D242: 1 | E242: 2 | F242: 0 | G242: 1 | I242: 4
A243: Landinspek. | C243: 0 | D243: 1 | E243: 0 | F243: 0 | G243: 0 | I243: 1
... 1077 more rows

Sheet Tabel 4 H
A1: Tabel 4. Ledighedsberørte - aldersfordelt
A3: Hovedstaden
C5: Under 30 år | D5: 30 - 39 år | E5: 40 - 49 år | F5: 50 - 59 år | G5: Over 60 år | I5: I alt
A7: Civ. ing. | C7: 304 | D7: 161 | E7: 42 | F7: 46 | G7: 46 | I7: 599
A8: Diplom ing. | C8: 89 | D8: 80 | E8: 52 | F8: 82 | G8: 54 | I8: 357
A9: Cand. Scient. Tek | C9: 443 | D9: 300 | E9: 54 | F9: 12 | G9: 9 | I9: 818
A10: MA. Hum. | C10: 552 | D10: 637 | E10: 277 | F10: 145 | G10: 64 | I10: 1675
A11: MA. Nat. | C11: 89 | D11: 75 | E11: 46 | F11: 26 | G11: 20 | I11: 256
A12: MA. Ph.d. | C12: 1 | D12: 10 | E12: 18 | F12: 10 | G12: 4 | I12: 43
A13: MA. Samf. | C13: 189 | D13: 166 | E13: 33 | F13: 19 | G13: 2 | I13: 409
A14: Øvrige Mag. | C14: 77 | D14: 50 | E14: 25 | F14: 10 | G14: 6 | I14: 168
A15: Agronom | C15: 15 | D15: 15 | E15: 2 | F15: 7 | G15: 4 | I15: 43
A16: Landsk. Arkt. | C16: 10 | D16: 14 | E16: 6 | F16: 2 | G16: 0 | I16: 32
A17: Hortonom | C17: 0 | D17: 1 | E17: 1 | F17: 1 | G17: 2 | I17: 5
A18: Forstkand. | C18: 3 | D18: 3 | E18: 1 | F18: 4 | G18: 1 | I18: 12
A19: Jordbrugsakad. | C19: 28 | D19: 33 | E19: 10 | F19: 14 | G19: 7 | I19: 92
A20: Mejeriing. | C20: 3 | D20: 3 | E20: 0 | F20: 0 | G20: 0 | I20: 6
A21: Levn.m.kand. | C21: 1 | D21: 4 | E21: 2 | F21: 0 | G21: 0 | I21: 7
A22: Dyrlæge | C22: 7 | D22: 6 | E22: 3 | F22: 1 | G22: 0 | I22: 17
A23: Farmaceut | C23: 81 | D23: 34 | E23: 6 | F23: 11 | G23: 3 | I23: 135
A24: Læge | C24: 42 | D24: 50 | E24: 4 | F24: 3 | G24: 1 | I24: 100
A25: Tandlæge | C25: 6 | D25: 6 | E25: 3 | F25: 2 | G25: 2 | I25: 19
A26: Arkitekt | C26: 70 | D26: 64 | E26: 37 | F26: 23 | G26: 26 | I26: 220
A27: Landinspek. | C27: 0 | D27: 2 | E27: 1 | F27: 1 | G27: 0 | I27: 4
A28: Bibliotekar | C28: 8 | D28: 23 | E28: 25 | F28: 14 | G28: 7 | I28: 77
A29: Musikudd. | C29: 2 | D29: 3 | E29: 2 | F29: 2 | G29: 2 | I29: 11
A30: Teolog | C30: 9 | D30: 13 | E30: 2 | F30: 6 | G30: 1 | I30: 31
A31: Psykolog | C31: 48 | D31: 58 | E31: 21 | F31: 10 | G31: 9 | I31: 146
A32: Jurist | C32: 45 | D32: 51 | E32: 33 | F32: 20 | G32: 10 | I32: 159
A33: Økonom | C33: 37 | D33: 25 | E33: 22 | F33: 25 | G33: 19 | I33: 128
A34: Samf. Adm. | C34: 301 | D34: 306 | E34: 151 | F34: 73 | G34: 23 | I34: 854
A35: Cand. Merc. | C35: 309 | D35: 267 | E35: 114 | F35: 91 | G35: 31 | I35: 812
A36: HA | C36: 82 | D36: 31 | E36: 10 | F36: 21 | G36: 21 | I36: 165
A37: HD | C37: 59 | D37: 50 | E37: 11 | F37: 19 | G37: 21 | I37: 160
A38: Komm. og Sprog | C38: 57 | D38: 60 | E38: 46 | F38: 40 | G38: 24 | I38: 227
A39: Bygningskonst. | C39: 45 | D39: 29 | E39: 14 | F39: 17 | G39: 4 | I39: 109
A40: Cand. IT. | C40: 87 | D40: 65 | E40: 27 | F40: 4 | G40: 1 | I40: 184
A41: Bac. Samf. | C41: 26 | D41: 7 | E41: 8 | F41: 7 | G41: 4 | I41: 52
A42: Bac. Hum. | C42: 136 | D42: 47 | E42: 20 | F42: 19 | G42: 8 | I42: 230
A43: Bac. Nat. | C43: 135 | D43: 40 | E43: 10 | F43: 7 | G43: 2 | I43: 194
A44: Andre | C44: 224 | D44: 342 | E44: 182 | F44: 150 | G44: 90 | I44: 988
A46: Total | C46: 3592 | D46: 3098 | E46: 1311 | F46: 930 | G46: 521 | I46: 9452
A48: Ingeniører i alt | C48: 393 | D48: 241 | E48: 94 | F48: 128 | G48: 100 | I48: 956
A49: Magistre i alt | C49: 908 | D49: 938 | E49: 399 | F49: 210 | G49: 96 | I49: 2551
A50: DJØF'ere i alt | C50: 774 | D50: 680 | E50: 330 | F50: 230 | G50: 104 | I50: 2118
A57: København
C59: Under 30 år | D59: 30 - 39 år | E59: 40 - 49 år | F59: 50 - 59 år | G59: Over 60 år | I59: I alt
A61: Civ. ing. | C61: 166 | D61: 82 | E61: 17 | F61: 10 | G61: 9 | I61: 284
A62: Diplom ing. | C62: 44 | D62: 39 | E62: 17 | F62: 17 | G62: 9 | I62: 126
A63: Cand. Scient. Tek | C63: 331 | D63: 206 | E63: 28 | F63: 8 | G63: 5 | I63: 578
A64: MA. Hum. | C64: 429 | D64: 472 | E64: 176 | F64: 89 | G64: 33 | I64: 1199
A65: MA. Nat. | C65: 60 | D65: 52 | E65: 30 | F65: 10 | G65: 4 | I65: 156
A66: MA. Ph.d. | C66: 1 | D66: 9 | E66: 11 | F66: 4 | G66: 2 | I66: 27
A67: MA. Samf. | C67: 142 | D67: 123 | E67: 17 | F67: 14 | G67: 2 | I67: 298
A68: Øvrige Mag. | C68: 63 | D68: 34 | E68: 14 | F68: 4 | G68: 3 | I68: 118
A69: Agronom | C69: 8 | D69: 8 | E69: 1 | F69: 3 | G69: 1 | I69: 21
A70: Landsk. Arkt. | C70: 6 | D70: 11 | E70: 4 | F70: 2 | G70: 0 | I70: 23
A71: Hortonom | C71: 0 | D71: 0 | E71: 0 | F71: 0 | G71: 1 | I71: 1
A72: Forstkand. | C72: 3 | D72: 3 | E72: 0 | F72: 3 | G72: 0 | I72: 9
A73: Jordbrugsakad. | C73: 17 | D73: 22 | E73: 5 | F73: 8 | G73: 2 | I73: 54
A74: Mejeriing. | C74: 2 | D74: 2 | E74: 0 | F74: 0 | G74: 0 | I74: 4
A75: Levn.m.kand. | C75: 1 | D75: 2 | E75: 1 | F75: 0 | G75: 0 | I75: 4
A76: Dyrlæge | C76: 4 | D76: 2 | E76: 1 | F76: 0 | G76: 0 | I76: 7
A77: Farmaceut | C77: 54 | D77: 20 | E77: 5 | F77: 5 | G77: 0 | I77: 84
A78: Læge | C78: 31 | D78: 31 | E78: 1 | F78: 1 | G78: 0 | I78: 64
A79: Tandlæge | C79: 5 | D79: 4 | E79: 2 | F79: 0 | G79: 0 | I79: 11
A80: Arkitekt | C80: 66 | D80: 52 | E80: 25 | F80: 14 | G80: 12 | I80: 169
A81: Landinspek. | C81: 0 | D81: 1 | E81: 0 | F81: 1 | G81: 0 | I81: 2
A82: Bibliotekar | C82: 5 | D82: 15 | E82: 12 | F82: 9 | G82: 3 | I82: 44
A83: Musikudd. | C83: 2 | D83: 2 | E83: 1 | F83: 2 | G83: 0 | I83: 7
A84: Teolog | C84: 6 | D84: 12 | E84: 1 | F84: 3 | G84: 1 | I84: 23
A85: Psykolog | C85: 34 | D85: 33 | E85: 8 | F85: 3 | G85: 4 | I85: 82
A86: Jurist | C86: 30 | D86: 29 | E86: 9 | F86: 8 | G86: 3 | I86: 79
A87: Økonom | C87: 29 | D87: 21 | E87: 9 | F87: 8 | G87: 10 | I87: 77
A88: Samf. Adm. | C88: 229 | D88: 212 | E88: 95 | F88: 40 | G88: 7 | I88: 583
A89: Cand. Merc. | C89: 207 | D89: 166 | E89: 57 | F89: 25 | G89: 7 | I89: 462
A90: HA | C90: 62 | D90: 20 | E90: 4 | F90: 8 | G90: 3 | I90: 97
A91: HD | C91: 45 | D91: 34 | E91: 7 | F91: 5 | G91: 2 | I91: 93
A92: Komm. og Sprog | C92: 41 | D92: 37 | E92: 29 | F92: 14 | G92: 6 | I92: 127
A93: Bygningskonst. | C93: 30 | D93: 15 | E93: 7 | F93: 7 | G93: 1 | I93: 60
A94: Cand. IT. | C94: 72 | D94: 48 | E94: 19 | F94: 2 | G94: 0 | I94: 141
A95: Bac. Samf. | C95: 23 | D95: 4 | E95: 5 | F95: 4 | G95: 0 | I95: 36
A96: Bac. Hum. | C96: 102 | D96: 34 | E96: 12 | F96: 8 | G96: 5 | I96: 161
A97: Bac. Nat. | C97: 89 | D97: 25 | E97: 5 | F97: 3 | G97: 1 | I97: 123
A98: Andre | C98: 161 | D98: 241 | E98: 105 | F98: 70 | G98: 43 | I98: 620
A100: Total | C100: 2583 | D100: 2101 | E100: 735 | F100: 404 | G100: 177 | I100: 6000
A102: Ingeniører i alt | C102: 210 | D102: 121 | E102: 34 | F102: 27 | G102: 18 | I102: 410
A103: Magistre i alt | C103: 695 | D103: 690 | E103: 248 | F103: 121 | G103: 44 | I103: 1798
A104: DJØF'ere i alt | C104: 557 | D104: 448 | E104: 174 | F104: 89 | G104: 30 | I104: 1298
A111: Frederiksberg
C113: Under 30 år | D113: 30 - 39 år | E113: 40 - 49 år | F113: 50 - 59 år | G113: Over 60 år | I113: I alt
A115: Civ. ing. | C115: 15 | D115: 15 | E115: 0 | F115: 3 | G115: 4 | I115: 37
A116: Diplom ing. | C116: 4 | D116: 3 | E116: 3 | F116: 3 | G116: 3 | I116: 16
A117: Cand. Scient. Tek | C117: 24 | D117: 17 | E117: 6 | F117: 0 | G117: 1 | I117: 48
A118: MA. Hum. | C118: 45 | D118: 33 | E118: 33 | F118: 15 | G118: 7 | I118: 133
A119: MA. Nat. | C119: 7 | D119: 7 | E119: 4 | F119: 4 | G119: 1 | I119: 23
A120: MA. Ph.d. | C120: 0 | D120: 0 | E120: 1 | F120: 4 | G120: 0 | I120: 5
A121: MA. Samf. | C121: 20 | D121: 15 | E121: 2 | F121: 1 | G121: 0 | I121: 38
A122: Øvrige Mag. | C122: 4 | D122: 4 | E122: 2 | F122: 2 | G122: 1 | I122: 13
A123: Agronom | C123: 2 | D123: 1 | E123: 1 | F123: 0 | G123: 0 | I123: 4
A124: Landsk. Arkt. | C124: 1 | D124: 1 | E124: 0 | F124: 0 | G124: 0 | I124: 2
A125: Hortonom | C125: 0 | D125: 0 | E125: 0 | F125: 0 | G125: 0 | I125: 0
A126: Forstkand. | C126: 0 | D126: 0 | E126: 0 | F126: 0 | G126: 0 | I126: 0
A127: Jordbrugsakad. | C127: 3 | D127: 2 | E127: 1 | F127: 0 | G127: 0 | I127: 6
A128: Mejeriing. | C128: 0 | D128: 0 | E128: 0 | F128: 0 | G128: 0 | I128: 0
A129: Levn.m.kand. | C129: 0 | D129: 1 | E129: 0 | F129: 0 | G129: 0 | I129: 1
A130: Dyrlæge | C130: 1 | D130: 0 | E130: 0 | F130: 0 | G130: 0 | I130: 1
A131: Farmaceut | C131: 6 | D131: 0 | E131: 0 | F131: 1 | G131: 0 | I131: 7
A132: Læge | C132: 6 | D132: 2 | E132: 1 | F132: 1 | G132: 1 | I132: 11
A133: Tandlæge | C133: 0 | D133: 0 | E133: 0 | F133: 0 | G133: 1 | I133: 1
A134: Arkitekt | C134: 4 | D134: 6 | E134: 5 | F134: 7 | G134: 2 | I134: 24
A135: Landinspek. | C135: 0 | D135: 1 | E135: 1 | F135: 0 | G135: 0 | I135: 2
A136: Bibliotekar | C136: 0 | D136: 0 | E136: 7 | F136: 1 | G136: 0 | I136: 8
A137: Musikudd. | C137: 0 | D137: 0 | E137: 0 | F137: 0 | G137: 0 | I137: 0
A138: Teolog | C138: 1 | D138: 0 | E138: 0 | F138: 2 | G138: 0 | I138: 3
A139: Psykolog | C139: 3 | D139: 9 | E139: 3 | F139: 0 | G139: 3 | I139: 18
A140: Jurist | C140: 5 | D140: 7 | E140: 4 | F140: 1 | G140: 5 | I140: 22
A141: Økonom | C141: 4 | D141: 1 | E141: 1 | F141: 2 | G141: 1 | I141: 9
A142: Samf. Adm. | C142: 26 | D142: 26 | E142: 6 | F142: 8 | G142: 3 | I142: 69
A143: Cand. Merc. | C143: 42 | D143: 19 | E143: 9 | F143: 6 | G143: 1 | I143: 77
A144: HA | C144: 8 | D144: 3 | E144: 1 | F144: 0 | G144: 3 | I144: 15
A145: HD | C145: 7 | D145: 4 | E145: 1 | F145: 2 | G145: 0 | I145: 14
A146: Komm. og Sprog | C146: 4 | D146: 11 | E146: 5 | F146: 2 | G146: 2 | I146: 24
A147: Bygningskonst. | C147: 1 | D147: 1 | E147: 1 | F147: 2 | G147: 0 | I147: 5
A148: Cand. IT. | C148: 8 | D148: 3 | E148: 1 | F148: 1 | G148: 0 | I148: 13
A149: Bac. Samf. | C149: 1 | D149: 3 | E149: 0 | F149: 2 | G149: 0 | I149: 6
A150: Bac. Hum. | C150: 11 | D150: 3 | E150: 2 | F150: 4 | G150: 0 | I150: 20
A151: Bac. Nat. | C151: 16 | D151: 1 | E151: 0 | F151: 1 | G151: 0 | I151: 18
A152: Andre | C152: 26 | D152: 30 | E152: 14 | F152: 17 | G152: 6 | I152: 93
A154: Total | C154: 302 | D154: 227 | E154: 114 | F154: 92 | G154: 45 | I154: 780
A156: Ingeniører i alt | C156: 19 | D156: 18 | E156: 3 | F156: 6 | G156: 7 | I156: 53
A157: Magistre i alt | C157: 76 | D157: 59 | E157: 42 | F157: 26 | G157: 9 | I157: 212
A158: DJØF'ere i alt | C158: 85 | D158: 56 | E158: 21 | F158: 17 | G158: 13 | I158: 192
A165: Ballerup
C167: Under 30 år | D167: 30 - 39 år | E167: 40 - 49 år | F167: 50 - 59 år | G167: Over 60 år | I167: I alt
A169: Civ. ing. | C169: 3 | D169: 2 | E169: 0 | F169: 2 | G169: 1 | I169: 8
A170: Diplom ing. | C170: 1 | D170: 2 | E170: 2 | F170: 7 | G170: 7 | I170: 19
A171: Cand. Scient. Tek | C171: 5 | D171: 4 | E171: 0 | F171: 0 | G171: 0 | I171: 9
A172: MA. Hum. | C172: 0 | D172: 2 | E172: 2 | F172: 0 | G172: 0 | I172: 4
A173: MA. Nat. | C173: 0 | D173: 0 | E173: 1 | F173: 0 | G173: 0 | I173: 1
A174: MA. Ph.d. | C174: 0 | D174: 0 | E174: 0 | F174: 0 | G174: 0 | I174: 0
A175: MA. Samf. | C175: 0 | D175: 2 | E175: 0 | F175: 0 | G175: 0 | I175: 2
A176: Øvrige Mag. | C176: 0 | D176: 0 | E176: 1 | F176: 0 | G176: 0 | I176: 1
A177: Agronom | C177: 0 | D177: 0 | E177: 0 | F177: 0 | G177: 0 | I177: 0
A178: Landsk. Arkt. | C178: 1 | D178: 0 | E178: 0 | F178: 0 | G178: 0 | I178: 1
A179: Hortonom | C179: 0 | D179: 0 | E179: 0 | F179: 0 | G179: 0 | I179: 0
A180: Forstkand. | C180: 0 | D180: 0 | E180: 0 | F180: 0 | G180: 0 | I180: 0
A181: Jordbrugsakad. | C181: 1 | D181: 0 | E181: 0 | F181: 0 | G181: 0 | I181: 1
A182: Mejeriing. | C182: 1 | D182: 0 | E182: 0 | F182: 0 | G182: 0 | I182: 1
A183: Levn.m.kand. | C183: 0 | D183: 0 | E183: 0 | F183: 0 | G183: 0 | I183: 0
A184: Dyrlæge | C184: 0 | D184: 0 | E184: 0 | F184: 0 | G184: 0 | I184: 0
A185: Farmaceut | C185: 0 | D185: 0 | E185: 0 | F185: 0 | G185: 0 | I185: 0
A186: Læge | C186: 1 | D186: 0 | E186: 0 | F186: 0 | G186: 0 | I186: 1
A187: Tandlæge | C187: 0 | D187: 0 | E187: 0 | F187: 0 | G187: 0 | I187: 0
A188: Arkitekt | C188: 0 | D188: 1 | E188: 0 | F188: 0 | G188: 0 | I188: 1
A189: Landinspek. | C189: 0 | D189: 0 | E189: 0 | F189: 0 | G189: 0 | I189: 0
A190: Bibliotekar | C190: 0 | D190: 0 | E190: 3 | F190: 0 | G190: 0 | I190: 3
A191: Musikudd. | C191: 0 | D191: 0 | E191: 0 | F191: 0 | G191: 0 | I191: 0
A192: Teolog | C192: 0 | D192: 0 | E192: 0 | F192: 0 | G192: 0 | I192: 0
A193: Psykolog | C193: 0 | D193: 0 | E193: 1 | F193: 0 | G193: 0 | I193: 1
A194: Jurist | C194: 2 | D194: 2 | E194: 1 | F194: 0 | G194: 0 | I194: 5
A195: Økonom | C195: 0 | D195: 1 | E195: 1 | F195: 0 | G195: 0 | I195: 2
A196: Samf. Adm. | C196: 1 | D196: 2 | E196: 2 | F196: 1 | G196: 0 | I196: 6
A197: Cand. Merc. | C197: 1 | D197: 1 | E197: 1 | F197: 2 | G197: 0 | I197: 5
A198: HA | C198: 0 | D198: 0 | E198: 0 | F198: 0 | G198: 0 | I198: 0
A199: HD | C199: 0 | D199: 1 | E199: 0 | F199: 0 | G199: 1 | I199: 2
A200: Komm. og Sprog | C200: 0 | D200: 0 | E200: 1 | F200: 0 | G200: 0 | I200: 1
A201: Bygningskonst. | C201: 1 | D201: 0 | E201: 0 | F201: 0 | G201: 0 | I201: 1
A202: Cand. IT. | C202: 0 | D202: 0 | E202: 0 | F202: 0 | G202: 0 | I202: 0
A203: Bac. Samf. | C203: 0 | D203: 0 | E203: 0 | F203: 1 | G203: 0 | I203: 1
A204: Bac. Hum. | C204: 0 | D204: 0 | E204: 0 | F204: 0 | G204: 0 | I204: 0
A205: Bac. Nat. | C205: 3 | D205: 2 | E205: 1 | F205: 0 | G205: 0 | I205: 6
A206: Andre | C206: 3 | D206: 3 | E206: 4 | F206: 2 | G206: 0 | I206: 12
A208: Total | C208: 23 | D208: 25 | E208: 21 | F208: 15 | G208: 9 | I208: 93
A210: Ingeniører i alt | C210: 4 | D210: 4 | E210: 2 | F210: 9 | G210: 8 | I210: 27
A211: Magistre i alt | C211: 0 | D211: 4 | E211: 4 | F211: 0 | G211: 0 | I211: 8
A212: DJØF'ere i alt | C212: 4 | D212: 6 | E212: 5 | F212: 3 | G212: 0 | I212: 18
A219: Brøndby
C221: Under 30 år | D221: 30 - 39 år | E221: 40 - 49 år | F221: 50 - 59 år | G221: Over 60 år | I221: I alt
A223: Civ. ing. | C223: 3 | D223: 2 | E223: 0 | F223: 0 | G223: 1 | I223: 6
A224: Diplom ing. | C224: 3 | D224: 0 | E224: 0 | F224: 1 | G224: 0 | I224: 4
A225: Cand. Scient. Tek | C225: 4 | D225: 2 | E225: 0 | F225: 0 | G225: 0 | I225: 6
A226: MA. Hum. | C226: 4 | D226: 2 | E226: 1 | F226: 2 | G226: 0 | I226: 9
A227: MA. Nat. | C227: 1 | D227: 0 | E227: 0 | F227: 0 | G227: 1 | I227: 2
A228: MA. Ph.d. | C228: 0 | D228: 0 | E228: 0 | F228: 0 | G228: 0 | I228: 0
A229: MA. Samf. | C229: 3 | D229: 0 | E229: 0 | F229: 0 | G229: 0 | I229: 3
A230: Øvrige Mag. | C230: 0 | D230: 2 | E230: 0 | F230: 0 | G230: 0 | I230: 2
A231: Agronom | C231: 1 | D231: 0 | E231: 0 | F231: 0 | G231: 0 | I231: 1
A232: Landsk. Arkt. | C232: 0 | D232: 0 | E232: 0 | F232: 0 | G232: 0 | I232: 0
A233: Hortonom | C233: 0 | D233: 0 | E233: 0 | F233: 0 | G233: 0 | I233: 0
A234: Forstkand. | C234: 0 | D234: 0 | E234: 0 | F234: 0 | G234: 0 | I234: 0
A235: Jordbrugsakad. | C235: 1 | D235: 0 | E235: 0 | F235: 0 | G235: 0 | I235: 1
A236: Mejeriing. | C236: 0 | D236: 0 | E236: 0 | F236: 0 | G236: 0 | I236: 0
A237: Levn.m.kand. | C237: 0 | D237: 0 | E237: 0 | F237: 0 | G237: 0 | I237: 0
A238: Dyrlæge | C238: 0 | D238: 0 | E238: 0 | F238: 0 | G238: 0 | I238: 0
A239: Farmaceut | C239: 1 | D239: 2 | E239: 0 | F239: 0 | G239: 0 | I239: 3
A240: Læge | C240: 0 | D240: 0 | E240: 0 | F240: 0 | G240: 0 | I240: 0
A241: Tandlæge | C241: 0 | D241: 1 | E241: 0 | F241: 0 | G241: 0 | I241: 1
A242: Arkitekt | C242: 0 | D242: 0 | E242: 0 | F242: 0 | G242: 0 | I242: 0
A243: Landinspek. | C243: 0 | D243: 0 | E243: 0 | F243: 0 | G243: 0 | I243: 0
... 1077 more rows

Sheet Tabel 4(Br) H
A1: Tabel 4. Ledighedsberørte - aldersfordelt
A3: Hovedstaden
C5: Under 30 år | D5: 30 - 39 år | E5: 40 - 49 år | F5: 50 - 59 år | G5: Over 60 år | I5: I alt
A7: Civ. ing. | C7: 270.296264 | D7: 142.2366369 | E7: 35.31216865 | F7: 41.93850184 | G7: 39.17669806 | I7: 528.9602694
A8: Diplom ing. | C8: 79.91330381 | D8: 69.21723944 | E8: 46.09680035 | F8: 68.41327263 | G8: 46.53776586 | I8: 310.1783821
A9: Cand. Scient. Tek | C9: 376.5808021 | D9: 252.7879998 | E9: 45.2685087 | F9: 10.28628454 | G9: 7.971683403 | I9: 692.8952785
A10: MA. Hum. | C10: 454.9341982 | D10: 519.9812886 | E10: 224.0553858 | F10: 116.193476 | G10: 49.3301316 | I10: 1364.49448
A11: MA. Nat. | C11: 72.07384769 | D11: 64.97723445 | E11: 37.72718768 | F11: 21.51936631 | G11: 16.03318156 | I11: 212.3308177
A12: MA. Ph.d. | C12: 0.9998128859 | D12: 8.557974178 | E12: 16.46104909 | F12: 5.513628142 | G12: 3.615043972 | I12: 35.14750826
A13: MA. Samf. | C13: 159.2515437 | D13: 139.9357575 | E13: 28.26171022 | F13: 15.54481382 | G13: 1.722696938 | I13: 344.7165222
A14: Øvrige Mag. | C14: 65.36144203 | D14: 40.17775837 | E14: 22.31023514 | F14: 8.46441714 | G14: 5.567267511 | I14: 141.8811202
A15: Agronom | C15: 12.20170898 | D15: 12.92521674 | E15: 1.722696938 | F15: 5.799288967 | G15: 2.839767979 | I15: 35.4886796
A16: Landsk. Arkt. | C16: 8.382710659 | D16: 12.82043286 | E16: 5.721948481 | F16: 1.722696938 | G16: 0 | I16: 28.64778894
A17: Hortonom | C17: 0 | D17: 0.9998128859 | E17: 0.9998128859 | F17: 0.9998128859 | G17: 1.999625772 | I17: 4.99906443
A18: Forstkand. | C18: 2.611488804 | D18: 2.806087445 | E18: 0.9998128859 | F18: 3.219609555 | G18: 0.9998128859 | I18: 10.63681158
A19: Jordbrugsakad. | C19: 23.19590844 | D19: 29.55154993 | E19: 9.444271191 | F19: 11.74140835 | G19: 5.839206636 | I19: 79.77234454
A20: Mejeriing. | C20: 2.860974241 | D20: 2.999438658 | E20: 0 | F20: 0 | G20: 0 | I20: 5.860412898
A21: Levn.m.kand. | C21: 0.4921100231 | D21: 3.999251544 | E21: 1.937878126 | F21: 0 | G21: 0 | I21: 6.429239693
A22: Dyrlæge | C22: 5.405101977 | D22: 5.681407098 | E22: 2.219172956 | F22: 0.8719515998 | G22: 0 | I22: 14.17763363
A23: Farmaceut | C23: 69.62514813 | D23: 31.11208133 | E23: 5.768103287 | F23: 10.22266575 | G23: 2.953283852 | I23: 119.6812824
A24: Læge | C24: 34.57182062 | D24: 42.69693757 | E24: 3.030000624 | F24: 2.860974241 | G24: 0.3074908002 | I24: 83.46722385
A25: Tandlæge | C25: 4.251231834 | D25: 3.187176449 | E25: 2.524168902 | F25: 1.402108152 | G25: 1.999625772 | I25: 13.36431111
A26: Arkitekt | C26: 60.94804466 | D26: 55.12380715 | E26: 31.63288218 | F26: 18.46192229 | G26: 21.00854488 | I26: 187.1752011
A27: Landinspek. | C27: 0 | D27: 1.999625772 | E27: 0.9998128859 | F27: 0.9998128859 | G27: 0 | I27: 3.999251544
A28: Bibliotekar | C28: 6.709910809 | D28: 19.35383272 | E28: 23.11045968 | F28: 11.3996133 | G28: 5.338988337 | I28: 65.91280484
A29: Musikudd. | C29: 1.184432109 | D29: 2.030187738 | E29: 1.949728685 | F29: 1.247427181 | G29: 1.030374852 | I29: 7.442150564
A30: Teolog | C30: 7.838208695 | D30: 12.21543067 | E30: 0.9411838084 | F30: 3.879498534 | G30: 0.9998128859 | I30: 25.8741346
A31: Psykolog | C31: 38.77876879 | D31: 48.68833032 | E31: 17.07415955 | F31: 8.791866775 | G31: 7.801409593 | I31: 121.134535
A32: Jurist | C32: 37.00180877 | D32: 43.83334373 | E32: 28.14507578 | F32: 15.99700617 | G32: 7.412836026 | I32: 132.3900705
A33: Økonom | C33: 33.58073972 | D33: 22.6158548 | E33: 18.45942743 | F33: 22.21044097 | G33: 16.97187052 | I33: 113.8383334
A34: Samf. Adm. | C34: 248.8947795 | D34: 255.5360818 | E34: 129.6114264 | F34: 62.27717832 | G34: 19.09998129 | I34: 715.4194474
A35: Cand. Merc. | C35: 261.4944178 | D35: 226.7598079 | E35: 100.8850496 | F35: 79.02825423 | G35: 25.67142768 | I35: 693.8389572
A36: HA | C36: 68.97087258 | D36: 26.40928086 | E36: 8.816815318 | F36: 16.40553858 | G36: 16.76043161 | I36: 137.3629389
A37: HD | C37: 49.93139151 | D37: 45.11382773 | E37: 9.18355891 | F37: 14.70529533 | G37: 16.46978108 | I37: 135.4038545
A38: Komm. og Sprog | C38: 45.34085948 | D38: 51.60793364 | E38: 38.90226408 | F38: 35.56602008 | G38: 22.26532776 | I38: 193.682405
A39: Bygningskonst. | C39: 40.99394998 | D39: 24.61772594 | E39: 12.06149816 | F39: 15.33842699 | G39: 3.907690389 | I39: 96.91929146
A40: Cand. IT. | C40: 72.82168028 | D40: 57.8843635 | E40: 23.03062434 | F40: 3.768477515 | G40: 0.9998128859 | I40: 158.5049585
A41: Bac. Samf. | C41: 18.88667124 | D41: 4.652903387 | E41: 6.805338988 | F41: 5.541695254 | G41: 3.519615792 | I41: 39.40622466
A42: Bac. Hum. | C42: 112.338926 | D42: 40.2064492 | E42: 15.7319279 | F42: 15.88848001 | G42: 6.721761367 | I42: 190.8875444
A43: Bac. Nat. | C43: 108.2891536 | D43: 33.52148693 | E43: 9.168589784 | F43: 6.457306805 | G43: 1.90731616 | I43: 159.3438533
A44: Andre | C44: 194.6965633 | D44: 287.8937192 | E44: 149.2166157 | F44: 124.6903262 | G44: 73.53084264 | I44: 830.0280671
A46: Total | C46: 3028.514688 | D46: 2617.163725 | E46: 1106.14308 | F46: 777.6274559 | G46: 432.4719017 | I46: 7961.920851
A48: Ingeniører i alt | C48: 350.2095678 | D48: 211.4538764 | E48: 81.408969 | F48: 110.3517745 | G48: 85.71446392 | I48: 839.1386515
A49: Magistre i alt | C49: 752.6208445 | D49: 773.6300131 | E49: 328.8155679 | F49: 167.2357014 | G49: 76.26832159 | I49: 2098.570448
A50: DJØF'ere i alt | C50: 649.9426183 | D50: 575.1543691 | E50: 285.9177945 | F50: 195.9184183 | G50: 85.91654712 | I50: 1792.849747
A57: København
C59: Under 30 år | D59: 30 - 39 år | E59: 40 - 49 år | F59: 50 - 59 år | G59: Over 60 år | I59: I alt
A61: Civ. ing. | C61: 147.8525541 | D61: 71.67841327 | E61: 14.38907254 | F61: 8.355890975 | G61: 7.622403792 | I61: 249.8983347
A62: Diplom ing. | C62: 38.80995447 | D62: 33.35745026 | E62: 15.7593713 | F62: 15.53296326 | G62: 7.879373792 | I62: 111.3391131
A63: Cand. Scient. Tek | C63: 279.2415643 | D63: 175.3015655 | E63: 23.94561217 | F63: 7.009293333 | G63: 4.32171147 | I63: 489.8197468
A64: MA. Hum. | C64: 349.8141333 | D64: 380.3399239 | E64: 142.2547246 | F64: 69.87525728 | G64: 27.20202083 | I64: 969.48606
A65: MA. Nat. | C65: 48.32096301 | D65: 44.23688642 | E65: 24.36848999 | F65: 8.760681095 | G65: 2.774901765 | I65: 128.4619223
A66: MA. Ph.d. | C66: 0.9998128859 | D66: 8.065864155 | E66: 9.693132913 | F66: 2.604627955 | G66: 1.6154182 | I66: 22.97885611
A67: MA. Samf. | C67: 118.1843697 | D67: 105.1793177 | E67: 13.47221356 | F67: 11.37653589 | G67: 1.722696938 | I67: 249.9351338
A68: Øvrige Mag. | C68: 52.47177696 | D68: 26.58953409 | E68: 12.59090626 | F68: 3.076155429 | G68: 2.907129046 | I68: 97.63550178
A69: Agronom | C69: 6.309486684 | D69: 6.895777459 | E69: 0.7228840516 | F69: 2.174265577 | G69: 0.6474147072 | I69: 16.74982848
A70: Landsk. Arkt. | C70: 5.121936007 | D70: 9.820994199 | E70: 3.953096738 | F70: 1.722696938 | G70: 0 | I70: 20.61872388
A71: Hortonom | C71: 0 | D71: 0 | E71: 0 | F71: 0 | G71: 0.9998128859 | I71: 0.9998128859
A72: Forstkand. | C72: 2.611488804 | D72: 2.806087445 | E72: 0 | F72: 2.450570698 | G72: 0 | I72: 7.868146947
A73: Jordbrugsakad. | C73: 14.0429115 | D73: 19.5228591 | E73: 4.67598079 | F73: 6.347533213 | G73: 1.647227593 | I73: 46.23651219
A74: Mejeriing. | C74: 1.861161355 | D74: 1.999625772 | E74: 0 | F74: 0 | G74: 0 | I74: 3.860787127
A75: Levn.m.kand. | C75: 0.4921100231 | D75: 1.999625772 | E75: 0.9998128859 | F75: 0 | G75: 0 | I75: 3.491548681
A76: Dyrlæge | C76: 3.366182249 | D76: 1.682155554 | E76: 0.2657019896 | F76: 0 | G76: 0 | I76: 5.314039793
A77: Farmaceut | C77: 45.44501965 | D77: 17.94548743 | E77: 4.768290401 | F77: 4.548743217 | G77: 0 | I77: 72.7075407
A78: Læge | C78: 25.96394935 | D78: 27.97417826 | E78: 0.9075032745 | F78: 0.9998128859 | G78: 0 | I78: 55.84544377
A79: Tandlæge | C79: 3.620657394 | D79: 2.064491985 | E79: 1.524356016 | F79: 0 | G79: 0 | I79: 7.209505395
A80: Arkitekt | C80: 57.6411152 | D80: 44.33855174 | E80: 21.20127238 | F80: 11.26489116 | G80: 9.59520988 | I80: 144.0410404
A81: Landinspek. | C81: 0 | D81: 0.9998128859 | E81: 0 | F81: 0.9998128859 | G81: 0 | I81: 1.999625772
A82: Bibliotekar | C82: 3.972431859 | D82: 12.19796669 | E82: 11.08900393 | F82: 7.077901827 | G82: 2.522297761 | I82: 36.85960207
A83: Musikudd. | C83: 1.184432109 | D83: 1.030374852 | E83: 0.9499157987 | F83: 1.247427181 | G83: 0 | I83: 4.412149941
A84: Teolog | C84: 5.483066176 | D84: 11.21561779 | E84: 0.3998004117 | F84: 1.454500094 | G84: 0.9998128859 | I84: 19.55279736
A85: Psykolog | C85: 27.43591343 | D85: 28.31035988 | E85: 7.365433793 | F85: 2.999438658 | G85: 2.894654775 | I85: 69.00580054
A86: Jurist | C86: 23.47158985 | D86: 24.06786004 | E86: 7.823863282 | F86: 6.24462047 | G86: 2.437472713 | I86: 64.04540635
A87: Økonom | C87: 25.93026882 | D87: 18.61660326 | E87: 7.705981413 | F87: 7.714713404 | G87: 8.614108401 | I87: 68.58167529
A88: Samf. Adm. | C88: 192.3913179 | D88: 176.0668621 | E88: 82.5790557 | F88: 32.09193538 | G88: 5.380777147 | I88: 488.5099482
A89: Cand. Merc. | C89: 173.1241814 | D89: 144.8269195 | E89: 50.64055386 | F89: 21.0097923 | G89: 6.674982848 | I89: 396.2764299
A90: HA | C90: 51.5143766 | D90: 16.20033681 | E90: 3.358073972 | F90: 5.835464355 | G90: 2.459926402 | I90: 79.36817813
A91: HD | C91: 37.51512505 | D91: 30.67610553 | E91: 6.101166344 | F91: 3.651843074 | G91: 1.999625772 | I91: 79.94386578
A92: Komm. og Sprog | C92: 32.54412774 | D92: 31.50876318 | E92: 23.98054014 | F92: 11.47258779 | G92: 5.607185181 | I92: 105.113204
A93: Bygningskonst. | C93: 27.7939874 | D93: 12.92297137 | E93: 6.492297137 | F93: 6.399987526 | G93: 1 | I93: 54.60924344
A94: Cand. IT. | C94: 58.72263457 | D94: 42.39506019 | E94: 16.19409967 | F94: 1.768851743 | G94: 0 | I94: 119.0806462
A95: Bac. Samf. | C95: 15.88723258 | D95: 2.687581862 | E95: 4.810079212 | F95: 3.348718269 | G95: 0 | I95: 26.73361193
A96: Bac. Hum. | C96: 82.83477827 | D96: 28.97336743 | E96: 8.621592965 | F96: 6.971870517 | G96: 3.953096738 | I96: 131.3547059
A97: Bac. Nat. | C97: 72.68446329 | D97: 20.381089 | E97: 4.386577684 | F97: 2.999438658 | G97: 0.9075032745 | I97: 101.3590719
A98: Andre | C98: 140.6767292 | D98: 200.6973118 | E98: 83.56202832 | F98: 56.98309736 | G98: 34.355392 | I98: 516.2745587
A100: Total | C100: 2161.294892 | D100: 1766.050895 | E100: 616.8765047 | F100: 330.0243872 | G100: 147.0949292 | I100: 5021.341608
A102: Ingeniører i alt | C102: 186.6625086 | D102: 105.0358635 | E102: 30.14844383 | F102: 23.88885424 | G102: 15.50177758 | I102: 361.2374478
A103: Magistre i alt | C103: 569.7910559 | D103: 564.4115262 | E103: 202.3794673 | F103: 95.69325766 | G103: 36.22216678 | I103: 1468.497474
A104: DJØF'ere i alt | C104: 466.4317345 | D104: 379.7785817 | E104: 152.1075282 | F104: 72.89652592 | G104: 25.56726751 | I104: 1096.781638
A111: Frederiksberg
C113: Under 30 år | D113: 30 - 39 år | E113: 40 - 49 år | F113: 50 - 59 år | G113: Over 60 år | I113: I alt
A115: Civ. ing. | C115: 14.30736606 | D115: 12.01147633 | E115: 0 | F115: 2.999438658 | G115: 2.994448949 | I115: 32.31272999
A116: Diplom ing. | C116: 3.999251544 | D116: 2.307116572 | E116: 2.84351026 | F116: 2.907129046 | G116: 1.563649972 | I116: 13.62065739
A117: Cand. Scient. Tek | C117: 21.28547371 | D117: 14.45580989 | E117: 4.991579867 | F117: 0 | G117: 0.9998128859 | I117: 41.73267636
A118: MA. Hum. | C118: 37.96357513 | D118: 27.21574253 | E118: 26.51468846 | F118: 11.84806337 | G118: 4.7820121 | I118: 108.3240816
A119: MA. Nat. | C119: 5.706355641 | D119: 6.998690201 | E119: 3.491548681 | F119: 2.942057007 | G119: 0.9998128859 | I119: 20.13846442
A120: MA. Ph.d. | C120: 0 | D120: 0 | E120: 0.9998128859 | F120: 2.063244558 | G120: 0 | I120: 3.063057444
A121: MA. Samf. | C121: 16.97436537 | D121: 11.98091436 | E121: 1.999625772 | F121: 0.9998128859 | G121: 0 | I121: 31.95471839
A122: Øvrige Mag. | C122: 3.491548681 | D122: 3.353084264 | E122: 1.999625772 | F122: 1.389010167 | G122: 0.9536580802 | I122: 11.18692696
A123: Agronom | C123: 1.90731616 | D123: 0.9998128859 | E123: 0.9998128859 | F123: 0 | G123: 0 | I123: 3.906941932
A124: Landsk. Arkt. | C124: 0.4921100231 | D124: 0.9998128859 | E124: 0 | F124: 0 | G124: 0 | I124: 1.491922909
A125: Hortonom | C125: 0 | D125: 0 | E125: 0 | F125: 0 | G125: 0 | I125: 0
A126: Forstkand. | C126: 0 | D126: 0 | E126: 0 | F126: 0 | G126: 0 | I126: 0
A127: Jordbrugsakad. | C127: 2.399426183 | D127: 1.999625772 | E127: 0.9998128859 | F127: 0 | G127: 0 | I127: 5.398864841
A128: Mejeriing. | C128: 0 | D128: 0 | E128: 0 | F128: 0 | G128: 0 | I128: 0
A129: Levn.m.kand. | C129: 0 | D129: 0.9998128859 | E129: 0 | F129: 0 | G129: 0 | I129: 0.9998128859
A130: Dyrlæge | C130: 0.8551113329 | D130: 0 | E130: 0 | F130: 0 | G130: 0 | I130: 0.8551113329
A131: Farmaceut | C131: 5.101353458 | D131: 0 | E131: 0 | F131: 0.9998128859 | G131: 0 | I131: 6.101166344
A132: Læge | C132: 4.578057756 | D132: 1.26114888 | E132: 0.2613359945 | F132: 0.9998128859 | G132: 0.3074908002 | I132: 7.407846317
A133: Tandlæge | C133: 0 | D133: 0 | E133: 0 | F133: 0 | G133: 0.9998128859 | I133: 0.9998128859
A134: Arkitekt | C134: 3.306929458 | D134: 5.537329258 | E134: 4.720264455 | F134: 5.197405351 | G134: 1.58423252 | I134: 20.34616104
A135: Landinspek. | C135: 0 | D135: 0.9998128859 | E135: 0.9998128859 | F135: 0 | G135: 0 | I135: 1.999625772
A136: Bibliotekar | C136: 0 | D136: 0 | E136: 6.809704983 | F136: 0.7690388574 | G136: 0 | I136: 7.578743841
A137: Musikudd. | C137: 0 | D137: 0 | E137: 0 | F137: 0 | G137: 0 | I137: 0
A138: Teolog | C138: 0.9075032745 | D138: 0 | E138: 0 | F138: 1.500031186 | G138: 0 | I138: 2.40753446
A139: Psykolog | C139: 2.353271378 | D139: 7.434666001 | E139: 2.066363126 | F139: 0 | G139: 2.999438658 | I139: 14.85373916
A140: Jurist | C140: 4.67598079 | D140: 6.90638059 | E140: 3.598827418 | F140: 0.9998128859 | G140: 3.641239943 | I140: 19.82224163
A141: Økonom | C141: 3.768477515 | D141: 0.9998128859 | E141: 0.9998128859 | F141: 1.999625772 | G141: 0.9998128859 | I141: 8.767541945
A142: Samf. Adm. | C142: 19.06941932 | D142: 21.48506206 | E142: 5.768103287 | F142: 7.53695503 | G142: 2.768664629 | I142: 56.62820433
A143: Cand. Merc. | C143: 35.31154494 | D143: 15.44002994 | E143: 7.996631947 | F143: 5.392627705 | G143: 0.9998128859 | I143: 65.14064741
A144: HA | C144: 7.619285224 | D144: 2.999438658 | E144: 0.4596769164 | F144: 0 | G144: 2.907129046 | I144: 13.98552984
A145: HD | C145: 6.262084451 | D145: 3.906941932 | E145: 0.7690388574 | F145: 1.445768103 | G145: 0 | I145: 12.38383334
A146: Komm. og Sprog | C146: 2.191105844 | D146: 9.558410778 | E146: 4.092808582 | F146: 1.26114888 | G146: 1.999625772 | I146: 19.10309986
A147: Bygningskonst. | C147: 0.8153807771 | D147: 1 | E147: 0.5846067486 | F147: 1.769225971 | G147: 0 | I147: 4.169213497
A148: Cand. IT. | C148: 7.207010541 | D148: 2.830412275 | E148: 0.9998128859 | F148: 0.9998128859 | G148: 0 | I148: 12.03704859
A149: Bac. Samf. | C149: 0.9998128859 | D149: 1.965321524 | E149: 0 | F149: 1.377783322 | G149: 0 | I149: 4.342917732
A150: Bac. Hum. | C150: 7.98166282 | D150: 2.999438658 | E150: 1.999625772 | F150: 2.915861037 | G150: 0 | I150: 15.89658829
A151: Bac. Nat. | C151: 11.20813323 | D151: 0.9998128859 | E151: 0 | F151: 0.9998128859 | G151: 0 | I151: 13.207759
A152: Andre | C152: 22.00149691 | D152: 24.40217052 | E152: 12.25721948 | F152: 13.82461174 | G152: 5.397617414 | I152: 77.88311607
A154: Total | C154: 252.3409842 | D154: 192.0484625 | E154: 98.22385081 | F154: 75.13790307 | G154: 36.89827231 | I154: 654.649473
A156: Ingeniører i alt | C156: 18.3066176 | D156: 14.3185929 | E156: 2.84351026 | F156: 5.906567704 | G156: 4.558098921 | I156: 45.93338739
A157: Magistre i alt | C157: 64.13584482 | D157: 49.54843136 | E157: 35.00530157 | F157: 19.24218799 | G157: 6.735483066 | I157: 174.6672488
A158: DJØF'ere i alt | C158: 70.44470779 | D158: 47.83072413 | E158: 18.82305245 | F158: 15.92902139 | G158: 11.31665939 | I158: 164.3441652
A165: Ballerup
C167: Under 30 år | D167: 30 - 39 år | E167: 40 - 49 år | F167: 50 - 59 år | G167: Over 60 år | I167: I alt
A169: Civ. ing. | C169: 2.999438658 | D169: 1.999625772 | E169: 0 | F169: 1.999625772 | G169: 0.9075032745 | I169: 7.906193476
A170: Diplom ing. | C170: 0.2825422566 | D170: 1.039730556 | E170: 1.629763613 | F170: 5.407596832 | G170: 6.306368116 | I170: 14.66600137
A171: Cand. Scient. Tek | C171: 4.35289715 | D171: 2.574689702 | E171: 0 | F171: 0 | G171: 0 | I171: 6.927586852
A172: MA. Hum. | C172: 0 | D172: 1.815006549 | E172: 1.990270068 | F172: 0 | G172: 0 | I172: 3.805276617
A173: MA. Nat. | C173: 0 | D173: 0 | E173: 0.9998128859 | F173: 0 | G173: 0 | I173: 0.9998128859
A174: MA. Ph.d. | C174: 0 | D174: 0 | E174: 0 | F174: 0 | G174: 0 | I174: 0
A175: MA. Samf. | C175: 0 | D175: 1.676542132 | E175: 0 | F175: 0 | G175: 0 | I175: 1.676542132
A176: Øvrige Mag. | C176: 0 | D176: 0 | E176: 0.9998128859 | F176: 0 | G176: 0 | I176: 0.9998128859
A177: Agronom | C177: 0 | D177: 0 | E177: 0 | F177: 0 | G177: 0 | I177: 0
A178: Landsk. Arkt. | C178: 0.7690388574 | D178: 0 | E178: 0 | F178: 0 | G178: 0 | I178: 0.7690388574
A179: Hortonom | C179: 0 | D179: 0 | E179: 0 | F179: 0 | G179: 0 | I179: 0
A180: Forstkand. | C180: 0 | D180: 0 | E180: 0 | F180: 0 | G180: 0 | I180: 0
A181: Jordbrugsakad. | C181: 0.7690388574 | D181: 0 | E181: 0 | F181: 0 | G181: 0 | I181: 0.7690388574
A182: Mejeriing. | C182: 0.9998128859 | D182: 0 | E182: 0 | F182: 0 | G182: 0 | I182: 0.9998128859
A183: Levn.m.kand. | C183: 0 | D183: 0 | E183: 0 | F183: 0 | G183: 0 | I183: 0
A184: Dyrlæge | C184: 0 | D184: 0 | E184: 0 | F184: 0 | G184: 0 | I184: 0
A185: Farmaceut | C185: 0 | D185: 0 | E185: 0 | F185: 0 | G185: 0 | I185: 0
A186: Læge | C186: 0.9998128859 | D186: 0 | E186: 0 | F186: 0 | G186: 0 | I186: 0.9998128859
A187: Tandlæge | C187: 0 | D187: 0 | E187: 0 | F187: 0 | G187: 0 | I187: 0
A188: Arkitekt | C188: 0 | D188: 0.8875444396 | E188: 0 | F188: 0 | G188: 0 | I188: 0.8875444396
A189: Landinspek. | C189: 0 | D189: 0 | E189: 0 | F189: 0 | G189: 0 | I189: 0
A190: Bibliotekar | C190: 0 | D190: 0 | E190: 2.862845381 | F190: 0 | G190: 0 | I190: 2.862845381
A191: Musikudd. | C191: 0 | D191: 0 | E191: 0 | F191: 0 | G191: 0 | I191: 0
A192: Teolog | C192: 0 | D192: 0 | E192: 0 | F192: 0 | G192: 0 | I192: 0
A193: Psykolog | C193: 0 | D193: 0 | E193: 0.5426308239 | F193: 0 | G193: 0 | I193: 0.5426308239
A194: Jurist | C194: 1.824985966 | D194: 1.90731616 | E194: 0.9998128859 | F194: 0 | G194: 0 | I194: 4.732115013
A195: Økonom | C195: 0 | D195: 0.9998128859 | E195: 0.9075032745 | F195: 0 | G195: 0 | I195: 1.90731616
A196: Samf. Adm. | C196: 0.9998128859 | D196: 1.645980166 | E196: 1.246179754 | F196: 0.9075032745 | G196: 0 | I196: 4.799476081
A197: Cand. Merc. | C197: 0.9561529346 | D197: 0.391692135 | E197: 0.9998128859 | F197: 1.999625772 | G197: 0 | I197: 4.347283727
A198: HA | C198: 0 | D198: 0 | E198: 0 | F198: 0 | G198: 0 | I198: 0
A199: HD | C199: 0 | D199: 0.7690388574 | E199: 0 | F199: 0 | G199: 0.7228840516 | I199: 1.491922909
A200: Komm. og Sprog | C200: 0 | D200: 0 | E200: 0.8151936631 | F200: 0 | G200: 0 | I200: 0.8151936631
A201: Bygningskonst. | C201: 1 | D201: 0 | E201: 0 | F201: 0 | G201: 0 | I201: 1
A202: Cand. IT. | C202: 0 | D202: 0 | E202: 0 | F202: 0 | G202: 0 | I202: 0
A203: Bac. Samf. | C203: 0 | D203: 0 | E203: 0 | F203: 0.8151936631 | G203: 0 | I203: 0.8151936631
A204: Bac. Hum. | C204: 0 | D204: 0 | E204: 0 | F204: 0 | G204: 0 | I204: 0
A205: Bac. Nat. | C205: 2.512942057 | D205: 1.999625772 | E205: 0.9212249735 | F205: 0 | G205: 0 | I205: 5.433792802
A206: Andre | C206: 2.999438658 | D206: 2.768664629 | E206: 3.887606811 | F206: 1.254911745 | G206: 0 | I206: 10.91062184
A208: Total | C208: 20.69687519 | D208: 20.47526976 | E208: 18.80246991 | F208: 12.38445706 | G208: 7.936755442 | I208: 80.29582736
A210: Ingeniører i alt | C210: 3.281980914 | D210: 3.039356328 | E210: 1.629763613 | F210: 7.407222603 | G210: 7.21387139 | I210: 22.57219485
A211: Magistre i alt | C211: 0 | D211: 3.491548681 | E211: 3.98989584 | F211: 0 | G211: 0 | I211: 7.481444521
A212: DJØF'ere i alt | C212: 3.780951787 | D212: 4.944801347 | E212: 4.153308801 | F212: 2.907129046 | G212: 0 | I212: 15.78619098
A219: Brøndby
C221: Under 30 år | D221: 30 - 39 år | E221: 40 - 49 år | F221: 50 - 59 år | G221: Over 60 år | I221: I alt
A223: Civ. ing. | C223: 2.999438658 | D223: 1.999625772 | E223: 0 | F223: 0 | G223: 0.9592715025 | I223: 5.958335932
A224: Diplom ing. | C224: 2.907129046 | D224: 0 | E224: 0 | F224: 0.9998128859 | G224: 0 | I224: 3.906941932
A225: Cand. Scient. Tek | C225: 3.581363438 | D225: 1.21936007 | E225: 0 | F225: 0 | G225: 0 | I225: 4.800723508
A226: MA. Hum. | C226: 3.612549117 | D226: 1.999625772 | E226: 0.6767292459 | F226: 1.72144951 | G226: 0 | I226: 8.010353646
A227: MA. Nat. | C227: 0.1771346598 | D227: 0 | E227: 0 | F227: 0 | G227: 0.6879560906 | I227: 0.8650907503
A228: MA. Ph.d. | C228: 0 | D228: 0 | E228: 0 | F228: 0 | G228: 0 | I228: 0
A229: MA. Samf. | C229: 2.999438658 | D229: 0 | E229: 0 | F229: 0 | G229: 0 | I229: 2.999438658
A230: Øvrige Mag. | C230: 0 | D230: 1.538077715 | E230: 0 | F230: 0 | G230: 0 | I230: 1.538077715
A231: Agronom | C231: 0.9000187114 | D231: 0 | E231: 0 | F231: 0 | G231: 0 | I231: 0.9000187114
A232: Landsk. Arkt. | C232: 0 | D232: 0 | E232: 0 | F232: 0 | G232: 0 | I232: 0
A233: Hortonom | C233: 0 | D233: 0 | E233: 0 | F233: 0 | G233: 0 | I233: 0
A234: Forstkand. | C234: 0 | D234: 0 | E234: 0 | F234: 0 | G234: 0 | I234: 0
A235: Jordbrugsakad. | C235: 0.9000187114 | D235: 0 | E235: 0 | F235: 0 | G235: 0 | I235: 0.9000187114
A236: Mejeriing. | C236: 0 | D236: 0 | E236: 0 | F236: 0 | G236: 0 | I236: 0
A237: Levn.m.kand. | C237: 0 | D237: 0 | E237: 0 | F237: 0 | G237: 0 | I237: 0
A238: Dyrlæge | C238: 0 | D238: 0 | E238: 0 | F238: 0 | G238: 0 | I238: 0
A239: Farmaceut | C239: 0.6305744402 | D239: 1.445768103 | E239: 0 | F239: 0 | G239: 0 | I239: 2.076342544
A240: Læge | C240: 0 | D240: 0 | E240: 0 | F240: 0 | G240: 0 | I240: 0
A241: Tandlæge | C241: 0 | D241: 0.2613359945 | E241: 0 | F241: 0 | G241: 0 | I241: 0.2613359945
A242: Arkitekt | C242: 0 | D242: 0 | E242: 0 | F242: 0 | G242: 0 | I242: 0
A243: Landinspek. | C243: 0 | D243: 0 | E243: 0 | F243: 0 | G243: 0 | I243: 0
... 1077 more rows

Sheet Tabel 4P H
A1: Tabel 4. Ledighedsberørte - aldersfordelt
A3: Hovedstaden
C5: Under 30 år | D5: 30 - 39 år | E5: 40 - 49 år | F5: 50 - 59 år | G5: Over 60 år | I5: I alt
A7: Civ. ing. | C7: =IF(OR('Tabel 4F H'!C7<5,'Tabel 4 H'!C7<0.5),"-",IFERROR('Tabel 4 H'!C7/'Tabel 4F H'!C7*100,"-")) -> 9.850939728 | D7: =IF(OR('Tabel 4F H'!D7<5,'Tabel 4 H'!D7<0.5),"-",IFERROR('Tabel 4 H'!D7/'Tabel 4F H'!D7*100,"-")) -> 2.722814138 | E7: =IF(OR('Tabel 4F H'!E7<5,'Tabel 4 H'!E7<0.5),"-",IFERROR('Tabel 4 H'!E7/'Tabel 4F H'!E7*100,"-")) -> 1.000714796 | F7: =IF(OR('Tabel 4F H'!F7<5,'Tabel 4 H'!F7<0.5),"-",IFERROR('Tabel 4 H'!F7/'Tabel 4F H'!F7*100,"-")) -> 1.215002641 | G7: =IF(OR('Tabel 4F H'!G7<5,'Tabel 4 H'!G7<0.5),"-",IFERROR('Tabel 4 H'!G7/'Tabel 4F H'!G7*100,"-")) -> 3.412462908 | I7: =IF(OR('Tabel 4F H'!I7<5,'Tabel 4 H'!I7<0.5),"-",IFERROR('Tabel 4 H'!I7/'Tabel 4F H'!I7*100,"-")) -> 3.267866885
A8: Diplom ing. | C8: =IF(OR('Tabel 4F H'!C8<5,'Tabel 4 H'!C8<0.5),"-",IFERROR('Tabel 4 H'!C8/'Tabel 4F H'!C8*100,"-")) -> 7.98206278 | D8: =IF(OR('Tabel 4F H'!D8<5,'Tabel 4 H'!D8<0.5),"-",IFERROR('Tabel 4 H'!D8/'Tabel 4F H'!D8*100,"-")) -> 3.684937817 | E8: =IF(OR('Tabel 4F H'!E8<5,'Tabel 4 H'!E8<0.5),"-",IFERROR('Tabel 4 H'!E8/'Tabel 4F H'!E8*100,"-")) -> 1.822642832 | F8: =IF(OR('Tabel 4F H'!F8<5,'Tabel 4 H'!F8<0.5),"-",IFERROR('Tabel 4 H'!F8/'Tabel 4F H'!F8*100,"-")) -> 1.786492375 | G8: =IF(OR('Tabel 4F H'!G8<5,'Tabel 4 H'!G8<0.5),"-",IFERROR('Tabel 4 H'!G8/'Tabel 4F H'!G8*100,"-")) -> 3.082191781 | I8: =IF(OR('Tabel 4F H'!I8<5,'Tabel 4 H'!I8<0.5),"-",IFERROR('Tabel 4 H'!I8/'Tabel 4F H'!I8*100,"-")) -> 2.860347729
A9: Cand. Scient. Tek | C9: =IF(OR('Tabel 4F H'!C9<5,'Tabel 4 H'!C9<0.5),"-",IFERROR('Tabel 4 H'!C9/'Tabel 4F H'!C9*100,"-")) -> 14.47239464 | D9: =IF(OR('Tabel 4F H'!D9<5,'Tabel 4 H'!D9<0.5),"-",IFERROR('Tabel 4 H'!D9/'Tabel 4F H'!D9*100,"-")) -> 5.12995896 | E9: =IF(OR('Tabel 4F H'!E9<5,'Tabel 4 H'!E9<0.5),"-",IFERROR('Tabel 4 H'!E9/'Tabel 4F H'!E9*100,"-")) -> 3.008356546 | F9: =IF(OR('Tabel 4F H'!F9<5,'Tabel 4 H'!F9<0.5),"-",IFERROR('Tabel 4 H'!F9/'Tabel 4F H'!F9*100,"-")) -> 1.869158879 | G9: =IF(OR('Tabel 4F H'!G9<5,'Tabel 4 H'!G9<0.5),"-",IFERROR('Tabel 4 H'!G9/'Tabel 4F H'!G9*100,"-")) -> 6.71641791 | I9: =IF(OR('Tabel 4F H'!I9<5,'Tabel 4 H'!I9<0.5),"-",IFERROR('Tabel 4 H'!I9/'Tabel 4F H'!I9*100,"-")) -> 7.12543554
A10: MA. Hum. | C10: =IF(OR('Tabel 4F H'!C10<5,'Tabel 4 H'!C10<0.5),"-",IFERROR('Tabel 4 H'!C10/'Tabel 4F H'!C10*100,"-")) -> 21.39534884 | D10: =IF(OR('Tabel 4F H'!D10<5,'Tabel 4 H'!D10<0.5),"-",IFERROR('Tabel 4 H'!D10/'Tabel 4F H'!D10*100,"-")) -> 8.687943262 | E10: =IF(OR('Tabel 4F H'!E10<5,'Tabel 4 H'!E10<0.5),"-",IFERROR('Tabel 4 H'!E10/'Tabel 4F H'!E10*100,"-")) -> 4.225781846 | F10: =IF(OR('Tabel 4F H'!F10<5,'Tabel 4 H'!F10<0.5),"-",IFERROR('Tabel 4 H'!F10/'Tabel 4F H'!F10*100,"-")) -> 4.915254237 | G10: =IF(OR('Tabel 4F H'!G10<5,'Tabel 4 H'!G10<0.5),"-",IFERROR('Tabel 4 H'!G10/'Tabel 4F H'!G10*100,"-")) -> 6.124401914 | I10: =IF(OR('Tabel 4F H'!I10<5,'Tabel 4 H'!I10<0.5),"-",IFERROR('Tabel 4 H'!I10/'Tabel 4F H'!I10*100,"-")) -> 8.185905581
A11: MA. Nat. | C11: =IF(OR('Tabel 4F H'!C11<5,'Tabel 4 H'!C11<0.5),"-",IFERROR('Tabel 4 H'!C11/'Tabel 4F H'!C11*100,"-")) -> 16.66666667 | D11: =IF(OR('Tabel 4F H'!D11<5,'Tabel 4 H'!D11<0.5),"-",IFERROR('Tabel 4 H'!D11/'Tabel 4F H'!D11*100,"-")) -> 4.801536492 | E11: =IF(OR('Tabel 4F H'!E11<5,'Tabel 4 H'!E11<0.5),"-",IFERROR('Tabel 4 H'!E11/'Tabel 4F H'!E11*100,"-")) -> 1.973401973 | F11: =IF(OR('Tabel 4F H'!F11<5,'Tabel 4 H'!F11<0.5),"-",IFERROR('Tabel 4 H'!F11/'Tabel 4F H'!F11*100,"-")) -> 1.321809863 | G11: =IF(OR('Tabel 4F H'!G11<5,'Tabel 4 H'!G11<0.5),"-",IFERROR('Tabel 4 H'!G11/'Tabel 4F H'!G11*100,"-")) -> 2.649006623 | I11: =IF(OR('Tabel 4F H'!I11<5,'Tabel 4 H'!I11<0.5),"-",IFERROR('Tabel 4 H'!I11/'Tabel 4F H'!I11*100,"-")) -> 3.580920408
A12: MA. Ph.d. | C12: =IF(OR('Tabel 4F H'!C12<5,'Tabel 4 H'!C12<0.5),"-",IFERROR('Tabel 4 H'!C12/'Tabel 4F H'!C12*100,"-")) -> 7.692307692 | D12: =IF(OR('Tabel 4F H'!D12<5,'Tabel 4 H'!D12<0.5),"-",IFERROR('Tabel 4 H'!D12/'Tabel 4F H'!D12*100,"-")) -> 2.865329513 | E12: =IF(OR('Tabel 4F H'!E12<5,'Tabel 4 H'!E12<0.5),"-",IFERROR('Tabel 4 H'!E12/'Tabel 4F H'!E12*100,"-")) -> 3.813559322 | F12: =IF(OR('Tabel 4F H'!F12<5,'Tabel 4 H'!F12<0.5),"-",IFERROR('Tabel 4 H'!F12/'Tabel 4F H'!F12*100,"-")) -> 2.666666667 | G12: =IF(OR('Tabel 4F H'!G12<5,'Tabel 4 H'!G12<0.5),"-",IFERROR('Tabel 4 H'!G12/'Tabel 4F H'!G12*100,"-")) -> 4.301075269 | I12: =IF(OR('Tabel 4F H'!I12<5,'Tabel 4 H'!I12<0.5),"-",IFERROR('Tabel 4 H'!I12/'Tabel 4F H'!I12*100,"-")) -> 3.302611367
A13: MA. Samf. | C13: =IF(OR('Tabel 4F H'!C13<5,'Tabel 4 H'!C13<0.5),"-",IFERROR('Tabel 4 H'!C13/'Tabel 4F H'!C13*100,"-")) -> 20.27896996 | D13: =IF(OR('Tabel 4F H'!D13<5,'Tabel 4 H'!D13<0.5),"-",IFERROR('Tabel 4 H'!D13/'Tabel 4F H'!D13*100,"-")) -> 9.181415929 | E13: =IF(OR('Tabel 4F H'!E13<5,'Tabel 4 H'!E13<0.5),"-",IFERROR('Tabel 4 H'!E13/'Tabel 4F H'!E13*100,"-")) -> 5.288461538 | F13: =IF(OR('Tabel 4F H'!F13<5,'Tabel 4 H'!F13<0.5),"-",IFERROR('Tabel 4 H'!F13/'Tabel 4F H'!F13*100,"-")) -> 6.713780919 | G13: =IF(OR('Tabel 4F H'!G13<5,'Tabel 4 H'!G13<0.5),"-",IFERROR('Tabel 4 H'!G13/'Tabel 4F H'!G13*100,"-")) -> 3.846153846 | I13: =IF(OR('Tabel 4F H'!I13<5,'Tabel 4 H'!I13<0.5),"-",IFERROR('Tabel 4 H'!I13/'Tabel 4F H'!I13*100,"-")) -> 11.05704244
A14: Øvrige Mag. | C14: =IF(OR('Tabel 4F H'!C14<5,'Tabel 4 H'!C14<0.5),"-",IFERROR('Tabel 4 H'!C14/'Tabel 4F H'!C14*100,"-")) -> 25.75250836 | D14: =IF(OR('Tabel 4F H'!D14<5,'Tabel 4 H'!D14<0.5),"-",IFERROR('Tabel 4 H'!D14/'Tabel 4F H'!D14*100,"-")) -> 12.13592233 | E14: =IF(OR('Tabel 4F H'!E14<5,'Tabel 4 H'!E14<0.5),"-",IFERROR('Tabel 4 H'!E14/'Tabel 4F H'!E14*100,"-")) -> 4.854368932 | F14: =IF(OR('Tabel 4F H'!F14<5,'Tabel 4 H'!F14<0.5),"-",IFERROR('Tabel 4 H'!F14/'Tabel 4F H'!F14*100,"-")) -> 2.433090024 | G14: =IF(OR('Tabel 4F H'!G14<5,'Tabel 4 H'!G14<0.5),"-",IFERROR('Tabel 4 H'!G14/'Tabel 4F H'!G14*100,"-")) -> 4.651162791 | I14: =IF(OR('Tabel 4F H'!I14<5,'Tabel 4 H'!I14<0.5),"-",IFERROR('Tabel 4 H'!I14/'Tabel 4F H'!I14*100,"-")) -> 9.513023783
A15: Agronom | C15: =IF(OR('Tabel 4F H'!C15<5,'Tabel 4 H'!C15<0.5),"-",IFERROR('Tabel 4 H'!C15/'Tabel 4F H'!C15*100,"-")) -> 12 | D15: =IF(OR('Tabel 4F H'!D15<5,'Tabel 4 H'!D15<0.5),"-",IFERROR('Tabel 4 H'!D15/'Tabel 4F H'!D15*100,"-")) -> 8.620689655 | E15: =IF(OR('Tabel 4F H'!E15<5,'Tabel 4 H'!E15<0.5),"-",IFERROR('Tabel 4 H'!E15/'Tabel 4F H'!E15*100,"-")) -> 1.047120419 | F15: =IF(OR('Tabel 4F H'!F15<5,'Tabel 4 H'!F15<0.5),"-",IFERROR('Tabel 4 H'!F15/'Tabel 4F H'!F15*100,"-")) -> 2.692307692 | G15: =IF(OR('Tabel 4F H'!G15<5,'Tabel 4 H'!G15<0.5),"-",IFERROR('Tabel 4 H'!G15/'Tabel 4F H'!G15*100,"-")) -> 3.80952381 | I15: =IF(OR('Tabel 4F H'!I15<5,'Tabel 4 H'!I15<0.5),"-",IFERROR('Tabel 4 H'!I15/'Tabel 4F H'!I15*100,"-")) -> 5.029239766
A16: Landsk. Arkt. | C16: =IF(OR('Tabel 4F H'!C16<5,'Tabel 4 H'!C16<0.5),"-",IFERROR('Tabel 4 H'!C16/'Tabel 4F H'!C16*100,"-")) -> 17.54385965 | D16: =IF(OR('Tabel 4F H'!D16<5,'Tabel 4 H'!D16<0.5),"-",IFERROR('Tabel 4 H'!D16/'Tabel 4F H'!D16*100,"-")) -> 7.692307692 | E16: =IF(OR('Tabel 4F H'!E16<5,'Tabel 4 H'!E16<0.5),"-",IFERROR('Tabel 4 H'!E16/'Tabel 4F H'!E16*100,"-")) -> 4.195804196 | F16: =IF(OR('Tabel 4F H'!F16<5,'Tabel 4 H'!F16<0.5),"-",IFERROR('Tabel 4 H'!F16/'Tabel 4F H'!F16*100,"-")) -> 2.298850575 | G16: =IF(OR('Tabel 4F H'!G16<5,'Tabel 4 H'!G16<0.5),"-",IFERROR('Tabel 4 H'!G16/'Tabel 4F H'!G16*100,"-")) -> - | I16: =IF(OR('Tabel 4F H'!I16<5,'Tabel 4 H'!I16<0.5),"-",IFERROR('Tabel 4 H'!I16/'Tabel 4F H'!I16*100,"-")) -> 6.490872211
A17: Hortonom | C17: =IF(OR('Tabel 4F H'!C17<5,'Tabel 4 H'!C17<0.5),"-",IFERROR('Tabel 4 H'!C17/'Tabel 4F H'!C17*100,"-")) -> - | D17: =IF(OR('Tabel 4F H'!D17<5,'Tabel 4 H'!D17<0.5),"-",IFERROR('Tabel 4 H'!D17/'Tabel 4F H'!D17*100,"-")) -> 7.692307692 | E17: =IF(OR('Tabel 4F H'!E17<5,'Tabel 4 H'!E17<0.5),"-",IFERROR('Tabel 4 H'!E17/'Tabel 4F H'!E17*100,"-")) -> 2.777777778 | F17: =IF(OR('Tabel 4F H'!F17<5,'Tabel 4 H'!F17<0.5),"-",IFERROR('Tabel 4 H'!F17/'Tabel 4F H'!F17*100,"-")) -> 1.408450704 | G17: =IF(OR('Tabel 4F H'!G17<5,'Tabel 4 H'!G17<0.5),"-",IFERROR('Tabel 4 H'!G17/'Tabel 4F H'!G17*100,"-")) -> 7.142857143 | I17: =IF(OR('Tabel 4F H'!I17<5,'Tabel 4 H'!I17<0.5),"-",IFERROR('Tabel 4 H'!I17/'Tabel 4F H'!I17*100,"-")) -> 3.378378378
A18: Forstkand. | C18: =IF(OR('Tabel 4F H'!C18<5,'Tabel 4 H'!C18<0.5),"-",IFERROR('Tabel 4 H'!C18/'Tabel 4F H'!C18*100,"-")) -> 15 | D18: =IF(OR('Tabel 4F H'!D18<5,'Tabel 4 H'!D18<0.5),"-",IFERROR('Tabel 4 H'!D18/'Tabel 4F H'!D18*100,"-")) -> 6.666666667 | E18: =IF(OR('Tabel 4F H'!E18<5,'Tabel 4 H'!E18<0.5),"-",IFERROR('Tabel 4 H'!E18/'Tabel 4F H'!E18*100,"-")) -> 1.052631579 | F18: =IF(OR('Tabel 4F H'!F18<5,'Tabel 4 H'!F18<0.5),"-",IFERROR('Tabel 4 H'!F18/'Tabel 4F H'!F18*100,"-")) -> 5.797101449 | G18: =IF(OR('Tabel 4F H'!G18<5,'Tabel 4 H'!G18<0.5),"-",IFERROR('Tabel 4 H'!G18/'Tabel 4F H'!G18*100,"-")) -> 3.448275862 | I18: =IF(OR('Tabel 4F H'!I18<5,'Tabel 4 H'!I18<0.5),"-",IFERROR('Tabel 4 H'!I18/'Tabel 4F H'!I18*100,"-")) -> 4.651162791
A19: Jordbrugsakad. | C19: =IF(OR('Tabel 4F H'!C19<5,'Tabel 4 H'!C19<0.5),"-",IFERROR('Tabel 4 H'!C19/'Tabel 4F H'!C19*100,"-")) -> 13.86138614 | D19: =IF(OR('Tabel 4F H'!D19<5,'Tabel 4 H'!D19<0.5),"-",IFERROR('Tabel 4 H'!D19/'Tabel 4F H'!D19*100,"-")) -> 7.971014493 | E19: =IF(OR('Tabel 4F H'!E19<5,'Tabel 4 H'!E19<0.5),"-",IFERROR('Tabel 4 H'!E19/'Tabel 4F H'!E19*100,"-")) -> 2.150537634 | F19: =IF(OR('Tabel 4F H'!F19<5,'Tabel 4 H'!F19<0.5),"-",IFERROR('Tabel 4 H'!F19/'Tabel 4F H'!F19*100,"-")) -> 2.874743326 | G19: =IF(OR('Tabel 4F H'!G19<5,'Tabel 4 H'!G19<0.5),"-",IFERROR('Tabel 4 H'!G19/'Tabel 4F H'!G19*100,"-")) -> 3.76344086 | I19: =IF(OR('Tabel 4F H'!I19<5,'Tabel 4 H'!I19<0.5),"-",IFERROR('Tabel 4 H'!I19/'Tabel 4F H'!I19*100,"-")) -> 5.245153934
A20: Mejeriing. | C20: =IF(OR('Tabel 4F H'!C20<5,'Tabel 4 H'!C20<0.5),"-",IFERROR('Tabel 4 H'!C20/'Tabel 4F H'!C20*100,"-")) -> 10.34482759 | D20: =IF(OR('Tabel 4F H'!D20<5,'Tabel 4 H'!D20<0.5),"-",IFERROR('Tabel 4 H'!D20/'Tabel 4F H'!D20*100,"-")) -> 6.25 | E20: =IF(OR('Tabel 4F H'!E20<5,'Tabel 4 H'!E20<0.5),"-",IFERROR('Tabel 4 H'!E20/'Tabel 4F H'!E20*100,"-")) -> - | F20: =IF(OR('Tabel 4F H'!F20<5,'Tabel 4 H'!F20<0.5),"-",IFERROR('Tabel 4 H'!F20/'Tabel 4F H'!F20*100,"-")) -> - | G20: =IF(OR('Tabel 4F H'!G20<5,'Tabel 4 H'!G20<0.5),"-",IFERROR('Tabel 4 H'!G20/'Tabel 4F H'!G20*100,"-")) -> - | I20: =IF(OR('Tabel 4F H'!I20<5,'Tabel 4 H'!I20<0.5),"-",IFERROR('Tabel 4 H'!I20/'Tabel 4F H'!I20*100,"-")) -> 4.026845638
A21: Levn.m.kand. | C21: =IF(OR('Tabel 4F H'!C21<5,'Tabel 4 H'!C21<0.5),"-",IFERROR('Tabel 4 H'!C21/'Tabel 4F H'!C21*100,"-")) -> 1.612903226 | D21: =IF(OR('Tabel 4F H'!D21<5,'Tabel 4 H'!D21<0.5),"-",IFERROR('Tabel 4 H'!D21/'Tabel 4F H'!D21*100,"-")) -> 2.339181287 | E21: =IF(OR('Tabel 4F H'!E21<5,'Tabel 4 H'!E21<0.5),"-",IFERROR('Tabel 4 H'!E21/'Tabel 4F H'!E21*100,"-")) -> 2.43902439 | F21: =IF(OR('Tabel 4F H'!F21<5,'Tabel 4 H'!F21<0.5),"-",IFERROR('Tabel 4 H'!F21/'Tabel 4F H'!F21*100,"-")) -> - | G21: =IF(OR('Tabel 4F H'!G21<5,'Tabel 4 H'!G21<0.5),"-",IFERROR('Tabel 4 H'!G21/'Tabel 4F H'!G21*100,"-")) -> - | I21: =IF(OR('Tabel 4F H'!I21<5,'Tabel 4 H'!I21<0.5),"-",IFERROR('Tabel 4 H'!I21/'Tabel 4F H'!I21*100,"-")) -> 2.140672783
A22: Dyrlæge | C22: =IF(OR('Tabel 4F H'!C22<5,'Tabel 4 H'!C22<0.5),"-",IFERROR('Tabel 4 H'!C22/'Tabel 4F H'!C22*100,"-")) -> 4.697986577 | D22: =IF(OR('Tabel 4F H'!D22<5,'Tabel 4 H'!D22<0.5),"-",IFERROR('Tabel 4 H'!D22/'Tabel 4F H'!D22*100,"-")) -> 1.630434783 | E22: =IF(OR('Tabel 4F H'!E22<5,'Tabel 4 H'!E22<0.5),"-",IFERROR('Tabel 4 H'!E22/'Tabel 4F H'!E22*100,"-")) -> 1.339285714 | F22: =IF(OR('Tabel 4F H'!F22<5,'Tabel 4 H'!F22<0.5),"-",IFERROR('Tabel 4 H'!F22/'Tabel 4F H'!F22*100,"-")) -> 0.6622516556 | G22: =IF(OR('Tabel 4F H'!G22<5,'Tabel 4 H'!G22<0.5),"-",IFERROR('Tabel 4 H'!G22/'Tabel 4F H'!G22*100,"-")) -> - | I22: =IF(OR('Tabel 4F H'!I22<5,'Tabel 4 H'!I22<0.5),"-",IFERROR('Tabel 4 H'!I22/'Tabel 4F H'!I22*100,"-")) -> 1.758014478
A23: Farmaceut | C23: =IF(OR('Tabel 4F H'!C23<5,'Tabel 4 H'!C23<0.5),"-",IFERROR('Tabel 4 H'!C23/'Tabel 4F H'!C23*100,"-")) -> 12.4807396 | D23: =IF(OR('Tabel 4F H'!D23<5,'Tabel 4 H'!D23<0.5),"-",IFERROR('Tabel 4 H'!D23/'Tabel 4F H'!D23*100,"-")) -> 2.558314522 | E23: =IF(OR('Tabel 4F H'!E23<5,'Tabel 4 H'!E23<0.5),"-",IFERROR('Tabel 4 H'!E23/'Tabel 4F H'!E23*100,"-")) -> 0.575815739 | F23: =IF(OR('Tabel 4F H'!F23<5,'Tabel 4 H'!F23<0.5),"-",IFERROR('Tabel 4 H'!F23/'Tabel 4F H'!F23*100,"-")) -> 1.676829268 | G23: =IF(OR('Tabel 4F H'!G23<5,'Tabel 4 H'!G23<0.5),"-",IFERROR('Tabel 4 H'!G23/'Tabel 4F H'!G23*100,"-")) -> 1.260504202 | I23: =IF(OR('Tabel 4F H'!I23<5,'Tabel 4 H'!I23<0.5),"-",IFERROR('Tabel 4 H'!I23/'Tabel 4F H'!I23*100,"-")) -> 3.449156873
A24: Læge | C24: =IF(OR('Tabel 4F H'!C24<5,'Tabel 4 H'!C24<0.5),"-",IFERROR('Tabel 4 H'!C24/'Tabel 4F H'!C24*100,"-")) -> 5.048076923 | D24: =IF(OR('Tabel 4F H'!D24<5,'Tabel 4 H'!D24<0.5),"-",IFERROR('Tabel 4 H'!D24/'Tabel 4F H'!D24*100,"-")) -> 2.133105802 | E24: =IF(OR('Tabel 4F H'!E24<5,'Tabel 4 H'!E24<0.5),"-",IFERROR('Tabel 4 H'!E24/'Tabel 4F H'!E24*100,"-")) -> 0.3639672429 | F24: =IF(OR('Tabel 4F H'!F24<5,'Tabel 4 H'!F24<0.5),"-",IFERROR('Tabel 4 H'!F24/'Tabel 4F H'!F24*100,"-")) -> 0.4329004329 | G24: =IF(OR('Tabel 4F H'!G24<5,'Tabel 4 H'!G24<0.5),"-",IFERROR('Tabel 4 H'!G24/'Tabel 4F H'!G24*100,"-")) -> 0.2066115702 | I24: =IF(OR('Tabel 4F H'!I24<5,'Tabel 4 H'!I24<0.5),"-",IFERROR('Tabel 4 H'!I24/'Tabel 4F H'!I24*100,"-")) -> 1.834189288
A25: Tandlæge | C25: =IF(OR('Tabel 4F H'!C25<5,'Tabel 4 H'!C25<0.5),"-",IFERROR('Tabel 4 H'!C25/'Tabel 4F H'!C25*100,"-")) -> 3.973509934 | D25: =IF(OR('Tabel 4F H'!D25<5,'Tabel 4 H'!D25<0.5),"-",IFERROR('Tabel 4 H'!D25/'Tabel 4F H'!D25*100,"-")) -> 1.986754967 | E25: =IF(OR('Tabel 4F H'!E25<5,'Tabel 4 H'!E25<0.5),"-",IFERROR('Tabel 4 H'!E25/'Tabel 4F H'!E25*100,"-")) -> 1.515151515 | F25: =IF(OR('Tabel 4F H'!F25<5,'Tabel 4 H'!F25<0.5),"-",IFERROR('Tabel 4 H'!F25/'Tabel 4F H'!F25*100,"-")) -> 1.481481481 | G25: =IF(OR('Tabel 4F H'!G25<5,'Tabel 4 H'!G25<0.5),"-",IFERROR('Tabel 4 H'!G25/'Tabel 4F H'!G25*100,"-")) -> 2.352941176 | I25: =IF(OR('Tabel 4F H'!I25<5,'Tabel 4 H'!I25<0.5),"-",IFERROR('Tabel 4 H'!I25/'Tabel 4F H'!I25*100,"-")) -> 2.181400689
A26: Arkitekt | C26: =IF(OR('Tabel 4F H'!C26<5,'Tabel 4 H'!C26<0.5),"-",IFERROR('Tabel 4 H'!C26/'Tabel 4F H'!C26*100,"-")) -> 24.13793103 | D26: =IF(OR('Tabel 4F H'!D26<5,'Tabel 4 H'!D26<0.5),"-",IFERROR('Tabel 4 H'!D26/'Tabel 4F H'!D26*100,"-")) -> 5.866177819 | E26: =IF(OR('Tabel 4F H'!E26<5,'Tabel 4 H'!E26<0.5),"-",IFERROR('Tabel 4 H'!E26/'Tabel 4F H'!E26*100,"-")) -> 3.15969257 | F26: =IF(OR('Tabel 4F H'!F26<5,'Tabel 4 H'!F26<0.5),"-",IFERROR('Tabel 4 H'!F26/'Tabel 4F H'!F26*100,"-")) -> 2.987012987 | G26: =IF(OR('Tabel 4F H'!G26<5,'Tabel 4 H'!G26<0.5),"-",IFERROR('Tabel 4 H'!G26/'Tabel 4F H'!G26*100,"-")) -> 7.065217391 | I26: =IF(OR('Tabel 4F H'!I26<5,'Tabel 4 H'!I26<0.5),"-",IFERROR('Tabel 4 H'!I26/'Tabel 4F H'!I26*100,"-")) -> 5.962059621
A27: Landinspek. | C27: =IF(OR('Tabel 4F H'!C27<5,'Tabel 4 H'!C27<0.5),"-",IFERROR('Tabel 4 H'!C27/'Tabel 4F H'!C27*100,"-")) -> - | D27: =IF(OR('Tabel 4F H'!D27<5,'Tabel 4 H'!D27<0.5),"-",IFERROR('Tabel 4 H'!D27/'Tabel 4F H'!D27*100,"-")) -> 3.846153846 | E27: =IF(OR('Tabel 4F H'!E27<5,'Tabel 4 H'!E27<0.5),"-",IFERROR('Tabel 4 H'!E27/'Tabel 4F H'!E27*100,"-")) -> 2 | F27: =IF(OR('Tabel 4F H'!F27<5,'Tabel 4 H'!F27<0.5),"-",IFERROR('Tabel 4 H'!F27/'Tabel 4F H'!F27*100,"-")) -> 2.173913043 | G27: =IF(OR('Tabel 4F H'!G27<5,'Tabel 4 H'!G27<0.5),"-",IFERROR('Tabel 4 H'!G27/'Tabel 4F H'!G27*100,"-")) -> - | I27: =IF(OR('Tabel 4F H'!I27<5,'Tabel 4 H'!I27<0.5),"-",IFERROR('Tabel 4 H'!I27/'Tabel 4F H'!I27*100,"-")) -> 2.083333333
A28: Bibliotekar | C28: =IF(OR('Tabel 4F H'!C28<5,'Tabel 4 H'!C28<0.5),"-",IFERROR('Tabel 4 H'!C28/'Tabel 4F H'!C28*100,"-")) -> 14.81481481 | D28: =IF(OR('Tabel 4F H'!D28<5,'Tabel 4 H'!D28<0.5),"-",IFERROR('Tabel 4 H'!D28/'Tabel 4F H'!D28*100,"-")) -> 7.055214724 | E28: =IF(OR('Tabel 4F H'!E28<5,'Tabel 4 H'!E28<0.5),"-",IFERROR('Tabel 4 H'!E28/'Tabel 4F H'!E28*100,"-")) -> 4.409171076 | F28: =IF(OR('Tabel 4F H'!F28<5,'Tabel 4 H'!F28<0.5),"-",IFERROR('Tabel 4 H'!F28/'Tabel 4F H'!F28*100,"-")) -> 3.263403263 | G28: =IF(OR('Tabel 4F H'!G28<5,'Tabel 4 H'!G28<0.5),"-",IFERROR('Tabel 4 H'!G28/'Tabel 4F H'!G28*100,"-")) -> 2.527075812 | I28: =IF(OR('Tabel 4F H'!I28<5,'Tabel 4 H'!I28<0.5),"-",IFERROR('Tabel 4 H'!I28/'Tabel 4F H'!I28*100,"-")) -> 4.658197217
A29: Musikudd. | C29: =IF(OR('Tabel 4F H'!C29<5,'Tabel 4 H'!C29<0.5),"-",IFERROR('Tabel 4 H'!C29/'Tabel 4F H'!C29*100,"-")) -> 25 | D29: =IF(OR('Tabel 4F H'!D29<5,'Tabel 4 H'!D29<0.5),"-",IFERROR('Tabel 4 H'!D29/'Tabel 4F H'!D29*100,"-")) -> 9.090909091 | E29: =IF(OR('Tabel 4F H'!E29<5,'Tabel 4 H'!E29<0.5),"-",IFERROR('Tabel 4 H'!E29/'Tabel 4F H'!E29*100,"-")) -> 3.278688525 | F29: =IF(OR('Tabel 4F H'!F29<5,'Tabel 4 H'!F29<0.5),"-",IFERROR('Tabel 4 H'!F29/'Tabel 4F H'!F29*100,"-")) -> 1.680672269 | G29: =IF(OR('Tabel 4F H'!G29<5,'Tabel 4 H'!G29<0.5),"-",IFERROR('Tabel 4 H'!G29/'Tabel 4F H'!G29*100,"-")) -> 2.739726027 | I29: =IF(OR('Tabel 4F H'!I29<5,'Tabel 4 H'!I29<0.5),"-",IFERROR('Tabel 4 H'!I29/'Tabel 4F H'!I29*100,"-")) -> 3.741496599
A30: Teolog | C30: =IF(OR('Tabel 4F H'!C30<5,'Tabel 4 H'!C30<0.5),"-",IFERROR('Tabel 4 H'!C30/'Tabel 4F H'!C30*100,"-")) -> 52.94117647 | D30: =IF(OR('Tabel 4F H'!D30<5,'Tabel 4 H'!D30<0.5),"-",IFERROR('Tabel 4 H'!D30/'Tabel 4F H'!D30*100,"-")) -> 13.13131313 | E30: =IF(OR('Tabel 4F H'!E30<5,'Tabel 4 H'!E30<0.5),"-",IFERROR('Tabel 4 H'!E30/'Tabel 4F H'!E30*100,"-")) -> 1.129943503 | F30: =IF(OR('Tabel 4F H'!F30<5,'Tabel 4 H'!F30<0.5),"-",IFERROR('Tabel 4 H'!F30/'Tabel 4F H'!F30*100,"-")) -> 3.409090909 | G30: =IF(OR('Tabel 4F H'!G30<5,'Tabel 4 H'!G30<0.5),"-",IFERROR('Tabel 4 H'!G30/'Tabel 4F H'!G30*100,"-")) -> 1.123595506 | I30: =IF(OR('Tabel 4F H'!I30<5,'Tabel 4 H'!I30<0.5),"-",IFERROR('Tabel 4 H'!I30/'Tabel 4F H'!I30*100,"-")) -> 5.555555556
A31: Psykolog | C31: =IF(OR('Tabel 4F H'!C31<5,'Tabel 4 H'!C31<0.5),"-",IFERROR('Tabel 4 H'!C31/'Tabel 4F H'!C31*100,"-")) -> 7.619047619 | D31: =IF(OR('Tabel 4F H'!D31<5,'Tabel 4 H'!D31<0.5),"-",IFERROR('Tabel 4 H'!D31/'Tabel 4F H'!D31*100,"-")) -> 4.175665947 | E31: =IF(OR('Tabel 4F H'!E31<5,'Tabel 4 H'!E31<0.5),"-",IFERROR('Tabel 4 H'!E31/'Tabel 4F H'!E31*100,"-")) -> 2.253218884 | F31: =IF(OR('Tabel 4F H'!F31<5,'Tabel 4 H'!F31<0.5),"-",IFERROR('Tabel 4 H'!F31/'Tabel 4F H'!F31*100,"-")) -> 1.831501832 | G31: =IF(OR('Tabel 4F H'!G31<5,'Tabel 4 H'!G31<0.5),"-",IFERROR('Tabel 4 H'!G31/'Tabel 4F H'!G31*100,"-")) -> 3.448275862 | I31: =IF(OR('Tabel 4F H'!I31<5,'Tabel 4 H'!I31<0.5),"-",IFERROR('Tabel 4 H'!I31/'Tabel 4F H'!I31*100,"-")) -> 3.885045237
A32: Jurist | C32: =IF(OR('Tabel 4F H'!C32<5,'Tabel 4 H'!C32<0.5),"-",IFERROR('Tabel 4 H'!C32/'Tabel 4F H'!C32*100,"-")) -> 2.619324796 | D32: =IF(OR('Tabel 4F H'!D32<5,'Tabel 4 H'!D32<0.5),"-",IFERROR('Tabel 4 H'!D32/'Tabel 4F H'!D32*100,"-")) -> 1.663405088 | E32: =IF(OR('Tabel 4F H'!E32<5,'Tabel 4 H'!E32<0.5),"-",IFERROR('Tabel 4 H'!E32/'Tabel 4F H'!E32*100,"-")) -> 1.271186441 | F32: =IF(OR('Tabel 4F H'!F32<5,'Tabel 4 H'!F32<0.5),"-",IFERROR('Tabel 4 H'!F32/'Tabel 4F H'!F32*100,"-")) -> 1.018848701 | G32: =IF(OR('Tabel 4F H'!G32<5,'Tabel 4 H'!G32<0.5),"-",IFERROR('Tabel 4 H'!G32/'Tabel 4F H'!G32*100,"-")) -> 1.742160279 | I32: =IF(OR('Tabel 4F H'!I32<5,'Tabel 4 H'!I32<0.5),"-",IFERROR('Tabel 4 H'!I32/'Tabel 4F H'!I32*100,"-")) -> 1.603307452
A33: Økonom | C33: =IF(OR('Tabel 4F H'!C33<5,'Tabel 4 H'!C33<0.5),"-",IFERROR('Tabel 4 H'!C33/'Tabel 4F H'!C33*100,"-")) -> 3.783231084 | D33: =IF(OR('Tabel 4F H'!D33<5,'Tabel 4 H'!D33<0.5),"-",IFERROR('Tabel 4 H'!D33/'Tabel 4F H'!D33*100,"-")) -> 1.443418014 | E33: =IF(OR('Tabel 4F H'!E33<5,'Tabel 4 H'!E33<0.5),"-",IFERROR('Tabel 4 H'!E33/'Tabel 4F H'!E33*100,"-")) -> 1.652892562 | F33: =IF(OR('Tabel 4F H'!F33<5,'Tabel 4 H'!F33<0.5),"-",IFERROR('Tabel 4 H'!F33/'Tabel 4F H'!F33*100,"-")) -> 1.853224611 | G33: =IF(OR('Tabel 4F H'!G33<5,'Tabel 4 H'!G33<0.5),"-",IFERROR('Tabel 4 H'!G33/'Tabel 4F H'!G33*100,"-")) -> 5.507246377 | I33: =IF(OR('Tabel 4F H'!I33<5,'Tabel 4 H'!I33<0.5),"-",IFERROR('Tabel 4 H'!I33/'Tabel 4F H'!I33*100,"-")) -> 2.231909329
A34: Samf. Adm. | C34: =IF(OR('Tabel 4F H'!C34<5,'Tabel 4 H'!C34<0.5),"-",IFERROR('Tabel 4 H'!C34/'Tabel 4F H'!C34*100,"-")) -> 11.10291405 | D34: =IF(OR('Tabel 4F H'!D34<5,'Tabel 4 H'!D34<0.5),"-",IFERROR('Tabel 4 H'!D34/'Tabel 4F H'!D34*100,"-")) -> 4.285714286 | E34: =IF(OR('Tabel 4F H'!E34<5,'Tabel 4 H'!E34<0.5),"-",IFERROR('Tabel 4 H'!E34/'Tabel 4F H'!E34*100,"-")) -> 3.083520523 | F34: =IF(OR('Tabel 4F H'!F34<5,'Tabel 4 H'!F34<0.5),"-",IFERROR('Tabel 4 H'!F34/'Tabel 4F H'!F34*100,"-")) -> 3.06980656 | G34: =IF(OR('Tabel 4F H'!G34<5,'Tabel 4 H'!G34<0.5),"-",IFERROR('Tabel 4 H'!G34/'Tabel 4F H'!G34*100,"-")) -> 4.166666667 | I34: =IF(OR('Tabel 4F H'!I34<5,'Tabel 4 H'!I34<0.5),"-",IFERROR('Tabel 4 H'!I34/'Tabel 4F H'!I34*100,"-")) -> 4.83086322
A35: Cand. Merc. | C35: =IF(OR('Tabel 4F H'!C35<5,'Tabel 4 H'!C35<0.5),"-",IFERROR('Tabel 4 H'!C35/'Tabel 4F H'!C35*100,"-")) -> 5.998835178 | D35: =IF(OR('Tabel 4F H'!D35<5,'Tabel 4 H'!D35<0.5),"-",IFERROR('Tabel 4 H'!D35/'Tabel 4F H'!D35*100,"-")) -> 3.170268345 | E35: =IF(OR('Tabel 4F H'!E35<5,'Tabel 4 H'!E35<0.5),"-",IFERROR('Tabel 4 H'!E35/'Tabel 4F H'!E35*100,"-")) -> 2.562373567 | F35: =IF(OR('Tabel 4F H'!F35<5,'Tabel 4 H'!F35<0.5),"-",IFERROR('Tabel 4 H'!F35/'Tabel 4F H'!F35*100,"-")) -> 3.032322559 | G35: =IF(OR('Tabel 4F H'!G35<5,'Tabel 4 H'!G35<0.5),"-",IFERROR('Tabel 4 H'!G35/'Tabel 4F H'!G35*100,"-")) -> 6.681034483 | I35: =IF(OR('Tabel 4F H'!I35<5,'Tabel 4 H'!I35<0.5),"-",IFERROR('Tabel 4 H'!I35/'Tabel 4F H'!I35*100,"-")) -> 3.77902918
A36: HA | C36: =IF(OR('Tabel 4F H'!C36<5,'Tabel 4 H'!C36<0.5),"-",IFERROR('Tabel 4 H'!C36/'Tabel 4F H'!C36*100,"-")) -> 11.17166213 | D36: =IF(OR('Tabel 4F H'!D36<5,'Tabel 4 H'!D36<0.5),"-",IFERROR('Tabel 4 H'!D36/'Tabel 4F H'!D36*100,"-")) -> 5.192629816 | E36: =IF(OR('Tabel 4F H'!E36<5,'Tabel 4 H'!E36<0.5),"-",IFERROR('Tabel 4 H'!E36/'Tabel 4F H'!E36*100,"-")) -> 2.386634845 | F36: =IF(OR('Tabel 4F H'!F36<5,'Tabel 4 H'!F36<0.5),"-",IFERROR('Tabel 4 H'!F36/'Tabel 4F H'!F36*100,"-")) -> 3.070175439 | G36: =IF(OR('Tabel 4F H'!G36<5,'Tabel 4 H'!G36<0.5),"-",IFERROR('Tabel 4 H'!G36/'Tabel 4F H'!G36*100,"-")) -> 9.677419355 | I36: =IF(OR('Tabel 4F H'!I36<5,'Tabel 4 H'!I36<0.5),"-",IFERROR('Tabel 4 H'!I36/'Tabel 4F H'!I36*100,"-")) -> 6.22406639
A37: HD | C37: =IF(OR('Tabel 4F H'!C37<5,'Tabel 4 H'!C37<0.5),"-",IFERROR('Tabel 4 H'!C37/'Tabel 4F H'!C37*100,"-")) -> 11.50097466 | D37: =IF(OR('Tabel 4F H'!D37<5,'Tabel 4 H'!D37<0.5),"-",IFERROR('Tabel 4 H'!D37/'Tabel 4F H'!D37*100,"-")) -> 7.44047619 | E37: =IF(OR('Tabel 4F H'!E37<5,'Tabel 4 H'!E37<0.5),"-",IFERROR('Tabel 4 H'!E37/'Tabel 4F H'!E37*100,"-")) -> 3.548387097 | F37: =IF(OR('Tabel 4F H'!F37<5,'Tabel 4 H'!F37<0.5),"-",IFERROR('Tabel 4 H'!F37/'Tabel 4F H'!F37*100,"-")) -> 2.668539326 | G37: =IF(OR('Tabel 4F H'!G37<5,'Tabel 4 H'!G37<0.5),"-",IFERROR('Tabel 4 H'!G37/'Tabel 4F H'!G37*100,"-")) -> 6.422018349 | I37: =IF(OR('Tabel 4F H'!I37<5,'Tabel 4 H'!I37<0.5),"-",IFERROR('Tabel 4 H'!I37/'Tabel 4F H'!I37*100,"-")) -> 6.314127861
A38: Komm. og Sprog | C38: =IF(OR('Tabel 4F H'!C38<5,'Tabel 4 H'!C38<0.5),"-",IFERROR('Tabel 4 H'!C38/'Tabel 4F H'!C38*100,"-")) -> 10.6741573 | D38: =IF(OR('Tabel 4F H'!D38<5,'Tabel 4 H'!D38<0.5),"-",IFERROR('Tabel 4 H'!D38/'Tabel 4F H'!D38*100,"-")) -> 5.429864253 | E38: =IF(OR('Tabel 4F H'!E38<5,'Tabel 4 H'!E38<0.5),"-",IFERROR('Tabel 4 H'!E38/'Tabel 4F H'!E38*100,"-")) -> 4.099821747 | F38: =IF(OR('Tabel 4F H'!F38<5,'Tabel 4 H'!F38<0.5),"-",IFERROR('Tabel 4 H'!F38/'Tabel 4F H'!F38*100,"-")) -> 4.566210046 | G38: =IF(OR('Tabel 4F H'!G38<5,'Tabel 4 H'!G38<0.5),"-",IFERROR('Tabel 4 H'!G38/'Tabel 4F H'!G38*100,"-")) -> 7.843137255 | I38: =IF(OR('Tabel 4F H'!I38<5,'Tabel 4 H'!I38<0.5),"-",IFERROR('Tabel 4 H'!I38/'Tabel 4F H'!I38*100,"-")) -> 5.757037788
A39: Bygningskonst. | C39: =IF(OR('Tabel 4F H'!C39<5,'Tabel 4 H'!C39<0.5),"-",IFERROR('Tabel 4 H'!C39/'Tabel 4F H'!C39*100,"-")) -> 10.46511628 | D39: =IF(OR('Tabel 4F H'!D39<5,'Tabel 4 H'!D39<0.5),"-",IFERROR('Tabel 4 H'!D39/'Tabel 4F H'!D39*100,"-")) -> 2.633969119 | E39: =IF(OR('Tabel 4F H'!E39<5,'Tabel 4 H'!E39<0.5),"-",IFERROR('Tabel 4 H'!E39/'Tabel 4F H'!E39*100,"-")) -> 2.157164869 | F39: =IF(OR('Tabel 4F H'!F39<5,'Tabel 4 H'!F39<0.5),"-",IFERROR('Tabel 4 H'!F39/'Tabel 4F H'!F39*100,"-")) -> 4.644808743 | G39: =IF(OR('Tabel 4F H'!G39<5,'Tabel 4 H'!G39<0.5),"-",IFERROR('Tabel 4 H'!G39/'Tabel 4F H'!G39*100,"-")) -> 5.063291139 | I39: =IF(OR('Tabel 4F H'!I39<5,'Tabel 4 H'!I39<0.5),"-",IFERROR('Tabel 4 H'!I39/'Tabel 4F H'!I39*100,"-")) -> 4.152380952
A40: Cand. IT. | C40: =IF(OR('Tabel 4F H'!C40<5,'Tabel 4 H'!C40<0.5),"-",IFERROR('Tabel 4 H'!C40/'Tabel 4F H'!C40*100,"-")) -> 11.90150479 | D40: =IF(OR('Tabel 4F H'!D40<5,'Tabel 4 H'!D40<0.5),"-",IFERROR('Tabel 4 H'!D40/'Tabel 4F H'!D40*100,"-")) -> 4.686373468 | E40: =IF(OR('Tabel 4F H'!E40<5,'Tabel 4 H'!E40<0.5),"-",IFERROR('Tabel 4 H'!E40/'Tabel 4F H'!E40*100,"-")) -> 3.673469388 | F40: =IF(OR('Tabel 4F H'!F40<5,'Tabel 4 H'!F40<0.5),"-",IFERROR('Tabel 4 H'!F40/'Tabel 4F H'!F40*100,"-")) -> 3.921568627 | G40: =IF(OR('Tabel 4F H'!G40<5,'Tabel 4 H'!G40<0.5),"-",IFERROR('Tabel 4 H'!G40/'Tabel 4F H'!G40*100,"-")) -> 10 | I40: =IF(OR('Tabel 4F H'!I40<5,'Tabel 4 H'!I40<0.5),"-",IFERROR('Tabel 4 H'!I40/'Tabel 4F H'!I40*100,"-")) -> 6.205733558
A41: Bac. Samf. | C41: =IF(OR('Tabel 4F H'!C41<5,'Tabel 4 H'!C41<0.5),"-",IFERROR('Tabel 4 H'!C41/'Tabel 4F H'!C41*100,"-")) -> 13.97849462 | D41: =IF(OR('Tabel 4F H'!D41<5,'Tabel 4 H'!D41<0.5),"-",IFERROR('Tabel 4 H'!D41/'Tabel 4F H'!D41*100,"-")) -> 2.991452991 | E41: =IF(OR('Tabel 4F H'!E41<5,'Tabel 4 H'!E41<0.5),"-",IFERROR('Tabel 4 H'!E41/'Tabel 4F H'!E41*100,"-")) -> 3.524229075 | F41: =IF(OR('Tabel 4F H'!F41<5,'Tabel 4 H'!F41<0.5),"-",IFERROR('Tabel 4 H'!F41/'Tabel 4F H'!F41*100,"-")) -> 4.545454545 | G41: =IF(OR('Tabel 4F H'!G41<5,'Tabel 4 H'!G41<0.5),"-",IFERROR('Tabel 4 H'!G41/'Tabel 4F H'!G41*100,"-")) -> 16.66666667 | I41: =IF(OR('Tabel 4F H'!I41<5,'Tabel 4 H'!I41<0.5),"-",IFERROR('Tabel 4 H'!I41/'Tabel 4F H'!I41*100,"-")) -> 6.303030303
A42: Bac. Hum. | C42: =IF(OR('Tabel 4F H'!C42<5,'Tabel 4 H'!C42<0.5),"-",IFERROR('Tabel 4 H'!C42/'Tabel 4F H'!C42*100,"-")) -> 19.1819464 | D42: =IF(OR('Tabel 4F H'!D42<5,'Tabel 4 H'!D42<0.5),"-",IFERROR('Tabel 4 H'!D42/'Tabel 4F H'!D42*100,"-")) -> 9.812108559 | E42: =IF(OR('Tabel 4F H'!E42<5,'Tabel 4 H'!E42<0.5),"-",IFERROR('Tabel 4 H'!E42/'Tabel 4F H'!E42*100,"-")) -> 5.376344086 | F42: =IF(OR('Tabel 4F H'!F42<5,'Tabel 4 H'!F42<0.5),"-",IFERROR('Tabel 4 H'!F42/'Tabel 4F H'!F42*100,"-")) -> 5.149051491 | G42: =IF(OR('Tabel 4F H'!G42<5,'Tabel 4 H'!G42<0.5),"-",IFERROR('Tabel 4 H'!G42/'Tabel 4F H'!G42*100,"-")) -> 6.666666667 | I42: =IF(OR('Tabel 4F H'!I42<5,'Tabel 4 H'!I42<0.5),"-",IFERROR('Tabel 4 H'!I42/'Tabel 4F H'!I42*100,"-")) -> 11.2249878
A43: Bac. Nat. | C43: =IF(OR('Tabel 4F H'!C43<5,'Tabel 4 H'!C43<0.5),"-",IFERROR('Tabel 4 H'!C43/'Tabel 4F H'!C43*100,"-")) -> 19.3687231 | D43: =IF(OR('Tabel 4F H'!D43<5,'Tabel 4 H'!D43<0.5),"-",IFERROR('Tabel 4 H'!D43/'Tabel 4F H'!D43*100,"-")) -> 6.144393241 | E43: =IF(OR('Tabel 4F H'!E43<5,'Tabel 4 H'!E43<0.5),"-",IFERROR('Tabel 4 H'!E43/'Tabel 4F H'!E43*100,"-")) -> 4.016064257 | F43: =IF(OR('Tabel 4F H'!F43<5,'Tabel 4 H'!F43<0.5),"-",IFERROR('Tabel 4 H'!F43/'Tabel 4F H'!F43*100,"-")) -> 6.306306306 | G43: =IF(OR('Tabel 4F H'!G43<5,'Tabel 4 H'!G43<0.5),"-",IFERROR('Tabel 4 H'!G43/'Tabel 4F H'!G43*100,"-")) -> 6.25 | I43: =IF(OR('Tabel 4F H'!I43<5,'Tabel 4 H'!I43<0.5),"-",IFERROR('Tabel 4 H'!I43/'Tabel 4F H'!I43*100,"-")) -> 11.14942529
A44: Andre | C44: =IF(OR('Tabel 4F H'!C44<5,'Tabel 4 H'!C44<0.5),"-",IFERROR('Tabel 4 H'!C44/'Tabel 4F H'!C44*100,"-")) -> 13.03083188 | D44: =IF(OR('Tabel 4F H'!D44<5,'Tabel 4 H'!D44<0.5),"-",IFERROR('Tabel 4 H'!D44/'Tabel 4F H'!D44*100,"-")) -> 6.336853808 | E44: =IF(OR('Tabel 4F H'!E44<5,'Tabel 4 H'!E44<0.5),"-",IFERROR('Tabel 4 H'!E44/'Tabel 4F H'!E44*100,"-")) -> 4.627510806 | F44: =IF(OR('Tabel 4F H'!F44<5,'Tabel 4 H'!F44<0.5),"-",IFERROR('Tabel 4 H'!F44/'Tabel 4F H'!F44*100,"-")) -> 6.765899865 | G44: =IF(OR('Tabel 4F H'!G44<5,'Tabel 4 H'!G44<0.5),"-",IFERROR('Tabel 4 H'!G44/'Tabel 4F H'!G44*100,"-")) -> 9.646302251 | I44: =IF(OR('Tabel 4F H'!I44<5,'Tabel 4 H'!I44<0.5),"-",IFERROR('Tabel 4 H'!I44/'Tabel 4F H'!I44*100,"-")) -> 6.958236496
A46: Total | C46: =IF(OR('Tabel 4F H'!C46<5,'Tabel 4 H'!C46<0.5),"-",IFERROR('Tabel 4 H'!C46/'Tabel 4F H'!C46*100,"-")) -> 11.39449308 | D46: =IF(OR('Tabel 4F H'!D46<5,'Tabel 4 H'!D46<0.5),"-",IFERROR('Tabel 4 H'!D46/'Tabel 4F H'!D46*100,"-")) -> 4.741062684 | E46: =IF(OR('Tabel 4F H'!E46<5,'Tabel 4 H'!E46<0.5),"-",IFERROR('Tabel 4 H'!E46/'Tabel 4F H'!E46*100,"-")) -> 2.805838541 | F46: =IF(OR('Tabel 4F H'!F46<5,'Tabel 4 H'!F46<0.5),"-",IFERROR('Tabel 4 H'!F46/'Tabel 4F H'!F46*100,"-")) -> 2.773222007 | G46: =IF(OR('Tabel 4F H'!G46<5,'Tabel 4 H'!G46<0.5),"-",IFERROR('Tabel 4 H'!G46/'Tabel 4F H'!G46*100,"-")) -> 4.542680269 | I46: =IF(OR('Tabel 4F H'!I46<5,'Tabel 4 H'!I46<0.5),"-",IFERROR('Tabel 4 H'!I46/'Tabel 4F H'!I46*100,"-")) -> 5.011771193
A48: Ingeniører i alt | C48: =IF(OR('Tabel 4F H'!C48<5,'Tabel 4 H'!C48<0.5),"-",IFERROR('Tabel 4 H'!C48/'Tabel 4F H'!C48*100,"-")) -> 9.354915496 | D48: =IF(OR('Tabel 4F H'!D48<5,'Tabel 4 H'!D48<0.5),"-",IFERROR('Tabel 4 H'!D48/'Tabel 4F H'!D48*100,"-")) -> 2.981197427 | E48: =IF(OR('Tabel 4F H'!E48<5,'Tabel 4 H'!E48<0.5),"-",IFERROR('Tabel 4 H'!E48/'Tabel 4F H'!E48*100,"-")) -> 1.333333333 | F48: =IF(OR('Tabel 4F H'!F48<5,'Tabel 4 H'!F48<0.5),"-",IFERROR('Tabel 4 H'!F48/'Tabel 4F H'!F48*100,"-")) -> 1.52817574 | G48: =IF(OR('Tabel 4F H'!G48<5,'Tabel 4 H'!G48<0.5),"-",IFERROR('Tabel 4 H'!G48/'Tabel 4F H'!G48*100,"-")) -> 3.225806452 | I48: =IF(OR('Tabel 4F H'!I48<5,'Tabel 4 H'!I48<0.5),"-",IFERROR('Tabel 4 H'!I48/'Tabel 4F H'!I48*100,"-")) -> 3.102787965
A49: Magistre i alt | C49: =IF(OR('Tabel 4F H'!C49<5,'Tabel 4 H'!C49<0.5),"-",IFERROR('Tabel 4 H'!C49/'Tabel 4F H'!C49*100,"-")) -> 20.83524553 | D49: =IF(OR('Tabel 4F H'!D49<5,'Tabel 4 H'!D49<0.5),"-",IFERROR('Tabel 4 H'!D49/'Tabel 4F H'!D49*100,"-")) -> 8.182849167 | E49: =IF(OR('Tabel 4F H'!E49<5,'Tabel 4 H'!E49<0.5),"-",IFERROR('Tabel 4 H'!E49/'Tabel 4F H'!E49*100,"-")) -> 3.801086025 | F49: =IF(OR('Tabel 4F H'!F49<5,'Tabel 4 H'!F49<0.5),"-",IFERROR('Tabel 4 H'!F49/'Tabel 4F H'!F49*100,"-")) -> 3.508185767 | G49: =IF(OR('Tabel 4F H'!G49<5,'Tabel 4 H'!G49<0.5),"-",IFERROR('Tabel 4 H'!G49/'Tabel 4F H'!G49*100,"-")) -> 4.628736741 | I49: =IF(OR('Tabel 4F H'!I49<5,'Tabel 4 H'!I49<0.5),"-",IFERROR('Tabel 4 H'!I49/'Tabel 4F H'!I49*100,"-")) -> 7.420443307
A50: DJØF'ere i alt | C50: =IF(OR('Tabel 4F H'!C50<5,'Tabel 4 H'!C50<0.5),"-",IFERROR('Tabel 4 H'!C50/'Tabel 4F H'!C50*100,"-")) -> 6.854410202 | D50: =IF(OR('Tabel 4F H'!D50<5,'Tabel 4 H'!D50<0.5),"-",IFERROR('Tabel 4 H'!D50/'Tabel 4F H'!D50*100,"-")) -> 3.244739228 | E50: =IF(OR('Tabel 4F H'!E50<5,'Tabel 4 H'!E50<0.5),"-",IFERROR('Tabel 4 H'!E50/'Tabel 4F H'!E50*100,"-")) -> 2.410166521 | F50: =IF(OR('Tabel 4F H'!F50<5,'Tabel 4 H'!F50<0.5),"-",IFERROR('Tabel 4 H'!F50/'Tabel 4F H'!F50*100,"-")) -> 2.453333333 | G50: =IF(OR('Tabel 4F H'!G50<5,'Tabel 4 H'!G50<0.5),"-",IFERROR('Tabel 4 H'!G50/'Tabel 4F H'!G50*100,"-")) -> 4.832713755 | I50: =IF(OR('Tabel 4F H'!I50<5,'Tabel 4 H'!I50<0.5),"-",IFERROR('Tabel 4 H'!I50/'Tabel 4F H'!I50*100,"-")) -> 3.685529338
A57: København
C59: Under 30 år | D59: 30 - 39 år | E59: 40 - 49 år | F59: 50 - 59 år | G59: Over 60 år | I59: I alt
A61: Civ. ing. | C61: =IF(OR('Tabel 4F H'!C61<5,'Tabel 4 H'!C61<0.5),"-",IFERROR('Tabel 4 H'!C61/'Tabel 4F H'!C61*100,"-")) -> 9.736070381 | D61: =IF(OR('Tabel 4F H'!D61<5,'Tabel 4 H'!D61<0.5),"-",IFERROR('Tabel 4 H'!D61/'Tabel 4F H'!D61*100,"-")) -> 3.196881092 | E61: =IF(OR('Tabel 4F H'!E61<5,'Tabel 4 H'!E61<0.5),"-",IFERROR('Tabel 4 H'!E61/'Tabel 4F H'!E61*100,"-")) -> 1.62835249 | F61: =IF(OR('Tabel 4F H'!F61<5,'Tabel 4 H'!F61<0.5),"-",IFERROR('Tabel 4 H'!F61/'Tabel 4F H'!F61*100,"-")) -> 1.379310345 | G61: =IF(OR('Tabel 4F H'!G61<5,'Tabel 4 H'!G61<0.5),"-",IFERROR('Tabel 4 H'!G61/'Tabel 4F H'!G61*100,"-")) -> 4.186046512 | I61: =IF(OR('Tabel 4F H'!I61<5,'Tabel 4 H'!I61<0.5),"-",IFERROR('Tabel 4 H'!I61/'Tabel 4F H'!I61*100,"-")) -> 4.5410937
A62: Diplom ing. | C62: =IF(OR('Tabel 4F H'!C62<5,'Tabel 4 H'!C62<0.5),"-",IFERROR('Tabel 4 H'!C62/'Tabel 4F H'!C62*100,"-")) -> 8.043875686 | D62: =IF(OR('Tabel 4F H'!D62<5,'Tabel 4 H'!D62<0.5),"-",IFERROR('Tabel 4 H'!D62/'Tabel 4F H'!D62*100,"-")) -> 4.648390942 | E62: =IF(OR('Tabel 4F H'!E62<5,'Tabel 4 H'!E62<0.5),"-",IFERROR('Tabel 4 H'!E62/'Tabel 4F H'!E62*100,"-")) -> 2.401129944 | F62: =IF(OR('Tabel 4F H'!F62<5,'Tabel 4 H'!F62<0.5),"-",IFERROR('Tabel 4 H'!F62/'Tabel 4F H'!F62*100,"-")) -> 1.958525346 | G62: =IF(OR('Tabel 4F H'!G62<5,'Tabel 4 H'!G62<0.5),"-",IFERROR('Tabel 4 H'!G62/'Tabel 4F H'!G62*100,"-")) -> 2.990033223 | I62: =IF(OR('Tabel 4F H'!I62<5,'Tabel 4 H'!I62<0.5),"-",IFERROR('Tabel 4 H'!I62/'Tabel 4F H'!I62*100,"-")) -> 3.861477168
A63: Cand. Scient. Tek | C63: =IF(OR('Tabel 4F H'!C63<5,'Tabel 4 H'!C63<0.5),"-",IFERROR('Tabel 4 H'!C63/'Tabel 4F H'!C63*100,"-")) -> 15.48900328 | D63: =IF(OR('Tabel 4F H'!D63<5,'Tabel 4 H'!D63<0.5),"-",IFERROR('Tabel 4 H'!D63/'Tabel 4F H'!D63*100,"-")) -> 6.367851623 | E63: =IF(OR('Tabel 4F H'!E63<5,'Tabel 4 H'!E63<0.5),"-",IFERROR('Tabel 4 H'!E63/'Tabel 4F H'!E63*100,"-")) -> 4.210526316 | F63: =IF(OR('Tabel 4F H'!F63<5,'Tabel 4 H'!F63<0.5),"-",IFERROR('Tabel 4 H'!F63/'Tabel 4F H'!F63*100,"-")) -> 4.519774011 | G63: =IF(OR('Tabel 4F H'!G63<5,'Tabel 4 H'!G63<0.5),"-",IFERROR('Tabel 4 H'!G63/'Tabel 4F H'!G63*100,"-")) -> 13.15789474 | I63: =IF(OR('Tabel 4F H'!I63<5,'Tabel 4 H'!I63<0.5),"-",IFERROR('Tabel 4 H'!I63/'Tabel 4F H'!I63*100,"-")) -> 9.245041587
A64: MA. Hum. | C64: =IF(OR('Tabel 4F H'!C64<5,'Tabel 4 H'!C64<0.5),"-",IFERROR('Tabel 4 H'!C64/'Tabel 4F H'!C64*100,"-")) -> 22.06790123 | D64: =IF(OR('Tabel 4F H'!D64<5,'Tabel 4 H'!D64<0.5),"-",IFERROR('Tabel 4 H'!D64/'Tabel 4F H'!D64*100,"-")) -> 9.335443038 | E64: =IF(OR('Tabel 4F H'!E64<5,'Tabel 4 H'!E64<0.5),"-",IFERROR('Tabel 4 H'!E64/'Tabel 4F H'!E64*100,"-")) -> 4.87804878 | F64: =IF(OR('Tabel 4F H'!F64<5,'Tabel 4 H'!F64<0.5),"-",IFERROR('Tabel 4 H'!F64/'Tabel 4F H'!F64*100,"-")) -> 5.878467635 | G64: =IF(OR('Tabel 4F H'!G64<5,'Tabel 4 H'!G64<0.5),"-",IFERROR('Tabel 4 H'!G64/'Tabel 4F H'!G64*100,"-")) -> 7.284768212 | I64: =IF(OR('Tabel 4F H'!I64<5,'Tabel 4 H'!I64<0.5),"-",IFERROR('Tabel 4 H'!I64/'Tabel 4F H'!I64*100,"-")) -> 9.534791252
A65: MA. Nat. | C65: =IF(OR('Tabel 4F H'!C65<5,'Tabel 4 H'!C65<0.5),"-",IFERROR('Tabel 4 H'!C65/'Tabel 4F H'!C65*100,"-")) -> 16.2601626 | D65: =IF(OR('Tabel 4F H'!D65<5,'Tabel 4 H'!D65<0.5),"-",IFERROR('Tabel 4 H'!D65/'Tabel 4F H'!D65*100,"-")) -> 5.726872247 | E65: =IF(OR('Tabel 4F H'!E65<5,'Tabel 4 H'!E65<0.5),"-",IFERROR('Tabel 4 H'!E65/'Tabel 4F H'!E65*100,"-")) -> 3.436426117 | F65: =IF(OR('Tabel 4F H'!F65<5,'Tabel 4 H'!F65<0.5),"-",IFERROR('Tabel 4 H'!F65/'Tabel 4F H'!F65*100,"-")) -> 1.543209877 | G65: =IF(OR('Tabel 4F H'!G65<5,'Tabel 4 H'!G65<0.5),"-",IFERROR('Tabel 4 H'!G65/'Tabel 4F H'!G65*100,"-")) -> 1.746724891 | I65: =IF(OR('Tabel 4F H'!I65<5,'Tabel 4 H'!I65<0.5),"-",IFERROR('Tabel 4 H'!I65/'Tabel 4F H'!I65*100,"-")) -> 5.153617443
A66: MA. Ph.d. | C66: =IF(OR('Tabel 4F H'!C66<5,'Tabel 4 H'!C66<0.5),"-",IFERROR('Tabel 4 H'!C66/'Tabel 4F H'!C66*100,"-")) -> 9.090909091 | D66: =IF(OR('Tabel 4F H'!D66<5,'Tabel 4 H'!D66<0.5),"-",IFERROR('Tabel 4 H'!D66/'Tabel 4F H'!D66*100,"-")) -> 4.411764706 | E66: =IF(OR('Tabel 4F H'!E66<5,'Tabel 4 H'!E66<0.5),"-",IFERROR('Tabel 4 H'!E66/'Tabel 4F H'!E66*100,"-")) -> 4.347826087 | F66: =IF(OR('Tabel 4F H'!F66<5,'Tabel 4 H'!F66<0.5),"-",IFERROR('Tabel 4 H'!F66/'Tabel 4F H'!F66*100,"-")) -> 2.666666667 | G66: =IF(OR('Tabel 4F H'!G66<5,'Tabel 4 H'!G66<0.5),"-",IFERROR('Tabel 4 H'!G66/'Tabel 4F H'!G66*100,"-")) -> 4.255319149 | I66: =IF(OR('Tabel 4F H'!I66<5,'Tabel 4 H'!I66<0.5),"-",IFERROR('Tabel 4 H'!I66/'Tabel 4F H'!I66*100,"-")) -> 4.060150376
A67: MA. Samf. | C67: =IF(OR('Tabel 4F H'!C67<5,'Tabel 4 H'!C67<0.5),"-",IFERROR('Tabel 4 H'!C67/'Tabel 4F H'!C67*100,"-")) -> 19.80474198 | D67: =IF(OR('Tabel 4F H'!D67<5,'Tabel 4 H'!D67<0.5),"-",IFERROR('Tabel 4 H'!D67/'Tabel 4F H'!D67*100,"-")) -> 9.609375 | E67: =IF(OR('Tabel 4F H'!E67<5,'Tabel 4 H'!E67<0.5),"-",IFERROR('Tabel 4 H'!E67/'Tabel 4F H'!E67*100,"-")) -> 4.815864023 | F67: =IF(OR('Tabel 4F H'!F67<5,'Tabel 4 H'!F67<0.5),"-",IFERROR('Tabel 4 H'!F67/'Tabel 4F H'!F67*100,"-")) -> 9.85915493 | G67: =IF(OR('Tabel 4F H'!G67<5,'Tabel 4 H'!G67<0.5),"-",IFERROR('Tabel 4 H'!G67/'Tabel 4F H'!G67*100,"-")) -> 6.896551724 | I67: =IF(OR('Tabel 4F H'!I67<5,'Tabel 4 H'!I67<0.5),"-",IFERROR('Tabel 4 H'!I67/'Tabel 4F H'!I67*100,"-")) -> 11.82070607
A68: Øvrige Mag. | C68: =IF(OR('Tabel 4F H'!C68<5,'Tabel 4 H'!C68<0.5),"-",IFERROR('Tabel 4 H'!C68/'Tabel 4F H'!C68*100,"-")) -> 27.87610619 | D68: =IF(OR('Tabel 4F H'!D68<5,'Tabel 4 H'!D68<0.5),"-",IFERROR('Tabel 4 H'!D68/'Tabel 4F H'!D68*100,"-")) -> 12.23021583 | E68: =IF(OR('Tabel 4F H'!E68<5,'Tabel 4 H'!E68<0.5),"-",IFERROR('Tabel 4 H'!E68/'Tabel 4F H'!E68*100,"-")) -> 4.982206406 | F68: =IF(OR('Tabel 4F H'!F68<5,'Tabel 4 H'!F68<0.5),"-",IFERROR('Tabel 4 H'!F68/'Tabel 4F H'!F68*100,"-")) -> 2.150537634 | G68: =IF(OR('Tabel 4F H'!G68<5,'Tabel 4 H'!G68<0.5),"-",IFERROR('Tabel 4 H'!G68/'Tabel 4F H'!G68*100,"-")) -> 4.6875 | I68: =IF(OR('Tabel 4F H'!I68<5,'Tabel 4 H'!I68<0.5),"-",IFERROR('Tabel 4 H'!I68/'Tabel 4F H'!I68*100,"-")) -> 11.40096618
A69: Agronom | C69: =IF(OR('Tabel 4F H'!C69<5,'Tabel 4 H'!C69<0.5),"-",IFERROR('Tabel 4 H'!C69/'Tabel 4F H'!C69*100,"-")) -> 9.87654321 | D69: =IF(OR('Tabel 4F H'!D69<5,'Tabel 4 H'!D69<0.5),"-",IFERROR('Tabel 4 H'!D69/'Tabel 4F H'!D69*100,"-")) -> 8.695652174 | E69: =IF(OR('Tabel 4F H'!E69<5,'Tabel 4 H'!E69<0.5),"-",IFERROR('Tabel 4 H'!E69/'Tabel 4F H'!E69*100,"-")) -> 1.923076923 | F69: =IF(OR('Tabel 4F H'!F69<5,'Tabel 4 H'!F69<0.5),"-",IFERROR('Tabel 4 H'!F69/'Tabel 4F H'!F69*100,"-")) -> 4.838709677 | G69: =IF(OR('Tabel 4F H'!G69<5,'Tabel 4 H'!G69<0.5),"-",IFERROR('Tabel 4 H'!G69/'Tabel 4F H'!G69*100,"-")) -> 3.225806452 | I69: =IF(OR('Tabel 4F H'!I69<5,'Tabel 4 H'!I69<0.5),"-",IFERROR('Tabel 4 H'!I69/'Tabel 4F H'!I69*100,"-")) -> 6.603773585
A70: Landsk. Arkt. | C70: =IF(OR('Tabel 4F H'!C70<5,'Tabel 4 H'!C70<0.5),"-",IFERROR('Tabel 4 H'!C70/'Tabel 4F H'!C70*100,"-")) -> 15.78947368 | D70: =IF(OR('Tabel 4F H'!D70<5,'Tabel 4 H'!D70<0.5),"-",IFERROR('Tabel 4 H'!D70/'Tabel 4F H'!D70*100,"-")) -> 9.166666667 | E70: =IF(OR('Tabel 4F H'!E70<5,'Tabel 4 H'!E70<0.5),"-",IFERROR('Tabel 4 H'!E70/'Tabel 4F H'!E70*100,"-")) -> 7.142857143 | F70: =IF(OR('Tabel 4F H'!F70<5,'Tabel 4 H'!F70<0.5),"-",IFERROR('Tabel 4 H'!F70/'Tabel 4F H'!F70*100,"-")) -> 5.882352941 | G70: =IF(OR('Tabel 4F H'!G70<5,'Tabel 4 H'!G70<0.5),"-",IFERROR('Tabel 4 H'!G70/'Tabel 4F H'!G70*100,"-")) -> - | I70: =IF(OR('Tabel 4F H'!I70<5,'Tabel 4 H'!I70<0.5),"-",IFERROR('Tabel 4 H'!I70/'Tabel 4F H'!I70*100,"-")) -> 9.019607843
A71: Hortonom | C71: =IF(OR('Tabel 4F H'!C71<5,'Tabel 4 H'!C71<0.5),"-",IFERROR('Tabel 4 H'!C71/'Tabel 4F H'!C71*100,"-")) -> - | D71: =IF(OR('Tabel 4F H'!D71<5,'Tabel 4 H'!D71<0.5),"-",IFERROR('Tabel 4 H'!D71/'Tabel 4F H'!D71*100,"-")) -> - | E71: =IF(OR('Tabel 4F H'!E71<5,'Tabel 4 H'!E71<0.5),"-",IFERROR('Tabel 4 H'!E71/'Tabel 4F H'!E71*100,"-")) -> - | F71: =IF(OR('Tabel 4F H'!F71<5,'Tabel 4 H'!F71<0.5),"-",IFERROR('Tabel 4 H'!F71/'Tabel 4F H'!F71*100,"-")) -> - | G71: =IF(OR('Tabel 4F H'!G71<5,'Tabel 4 H'!G71<0.5),"-",IFERROR('Tabel 4 H'!G71/'Tabel 4F H'!G71*100,"-")) -> 11.11111111 | I71: =IF(OR('Tabel 4F H'!I71<5,'Tabel 4 H'!I71<0.5),"-",IFERROR('Tabel 4 H'!I71/'Tabel 4F H'!I71*100,"-")) -> 2.173913043
A72: Forstkand. | C72: =IF(OR('Tabel 4F H'!C72<5,'Tabel 4 H'!C72<0.5),"-",IFERROR('Tabel 4 H'!C72/'Tabel 4F H'!C72*100,"-")) -> 20 | D72: =IF(OR('Tabel 4F H'!D72<5,'Tabel 4 H'!D72<0.5),"-",IFERROR('Tabel 4 H'!D72/'Tabel 4F H'!D72*100,"-")) -> 10.71428571 | E72: =IF(OR('Tabel 4F H'!E72<5,'Tabel 4 H'!E72<0.5),"-",IFERROR('Tabel 4 H'!E72/'Tabel 4F H'!E72*100,"-")) -> - | F72: =IF(OR('Tabel 4F H'!F72<5,'Tabel 4 H'!F72<0.5),"-",IFERROR('Tabel 4 H'!F72/'Tabel 4F H'!F72*100,"-")) -> 13.63636364 | G72: =IF(OR('Tabel 4F H'!G72<5,'Tabel 4 H'!G72<0.5),"-",IFERROR('Tabel 4 H'!G72/'Tabel 4F H'!G72*100,"-")) -> - | I72: =IF(OR('Tabel 4F H'!I72<5,'Tabel 4 H'!I72<0.5),"-",IFERROR('Tabel 4 H'!I72/'Tabel 4F H'!I72*100,"-")) -> 10
A73: Jordbrugsakad. | C73: =IF(OR('Tabel 4F H'!C73<5,'Tabel 4 H'!C73<0.5),"-",IFERROR('Tabel 4 H'!C73/'Tabel 4F H'!C73*100,"-")) -> 12.68656716 | D73: =IF(OR('Tabel 4F H'!D73<5,'Tabel 4 H'!D73<0.5),"-",IFERROR('Tabel 4 H'!D73/'Tabel 4F H'!D73*100,"-")) -> 8.835341365 | E73: =IF(OR('Tabel 4F H'!E73<5,'Tabel 4 H'!E73<0.5),"-",IFERROR('Tabel 4 H'!E73/'Tabel 4F H'!E73*100,"-")) -> 3.496503497 | F73: =IF(OR('Tabel 4F H'!F73<5,'Tabel 4 H'!F73<0.5),"-",IFERROR('Tabel 4 H'!F73/'Tabel 4F H'!F73*100,"-")) -> 6.015037594 | G73: =IF(OR('Tabel 4F H'!G73<5,'Tabel 4 H'!G73<0.5),"-",IFERROR('Tabel 4 H'!G73/'Tabel 4F H'!G73*100,"-")) -> 4 | I73: =IF(OR('Tabel 4F H'!I73<5,'Tabel 4 H'!I73<0.5),"-",IFERROR('Tabel 4 H'!I73/'Tabel 4F H'!I73*100,"-")) -> 7.616361072
A74: Mejeriing. | C74: =IF(OR('Tabel 4F H'!C74<5,'Tabel 4 H'!C74<0.5),"-",IFERROR('Tabel 4 H'!C74/'Tabel 4F H'!C74*100,"-")) -> 11.11111111 | D74: =IF(OR('Tabel 4F H'!D74<5,'Tabel 4 H'!D74<0.5),"-",IFERROR('Tabel 4 H'!D74/'Tabel 4F H'!D74*100,"-")) -> 8 | E74: =IF(OR('Tabel 4F H'!E74<5,'Tabel 4 H'!E74<0.5),"-",IFERROR('Tabel 4 H'!E74/'Tabel 4F H'!E74*100,"-")) -> - | F74: =IF(OR('Tabel 4F H'!F74<5,'Tabel 4 H'!F74<0.5),"-",IFERROR('Tabel 4 H'!F74/'Tabel 4F H'!F74*100,"-")) -> - | G74: =IF(OR('Tabel 4F H'!G74<5,'Tabel 4 H'!G74<0.5),"-",IFERROR('Tabel 4 H'!G74/'Tabel 4F H'!G74*100,"-")) -> - | I74: =IF(OR('Tabel 4F H'!I74<5,'Tabel 4 H'!I74<0.5),"-",IFERROR('Tabel 4 H'!I74/'Tabel 4F H'!I74*100,"-")) -> 6.666666667
A75: Levn.m.kand. | C75: =IF(OR('Tabel 4F H'!C75<5,'Tabel 4 H'!C75<0.5),"-",IFERROR('Tabel 4 H'!C75/'Tabel 4F H'!C75*100,"-")) -> 2.222222222 | D75: =IF(OR('Tabel 4F H'!D75<5,'Tabel 4 H'!D75<0.5),"-",IFERROR('Tabel 4 H'!D75/'Tabel 4F H'!D75*100,"-")) -> 2.325581395 | E75: =IF(OR('Tabel 4F H'!E75<5,'Tabel 4 H'!E75<0.5),"-",IFERROR('Tabel 4 H'!E75/'Tabel 4F H'!E75*100,"-")) -> 3.333333333 | F75: =IF(OR('Tabel 4F H'!F75<5,'Tabel 4 H'!F75<0.5),"-",IFERROR('Tabel 4 H'!F75/'Tabel 4F H'!F75*100,"-")) -> - | G75: =IF(OR('Tabel 4F H'!G75<5,'Tabel 4 H'!G75<0.5),"-",IFERROR('Tabel 4 H'!G75/'Tabel 4F H'!G75*100,"-")) -> - | I75: =IF(OR('Tabel 4F H'!I75<5,'Tabel 4 H'!I75<0.5),"-",IFERROR('Tabel 4 H'!I75/'Tabel 4F H'!I75*100,"-")) -> 2.43902439
A76: Dyrlæge | C76: =IF(OR('Tabel 4F H'!C76<5,'Tabel 4 H'!C76<0.5),"-",IFERROR('Tabel 4 H'!C76/'Tabel 4F H'!C76*100,"-")) -> 5.128205128 | D76: =IF(OR('Tabel 4F H'!D76<5,'Tabel 4 H'!D76<0.5),"-",IFERROR('Tabel 4 H'!D76/'Tabel 4F H'!D76*100,"-")) -> 1.587301587 | E76: =IF(OR('Tabel 4F H'!E76<5,'Tabel 4 H'!E76<0.5),"-",IFERROR('Tabel 4 H'!E76/'Tabel 4F H'!E76*100,"-")) -> 1.960784314 | F76: =IF(OR('Tabel 4F H'!F76<5,'Tabel 4 H'!F76<0.5),"-",IFERROR('Tabel 4 H'!F76/'Tabel 4F H'!F76*100,"-")) -> - | G76: =IF(OR('Tabel 4F H'!G76<5,'Tabel 4 H'!G76<0.5),"-",IFERROR('Tabel 4 H'!G76/'Tabel 4F H'!G76*100,"-")) -> - | I76: =IF(OR('Tabel 4F H'!I76<5,'Tabel 4 H'!I76<0.5),"-",IFERROR('Tabel 4 H'!I76/'Tabel 4F H'!I76*100,"-")) -> 2.243589744
A77: Farmaceut | C77: =IF(OR('Tabel 4F H'!C77<5,'Tabel 4 H'!C77<0.5),"-",IFERROR('Tabel 4 H'!C77/'Tabel 4F H'!C77*100,"-")) -> 13.98963731 | D77: =IF(OR('Tabel 4F H'!D77<5,'Tabel 4 H'!D77<0.5),"-",IFERROR('Tabel 4 H'!D77/'Tabel 4F H'!D77*100,"-")) -> 3.738317757 | E77: =IF(OR('Tabel 4F H'!E77<5,'Tabel 4 H'!E77<0.5),"-",IFERROR('Tabel 4 H'!E77/'Tabel 4F H'!E77*100,"-")) -> 2.242152466 | F77: =IF(OR('Tabel 4F H'!F77<5,'Tabel 4 H'!F77<0.5),"-",IFERROR('Tabel 4 H'!F77/'Tabel 4F H'!F77*100,"-")) -> 4.201680672 | G77: =IF(OR('Tabel 4F H'!G77<5,'Tabel 4 H'!G77<0.5),"-",IFERROR('Tabel 4 H'!G77/'Tabel 4F H'!G77*100,"-")) -> - | I77: =IF(OR('Tabel 4F H'!I77<5,'Tabel 4 H'!I77<0.5),"-",IFERROR('Tabel 4 H'!I77/'Tabel 4F H'!I77*100,"-")) -> 6.456571868
A78: Læge | C78: =IF(OR('Tabel 4F H'!C78<5,'Tabel 4 H'!C78<0.5),"-",IFERROR('Tabel 4 H'!C78/'Tabel 4F H'!C78*100,"-")) -> 5.081967213 | D78: =IF(OR('Tabel 4F H'!D78<5,'Tabel 4 H'!D78<0.5),"-",IFERROR('Tabel 4 H'!D78/'Tabel 4F H'!D78*100,"-")) -> 2.456418384 | E78: =IF(OR('Tabel 4F H'!E78<5,'Tabel 4 H'!E78<0.5),"-",IFERROR('Tabel 4 H'!E78/'Tabel 4F H'!E78*100,"-")) -> 0.2506265664 | F78: =IF(OR('Tabel 4F H'!F78<5,'Tabel 4 H'!F78<0.5),"-",IFERROR('Tabel 4 H'!F78/'Tabel 4F H'!F78*100,"-")) -> 0.5681818182 | G78: =IF(OR('Tabel 4F H'!G78<5,'Tabel 4 H'!G78<0.5),"-",IFERROR('Tabel 4 H'!G78/'Tabel 4F H'!G78*100,"-")) -> - | I78: =IF(OR('Tabel 4F H'!I78<5,'Tabel 4 H'!I78<0.5),"-",IFERROR('Tabel 4 H'!I78/'Tabel 4F H'!I78*100,"-")) -> 2.493182704
A79: Tandlæge | C79: =IF(OR('Tabel 4F H'!C79<5,'Tabel 4 H'!C79<0.5),"-",IFERROR('Tabel 4 H'!C79/'Tabel 4F H'!C79*100,"-")) -> 5.952380952 | D79: =IF(OR('Tabel 4F H'!D79<5,'Tabel 4 H'!D79<0.5),"-",IFERROR('Tabel 4 H'!D79/'Tabel 4F H'!D79*100,"-")) -> 3.2 | E79: =IF(OR('Tabel 4F H'!E79<5,'Tabel 4 H'!E79<0.5),"-",IFERROR('Tabel 4 H'!E79/'Tabel 4F H'!E79*100,"-")) -> 3.773584906 | F79: =IF(OR('Tabel 4F H'!F79<5,'Tabel 4 H'!F79<0.5),"-",IFERROR('Tabel 4 H'!F79/'Tabel 4F H'!F79*100,"-")) -> - | G79: =IF(OR('Tabel 4F H'!G79<5,'Tabel 4 H'!G79<0.5),"-",IFERROR('Tabel 4 H'!G79/'Tabel 4F H'!G79*100,"-")) -> - | I79: =IF(OR('Tabel 4F H'!I79<5,'Tabel 4 H'!I79<0.5),"-",IFERROR('Tabel 4 H'!I79/'Tabel 4F H'!I79*100,"-")) -> 3.459119497
A80: Arkitekt | C80: =IF(OR('Tabel 4F H'!C80<5,'Tabel 4 H'!C80<0.5),"-",IFERROR('Tabel 4 H'!C80/'Tabel 4F H'!C80*100,"-")) -> 26.72064777 | D80: =IF(OR('Tabel 4F H'!D80<5,'Tabel 4 H'!D80<0.5),"-",IFERROR('Tabel 4 H'!D80/'Tabel 4F H'!D80*100,"-")) -> 6.483790524 | E80: =IF(OR('Tabel 4F H'!E80<5,'Tabel 4 H'!E80<0.5),"-",IFERROR('Tabel 4 H'!E80/'Tabel 4F H'!E80*100,"-")) -> 3.453038674 | F80: =IF(OR('Tabel 4F H'!F80<5,'Tabel 4 H'!F80<0.5),"-",IFERROR('Tabel 4 H'!F80/'Tabel 4F H'!F80*100,"-")) -> 3.684210526 | G80: =IF(OR('Tabel 4F H'!G80<5,'Tabel 4 H'!G80<0.5),"-",IFERROR('Tabel 4 H'!G80/'Tabel 4F H'!G80*100,"-")) -> 7.407407407 | I80: =IF(OR('Tabel 4F H'!I80<5,'Tabel 4 H'!I80<0.5),"-",IFERROR('Tabel 4 H'!I80/'Tabel 4F H'!I80*100,"-")) -> 7.300215983
A81: Landinspek. | C81: =IF(OR('Tabel 4F H'!C81<5,'Tabel 4 H'!C81<0.5),"-",IFERROR('Tabel 4 H'!C81/'Tabel 4F H'!C81*100,"-")) -> - | D81: =IF(OR('Tabel 4F H'!D81<5,'Tabel 4 H'!D81<0.5),"-",IFERROR('Tabel 4 H'!D81/'Tabel 4F H'!D81*100,"-")) -> 4.347826087 | E81: =IF(OR('Tabel 4F H'!E81<5,'Tabel 4 H'!E81<0.5),"-",IFERROR('Tabel 4 H'!E81/'Tabel 4F H'!E81*100,"-")) -> - | F81: =IF(OR('Tabel 4F H'!F81<5,'Tabel 4 H'!F81<0.5),"-",IFERROR('Tabel 4 H'!F81/'Tabel 4F H'!F81*100,"-")) -> 20 | G81: =IF(OR('Tabel 4F H'!G81<5,'Tabel 4 H'!G81<0.5),"-",IFERROR('Tabel 4 H'!G81/'Tabel 4F H'!G81*100,"-")) -> - | I81: =IF(OR('Tabel 4F H'!I81<5,'Tabel 4 H'!I81<0.5),"-",IFERROR('Tabel 4 H'!I81/'Tabel 4F H'!I81*100,"-")) -> 3.636363636
A82: Bibliotekar | C82: =IF(OR('Tabel 4F H'!C82<5,'Tabel 4 H'!C82<0.5),"-",IFERROR('Tabel 4 H'!C82/'Tabel 4F H'!C82*100,"-")) -> 12.19512195 | D82: =IF(OR('Tabel 4F H'!D82<5,'Tabel 4 H'!D82<0.5),"-",IFERROR('Tabel 4 H'!D82/'Tabel 4F H'!D82*100,"-")) -> 7.462686567 | E82: =IF(OR('Tabel 4F H'!E82<5,'Tabel 4 H'!E82<0.5),"-",IFERROR('Tabel 4 H'!E82/'Tabel 4F H'!E82*100,"-")) -> 4.8 | F82: =IF(OR('Tabel 4F H'!F82<5,'Tabel 4 H'!F82<0.5),"-",IFERROR('Tabel 4 H'!F82/'Tabel 4F H'!F82*100,"-")) -> 5.113636364 | G82: =IF(OR('Tabel 4F H'!G82<5,'Tabel 4 H'!G82<0.5),"-",IFERROR('Tabel 4 H'!G82/'Tabel 4F H'!G82*100,"-")) -> 2.727272727 | I82: =IF(OR('Tabel 4F H'!I82<5,'Tabel 4 H'!I82<0.5),"-",IFERROR('Tabel 4 H'!I82/'Tabel 4F H'!I82*100,"-")) -> 5.655526992
A83: Musikudd. | C83: =IF(OR('Tabel 4F H'!C83<5,'Tabel 4 H'!C83<0.5),"-",IFERROR('Tabel 4 H'!C83/'Tabel 4F H'!C83*100,"-")) -> 33.33333333 | D83: =IF(OR('Tabel 4F H'!D83<5,'Tabel 4 H'!D83<0.5),"-",IFERROR('Tabel 4 H'!D83/'Tabel 4F H'!D83*100,"-")) -> 11.11111111 | E83: =IF(OR('Tabel 4F H'!E83<5,'Tabel 4 H'!E83<0.5),"-",IFERROR('Tabel 4 H'!E83/'Tabel 4F H'!E83*100,"-")) -> 2.564102564 | F83: =IF(OR('Tabel 4F H'!F83<5,'Tabel 4 H'!F83<0.5),"-",IFERROR('Tabel 4 H'!F83/'Tabel 4F H'!F83*100,"-")) -> 3.703703704 | G83: =IF(OR('Tabel 4F H'!G83<5,'Tabel 4 H'!G83<0.5),"-",IFERROR('Tabel 4 H'!G83/'Tabel 4F H'!G83*100,"-")) -> - | I83: =IF(OR('Tabel 4F H'!I83<5,'Tabel 4 H'!I83<0.5),"-",IFERROR('Tabel 4 H'!I83/'Tabel 4F H'!I83*100,"-")) -> 4.964539007
A84: Teolog | C84: =IF(OR('Tabel 4F H'!C84<5,'Tabel 4 H'!C84<0.5),"-",IFERROR('Tabel 4 H'!C84/'Tabel 4F H'!C84*100,"-")) -> 46.15384615 | D84: =IF(OR('Tabel 4F H'!D84<5,'Tabel 4 H'!D84<0.5),"-",IFERROR('Tabel 4 H'!D84/'Tabel 4F H'!D84*100,"-")) -> 20.68965517 | E84: =IF(OR('Tabel 4F H'!E84<5,'Tabel 4 H'!E84<0.5),"-",IFERROR('Tabel 4 H'!E84/'Tabel 4F H'!E84*100,"-")) -> 1.19047619 | F84: =IF(OR('Tabel 4F H'!F84<5,'Tabel 4 H'!F84<0.5),"-",IFERROR('Tabel 4 H'!F84/'Tabel 4F H'!F84*100,"-")) -> 4.615384615 | G84: =IF(OR('Tabel 4F H'!G84<5,'Tabel 4 H'!G84<0.5),"-",IFERROR('Tabel 4 H'!G84/'Tabel 4F H'!G84*100,"-")) -> 2.777777778 | I84: =IF(OR('Tabel 4F H'!I84<5,'Tabel 4 H'!I84<0.5),"-",IFERROR('Tabel 4 H'!I84/'Tabel 4F H'!I84*100,"-")) -> 8.984375
A85: Psykolog | C85: =IF(OR('Tabel 4F H'!C85<5,'Tabel 4 H'!C85<0.5),"-",IFERROR('Tabel 4 H'!C85/'Tabel 4F H'!C85*100,"-")) -> 7.456140351 | D85: =IF(OR('Tabel 4F H'!D85<5,'Tabel 4 H'!D85<0.5),"-",IFERROR('Tabel 4 H'!D85/'Tabel 4F H'!D85*100,"-")) -> 3.78440367 | E85: =IF(OR('Tabel 4F H'!E85<5,'Tabel 4 H'!E85<0.5),"-",IFERROR('Tabel 4 H'!E85/'Tabel 4F H'!E85*100,"-")) -> 1.814058957 | F85: =IF(OR('Tabel 4F H'!F85<5,'Tabel 4 H'!F85<0.5),"-",IFERROR('Tabel 4 H'!F85/'Tabel 4F H'!F85*100,"-")) -> 1.224489796 | G85: =IF(OR('Tabel 4F H'!G85<5,'Tabel 4 H'!G85<0.5),"-",IFERROR('Tabel 4 H'!G85/'Tabel 4F H'!G85*100,"-")) -> 3.603603604 | I85: =IF(OR('Tabel 4F H'!I85<5,'Tabel 4 H'!I85<0.5),"-",IFERROR('Tabel 4 H'!I85/'Tabel 4F H'!I85*100,"-")) -> 3.858823529
A86: Jurist | C86: =IF(OR('Tabel 4F H'!C86<5,'Tabel 4 H'!C86<0.5),"-",IFERROR('Tabel 4 H'!C86/'Tabel 4F H'!C86*100,"-")) -> 2.390438247 | D86: =IF(OR('Tabel 4F H'!D86<5,'Tabel 4 H'!D86<0.5),"-",IFERROR('Tabel 4 H'!D86/'Tabel 4F H'!D86*100,"-")) -> 1.810237203 | E86: =IF(OR('Tabel 4F H'!E86<5,'Tabel 4 H'!E86<0.5),"-",IFERROR('Tabel 4 H'!E86/'Tabel 4F H'!E86*100,"-")) -> 0.9922822492 | F86: =IF(OR('Tabel 4F H'!F86<5,'Tabel 4 H'!F86<0.5),"-",IFERROR('Tabel 4 H'!F86/'Tabel 4F H'!F86*100,"-")) -> 1.342281879 | G86: =IF(OR('Tabel 4F H'!G86<5,'Tabel 4 H'!G86<0.5),"-",IFERROR('Tabel 4 H'!G86/'Tabel 4F H'!G86*100,"-")) -> 1.796407186 | I86: =IF(OR('Tabel 4F H'!I86<5,'Tabel 4 H'!I86<0.5),"-",IFERROR('Tabel 4 H'!I86/'Tabel 4F H'!I86*100,"-")) -> 1.745085045
A87: Økonom | C87: =IF(OR('Tabel 4F H'!C87<5,'Tabel 4 H'!C87<0.5),"-",IFERROR('Tabel 4 H'!C87/'Tabel 4F H'!C87*100,"-")) -> 3.945578231 | D87: =IF(OR('Tabel 4F H'!D87<5,'Tabel 4 H'!D87<0.5),"-",IFERROR('Tabel 4 H'!D87/'Tabel 4F H'!D87*100,"-")) -> 2.079207921 | E87: =IF(OR('Tabel 4F H'!E87<5,'Tabel 4 H'!E87<0.5),"-",IFERROR('Tabel 4 H'!E87/'Tabel 4F H'!E87*100,"-")) -> 1.948051948 | F87: =IF(OR('Tabel 4F H'!F87<5,'Tabel 4 H'!F87<0.5),"-",IFERROR('Tabel 4 H'!F87/'Tabel 4F H'!F87*100,"-")) -> 1.98019802 | G87: =IF(OR('Tabel 4F H'!G87<5,'Tabel 4 H'!G87<0.5),"-",IFERROR('Tabel 4 H'!G87/'Tabel 4F H'!G87*100,"-")) -> 10.41666667 | I87: =IF(OR('Tabel 4F H'!I87<5,'Tabel 4 H'!I87<0.5),"-",IFERROR('Tabel 4 H'!I87/'Tabel 4F H'!I87*100,"-")) -> 2.844477281
A88: Samf. Adm. | C88: =IF(OR('Tabel 4F H'!C88<5,'Tabel 4 H'!C88<0.5),"-",IFERROR('Tabel 4 H'!C88/'Tabel 4F H'!C88*100,"-")) -> 11.1489776 | D88: =IF(OR('Tabel 4F H'!D88<5,'Tabel 4 H'!D88<0.5),"-",IFERROR('Tabel 4 H'!D88/'Tabel 4F H'!D88*100,"-")) -> 4.684047724 | E88: =IF(OR('Tabel 4F H'!E88<5,'Tabel 4 H'!E88<0.5),"-",IFERROR('Tabel 4 H'!E88/'Tabel 4F H'!E88*100,"-")) -> 3.974895397 | F88: =IF(OR('Tabel 4F H'!F88<5,'Tabel 4 H'!F88<0.5),"-",IFERROR('Tabel 4 H'!F88/'Tabel 4F H'!F88*100,"-")) -> 3.802281369 | G88: =IF(OR('Tabel 4F H'!G88<5,'Tabel 4 H'!G88<0.5),"-",IFERROR('Tabel 4 H'!G88/'Tabel 4F H'!G88*100,"-")) -> 3.225806452 | I88: =IF(OR('Tabel 4F H'!I88<5,'Tabel 4 H'!I88<0.5),"-",IFERROR('Tabel 4 H'!I88/'Tabel 4F H'!I88*100,"-")) -> 5.693915421
A89: Cand. Merc. | C89: =IF(OR('Tabel 4F H'!C89<5,'Tabel 4 H'!C89<0.5),"-",IFERROR('Tabel 4 H'!C89/'Tabel 4F H'!C89*100,"-")) -> 5.710344828 | D89: =IF(OR('Tabel 4F H'!D89<5,'Tabel 4 H'!D89<0.5),"-",IFERROR('Tabel 4 H'!D89/'Tabel 4F H'!D89*100,"-")) -> 3.670130444 | E89: =IF(OR('Tabel 4F H'!E89<5,'Tabel 4 H'!E89<0.5),"-",IFERROR('Tabel 4 H'!E89/'Tabel 4F H'!E89*100,"-")) -> 3.955586398 | F89: =IF(OR('Tabel 4F H'!F89<5,'Tabel 4 H'!F89<0.5),"-",IFERROR('Tabel 4 H'!F89/'Tabel 4F H'!F89*100,"-")) -> 3.333333333 | G89: =IF(OR('Tabel 4F H'!G89<5,'Tabel 4 H'!G89<0.5),"-",IFERROR('Tabel 4 H'!G89/'Tabel 4F H'!G89*100,"-")) -> 6.796116505 | I89: =IF(OR('Tabel 4F H'!I89<5,'Tabel 4 H'!I89<0.5),"-",IFERROR('Tabel 4 H'!I89/'Tabel 4F H'!I89*100,"-")) -> 4.424439762
A90: HA | C90: =IF(OR('Tabel 4F H'!C90<5,'Tabel 4 H'!C90<0.5),"-",IFERROR('Tabel 4 H'!C90/'Tabel 4F H'!C90*100,"-")) -> 11.21157324 | D90: =IF(OR('Tabel 4F H'!D90<5,'Tabel 4 H'!D90<0.5),"-",IFERROR('Tabel 4 H'!D90/'Tabel 4F H'!D90*100,"-")) -> 5.797101449 | E90: =IF(OR('Tabel 4F H'!E90<5,'Tabel 4 H'!E90<0.5),"-",IFERROR('Tabel 4 H'!E90/'Tabel 4F H'!E90*100,"-")) -> 3.076923077 | F90: =IF(OR('Tabel 4F H'!F90<5,'Tabel 4 H'!F90<0.5),"-",IFERROR('Tabel 4 H'!F90/'Tabel 4F H'!F90*100,"-")) -> 4.624277457 | G90: =IF(OR('Tabel 4F H'!G90<5,'Tabel 4 H'!G90<0.5),"-",IFERROR('Tabel 4 H'!G90/'Tabel 4F H'!G90*100,"-")) -> 6.976744186 | I90: =IF(OR('Tabel 4F H'!I90<5,'Tabel 4 H'!I90<0.5),"-",IFERROR('Tabel 4 H'!I90/'Tabel 4F H'!I90*100,"-")) -> 7.797427653
A91: HD | C91: =IF(OR('Tabel 4F H'!C91<5,'Tabel 4 H'!C91<0.5),"-",IFERROR('Tabel 4 H'!C91/'Tabel 4F H'!C91*100,"-")) -> 11.27819549 | D91: =IF(OR('Tabel 4F H'!D91<5,'Tabel 4 H'!D91<0.5),"-",IFERROR('Tabel 4 H'!D91/'Tabel 4F H'!D91*100,"-")) -> 8.374384236 | E91: =IF(OR('Tabel 4F H'!E91<5,'Tabel 4 H'!E91<0.5),"-",IFERROR('Tabel 4 H'!E91/'Tabel 4F H'!E91*100,"-")) -> 7.865168539 | F91: =IF(OR('Tabel 4F H'!F91<5,'Tabel 4 H'!F91<0.5),"-",IFERROR('Tabel 4 H'!F91/'Tabel 4F H'!F91*100,"-")) -> 3.378378378 | G91: =IF(OR('Tabel 4F H'!G91<5,'Tabel 4 H'!G91<0.5),"-",IFERROR('Tabel 4 H'!G91/'Tabel 4F H'!G91*100,"-")) -> 4 | I91: =IF(OR('Tabel 4F H'!I91<5,'Tabel 4 H'!I91<0.5),"-",IFERROR('Tabel 4 H'!I91/'Tabel 4F H'!I91*100,"-")) -> 8.516483516
A92: Komm. og Sprog | C92: =IF(OR('Tabel 4F H'!C92<5,'Tabel 4 H'!C92<0.5),"-",IFERROR('Tabel 4 H'!C92/'Tabel 4F H'!C92*100,"-")) -> 10.45918367 | D92: =IF(OR('Tabel 4F H'!D92<5,'Tabel 4 H'!D92<0.5),"-",IFERROR('Tabel 4 H'!D92/'Tabel 4F H'!D92*100,"-")) -> 5.481481481 | E92: =IF(OR('Tabel 4F H'!E92<5,'Tabel 4 H'!E92<0.5),"-",IFERROR('Tabel 4 H'!E92/'Tabel 4F H'!E92*100,"-")) -> 6.277056277 | F92: =IF(OR('Tabel 4F H'!F92<5,'Tabel 4 H'!F92<0.5),"-",IFERROR('Tabel 4 H'!F92/'Tabel 4F H'!F92*100,"-")) -> 5.64516129 | G92: =IF(OR('Tabel 4F H'!G92<5,'Tabel 4 H'!G92<0.5),"-",IFERROR('Tabel 4 H'!G92/'Tabel 4F H'!G92*100,"-")) -> 7.894736842 | I92: =IF(OR('Tabel 4F H'!I92<5,'Tabel 4 H'!I92<0.5),"-",IFERROR('Tabel 4 H'!I92/'Tabel 4F H'!I92*100,"-")) -> 6.853750675
A93: Bygningskonst. | C93: =IF(OR('Tabel 4F H'!C93<5,'Tabel 4 H'!C93<0.5),"-",IFERROR('Tabel 4 H'!C93/'Tabel 4F H'!C93*100,"-")) -> 11.11111111 | D93: =IF(OR('Tabel 4F H'!D93<5,'Tabel 4 H'!D93<0.5),"-",IFERROR('Tabel 4 H'!D93/'Tabel 4F H'!D93*100,"-")) -> 2.851711027 | E93: =IF(OR('Tabel 4F H'!E93<5,'Tabel 4 H'!E93<0.5),"-",IFERROR('Tabel 4 H'!E93/'Tabel 4F H'!E93*100,"-")) -> 3.03030303 | F93: =IF(OR('Tabel 4F H'!F93<5,'Tabel 4 H'!F93<0.5),"-",IFERROR('Tabel 4 H'!F93/'Tabel 4F H'!F93*100,"-")) -> 6.306306306 | G93: =IF(OR('Tabel 4F H'!G93<5,'Tabel 4 H'!G93<0.5),"-",IFERROR('Tabel 4 H'!G93/'Tabel 4F H'!G93*100,"-")) -> 3.703703704 | I93: =IF(OR('Tabel 4F H'!I93<5,'Tabel 4 H'!I93<0.5),"-",IFERROR('Tabel 4 H'!I93/'Tabel 4F H'!I93*100,"-")) -> 5.150214592
A94: Cand. IT. | C94: =IF(OR('Tabel 4F H'!C94<5,'Tabel 4 H'!C94<0.5),"-",IFERROR('Tabel 4 H'!C94/'Tabel 4F H'!C94*100,"-")) -> 12.76595745 | D94: =IF(OR('Tabel 4F H'!D94<5,'Tabel 4 H'!D94<0.5),"-",IFERROR('Tabel 4 H'!D94/'Tabel 4F H'!D94*100,"-")) -> 5.423728814 | E94: =IF(OR('Tabel 4F H'!E94<5,'Tabel 4 H'!E94<0.5),"-",IFERROR('Tabel 4 H'!E94/'Tabel 4F H'!E94*100,"-")) -> 5.292479109 | F94: =IF(OR('Tabel 4F H'!F94<5,'Tabel 4 H'!F94<0.5),"-",IFERROR('Tabel 4 H'!F94/'Tabel 4F H'!F94*100,"-")) -> 3.773584906 | G94: =IF(OR('Tabel 4F H'!G94<5,'Tabel 4 H'!G94<0.5),"-",IFERROR('Tabel 4 H'!G94/'Tabel 4F H'!G94*100,"-")) -> - | I94: =IF(OR('Tabel 4F H'!I94<5,'Tabel 4 H'!I94<0.5),"-",IFERROR('Tabel 4 H'!I94/'Tabel 4F H'!I94*100,"-")) -> 7.552222817
A95: Bac. Samf. | C95: =IF(OR('Tabel 4F H'!C95<5,'Tabel 4 H'!C95<0.5),"-",IFERROR('Tabel 4 H'!C95/'Tabel 4F H'!C95*100,"-")) -> 16.08391608 | D95: =IF(OR('Tabel 4F H'!D95<5,'Tabel 4 H'!D95<0.5),"-",IFERROR('Tabel 4 H'!D95/'Tabel 4F H'!D95*100,"-")) -> 2.962962963 | E95: =IF(OR('Tabel 4F H'!E95<5,'Tabel 4 H'!E95<0.5),"-",IFERROR('Tabel 4 H'!E95/'Tabel 4F H'!E95*100,"-")) -> 4.310344828 | F95: =IF(OR('Tabel 4F H'!F95<5,'Tabel 4 H'!F95<0.5),"-",IFERROR('Tabel 4 H'!F95/'Tabel 4F H'!F95*100,"-")) -> 4.651162791 | G95: =IF(OR('Tabel 4F H'!G95<5,'Tabel 4 H'!G95<0.5),"-",IFERROR('Tabel 4 H'!G95/'Tabel 4F H'!G95*100,"-")) -> - | I95: =IF(OR('Tabel 4F H'!I95<5,'Tabel 4 H'!I95<0.5),"-",IFERROR('Tabel 4 H'!I95/'Tabel 4F H'!I95*100,"-")) -> 7.346938776
A96: Bac. Hum. | C96: =IF(OR('Tabel 4F H'!C96<5,'Tabel 4 H'!C96<0.5),"-",IFERROR('Tabel 4 H'!C96/'Tabel 4F H'!C96*100,"-")) -> 19.28166352 | D96: =IF(OR('Tabel 4F H'!D96<5,'Tabel 4 H'!D96<0.5),"-",IFERROR('Tabel 4 H'!D96/'Tabel 4F H'!D96*100,"-")) -> 10.49382716 | E96: =IF(OR('Tabel 4F H'!E96<5,'Tabel 4 H'!E96<0.5),"-",IFERROR('Tabel 4 H'!E96/'Tabel 4F H'!E96*100,"-")) -> 5.769230769 | F96: =IF(OR('Tabel 4F H'!F96<5,'Tabel 4 H'!F96<0.5),"-",IFERROR('Tabel 4 H'!F96/'Tabel 4F H'!F96*100,"-")) -> 4.232804233 | G96: =IF(OR('Tabel 4F H'!G96<5,'Tabel 4 H'!G96<0.5),"-",IFERROR('Tabel 4 H'!G96/'Tabel 4F H'!G96*100,"-")) -> 8.064516129 | I96: =IF(OR('Tabel 4F H'!I96<5,'Tabel 4 H'!I96<0.5),"-",IFERROR('Tabel 4 H'!I96/'Tabel 4F H'!I96*100,"-")) -> 12.27134146
A97: Bac. Nat. | C97: =IF(OR('Tabel 4F H'!C97<5,'Tabel 4 H'!C97<0.5),"-",IFERROR('Tabel 4 H'!C97/'Tabel 4F H'!C97*100,"-")) -> 18.97654584 | D97: =IF(OR('Tabel 4F H'!D97<5,'Tabel 4 H'!D97<0.5),"-",IFERROR('Tabel 4 H'!D97/'Tabel 4F H'!D97*100,"-")) -> 7.246376812 | E97: =IF(OR('Tabel 4F H'!E97<5,'Tabel 4 H'!E97<0.5),"-",IFERROR('Tabel 4 H'!E97/'Tabel 4F H'!E97*100,"-")) -> 5.319148936 | F97: =IF(OR('Tabel 4F H'!F97<5,'Tabel 4 H'!F97<0.5),"-",IFERROR('Tabel 4 H'!F97/'Tabel 4F H'!F97*100,"-")) -> 6.818181818 | G97: =IF(OR('Tabel 4F H'!G97<5,'Tabel 4 H'!G97<0.5),"-",IFERROR('Tabel 4 H'!G97/'Tabel 4F H'!G97*100,"-")) -> 16.66666667 | I97: =IF(OR('Tabel 4F H'!I97<5,'Tabel 4 H'!I97<0.5),"-",IFERROR('Tabel 4 H'!I97/'Tabel 4F H'!I97*100,"-")) -> 12.83924843
A98: Andre | C98: =IF(OR('Tabel 4F H'!C98<5,'Tabel 4 H'!C98<0.5),"-",IFERROR('Tabel 4 H'!C98/'Tabel 4F H'!C98*100,"-")) -> 13.46153846 | D98: =IF(OR('Tabel 4F H'!D98<5,'Tabel 4 H'!D98<0.5),"-",IFERROR('Tabel 4 H'!D98/'Tabel 4F H'!D98*100,"-")) -> 7.456683168 | E98: =IF(OR('Tabel 4F H'!E98<5,'Tabel 4 H'!E98<0.5),"-",IFERROR('Tabel 4 H'!E98/'Tabel 4F H'!E98*100,"-")) -> 5.6 | F98: =IF(OR('Tabel 4F H'!F98<5,'Tabel 4 H'!F98<0.5),"-",IFERROR('Tabel 4 H'!F98/'Tabel 4F H'!F98*100,"-")) -> 7.551240561 | G98: =IF(OR('Tabel 4F H'!G98<5,'Tabel 4 H'!G98<0.5),"-",IFERROR('Tabel 4 H'!G98/'Tabel 4F H'!G98*100,"-")) -> 12.39193084 | I98: =IF(OR('Tabel 4F H'!I98<5,'Tabel 4 H'!I98<0.5),"-",IFERROR('Tabel 4 H'!I98/'Tabel 4F H'!I98*100,"-")) -> 8.182658044
A100: Total | C100: =IF(OR('Tabel 4F H'!C100<5,'Tabel 4 H'!C100<0.5),"-",IFERROR('Tabel 4 H'!C100/'Tabel 4F H'!C100*100,"-")) -> 11.75908222 | D100: =IF(OR('Tabel 4F H'!D100<5,'Tabel 4 H'!D100<0.5),"-",IFERROR('Tabel 4 H'!D100/'Tabel 4F H'!D100*100,"-")) -> 5.635578445 | E100: =IF(OR('Tabel 4F H'!E100<5,'Tabel 4 H'!E100<0.5),"-",IFERROR('Tabel 4 H'!E100/'Tabel 4F H'!E100*100,"-")) -> 3.866792929 | F100: =IF(OR('Tabel 4F H'!F100<5,'Tabel 4 H'!F100<0.5),"-",IFERROR('Tabel 4 H'!F100/'Tabel 4F H'!F100*100,"-")) -> 3.801637339 | G100: =IF(OR('Tabel 4F H'!G100<5,'Tabel 4 H'!G100<0.5),"-",IFERROR('Tabel 4 H'!G100/'Tabel 4F H'!G100*100,"-")) -> 5.389768575 | I100: =IF(OR('Tabel 4F H'!I100<5,'Tabel 4 H'!I100<0.5),"-",IFERROR('Tabel 4 H'!I100/'Tabel 4F H'!I100*100,"-")) -> 6.509992839
A102: Ingeniører i alt | C102: =IF(OR('Tabel 4F H'!C102<5,'Tabel 4 H'!C102<0.5),"-",IFERROR('Tabel 4 H'!C102/'Tabel 4F H'!C102*100,"-")) -> 9.325044405 | D102: =IF(OR('Tabel 4F H'!D102<5,'Tabel 4 H'!D102<0.5),"-",IFERROR('Tabel 4 H'!D102/'Tabel 4F H'!D102*100,"-")) -> 3.554641598 | E102: =IF(OR('Tabel 4F H'!E102<5,'Tabel 4 H'!E102<0.5),"-",IFERROR('Tabel 4 H'!E102/'Tabel 4F H'!E102*100,"-")) -> 1.940639269 | F102: =IF(OR('Tabel 4F H'!F102<5,'Tabel 4 H'!F102<0.5),"-",IFERROR('Tabel 4 H'!F102/'Tabel 4F H'!F102*100,"-")) -> 1.694915254 | G102: =IF(OR('Tabel 4F H'!G102<5,'Tabel 4 H'!G102<0.5),"-",IFERROR('Tabel 4 H'!G102/'Tabel 4F H'!G102*100,"-")) -> 3.488372093 | I102: =IF(OR('Tabel 4F H'!I102<5,'Tabel 4 H'!I102<0.5),"-",IFERROR('Tabel 4 H'!I102/'Tabel 4F H'!I102*100,"-")) -> 4.308080277
A103: Magistre i alt | C103: =IF(OR('Tabel 4F H'!C103<5,'Tabel 4 H'!C103<0.5),"-",IFERROR('Tabel 4 H'!C103/'Tabel 4F H'!C103*100,"-")) -> 21.27333946 | D103: =IF(OR('Tabel 4F H'!D103<5,'Tabel 4 H'!D103<0.5),"-",IFERROR('Tabel 4 H'!D103/'Tabel 4F H'!D103*100,"-")) -> 8.930882734 | E103: =IF(OR('Tabel 4F H'!E103<5,'Tabel 4 H'!E103<0.5),"-",IFERROR('Tabel 4 H'!E103/'Tabel 4F H'!E103*100,"-")) -> 4.619970194 | F103: =IF(OR('Tabel 4F H'!F103<5,'Tabel 4 H'!F103<0.5),"-",IFERROR('Tabel 4 H'!F103/'Tabel 4F H'!F103*100,"-")) -> 4.583333333 | G103: =IF(OR('Tabel 4F H'!G103<5,'Tabel 4 H'!G103<0.5),"-",IFERROR('Tabel 4 H'!G103/'Tabel 4F H'!G103*100,"-")) -> 5.352798054 | I103: =IF(OR('Tabel 4F H'!I103<5,'Tabel 4 H'!I103<0.5),"-",IFERROR('Tabel 4 H'!I103/'Tabel 4F H'!I103*100,"-")) -> 9.070271906
A104: DJØF'ere i alt | C104: =IF(OR('Tabel 4F H'!C104<5,'Tabel 4 H'!C104<0.5),"-",IFERROR('Tabel 4 H'!C104/'Tabel 4F H'!C104*100,"-")) -> 6.774507419 | D104: =IF(OR('Tabel 4F H'!D104<5,'Tabel 4 H'!D104<0.5),"-",IFERROR('Tabel 4 H'!D104/'Tabel 4F H'!D104*100,"-")) -> 3.7314676 | E104: =IF(OR('Tabel 4F H'!E104<5,'Tabel 4 H'!E104<0.5),"-",IFERROR('Tabel 4 H'!E104/'Tabel 4F H'!E104*100,"-")) -> 3.264540338 | F104: =IF(OR('Tabel 4F H'!F104<5,'Tabel 4 H'!F104<0.5),"-",IFERROR('Tabel 4 H'!F104/'Tabel 4F H'!F104*100,"-")) -> 2.991596639 | G104: =IF(OR('Tabel 4F H'!G104<5,'Tabel 4 H'!G104<0.5),"-",IFERROR('Tabel 4 H'!G104/'Tabel 4F H'!G104*100,"-")) -> 4.792332268 | I104: =IF(OR('Tabel 4F H'!I104<5,'Tabel 4 H'!I104<0.5),"-",IFERROR('Tabel 4 H'!I104/'Tabel 4F H'!I104*100,"-")) -> 4.451455811
A111: Frederiksberg
C113: Under 30 år | D113: 30 - 39 år | E113: 40 - 49 år | F113: 50 - 59 år | G113: Over 60 år | I113: I alt
A115: Civ. ing. | C115: =IF(OR('Tabel 4F H'!C115<5,'Tabel 4 H'!C115<0.5),"-",IFERROR('Tabel 4 H'!C115/'Tabel 4F H'!C115*100,"-")) -> 6.607929515 | D115: =IF(OR('Tabel 4F H'!D115<5,'Tabel 4 H'!D115<0.5),"-",IFERROR('Tabel 4 H'!D115/'Tabel 4F H'!D115*100,"-")) -> 3.614457831 | E115: =IF(OR('Tabel 4F H'!E115<5,'Tabel 4 H'!E115<0.5),"-",IFERROR('Tabel 4 H'!E115/'Tabel 4F H'!E115*100,"-")) -> - | F115: =IF(OR('Tabel 4F H'!F115<5,'Tabel 4 H'!F115<0.5),"-",IFERROR('Tabel 4 H'!F115/'Tabel 4F H'!F115*100,"-")) -> 1.612903226 | G115: =IF(OR('Tabel 4F H'!G115<5,'Tabel 4 H'!G115<0.5),"-",IFERROR('Tabel 4 H'!G115/'Tabel 4F H'!G115*100,"-")) -> 5.555555556 | I115: =IF(OR('Tabel 4F H'!I115<5,'Tabel 4 H'!I115<0.5),"-",IFERROR('Tabel 4 H'!I115/'Tabel 4F H'!I115*100,"-")) -> 3.315412186
A116: Diplom ing. | C116: =IF(OR('Tabel 4F H'!C116<5,'Tabel 4 H'!C116<0.5),"-",IFERROR('Tabel 4 H'!C116/'Tabel 4F H'!C116*100,"-")) -> 5.714285714 | D116: =IF(OR('Tabel 4F H'!D116<5,'Tabel 4 H'!D116<0.5),"-",IFERROR('Tabel 4 H'!D116/'Tabel 4F H'!D116*100,"-")) -> 2.727272727 | E116: =IF(OR('Tabel 4F H'!E116<5,'Tabel 4 H'!E116<0.5),"-",IFERROR('Tabel 4 H'!E116/'Tabel 4F H'!E116*100,"-")) -> 2.702702703 | F116: =IF(OR('Tabel 4F H'!F116<5,'Tabel 4 H'!F116<0.5),"-",IFERROR('Tabel 4 H'!F116/'Tabel 4F H'!F116*100,"-")) -> 1.470588235 | G116: =IF(OR('Tabel 4F H'!G116<5,'Tabel 4 H'!G116<0.5),"-",IFERROR('Tabel 4 H'!G116/'Tabel 4F H'!G116*100,"-")) -> 4.347826087 | I116: =IF(OR('Tabel 4F H'!I116<5,'Tabel 4 H'!I116<0.5),"-",IFERROR('Tabel 4 H'!I116/'Tabel 4F H'!I116*100,"-")) -> 2.836879433
A117: Cand. Scient. Tek | C117: =IF(OR('Tabel 4F H'!C117<5,'Tabel 4 H'!C117<0.5),"-",IFERROR('Tabel 4 H'!C117/'Tabel 4F H'!C117*100,"-")) -> 10.85972851 | D117: =IF(OR('Tabel 4F H'!D117<5,'Tabel 4 H'!D117<0.5),"-",IFERROR('Tabel 4 H'!D117/'Tabel 4F H'!D117*100,"-")) -> 3.899082569 | E117: =IF(OR('Tabel 4F H'!E117<5,'Tabel 4 H'!E117<0.5),"-",IFERROR('Tabel 4 H'!E117/'Tabel 4F H'!E117*100,"-")) -> 4.615384615 | F117: =IF(OR('Tabel 4F H'!F117<5,'Tabel 4 H'!F117<0.5),"-",IFERROR('Tabel 4 H'!F117/'Tabel 4F H'!F117*100,"-")) -> - | G117: =IF(OR('Tabel 4F H'!G117<5,'Tabel 4 H'!G117<0.5),"-",IFERROR('Tabel 4 H'!G117/'Tabel 4F H'!G117*100,"-")) -> 20 | I117: =IF(OR('Tabel 4F H'!I117<5,'Tabel 4 H'!I117<0.5),"-",IFERROR('Tabel 4 H'!I117/'Tabel 4F H'!I117*100,"-")) -> 5.839416058
A118: MA. Hum. | C118: =IF(OR('Tabel 4F H'!C118<5,'Tabel 4 H'!C118<0.5),"-",IFERROR('Tabel 4 H'!C118/'Tabel 4F H'!C118*100,"-")) -> 19.65065502 | D118: =IF(OR('Tabel 4F H'!D118<5,'Tabel 4 H'!D118<0.5),"-",IFERROR('Tabel 4 H'!D118/'Tabel 4F H'!D118*100,"-")) -> 6.111111111 | E118: =IF(OR('Tabel 4F H'!E118<5,'Tabel 4 H'!E118<0.5),"-",IFERROR('Tabel 4 H'!E118/'Tabel 4F H'!E118*100,"-")) -> 5.069124424 | F118: =IF(OR('Tabel 4F H'!F118<5,'Tabel 4 H'!F118<0.5),"-",IFERROR('Tabel 4 H'!F118/'Tabel 4F H'!F118*100,"-")) -> 5.033557047 | G118: =IF(OR('Tabel 4F H'!G118<5,'Tabel 4 H'!G118<0.5),"-",IFERROR('Tabel 4 H'!G118/'Tabel 4F H'!G118*100,"-")) -> 6.666666667 | I118: =IF(OR('Tabel 4F H'!I118<5,'Tabel 4 H'!I118<0.5),"-",IFERROR('Tabel 4 H'!I118/'Tabel 4F H'!I118*100,"-")) -> 7.295666484
A119: MA. Nat. | C119: =IF(OR('Tabel 4F H'!C119<5,'Tabel 4 H'!C119<0.5),"-",IFERROR('Tabel 4 H'!C119/'Tabel 4F H'!C119*100,"-")) -> 14 | D119: =IF(OR('Tabel 4F H'!D119<5,'Tabel 4 H'!D119<0.5),"-",IFERROR('Tabel 4 H'!D119/'Tabel 4F H'!D119*100,"-")) -> 7.216494845 | E119: =IF(OR('Tabel 4F H'!E119<5,'Tabel 4 H'!E119<0.5),"-",IFERROR('Tabel 4 H'!E119/'Tabel 4F H'!E119*100,"-")) -> 2.649006623 | F119: =IF(OR('Tabel 4F H'!F119<5,'Tabel 4 H'!F119<0.5),"-",IFERROR('Tabel 4 H'!F119/'Tabel 4F H'!F119*100,"-")) -> 2.836879433 | G119: =IF(OR('Tabel 4F H'!G119<5,'Tabel 4 H'!G119<0.5),"-",IFERROR('Tabel 4 H'!G119/'Tabel 4F H'!G119*100,"-")) -> 2.040816327 | I119: =IF(OR('Tabel 4F H'!I119<5,'Tabel 4 H'!I119<0.5),"-",IFERROR('Tabel 4 H'!I119/'Tabel 4F H'!I119*100,"-")) -> 4.713114754
A120: MA. Ph.d. | C120: =IF(OR('Tabel 4F H'!C120<5,'Tabel 4 H'!C120<0.5),"-",IFERROR('Tabel 4 H'!C120/'Tabel 4F H'!C120*100,"-")) -> - | D120: =IF(OR('Tabel 4F H'!D120<5,'Tabel 4 H'!D120<0.5),"-",IFERROR('Tabel 4 H'!D120/'Tabel 4F H'!D120*100,"-")) -> - | E120: =IF(OR('Tabel 4F H'!E120<5,'Tabel 4 H'!E120<0.5),"-",IFERROR('Tabel 4 H'!E120/'Tabel 4F H'!E120*100,"-")) -> 2.173913043 | F120: =IF(OR('Tabel 4F H'!F120<5,'Tabel 4 H'!F120<0.5),"-",IFERROR('Tabel 4 H'!F120/'Tabel 4F H'!F120*100,"-")) -> 10.25641026 | G120: =IF(OR('Tabel 4F H'!G120<5,'Tabel 4 H'!G120<0.5),"-",IFERROR('Tabel 4 H'!G120/'Tabel 4F H'!G120*100,"-")) -> - | I120: =IF(OR('Tabel 4F H'!I120<5,'Tabel 4 H'!I120<0.5),"-",IFERROR('Tabel 4 H'!I120/'Tabel 4F H'!I120*100,"-")) -> 3.90625
A121: MA. Samf. | C121: =IF(OR('Tabel 4F H'!C121<5,'Tabel 4 H'!C121<0.5),"-",IFERROR('Tabel 4 H'!C121/'Tabel 4F H'!C121*100,"-")) -> 21.97802198 | D121: =IF(OR('Tabel 4F H'!D121<5,'Tabel 4 H'!D121<0.5),"-",IFERROR('Tabel 4 H'!D121/'Tabel 4F H'!D121*100,"-")) -> 10.34482759 | E121: =IF(OR('Tabel 4F H'!E121<5,'Tabel 4 H'!E121<0.5),"-",IFERROR('Tabel 4 H'!E121/'Tabel 4F H'!E121*100,"-")) -> 3.703703704 | F121: =IF(OR('Tabel 4F H'!F121<5,'Tabel 4 H'!F121<0.5),"-",IFERROR('Tabel 4 H'!F121/'Tabel 4F H'!F121*100,"-")) -> 2.702702703 | G121: =IF(OR('Tabel 4F H'!G121<5,'Tabel 4 H'!G121<0.5),"-",IFERROR('Tabel 4 H'!G121/'Tabel 4F H'!G121*100,"-")) -> - | I121: =IF(OR('Tabel 4F H'!I121<5,'Tabel 4 H'!I121<0.5),"-",IFERROR('Tabel 4 H'!I121/'Tabel 4F H'!I121*100,"-")) -> 11.48036254
A122: Øvrige Mag. | C122: =IF(OR('Tabel 4F H'!C122<5,'Tabel 4 H'!C122<0.5),"-",IFERROR('Tabel 4 H'!C122/'Tabel 4F H'!C122*100,"-")) -> 16.66666667 | D122: =IF(OR('Tabel 4F H'!D122<5,'Tabel 4 H'!D122<0.5),"-",IFERROR('Tabel 4 H'!D122/'Tabel 4F H'!D122*100,"-")) -> 15.38461538 | E122: =IF(OR('Tabel 4F H'!E122<5,'Tabel 4 H'!E122<0.5),"-",IFERROR('Tabel 4 H'!E122/'Tabel 4F H'!E122*100,"-")) -> 5.128205128 | F122: =IF(OR('Tabel 4F H'!F122<5,'Tabel 4 H'!F122<0.5),"-",IFERROR('Tabel 4 H'!F122/'Tabel 4F H'!F122*100,"-")) -> 6.666666667 | G122: =IF(OR('Tabel 4F H'!G122<5,'Tabel 4 H'!G122<0.5),"-",IFERROR('Tabel 4 H'!G122/'Tabel 4F H'!G122*100,"-")) -> 10 | I122: =IF(OR('Tabel 4F H'!I122<5,'Tabel 4 H'!I122<0.5),"-",IFERROR('Tabel 4 H'!I122/'Tabel 4F H'!I122*100,"-")) -> 10.07751938
A123: Agronom | C123: =IF(OR('Tabel 4F H'!C123<5,'Tabel 4 H'!C123<0.5),"-",IFERROR('Tabel 4 H'!C123/'Tabel 4F H'!C123*100,"-")) -> 15.38461538 | D123: =IF(OR('Tabel 4F H'!D123<5,'Tabel 4 H'!D123<0.5),"-",IFERROR('Tabel 4 H'!D123/'Tabel 4F H'!D123*100,"-")) -> 7.142857143 | E123: =IF(OR('Tabel 4F H'!E123<5,'Tabel 4 H'!E123<0.5),"-",IFERROR('Tabel 4 H'!E123/'Tabel 4F H'!E123*100,"-")) -> 6.25 | F123: =IF(OR('Tabel 4F H'!F123<5,'Tabel 4 H'!F123<0.5),"-",IFERROR('Tabel 4 H'!F123/'Tabel 4F H'!F123*100,"-")) -> - | G123: =IF(OR('Tabel 4F H'!G123<5,'Tabel 4 H'!G123<0.5),"-",IFERROR('Tabel 4 H'!G123/'Tabel 4F H'!G123*100,"-")) -> - | I123: =IF(OR('Tabel 4F H'!I123<5,'Tabel 4 H'!I123<0.5),"-",IFERROR('Tabel 4 H'!I123/'Tabel 4F H'!I123*100,"-")) -> 5.194805195
A124: Landsk. Arkt. | C124: =IF(OR('Tabel 4F H'!C124<5,'Tabel 4 H'!C124<0.5),"-",IFERROR('Tabel 4 H'!C124/'Tabel 4F H'!C124*100,"-")) -> 20 | D124: =IF(OR('Tabel 4F H'!D124<5,'Tabel 4 H'!D124<0.5),"-",IFERROR('Tabel 4 H'!D124/'Tabel 4F H'!D124*100,"-")) -> 7.142857143 | E124: =IF(OR('Tabel 4F H'!E124<5,'Tabel 4 H'!E124<0.5),"-",IFERROR('Tabel 4 H'!E124/'Tabel 4F H'!E124*100,"-")) -> - | F124: =IF(OR('Tabel 4F H'!F124<5,'Tabel 4 H'!F124<0.5),"-",IFERROR('Tabel 4 H'!F124/'Tabel 4F H'!F124*100,"-")) -> - | G124: =IF(OR('Tabel 4F H'!G124<5,'Tabel 4 H'!G124<0.5),"-",IFERROR('Tabel 4 H'!G124/'Tabel 4F H'!G124*100,"-")) -> - | I124: =IF(OR('Tabel 4F H'!I124<5,'Tabel 4 H'!I124<0.5),"-",IFERROR('Tabel 4 H'!I124/'Tabel 4F H'!I124*100,"-")) -> 5.714285714
A125: Hortonom | C125: =IF(OR('Tabel 4F H'!C125<5,'Tabel 4 H'!C125<0.5),"-",IFERROR('Tabel 4 H'!C125/'Tabel 4F H'!C125*100,"-")) -> - | D125: =IF(OR('Tabel 4F H'!D125<5,'Tabel 4 H'!D125<0.5),"-",IFERROR('Tabel 4 H'!D125/'Tabel 4F H'!D125*100,"-")) -> - | E125: =IF(OR('Tabel 4F H'!E125<5,'Tabel 4 H'!E125<0.5),"-",IFERROR('Tabel 4 H'!E125/'Tabel 4F H'!E125*100,"-")) -> - | F125: =IF(OR('Tabel 4F H'!F125<5,'Tabel 4 H'!F125<0.5),"-",IFERROR('Tabel 4 H'!F125/'Tabel 4F H'!F125*100,"-")) -> - | G125: =IF(OR('Tabel 4F H'!G125<5,'Tabel 4 H'!G125<0.5),"-",IFERROR('Tabel 4 H'!G125/'Tabel 4F H'!G125*100,"-")) -> - | I125: =IF(OR('Tabel 4F H'!I125<5,'Tabel 4 H'!I125<0.5),"-",IFERROR('Tabel 4 H'!I125/'Tabel 4F H'!I125*100,"-")) -> -
A126: Forstkand. | C126: =IF(OR('Tabel 4F H'!C126<5,'Tabel 4 H'!C126<0.5),"-",IFERROR('Tabel 4 H'!C126/'Tabel 4F H'!C126*100,"-")) -> - | D126: =IF(OR('Tabel 4F H'!D126<5,'Tabel 4 H'!D126<0.5),"-",IFERROR('Tabel 4 H'!D126/'Tabel 4F H'!D126*100,"-")) -> - | E126: =IF(OR('Tabel 4F H'!E126<5,'Tabel 4 H'!E126<0.5),"-",IFERROR('Tabel 4 H'!E126/'Tabel 4F H'!E126*100,"-")) -> - | F126: =IF(OR('Tabel 4F H'!F126<5,'Tabel 4 H'!F126<0.5),"-",IFERROR('Tabel 4 H'!F126/'Tabel 4F H'!F126*100,"-")) -> - | G126: =IF(OR('Tabel 4F H'!G126<5,'Tabel 4 H'!G126<0.5),"-",IFERROR('Tabel 4 H'!G126/'Tabel 4F H'!G126*100,"-")) -> - | I126: =IF(OR('Tabel 4F H'!I126<5,'Tabel 4 H'!I126<0.5),"-",IFERROR('Tabel 4 H'!I126/'Tabel 4F H'!I126*100,"-")) -> -
A127: Jordbrugsakad. | C127: =IF(OR('Tabel 4F H'!C127<5,'Tabel 4 H'!C127<0.5),"-",IFERROR('Tabel 4 H'!C127/'Tabel 4F H'!C127*100,"-")) -> 15.78947368 | D127: =IF(OR('Tabel 4F H'!D127<5,'Tabel 4 H'!D127<0.5),"-",IFERROR('Tabel 4 H'!D127/'Tabel 4F H'!D127*100,"-")) -> 6.451612903 | E127: =IF(OR('Tabel 4F H'!E127<5,'Tabel 4 H'!E127<0.5),"-",IFERROR('Tabel 4 H'!E127/'Tabel 4F H'!E127*100,"-")) -> 2.941176471 | F127: =IF(OR('Tabel 4F H'!F127<5,'Tabel 4 H'!F127<0.5),"-",IFERROR('Tabel 4 H'!F127/'Tabel 4F H'!F127*100,"-")) -> - | G127: =IF(OR('Tabel 4F H'!G127<5,'Tabel 4 H'!G127<0.5),"-",IFERROR('Tabel 4 H'!G127/'Tabel 4F H'!G127*100,"-")) -> - | I127: =IF(OR('Tabel 4F H'!I127<5,'Tabel 4 H'!I127<0.5),"-",IFERROR('Tabel 4 H'!I127/'Tabel 4F H'!I127*100,"-")) -> 4.511278195
A128: Mejeriing. | C128: =IF(OR('Tabel 4F H'!C128<5,'Tabel 4 H'!C128<0.5),"-",IFERROR('Tabel 4 H'!C128/'Tabel 4F H'!C128*100,"-")) -> - | D128: =IF(OR('Tabel 4F H'!D128<5,'Tabel 4 H'!D128<0.5),"-",IFERROR('Tabel 4 H'!D128/'Tabel 4F H'!D128*100,"-")) -> - | E128: =IF(OR('Tabel 4F H'!E128<5,'Tabel 4 H'!E128<0.5),"-",IFERROR('Tabel 4 H'!E128/'Tabel 4F H'!E128*100,"-")) -> - | F128: =IF(OR('Tabel 4F H'!F128<5,'Tabel 4 H'!F128<0.5),"-",IFERROR('Tabel 4 H'!F128/'Tabel 4F H'!F128*100,"-")) -> - | G128: =IF(OR('Tabel 4F H'!G128<5,'Tabel 4 H'!G128<0.5),"-",IFERROR('Tabel 4 H'!G128/'Tabel 4F H'!G128*100,"-")) -> - | I128: =IF(OR('Tabel 4F H'!I128<5,'Tabel 4 H'!I128<0.5),"-",IFERROR('Tabel 4 H'!I128/'Tabel 4F H'!I128*100,"-")) -> -
A129: Levn.m.kand. | C129: =IF(OR('Tabel 4F H'!C129<5,'Tabel 4 H'!C129<0.5),"-",IFERROR('Tabel 4 H'!C129/'Tabel 4F H'!C129*100,"-")) -> - | D129: =IF(OR('Tabel 4F H'!D129<5,'Tabel 4 H'!D129<0.5),"-",IFERROR('Tabel 4 H'!D129/'Tabel 4F H'!D129*100,"-")) -> 7.692307692 | E129: =IF(OR('Tabel 4F H'!E129<5,'Tabel 4 H'!E129<0.5),"-",IFERROR('Tabel 4 H'!E129/'Tabel 4F H'!E129*100,"-")) -> - | F129: =IF(OR('Tabel 4F H'!F129<5,'Tabel 4 H'!F129<0.5),"-",IFERROR('Tabel 4 H'!F129/'Tabel 4F H'!F129*100,"-")) -> - | G129: =IF(OR('Tabel 4F H'!G129<5,'Tabel 4 H'!G129<0.5),"-",IFERROR('Tabel 4 H'!G129/'Tabel 4F H'!G129*100,"-")) -> - | I129: =IF(OR('Tabel 4F H'!I129<5,'Tabel 4 H'!I129<0.5),"-",IFERROR('Tabel 4 H'!I129/'Tabel 4F H'!I129*100,"-")) -> 4
A130: Dyrlæge | C130: =IF(OR('Tabel 4F H'!C130<5,'Tabel 4 H'!C130<0.5),"-",IFERROR('Tabel 4 H'!C130/'Tabel 4F H'!C130*100,"-")) -> 5 | D130: =IF(OR('Tabel 4F H'!D130<5,'Tabel 4 H'!D130<0.5),"-",IFERROR('Tabel 4 H'!D130/'Tabel 4F H'!D130*100,"-")) -> - | E130: =IF(OR('Tabel 4F H'!E130<5,'Tabel 4 H'!E130<0.5),"-",IFERROR('Tabel 4 H'!E130/'Tabel 4F H'!E130*100,"-")) -> - | F130: =IF(OR('Tabel 4F H'!F130<5,'Tabel 4 H'!F130<0.5),"-",IFERROR('Tabel 4 H'!F130/'Tabel 4F H'!F130*100,"-")) -> - | G130: =IF(OR('Tabel 4F H'!G130<5,'Tabel 4 H'!G130<0.5),"-",IFERROR('Tabel 4 H'!G130/'Tabel 4F H'!G130*100,"-")) -> - | I130: =IF(OR('Tabel 4F H'!I130<5,'Tabel 4 H'!I130<0.5),"-",IFERROR('Tabel 4 H'!I130/'Tabel 4F H'!I130*100,"-")) -> 1.298701299
A131: Farmaceut | C131: =IF(OR('Tabel 4F H'!C131<5,'Tabel 4 H'!C131<0.5),"-",IFERROR('Tabel 4 H'!C131/'Tabel 4F H'!C131*100,"-")) -> 10.90909091 | D131: =IF(OR('Tabel 4F H'!D131<5,'Tabel 4 H'!D131<0.5),"-",IFERROR('Tabel 4 H'!D131/'Tabel 4F H'!D131*100,"-")) -> - | E131: =IF(OR('Tabel 4F H'!E131<5,'Tabel 4 H'!E131<0.5),"-",IFERROR('Tabel 4 H'!E131/'Tabel 4F H'!E131*100,"-")) -> - | F131: =IF(OR('Tabel 4F H'!F131<5,'Tabel 4 H'!F131<0.5),"-",IFERROR('Tabel 4 H'!F131/'Tabel 4F H'!F131*100,"-")) -> 2.631578947 | G131: =IF(OR('Tabel 4F H'!G131<5,'Tabel 4 H'!G131<0.5),"-",IFERROR('Tabel 4 H'!G131/'Tabel 4F H'!G131*100,"-")) -> - | I131: =IF(OR('Tabel 4F H'!I131<5,'Tabel 4 H'!I131<0.5),"-",IFERROR('Tabel 4 H'!I131/'Tabel 4F H'!I131*100,"-")) -> 3.097345133
A132: Læge | C132: =IF(OR('Tabel 4F H'!C132<5,'Tabel 4 H'!C132<0.5),"-",IFERROR('Tabel 4 H'!C132/'Tabel 4F H'!C132*100,"-")) -> 6.741573034 | D132: =IF(OR('Tabel 4F H'!D132<5,'Tabel 4 H'!D132<0.5),"-",IFERROR('Tabel 4 H'!D132/'Tabel 4F H'!D132*100,"-")) -> 1.015228426 | E132: =IF(OR('Tabel 4F H'!E132<5,'Tabel 4 H'!E132<0.5),"-",IFERROR('Tabel 4 H'!E132/'Tabel 4F H'!E132*100,"-")) -> 1.19047619 | F132: =IF(OR('Tabel 4F H'!F132<5,'Tabel 4 H'!F132<0.5),"-",IFERROR('Tabel 4 H'!F132/'Tabel 4F H'!F132*100,"-")) -> 1.388888889 | G132: =IF(OR('Tabel 4F H'!G132<5,'Tabel 4 H'!G132<0.5),"-",IFERROR('Tabel 4 H'!G132/'Tabel 4F H'!G132*100,"-")) -> 2.222222222 | I132: =IF(OR('Tabel 4F H'!I132<5,'Tabel 4 H'!I132<0.5),"-",IFERROR('Tabel 4 H'!I132/'Tabel 4F H'!I132*100,"-")) -> 2.258726899
